Workbook

Sheet Overview
A2: CDCM Annual Review Pack (incorporating DCP 179)
A4: Company: | B4: ='CDCM Forecast Data'!E3 -> WPD South Wales
A5: Date of Issue: | B5: ='CDCM Forecast Data'!E4 -> 2014-12-31
A7: ="Although every effort has been made to ensure the accuracy of the information provided in this annual review pack, " & 'CDCM Forecast Data'!E3 & " does not accept any liability for the accuracy of the information contained herein and, in particular, " & 'CDCM Forecast Data'!E3 & " or any of its employees, shall not be held liable for any misstatement or opinion on which the recipient of this statement relies or seeks to rely." -> Although every effort has been made to ensure the accuracy of the information provided in this annual review pack, WPD South Wales does not accept any liability for the accuracy of the information contained herein and, in particular, WPD South Wales or any of its employees, shall not be held liable for any misstatement or opinion on which the recipient of this statement relies or seeks to rely.
A12: Contents:
A14: Sheet Name | B14: Detail
A15: Commentary | B15: This sheet contains the DNO's commentary on the forecast input CDCM data for the forecast over the 5 year period.
A16: CDCM Forecast Data | B16: This sheet contains historical and forecast data for all CDCM inputs except for volume data (table 1053) and matrix of applicability data (table 1025 - 1028). The RPI forecast is seperated out and listed as a standalone assumption. Any forecasts that relate to RPI will be linked to this row. Comments are provided alongside each forecast explaining any assumptions made by the DNO.
A17: Table 1 | B17: This sheet contains the DNO's table 1 produced in accordance with DCUSA Schedule 15 "cost information table".
A18: Mat of App | B18: This sheet contains the forecast CDCM matrix of applicability data (table 1025 - 1028). The default value is that the same matrix will be used for each of the five years.
A19: CDCM Volume Forecasts | B19: This sheet contains forecast CDCM volume data (table 1053). The matrix at the top can be used to apply different growth rates to groups of customers.
A20: CDCM Timebands | B20: Contains the time bands that the DNO plans to use for the coming year and advance warning of any changes.
A21: CDCM Input Sheet (Y) | B21: This sheet contains the CDCM input sheet for base year 0 (Y) in a format that can be copy and pasted (paste-value) into the CDCM spreadsheet model.
A22: CDCM Input Sheet (Y + 1) | B22: This sheet contains the CDCM input sheet for base year +1 (Y+1) in a format that can be copy and pasted (paste-value) into the CDCM spreadsheet model.
A23: CDCM Input Sheet (Y + 2) | B23: This sheet contains the CDCM input sheet for base year +2 (Y+2) in a format that can be copy and pasted (paste-value) into the CDCM spreadsheet model.
A24: CDCM Input Sheet (Y + 3) | B24: This sheet contains the CDCM input sheet for base year +3 (Y+3) in a format that can be copy and pasted (paste-value) into the CDCM spreadsheet model.
A25: CDCM Input Sheet (Y + 4) | B25: This sheet contains the CDCM input sheet for base year +4 (Y+4) in a format that can be copy and pasted (paste-value) into the CDCM spreadsheet model.
A26: Tariffs ARP | B26: This sheet contains the CDCM tariffs that are produced from the CDCM input data, after the Macro on this sheet has been run. It contains the tariffs for each of the 5 years.
A29: This document, model or dataset has been prepared by Reckon LLP on the instructions of the DCUSA Panel or
A30: one of its working groups. Only the DCUSA Panel and its working groups have authority to approve this
A31: material as meeting their requirements. Reckon LLP makes no representation about the suitability of this
A32: material for the purposes of complying with any licence conditions or furthering any relevant objective.

Sheet Commentary
B3: ='CDCM Forecast Data'!E3 -> WPD South Wales

Sheet CDCM Forecast Data
D3: Company: | E3: WPD South Wales
D4: Date of Issue: | E4: 2014-12-31
D5: Status | E5: DCP179
C9: Historical CDCM Input Data (Actuals) | E9: ="CDCM Values - "&E5 -> CDCM Values - DCP179 | F9: Forecast CDCM Values
B10: Year Ref -> | C10: Y-2 | D10: Y-1 | E10: Y | F10: Y+1 | G10: Y+2 | H10: Y+3 | I10: Y+4
B11: Charging Year -> | C11: 2013/14 | D11: 2014/15 | E11: 2015/16 | F11: 2016/17 | G11: 2017/18 | H11: 2018/19 | I11: 2019/20
B12: DPCR -> | C12: DPCR5 | D12: DPCR5 | E12: RIIO - ED1 | F12: RIIO - ED1 | G12: RIIO - ED1 | H12: RIIO - ED1 | I12: RIIO - ED1 | J12: Assumptions
B13: RPI Forecast: | F13: ='Table 1'!G9/'Table 1'!F9-1 -> 0.03234750462 | G13: ='Table 1'!H9/'Table 1'!G9-1 -> 0.03222918532 | H13: ='Table 1'!I9/'Table 1'!H9-1 -> 0.03 | I13: ='Table 1'!J9/'Table 1'!I9-1 -> 0.03
A14: 1 | B14: 1000 Company name, charging year and model version
A15: 2 | B15: Company
A16: 3 | B16: Year
A17: 4 | B17: Version
A18: 5 | B18: 1010 Financial and general assumptions
A19: 6 | B19: Rate of return | C19: 0.056 | D19: 0.056 | E19: 0.056 | F19: 0.056 | G19: 0.056 | H19: 0.056 | I19: 0.056
A20: 7 | B20: Annualisation period (years) | C20: 40 | D20: 40 | E20: 40 | F20: 40 | G20: 40 | H20: 40 | I20: 40
A21: 8 | B21: Power factor | C21: 0.95 | D21: 0.95 | E21: 0.95 | F21: 0.95 | G21: 0.95 | H21: 0.95 | I21: 0.95
A22: 9 | B22: Days in the charging period | C22: 365 | D22: 365 | E22: 366 | F22: 365 | G22: 365 | H22: 365 | I22: 366
A23: 10 | B23: 1017 Diversity allowance between top and bottom of network level
A24: 11 | B24: GSPs | C24: 0.06382978723 | D24: 0.06382978723 | E24: 0.06382978723 | F24: 0.06382978723 | G24: 0.06382978723 | H24: 0.06382978723 | I24: 0.06382978723
A25: 12 | B25: 132kV | C25: 0.053 | D25: 0.053 | E25: 0.053 | F25: 0.053 | G25: 0.053 | H25: 0.053 | I25: 0.053
A26: 13 | B26: EHV | C26: 0.099 | D26: 0.099 | E26: 0.099 | F26: 0.099 | G26: 0.099 | H26: 0.099 | I26: 0.099
A27: 14 | B27: HV | C27: 0.37 | D27: 0.37 | E27: 0.37 | F27: 0.37 | G27: 0.37 | H27: 0.37 | I27: 0.37
A28: 15 | B28: 1018 Proportion of relevant load going through 132kV/HV direct transformation | C28: 0.3 | D28: 0.3 | E28: 0.3 | F28: 0.3 | G28: 0.3 | H28: 0.3 | I28: 0.3
A29: 16 | B29: 1019 Network model GSP demand (MW) | C29: 500 | D29: 500 | E29: 500 | F29: 500 | G29: 500 | H29: 500 | I29: 500
A30: 17 | B30: 1020 Gross asset cost by network level (£)
A31: 18 | B31: 132kV | C31: 120672078.1 | D31: 123290662.2 | E31: 126742800.8 | F31: 129768341.4 | G31: =F31*(1+G$13) -> 133950669.3 | H31: =G31*(1+H$13) -> 137969189.4 | I31: =H31*(1+I$13) -> 142108265.1
A32: 19 | B32: 132kV/EHV | C32: 11165890.34 | D32: 11408190.16 | E32: 11727619.48 | F32: 11461874.67 | G32: 11831281.55 | H32: 12186220 | I32: 12551806.6
A33: 20 | B33: EHV | C33: 38870141.65 | D33: 39713623.72 | E33: 40825605.19 | F33: 34011588.19 | G33: 35107753.97 | H33: 36160986.59 | I33: 37245816.18
A34: 21 | B34: EHV/HV | C34: 26878757.78 | D34: 27462026.82 | E34: 28230963.57 | F34: 29589844.91 | G34: 30543501.51 | H34: 31459806.55 | I34: 32403600.75
A35: 22 | B35: 132kV/HV | C35: 8647821.75 | D35: 8835479.482 | E35: 9082872.907 | F35: 9528375.246 | G35: 9835467.018 | H35: 10130531.03 | I35: 10434446.96
A36: 23 | B36: HV | C36: 152265739.5 | D36: 155569906.1 | E36: 159925863.5 | F36: 142733572.5 | G36: 147333759.2 | H36: 151753772 | I36: 156306385.2
A37: 24 | B37: HV/LV | C37: 53716079.42 | D37: 54881718.34 | E37: 56418406.46 | F37: 55142476.59 | G37: 56919673.68 | H37: 58627263.89 | I37: 60386081.81
A38: 25 | B38: LV circuits | C38: 115202739.6 | D38: 117702639 | E38: 120998312.9 | F38: 113568500.3 | G38: 117228720.5 | H38: 120745582.1 | I38: 124367949.6
A39: 26 | B39: 1022 LV service model asset cost (£)
A40: 27 | B40: LV service model 1 | C40: 4553.43 | D40: 4689.776689 | E40: 4818.312533 | F40: 5105.17672 | G40: =F40*(1+G$13) -> 5269.712407 | H40: 5427.803779 | I40: 5590.637892
A41: 28 | B41: LV service model 2 | C41: 543.4733333 | D41: 578.9437507 | E41: 588.8475667 | F41: 574.28134 | G41: 592.7899597 | H41: 610.5736585 | I41: 628.8908683
A42: 29 | B42: LV service model 3 | C42: 618.9708333 | D42: 683.874895 | E42: 688.3550083 | F42: 699.18344 | G42: 721.7175527 | H42: 743.3690792 | I42: 765.6701516
A43: 30 | B43: LV service model 4 | C43: 471.8933333 | D43: 509.4741107 | E43: 508.3187333 | F43: 518.5284 | G43: 535.2401479 | H43: 551.2973523 | I43: 567.8362729
A44: 31 | B44: LV service model 5 | C44: 1214.751333 | D44: 1169.036632 | E44: 1179.954953 | F44: 1178.730448 | G44: 1216.71997 | H44: 1253.221569 | I44: 1290.818216
A45: 32 | B45: LV service model 6 | C45: 877.825 | D45: 858.6034748 | E45: 892.507875 | F45: 907.87362 | G45: 937.1336471 | H45: 965.2476566 | I45: 994.2050863
A46: 33 | B46: LV service model 7 | C46: 0 | D46: 0 | E46: 0 | F46: 0 | G46: 0 | H46: 0 | I46: 0
A47: 34 | B47: LV service model 8 | C47: 512.1 | D47: 450.314275 | E47: 468.8148 | F47: 474.8232 | G47: 490.1263649 | H47: 504.8301559 | I47: 519.9750605
A48: 35 | B48: 1023 HV service model asset cost (£)
A49: 36 | B49: HV service model 1 | C49: 9790.194 | D49: 8748.377769 | E49: 8971.25056 | F49: 9007.159776 | G49: =F49*(1+G$13) -> 9297.453198 | H49: 9576.376794 | I49: 9863.668097
A50: 37 | B50: HV service model 2 | C50: 4208 | D50: 4299.3136 | E50: 4334.24 | F50: 4342.656 | G50: 4482.616265 | H50: 4617.094753 | I50: 4755.607596
A51: 38 | B51: HV service model 3 | G51: 0 | H51: 0 | I51: 0
A52: 39 | B52: HV service model 4 | G52: 0 | H52: 0 | I52: 0
A53: 40 | B53: HV service model 5 | G53: 0 | H53: 0 | I53: 0
A54: 41 | B54: 1025 Matrix of applicability of LV service models to tariffs with fixed charges
A55: 42 | B55: 1026 Matrix of applicability of LV service models to unmetered tariffs
A56: 43 | B56: 1028 Matrix of applicability of HV service models to tariffs with fixed charges
A57: 44 | B57: 1032 Loss adjustment factors to transmission
A58: 45 | B58: 132kV | C58: 1.01 | D58: 1.01 | E58: 1.0097 | F58: 1.0097 | G58: 1.0097 | H58: 1.0097 | I58: 1.0097
A59: 46 | B59: 132kV/EHV | C59: 1.015 | D59: 1.015 | E59: 1.0142 | F59: 1.0142 | G59: 1.0142 | H59: 1.0142 | I59: 1.0142
A60: 47 | B60: EHV | C60: 1.024 | D60: 1.024 | E60: 1.027 | F60: 1.027 | G60: 1.027 | H60: 1.027 | I60: 1.027
A61: 48 | B61: EHV/HV | C61: 1.032 | D61: 1.032 | E61: 1.0349 | F61: 1.0349 | G61: 1.0349 | H61: 1.0349 | I61: 1.0349
A62: 49 | B62: HV | C62: 1.047 | D62: 1.047 | E62: 1.0439 | F62: 1.0439 | G62: 1.0439 | H62: 1.0439 | I62: 1.0439
A63: 50 | B63: HV/LV | C63: 1.063 | D63: 1.063 | E63: 1.064 | F63: 1.064 | G63: 1.064 | H63: 1.064 | I63: 1.064
A64: 51 | B64: LV circuits | C64: 1.086 | D64: 1.086 | E64: 1.085 | F64: 1.085 | G64: 1.085 | H64: 1.085 | I64: 1.085
A65: 52 | B65: 1037 Embedded network (LDNO) discounts
A66: 53 | B66: LDNO LV: LV user | C66: 0.3101194194 | D66: 0.3191748836 | E66: 0.3196377719 | F66: 0.3196377719 | G66: 0.3196377719 | H66: 0.3196377719 | I66: 0.3196377719
A67: 54 | B67: LDNO HV: LV user | C67: 0.6187669712 | D67: 0.6722494573 | E67: 0.6384671566 | F67: 0.6384671566 | G67: 0.6384671566 | H67: 0.6384671566 | I67: 0.6384671566
A68: 55 | B68: LDNO HV: LV sub user | C68: 0.432085032 | D68: 0.5049132818 | E68: 0.4534915681 | F68: 0.4534915681 | G68: 0.4534915681 | H68: 0.4534915681 | I68: 0.4534915681
A69: 56 | B69: LDNO HV: HV user | C69: 0.3254212609 | D69: 0.4064161167 | E69: 0.3444440504 | F69: 0.3444440504 | G69: 0.3444440504 | H69: 0.3444440504 | I69: 0.3444440504
A70: 57 | B70: 1041 Load profile data for demand users: coincidence factor
A71: 58 | B71: Domestic Unrestricted | C71: 0.8542817639 | D71: 0.856158151 | E71: ='Smoothed Input Details'!E15 -> 0.8575951603 | F71: =E71 -> 0.8575951603 | G71: =F71 -> 0.8575951603 | H71: 0.8575951603 | I71: 0.8575951603
A72: 59 | B72: Domestic Two Rate | C72: 0.2802294358 | D72: 0.2821081354 | E72: ='Smoothed Input Details'!E16 -> 0.2886294187 | F72: =E72 -> 0.2886294187 | G72: 0.2886294187 | H72: 0.2886294187 | I72: 0.2886294187
A73: 60 | B73: Domestic Off Peak (related MPAN) | D73: 0
A74: 61 | B74: Small Non Domestic Unrestricted | C74: 0.6287206684 | D74: 0.6290993538 | E74: ='Smoothed Input Details'!E18 -> 0.6306309916 | F74: =E74 -> 0.6306309916 | G74: =F74 -> 0.6306309916 | H74: 0.6306309916 | I74: 0.6306309916
A75: 62 | B75: Small Non Domestic Two Rate | C75: 0.6584954137 | D75: 0.6948885428 | E75: ='Smoothed Input Details'!E19 -> 0.7254970091 | F75: =E75 -> 0.7254970091 | G75: 0.7254970091 | H75: 0.7254970091 | I75: 0.7254970091
A76: 63 | B76: Small Non Domestic Off Peak (related MPAN) | D76: 0
A77: 64 | B77: LV Medium Non-Domestic | C77: 0.7165830244 | D77: 0.7410058956 | E77: ='Smoothed Input Details'!E21 -> 0.7719373971 | F77: =E77 -> 0.7719373971 | G77: =F77 -> 0.7719373971 | H77: 0.7719373971 | I77: 0.7719373971
A78: 65 | B78: LV Sub Medium Non-Domestic | C78: 0.7165830244 | D78: 0.7410058956 | E78: ='Smoothed Input Details'!E22 -> 0.7719373971 | F78: =E78 -> 0.7719373971 | G78: 0.7719373971 | H78: 0.7719373971 | I78: 0.7719373971
A79: 66 | B79: HV Medium Non-Domestic | C79: 0.6388195525 | D79: 0.5657760134 | E79: ='Smoothed Input Details'!E23 -> 0.5147350712 | F79: 0.5147350712 | G79: 0.5147350712 | H79: 0.5147350712 | I79: 0.5147350712
A80: 67 | B80: LV Network Domestic | E80: ='Smoothed Input Details'!E24 -> 0.8253814878 | F80: 0.8253814878 | G80: 0.8253814878 | H80: 0.8253814878 | I80: 0.8253814878
A81: 68 | B81: LV Network Non-Domestic Non-CT | E81: ='Smoothed Input Details'!E25 -> 0.64712655 | F81: 0.64712655 | G81: 0.64712655 | H81: 0.64712655 | I81: 0.64712655
A82: 69 | B82: LV HH Metered | C82: 0.7851156501 | D82: 0.7720385387 | E82: ='Smoothed Input Details'!E26 -> 0.7651358399 | F82: =E82 -> 0.7651358399 | G82: 0.7651358399 | H82: 0.7651358399 | I82: 0.7651358399
A83: 70 | B83: LV Sub HH Metered | C83: 0.7851156501 | D83: 0.7720385387 | E83: ='Smoothed Input Details'!E27 -> 0.7651358399 | F83: =E83 -> 0.7651358399 | G83: 0.7651358399 | H83: 0.7651358399 | I83: 0.7651358399
A84: 71 | B84: HV HH Metered | C84: 0.8561546584 | D84: 0.8506660513 | E84: ='Smoothed Input Details'!E28 -> 0.8509616909 | F84: 0.8509616909 | G84: 0.8509616909 | H84: 0.8509616909 | I84: 0.8509616909
A85: 72 | B85: NHH UMS category A | C85: 1 | D85: 1 | E85: ='Smoothed Input Details'!E29 -> 1 | F85: =E85 -> 1 | G85: 1 | H85: 1 | I85: 1
A86: 73 | B86: NHH UMS category B | C86: 1 | D86: 0.9938835335 | E86: ='Smoothed Input Details'!E30 -> 0.9938835335 | F86: =E86 -> 0.9938835335 | G86: 0.9938835335 | H86: 0.9938835335 | I86: 0.9938835335
A87: 74 | B87: NHH UMS category C | C87: 1 | D87: 0.7865731463 | E87: ='Smoothed Input Details'!E31 -> 0.750501002 | F87: 0.750501002 | G87: 0.750501002 | H87: 0.750501002 | I87: 0.750501002
A88: 75 | B88: NHH UMS category D | C88: 0 | D88: 0 | E88: ='Smoothed Input Details'!E32 -> 0 | F88: 0 | G88: 0 | H88: 0 | I88: 0
A89: 76 | B89: LV UMS (Pseudo HH Metered) | C89: 0.9763481389 | D89: 0.9805292368 | E89: ='Smoothed Input Details'!E33 -> 0.9789817972 | F89: 0.9789817972 | G89: 0.9789817972 | H89: 0.9789817972 | I89: 0.9789817972
A90: 77 | B90: 1041 Load profile data for demand users: load factor
A91: 78 | B91: Domestic Unrestricted | C91: 0.4185179458 | D91: 0.4264584177 | E91: ='Smoothed Input Details'!E42 -> 0.4400357438 | F91: =E91 -> 0.4400357438 | G91: =F91 -> 0.4400357438 | H91: 0.4400357438 | I91: 0.4400357438
A92: 79 | B92: Domestic Two Rate | C92: 0.2257594301 | D92: 0.2332004729 | E92: ='Smoothed Input Details'!E43 -> 0.2499789884 | F92: =E92 -> 0.2499789884 | G92: 0.2499789884 | H92: 0.2499789884 | I92: 0.2499789884
A93: 80 | B93: Domestic Off Peak (related MPAN) | C93: 0.3552122293 | D93: 0.3251628485 | E93: ='Smoothed Input Details'!E44 -> 0.2572184053 | F93: 0.2572184053 | G93: 0.2572184053 | H93: 0.2572184053 | I93: 0.2572184053
A94: 81 | B94: Small Non Domestic Unrestricted | C94: 0.3772352943 | D94: 0.3906599861 | E94: ='Smoothed Input Details'!E45 -> 0.4114192423 | F94: 0.4114192423 | G94: 0.4114192423 | H94: 0.4114192423 | I94: 0.4114192423
A95: 82 | B95: Small Non Domestic Two Rate | C95: 0.4783542734 | D95: 0.5111501923 | E95: ='Smoothed Input Details'!E46 -> 0.5506901419 | F95: 0.5506901419 | G95: 0.5506901419 | H95: 0.5506901419 | I95: 0.5506901419
A96: 83 | B96: Small Non Domestic Off Peak (related MPAN) | C96: 0.3712751702 | D96: 0.3426193737 | E96: ='Smoothed Input Details'!E47 -> 0.2805628594 | F96: =E96 -> 0.2805628594 | G96: 0.2805628594 | H96: 0.2805628594 | I96: 0.2805628594
A97: 84 | B97: LV Medium Non-Domestic | C97: 0.468187797 | D97: 0.486533899 | E97: ='Smoothed Input Details'!E48 -> 0.5420264393 | F97: =E97 -> 0.5420264393 | G97: 0.5420264393 | H97: 0.5420264393 | I97: 0.5420264393
A98: 85 | B98: LV Sub Medium Non-Domestic | C98: 0.468187797 | D98: 0.486533899 | E98: ='Smoothed Input Details'!E49 -> 0.5420264393 | F98: 0.5420264393 | G98: 0.5420264393 | H98: 0.5420264393 | I98: 0.5420264393
A99: 86 | B99: HV Medium Non-Domestic | C99: 0.4503570237 | D99: 0.396580971 | E99: ='Smoothed Input Details'!E50 -> 0.3729769188 | F99: 0.3729769188 | G99: 0.3729769188 | H99: 0.3729769188 | I99: 0.3729769188
A100: 87 | B100: LV Network Domestic | E100: ='Smoothed Input Details'!E51 -> 0.4291058522 | F100: 0.4291058522 | G100: 0.4291058522 | H100: 0.4291058522 | I100: 0.4291058522
A101: 88 | B101: LV Network Non-Domestic Non-CT | E101: ='Smoothed Input Details'!E52 -> 0.435056821 | F101: =E101 -> 0.435056821 | G101: 0.435056821 | H101: 0.435056821 | I101: 0.435056821
A102: 89 | B102: LV HH Metered | C102: 0.5791293341 | D102: 0.5815814982 | E102: ='Smoothed Input Details'!E53 -> 0.587809866 | F102: =E102 -> 0.587809866 | G102: 0.587809866 | H102: 0.587809866 | I102: 0.587809866
A103: 90 | B103: LV Sub HH Metered | C103: 0.5791293341 | D103: 0.5815814982 | E103: ='Smoothed Input Details'!E54 -> 0.587809866 | F103: 0.587809866 | G103: 0.587809866 | H103: 0.587809866 | I103: 0.587809866
A104: 91 | B104: HV HH Metered | C104: 0.7247051958 | D104: 0.7316372844 | E104: ='Smoothed Input Details'!E55 -> 0.7376293577 | F104: 0.7376293577 | G104: 0.7376293577 | H104: 0.7376293577 | I104: 0.7376293577
A105: 92 | B105: NHH UMS category A | C105: 1 | D105: 1 | E105: ='Smoothed Input Details'!E56 -> 1 | F105: =E105 -> 1 | G105: 1 | H105: 1 | I105: 1
A106: 93 | B106: NHH UMS category B | C106: 0.4739221119 | D106: 0.4735108423 | E106: ='Smoothed Input Details'!E57 -> 0.4730995727 | F106: =E106 -> 0.4730995727 | G106: 0.4730995727 | H106: 0.4730995727 | I106: 0.4730995727
A107: 94 | B107: NHH UMS category C | C107: 0.2533486416 | D107: 0.2493095538 | E107: ='Smoothed Input Details'!E58 -> 0.245270466 | F107: 0.245270466 | G107: 0.245270466 | H107: 0.245270466 | I107: 0.245270466
A108: 95 | B108: NHH UMS category D | C108: 0.553 | D108: 0.5128304807 | E108: ='Smoothed Input Details'!E59 -> 0.5141747171 | F108: 0.5141747171 | G108: 0.5141747171 | H108: 0.5141747171 | I108: 0.5141747171
A109: 96 | B109: LV UMS (Pseudo HH Metered) | C109: 0.4867933178 | D109: 0.4821580378 | E109: ='Smoothed Input Details'!E60 -> 0.4742952931 | F109: 0.4742952931 | G109: 0.4742952931 | H109: 0.4742952931 | I109: 0.4742952931
A110: 97 | B110: 1053. Volume forecasts for the charging year
A111: 98 | B111: 1055 Transmission exit charges (£/year) | C111: 9906203.135 | D111: 9508036.677 | E111: 9891224.77 | F111: =E111*(1+F$13) -> 10211181.21 | G111: =F111*(1+G$13) -> 10540279.26 | H111: 10856487.64 | I111: 11182182.27
A112: 99 | B112: 1059 Other Expenditure (£/year)
A113: 100 | B113: Direct cost (£/year) | C113: 19094363.86 | D113: 20915556.92 | E113: 18291728.44 | F113: =E113*(1+F$13) -> 18883420.21 | G113: =F113*(1+G$13) -> 19492017.46 | H113: 20076777.98 | I113: 20679081.32
A114: 101 | B114: Indirect cost (£/year) | C114: 63675341.7 | D114: 60058779.51 | E114: 59900136.57 | F114: =E114*(1+F$13) -> 61837756.51 | G114: 63830737.03 | H114: 65745659.14 | I114: 67718028.91
A115: 102 | B115: Indirect cost proportion | C115: 0.6 | D115: 0.6 | E115: 0.6 | F115: 0.6 | G115: 0.6 | H115: 0.6 | I115: 0.6
A116: 103 | B116: Network rates (£/year) | C116: 15527639 | D116: 15862604 | E116: 16186291 | F116: =E116*(1+F$13) -> 16709877.12 | G116: =F116*(1+G$13) -> 17248422.85 | H116: 17765875.53 | I116: 18298851.8
A117: 104 | B117: 1060 Customer contributions under current connection charging policy
A118: 105 | B118: LV network
A119: 106 | B119: Assets 132kV | C119: 0 | D119: 0 | E119: =D119 -> 0 | F119: =E119 -> 0 | G119: 0 | H119: 0 | I119: 0
A120: 107 | B120: Assets 132kV/EHV | E120: =D120 -> 0 | F120: 0 | G120: 0 | H120: 0 | I120: 0
A121: 108 | B121: Assets EHV | E121: 0 | F121: 0 | G121: 0 | H121: 0 | I121: 0
A122: 109 | B122: Assets EHV/HV | C122: 0.75 | D122: 0.75 | E122: 0.75 | F122: 0.75 | G122: 0.75 | H122: 0.75 | I122: 0.75
A123: 110 | B123: Assets 132kV/HV | C123: 0.75 | D123: 0.75 | E123: 0.75 | F123: 0.75 | G123: 0.75 | H123: 0.75 | I123: 0.75
A124: 111 | B124: Assets HV | C124: 0.75 | D124: 0.75 | E124: 0.75 | F124: 0.75 | G124: 0.75 | H124: 0.75 | I124: 0.75
A125: 112 | B125: Assets HV/LV | C125: 0.95 | D125: 0.95 | E125: 0.95 | F125: 0.95 | G125: 0.95 | H125: 0.95 | I125: 0.95
A126: 113 | B126: Assets LV circuits | C126: 0.95 | D126: 0.95 | E126: 0.95 | F126: 0.95 | G126: 0.95 | H126: 0.95 | I126: 0.95
A127: 114 | B127: LV substation
A128: 115 | B128: Assets 132kV | C128: 0 | D128: 0 | E128: 0 | F128: 0 | G128: 0 | H128: 0 | I128: 0
A129: 116 | B129: Assets 132kV/EHV | C129: 0 | D129: 0 | E129: 0 | F129: 0 | G129: 0 | H129: 0 | I129: 0
A130: 117 | B130: Assets EHV | E130: 0 | F130: 0 | G130: 0 | H130: 0 | I130: 0
A131: 118 | B131: Assets EHV/HV | C131: 0.75 | D131: 0.75 | E131: 0.75 | F131: 0.75 | G131: 0.75 | H131: 0.75 | I131: 0.75
A132: 119 | B132: Assets 132kV/HV | C132: 0.75 | D132: 0.75 | E132: 0.75 | F132: 0.75 | G132: 0.75 | H132: 0.75 | I132: 0.75
A133: 120 | B133: Assets HV | C133: 0.75 | D133: 0.75 | E133: 0.75 | F133: 0.75 | G133: 0.75 | H133: 0.75 | I133: 0.75
A134: 121 | B134: Assets HV/LV | C134: 0.95 | D134: 0.95 | E134: 0.95 | F134: 0.95 | G134: 0.95 | H134: 0.95 | I134: 0.95
A135: 122 | B135: HV network
A136: 123 | B136: Assets 132kV | C136: 0 | D136: 0 | E136: =D136 -> 0 | F136: =E136 -> 0 | G136: 0 | H136: 0 | I136: 0
A137: 124 | B137: Assets 132kV/EHV | C137: 0.36 | D137: 0.36 | E137: =D137 -> 0.36 | F137: 0.36 | G137: 0.36 | H137: 0.36 | I137: 0.36
A138: 125 | B138: Assets EHV | C138: 0.36 | D138: 0.36 | E138: 0.36 | F138: 0.36 | G138: 0.36 | H138: 0.36 | I138: 0.36
A139: 126 | B139: Assets EHV/HV | C139: 0.91 | D139: 0.91 | E139: 0.91 | F139: 0.91 | G139: 0.91 | H139: 0.91 | I139: 0.91
A140: 127 | B140: Assets 132kV/HV | C140: 0.91 | D140: 0.91 | E140: 0.91 | F140: 0.91 | G140: 0.91 | H140: 0.91 | I140: 0.91
A141: 128 | B141: Assets HV | C141: 0.91 | D141: 0.91 | E141: 0.91 | F141: 0.91 | G141: 0.91 | H141: 0.91 | I141: 0.91
A142: 129 | B142: HV substation
A143: 130 | B143: Assets 132kV | C143: 0 | D143: 0 | E143: =D143 -> 0 | F143: =E143 -> 0 | G143: 0 | H143: 0 | I143: 0
A144: 131 | B144: Assets 132kV/EHV | C144: 0.36 | D144: 0.36 | E144: =D144 -> 0.36 | F144: 0.36 | G144: 0.36 | H144: 0.36 | I144: 0.36
A145: 132 | B145: Assets EHV | C145: 0.36 | D145: 0.36 | E145: 0.36 | F145: 0.36 | G145: 0.36 | H145: 0.36 | I145: 0.36
A146: 133 | B146: Assets EHV/HV | C146: 0.91 | D146: 0.91 | E146: 0.91 | F146: 0.91 | G146: 0.91 | H146: 0.91 | I146: 0.91
A147: 134 | B147: 1061 Average split of rate 1 units by distribution time band
A148: 135 | B148: RED
A149: 136 | B149: Domestic Unrestricted | E149: ='Smoothed Input Details'!K70 -> 0.1129833082 | F149: =E149 -> 0.1129833082 | G149: =F149 -> 0.1129833082 | H149: 0.1129833082 | I149: 0.1129833082
A150: 137 | B150: Domestic Two Rate | C150: 0.1272430162 | D150: 0.133808669 | E150: ='Smoothed Input Details'!K71 -> 0.1332713105 | F150: =E150 -> 0.1332713105 | G150: 0.1332713105 | H150: 0.1332713105 | I150: 0.1332713105
A151: 138 | B151: Domestic Off Peak (related MPAN) | C151: 0 | D151: 4.25638868e-07 | E151: ='Smoothed Input Details'!K72 -> 2.837592453e-07 | F151: 2.837592453e-07 | G151: 2.837592453e-07 | H151: 2.837592453e-07 | I151: 2.837592453e-07
A152: 139 | B152: Small Non Domestic Unrestricted | E152: ='Smoothed Input Details'!K73 -> 0.07120394656 | F152: 0.07120394656 | G152: 0.07120394656 | H152: 0.07120394656 | I152: 0.07120394656
A153: 140 | B153: Small Non Domestic Two Rate | C153: 0.09757095143 | D153: 0.0974173035 | E153: ='Smoothed Input Details'!K74 -> 0.09783854021 | F153: =E153 -> 0.09783854021 | G153: 0.09783854021 | H153: 0.09783854021 | I153: 0.09783854021
A154: 141 | B154: Small Non Domestic Off Peak (related MPAN) | C154: 0 | D154: 2.962944613e-05 | E154: ='Smoothed Input Details'!K75 -> 8.969969148e-05 | F154: =E154 -> 8.969969148e-05 | G154: 8.969969148e-05 | H154: 8.969969148e-05 | I154: 8.969969148e-05
A155: 142 | B155: LV Medium Non-Domestic | C155: 0.09899550303 | D155: 0.09967582639 | E155: ='Smoothed Input Details'!K76 -> 0.1011821429 | F155: 0.1011821429 | G155: 0.1011821429 | H155: 0.1011821429 | I155: 0.1011821429
A156: 143 | B156: LV Sub Medium Non-Domestic | C156: 0.09899550303 | D156: 0.09967582639 | E156: ='Smoothed Input Details'!K77 -> 0.09917309545 | F156: 0.09917309545 | G156: 0.09917309545 | H156: 0.09917309545 | I156: 0.09917309545
A157: 144 | B157: HV Medium Non-Domestic | C157: 0.09740840371 | D157: 0.09799968772 | E157: ='Smoothed Input Details'!K78 -> 0.09900164652 | F157: 0.09900164652 | G157: 0.09900164652 | H157: 0.09900164652 | I157: 0.09900164652
A158: 145 | B158: AMBER
A159: 146 | B159: Domestic Unrestricted | E159: ='Smoothed Input Details'!L70 -> 0.5022380184 | F159: =E159 -> 0.5022380184 | G159: =F159 -> 0.5022380184 | H159: 0.5022380184 | I159: 0.5022380184
A160: 147 | B160: Domestic Two Rate | C160: 0.5600192216 | D160: 0.5767262762 | E160: ='Smoothed Input Details'!L71 -> 0.5776079309 | F160: =E160 -> 0.5776079309 | G160: 0.5776079309 | H160: 0.5776079309 | I160: 0.5776079309
A161: 148 | B161: Domestic Off Peak (related MPAN) | C161: 0.1362406443 | D161: 0.1649630667 | E161: ='Smoothed Input Details'!L72 -> 0.1692661296 | F161: 0.1692661296 | G161: 0.1692661296 | H161: 0.1692661296 | I161: 0.1692661296
A162: 149 | B162: Small Non Domestic Unrestricted | E162: ='Smoothed Input Details'!L73 -> 0.5845212652 | F162: 0.5845212652 | G162: 0.5845212652 | H162: 0.5845212652 | I162: 0.5845212652
A163: 150 | B163: Small Non Domestic Two Rate | C163: 0.6545503057 | D163: 0.6516537664 | E163: ='Smoothed Input Details'!L74 -> 0.6552050759 | F163: =E163 -> 0.6552050759 | G163: 0.6552050759 | H163: 0.6552050759 | I163: 0.6552050759
A164: 151 | B164: Small Non Domestic Off Peak (related MPAN) | C164: 0.1666248343 | D164: 0.1739243459 | E164: ='Smoothed Input Details'!L75 -> 0.1777157984 | F164: =E164 -> 0.1777157984 | G164: 0.1777157984 | H164: 0.1777157984 | I164: 0.1777157984
A165: 152 | B165: LV Medium Non-Domestic | C165: 0.6597190935 | D165: 0.6555026 | E165: ='Smoothed Input Details'!L76 -> 0.660919653 | F165: 0.660919653 | G165: 0.660919653 | H165: 0.660919653 | I165: 0.660919653
A166: 153 | B166: LV Sub Medium Non-Domestic | C166: 0.6597190935 | D166: 0.6555026 | E166: ='Smoothed Input Details'!L77 -> 0.666463412 | F166: 0.666463412 | G166: 0.666463412 | H166: 0.666463412 | I166: 0.666463412
A167: 154 | B167: HV Medium Non-Domestic | C167: 0.6982357352 | D167: 0.688880938 | E167: ='Smoothed Input Details'!L78 -> 0.6946409796 | F167: 0.6946409796 | G167: 0.6946409796 | H167: 0.6946409796 | I167: 0.6946409796
A168: 155 | B168: GREEN
A169: 156 | B169: Domestic Unrestricted | E169: ='Smoothed Input Details'!M70 -> 0.3847786734 | F169: =E169 -> 0.3847786734 | G169: =F169 -> 0.3847786734 | H169: 0.3847786734 | I169: 0.3847786734
A170: 157 | B170: Domestic Two Rate | C170: 0.3127377622 | D170: 0.2894650549 | E170: ='Smoothed Input Details'!M71 -> 0.2891207585 | F170: =E170 -> 0.2891207585 | G170: 0.2891207585 | H170: 0.2891207585 | I170: 0.2891207585
A171: 158 | B171: Domestic Off Peak (related MPAN) | C171: 0.8637593557 | D171: 0.8350366495 | E171: ='Smoothed Input Details'!M72 -> 0.8307335867 | F171: 0.8307335867 | G171: 0.8307335867 | H171: 0.8307335867 | I171: 0.8307335867
A172: 159 | B172: Small Non Domestic Unrestricted | E172: ='Smoothed Input Details'!M73 -> 0.3442747882 | F172: 0.3442747882 | G172: 0.3442747882 | H172: 0.3442747882 | I172: 0.3442747882
A173: 160 | B173: Small Non Domestic Two Rate | C173: 0.2478787428 | D173: 0.2509289301 | E173: ='Smoothed Input Details'!M74 -> 0.2469563839 | F173: =E173 -> 0.2469563839 | G173: 0.2469563839 | H173: 0.2469563839 | I173: 0.2469563839
A174: 161 | B174: Small Non Domestic Off Peak (related MPAN) | C174: 0.8333751657 | D174: 0.8260460246 | E174: ='Smoothed Input Details'!M75 -> 0.8221945019 | F174: =E174 -> 0.8221945019 | G174: 0.8221945019 | H174: 0.8221945019 | I174: 0.8221945019
A175: 162 | B175: LV Medium Non-Domestic | C175: 0.2412854035 | D175: 0.2448215736 | E175: ='Smoothed Input Details'!M76 -> 0.2378982042 | F175: 0.2378982042 | G175: 0.2378982042 | H175: 0.2378982042 | I175: 0.2378982042
A176: 163 | B176: LV Sub Medium Non-Domestic | C176: 0.2412854035 | D176: 0.2448215736 | E176: ='Smoothed Input Details'!M77 -> 0.2343634925 | F176: 0.2343634925 | G176: 0.2343634925 | H176: 0.2343634925 | I176: 0.2343634925
A177: 164 | B177: HV Medium Non-Domestic | C177: 0.2043558611 | D177: 0.2131193743 | E177: ='Smoothed Input Details'!M78 -> 0.2063573739 | F177: 0.2063573739 | G177: 0.2063573739 | H177: 0.2063573739 | I177: 0.2063573739
A178: 165 | B178: 1062 Average split of rate 2 units by distribution time band
A179: 166 | B179: RED
A180: 167 | B180: Domestic Two Rate | C180: 0 | D180: 0 | E180: ='Smoothed Input Details'!K88 -> 0 | F180: =E180 -> 0 | G180: =F180 -> 0 | H180: 0 | I180: 0
A181: 168 | B181: Small Non Domestic Two Rate | C181: 1.049824037e-06 | D181: 2.483530566e-08 | E181: ='Smoothed Input Details'!K89 -> 1.655687044e-08 | F181: =E181 -> 1.655687044e-08 | G181: 1.655687044e-08 | H181: 1.655687044e-08 | I181: 1.655687044e-08
A182: 169 | B182: LV Medium Non-Domestic | C182: 0 | D182: 0 | E182: ='Smoothed Input Details'!K90 -> 0 | F182: 0 | G182: 0 | H182: 0 | I182: 0
A183: 170 | B183: LV Sub Medium Non-Domestic | C183: 0 | D183: 0 | E183: ='Smoothed Input Details'!K91 -> 0 | F183: 0 | G183: 0 | H183: 0 | I183: 0
A184: 171 | B184: HV Medium Non-Domestic | C184: 0 | D184: 0 | E184: ='Smoothed Input Details'!K92 -> 0 | F184: 0 | G184: 0 | H184: 0 | I184: 0
A185: 172 | B185: AMBER
A186: 173 | B186: Domestic Two Rate | C186: 0.03727299368 | D186: 0.03854341407 | E186: ='Smoothed Input Details'!L88 -> 0.03483060266 | F186: =E186 -> 0.03483060266 | G186: =F186 -> 0.03483060266 | H186: 0.03483060266 | I186: 0.03483060266
A187: 174 | B187: Small Non Domestic Two Rate | C187: 0.05456897081 | D187: 0.05571858188 | E187: ='Smoothed Input Details'!L89 -> 0.05869529564 | F187: =E187 -> 0.05869529564 | G187: 0.05869529564 | H187: 0.05869529564 | I187: 0.05869529564
A188: 175 | B188: LV Medium Non-Domestic | C188: 0.002937234266 | D188: 0.00412670596 | E188: ='Smoothed Input Details'!L90 -> 0.005130187167 | F188: 0.005130187167 | G188: 0.005130187167 | H188: 0.005130187167 | I188: 0.005130187167
A189: 176 | B189: LV Sub Medium Non-Domestic | C189: 0.002937234266 | D189: 0.00412670596 | E189: ='Smoothed Input Details'!L91 -> 0.003213521584 | F189: 0.003213521584 | G189: 0.003213521584 | H189: 0.003213521584 | I189: 0.003213521584
A190: 177 | B190: HV Medium Non-Domestic | C190: 0.01293387833 | D190: 0.008579765245 | E190: ='Smoothed Input Details'!L92 -> 0.00422565216 | F190: 0.00422565216 | G190: 0.00422565216 | H190: 0.00422565216 | I190: 0.00422565216
A191: 178 | B191: GREEN
A192: 179 | B192: Domestic Two Rate | C192: 0.9627269929 | D192: 0.9614565725 | E192: ='Smoothed Input Details'!M88 -> 0.9651693973 | F192: =E192 -> 0.9651693973 | G192: =F192 -> 0.9651693973 | H192: 0.9651693973 | I192: 0.9651693973
A193: 180 | B193: Small Non Domestic Two Rate | C193: 0.9454299674 | D193: 0.9442810397 | E193: ='Smoothed Input Details'!M89 -> 0.9413046878 | F193: =E193 -> 0.9413046878 | G193: 0.9413046878 | H193: 0.9413046878 | I193: 0.9413046878
A194: 181 | B194: LV Medium Non-Domestic | C194: 0.9970627657 | D194: 0.995873294 | E194: ='Smoothed Input Details'!M90 -> 0.9948698128 | F194: 0.9948698128 | G194: 0.9948698128 | H194: 0.9948698128 | I194: 0.9948698128
A195: 182 | B195: LV Sub Medium Non-Domestic | C195: 0.9970627657 | D195: 0.995873294 | E195: ='Smoothed Input Details'!M91 -> 0.9967864784 | F195: 0.9967864784 | G195: 0.9967864784 | H195: 0.9967864784 | I195: 0.9967864784
A196: 183 | B196: HV Medium Non-Domestic | C196: 0.9870661217 | D196: 0.9914202348 | E196: ='Smoothed Input Details'!M92 -> 0.9957743478 | F196: 0.9957743478 | G196: 0.9957743478 | H196: 0.9957743478 | I196: 0.9957743478
A197: 184 | B197: 1064. Average split of rate 1 units by special distribution time band
A198: 185 | B198: BLACK
A199: 186 | B199: NHH UMS category A | C199: 0.02187975647 | D199: 0.02207001522 | E199: ='Smoothed Input Details'!K102 -> 0.02207001522 | F199: =E199 -> 0.02207001522 | G199: =F199 -> 0.02207001522 | H199: 0.02207001522 | I199: 0.02207001522
A200: 187 | B200: NHH UMS category B | C200: 0.04267833132 | D200: 0.04318762229 | E200: ='Smoothed Input Details'!K103 -> 0.04329650249 | F200: =E200 -> 0.04329650249 | G200: 0.04329650249 | H200: 0.04329650249 | I200: 0.04329650249
A201: 188 | B201: NHH UMS category C | C201: 0.08161566015 | D201: 0.07883743845 | E201: ='Smoothed Input Details'!K104 -> 0.07534120267 | F201: 0.07534120267 | G201: 0.07534120267 | H201: 0.07534120267 | I201: 0.07534120267
A202: 189 | B202: NHH UMS category D | C202: 0.005391311064 | D202: 0.004390017784 | E202: ='Smoothed Input Details'!K105 -> 0.00335909632 | F202: 0.00335909632 | G202: 0.00335909632 | H202: 0.00335909632 | I202: 0.00335909632
A203: 190 | B203: YELLOW
A204: 191 | B204: NHH UMS category A | C204: 0.4813736682 | D204: 0.4808599696 | E204: ='Smoothed Input Details'!L102 -> 0.4808599696 | F204: =E204 -> 0.4808599696 | G204: =F204 -> 0.4808599696 | H204: 0.4808599696 | I204: 0.4808599696
A205: 192 | B205: NHH UMS category B | C205: 0.1920382226 | D205: 0.1923752201 | E205: ='Smoothed Input Details'!L103 -> 0.1935271252 | F205: =E205 -> 0.1935271252 | G205: 0.1935271252 | H205: 0.1935271252 | I205: 0.1935271252
... 66 more rows

Sheet Table 1
A1: Schedule 15 table 1
A2: ="Company Name: "&'CDCM Forecast Data'!E3 -> Company Name: WPD South Wales
A3: Date:
A5: Description | B5: Licence Term | C5: CRC | K5: Assumptions
A6: Regulatory Year | D6: t-2 | E6: t-1 | F6: t | G6: t+1 | H6: t+2 | I6: t+3 | J6: t+4
A7: Regulatory Year | D7: ='CDCM Forecast Data'!C11 -> 2013/14 | E7: ='CDCM Forecast Data'!D11 -> 2014/15 | F7: ='CDCM Forecast Data'!E11 -> 2015/16 | G7: ='CDCM Forecast Data'!F11 -> 2016/17 | H7: ='CDCM Forecast Data'!G11 -> 2017/18 | I7: ='CDCM Forecast Data'!H11 -> 2018/19 | J7: ='CDCM Forecast Data'!I11 -> 2019/20
A8: Base Demand Before Inflation (A1) | B8: PUt | C8: CRC3 | D8: 233.4 | E8: 247.7 | F8: 198.7 | G8: 200.6 | H8: 202.5 | I8: 204.6 | J8: 206.7
A9: RPI Effective % (A2) | B9: PIADt | C9: CRC3 | D9: 1.134163303 | E9: 1.167167455 | F9: 1.082 | G9: 1.117 | H9: 1.153 | I9: 1.18759 | J9: 1.2232177
A10: Merger adjustment (A3) | B10: MGt | C10: CRC3
A11: Base Demand Revenue (A): [A = A1 * A2 - A3] | B11: BRt | C11: CRC3 | D11: =D8*D9-D10 -> 264.7137148 | E11: 289.1073785 | F11: 214.9934 | G11: 224.0702 | H11: 233.4825 | I11: 242.980914 | J11: 252.8390986 | K11: A = A1 * A2 - A3
A12: Pass-Through Business Rates (B1) | B12: RBt | C12: CRC4 | D12: -1.369023964 | E12: -1.558805328 | G12: 0 | H12: 0 | I12: 0 | J12: 0
A13: Pass-Through Licence Fees (B2) | B13: LFt | C13: CRC4 | D13: -0.2263431063 | E13: -0.2329296907 | G13: 0 | H13: 0 | I13: 0 | J13: 0
A14: Pass-Through Transmission Exit (B3) | B14: TBt | C14: CRC4 | D14: 2.06292384 | E14: 0.7437651306 | G14: 0 | H14: 0 | I14: 0 | J14: 0
A15: Price Control Reopener (B4) | B15: UNCt | C15: CRC4 | D15: 0 | E15: 0 | G15: 0 | H15: 0 | I15: 0 | J15: 0
A16: Pass-Through Others (B5) | B16: MPTt, HBt, IEDt | C16: CRC4 | D16: 0 | E16: 0 | G16: 0 | H16: 0 | I16: 0 | J16: 0
A17: Allowed Pass-Through Items (B): [B = B1 + B2 + B3 +B4 + B5] | B17: PTt | C17: CRC3 | D17: =SUM(D12:D16) -> 0.4675567697 | E17: -1.047969888 | F17: 0 | G17: 0 | H17: 0 | I17: 0 | J17: 0 | K17: B = B1 + B2 + B3 +B4 + B5
A18: Losses Incentive (C1) | B18: UILt | C18: CRC7 | D18: 0 | E18: 0 | G18: 0 | H18: 0 | I18: 0 | J18: 0
B19: PCOLt | C19: CRC7 | D19: 0 | E19: 0 | G19: 0 | H19: 0 | I19: 0 | J19: 0
B20: -COLt | C20: CRC7 | D20: 0 | E20: 0 | G20: 0 | H20: 0 | I20: 0 | J20: 0
B21: PPLt | C21: CRC7 | D21: 0 | E21: 0 | F21: -6.515817 | G21: -1.374688843 | H21: 0 | I21: 0 | J21: 0
A22: Quality of service incentive adjustment (C2) | B22: IQt | C22: CRC8 | D22: 2.975852919 | E22: 6.865301529 | F22: 6.361331819 | G22: 7.084610377 | H22: 0 | I22: 0 | J22: 0
A23: Transmission connection point charges incentive adjustment (C3) | B23: ITt | C23: CRC9 | D23: -0.4882532036 | E23: -0.5024613718 | F23: 0 | G23: 0 | H23: 0 | I23: 0 | J23: 0
A24: Innovation funding incentive adjustment (C4) | B24: IFIt | C24: CRC10 | D24: 0.0620016 | E24: 0.144 | F24: 0.6885 | G24: 1.120351 | H24: 1.1674125 | I24: 1.21490457 | J24: 1.264195493
A25: Incentive revenue for Distributed Generation (C5) | B25: IGt | C25: CRC11 | D25: 1.116139498 | E25: 1.344910615 | F25: 0 | G25: 0 | H25: 0 | I25: 0 | J25: 0
A26: Connection Guaranteed Standards Systems & Processes penalty (C6) | B26: CGSRAt,CGSSPt & AUMt | C26: CRC12 | D26: 0 | E26: 0 | F26: 0 | G26: 0 | H26: 0 | I26: 0 | J26: 0
A27: Low Carbon Networks Fund (C7) | B27: LCN1t | C27: CRC13 | D27: 0.027903 | E27: 0.29561663 | G27: 0 | H27: 0 | I27: 0 | J27: 0
B28: LCN2t | C28: CRC13 | D28: 1.585 | E28: 0.98428524 | F28: 0.8288152204 | G28: 0 | H28: 0 | I28: 0 | J28: 0
B29: LCN3t | C29: CRC13 | D29: 0 | E29: 0 | G29: 0 | H29: 0 | I29: 0 | J29: 0
A30: Incentive Revenue and Other Adjustments (C): [C = C1 + C2 + C3 + C4 + C5 + C6 + C7] | D30: =SUM(D18:D29) -> 5.278643813 | E30: =SUM(E18:E29) -> 9.131652642 | F30: 1.36283004 | G30: 6.830272534 | H30: 1.1674125 | I30: 1.21490457 | J30: 1.264195493 | K30: C = C1 + C2 + C3 + C4 + C5 + C6 + C7
A31: Correction Factor (D) | B31: -Kt | C31: CRC3 | G31: 8.732234576 | H31: 0 | I31: 0 | J31: 0
A32: Tax Trigger Mechanism Adjustment (E) | B32: CTRAt | C32: CRC3 | G32: 0 | H32: 0 | I32: 0 | J32: 0
A33: Total allowed Revenue (F): [F= A + B + C + D + E] | B33: ARt | D33: =D11+D17+D30+D31+D32 -> 270.4599154 | E33: 297.1910613 | F33: 216.35623 | G33: 239.6327071 | H33: 234.6499125 | I33: 244.1958186 | J33: 254.1032941 | K33: F= A + B + C + D + E
A34: Other 1. Excluded services - Top-up, standby, and enhanced system security (G1) | B34: ES4 | C34: CRC15 | D34: 0.693353528 | E34: 0.7135301156 | G34: 0 | H34: 0 | I34: 0 | J34: 0
A35: Other 2. Excluded services - Revenue protection services (G2) | B35: ES5 | C35: CRC15 | D35: 0 | E35: 0 | G35: 0 | H35: 0 | I35: 0 | J35: 0
A36: Other 3. Excluded services - Miscellaneous (G3) | B36: ES7 | C36: CRC15 | D36: 0 | E36: 0 | G36: 0 | H36: 0 | I36: 0 | J36: 0
A37: Other 4. - blank or if required please provide description (G4) | D37: 0 | E37: 0 | G37: 0 | H37: 0 | I37: 0 | J37: 0
A38: Other 5. - blank or if required please provide description (G5) | D38: 0 | E38: 0 | G38: 0 | H38: 0 | I38: 0 | J38: 0
A39: Total Other Revenue to be recovered by Use of System Charges (G): [G = G1 + G2 + G3 + G4 +G5] | D39: =SUM(D34:D38) -> 0.693353528 | E39: =SUM(E34:E38) -> 0.7135301156 | F39: 0 | G39: 0 | H39: 0 | I39: 0 | J39: 0 | K39: G = G1 + G2 + G3 + G4 +G5
A40: Total Revenue for Use of System Charges (H): [H =F + G] | D40: =D39+D33 -> 271.1532689 | E40: 297.9045914 | F40: 216.35623 | G40: 239.6327071 | H40: 234.6499125 | I40: 244.1958186 | J40: 254.1032941 | K40: H = F + G
A41: 1. Revenue raised outside CDCM - EDCM and interconnector charges (I1) | D41: 13.70279742 | E41: 14.05989813 | F41: 11.77620937 | G41: 13.04314154 | H41: 12.77192942 | I41: 13.29151043 | J41: 13.83077156
A42: 2. Revenue raised outside CDCM - Voluntary under-recovery (I2) | D42: 0 | E42: 0 | G42: 0 | H42: 0 | I42: 0 | J42: 0
A43: 3. Revenue raised outside CDCM - blank or if required please provide description (I3) | D43: 0 | E43: -5.108250774 | G43: 5.396202657 | H43: 0 | I43: 0 | J43: 0
A44: 4. Revenue raised outside CDCM - blank or if required please provide description (I4) | D44: 0 | E44: 0
A45: Total Revenue to be raised outside the CDCM (I): [I = I1 + I2 + I3 + I4] | D45: =D41+D42+D43+D44 -> 13.70279742 | E45: 8.951647361 | F45: 11.77620937 | G45: 18.4393442 | H45: 12.77192942 | I45: 13.29151043 | J45: 13.83077156 | K45: I = I1 + I2 + I3 + I4
A46: Latest forecast of CDCM Collected Revenue (J): [J = H - I] | D46: =D40-D45 -> 257.4504715 | E46: 288.952944 | F46: 204.5800207 | G46: 221.1933629 | H46: 221.8779831 | I46: 230.9043081 | J46: 240.2725225 | K46: J = H - I
A47: CDCM Revenue Used in Charging Model | D47: 343.5115825 | E47: 358.9068533 | F47: =F46 -> 204.5800207 | G47: =G46 -> 221.1933629 | H47: =H46 -> 221.8779831 | I47: 230.9043081 | J47: 240.2725225
A48: Final Collected Revenue Forecast (K) | D48: 273.3588782 | E48: 273.7026034 | F48: =F40 -> 216.35623 | G48: =G40 -> 239.6327071 | H48: =H40 -> 234.6499125 | I48: 244.1958186 | J48: 254.1032941
A49: Forecast Over / (Under) Recovery [being (K - G - F + I2] | D49: =D48-D39-D33+D42 -> 2.205609252 | E49: -24.201988 | F49: 0 | G49: 0 | H49: 0 | I49: 0 | J49: 0 | K49: being K - G - F + I2
A50: Forecast overall percentage change to Allowed Revenue (L) | D50: =D33/C33-1 ->  | E50: 0.09883588788 | F50: -0.2719961728 | G50: 0.1075840389 | H50: -0.02079346626 | I50: 0.04068148148 | J50: 0.04057184751 | K50: Ft / Ft-1
A51: Overall % change to Use of System Charges effective 1st April of Regulatory Year to balance (M) | D51: =D48/C48-1 ->  | E51: 0.001257413747 | F51: -0.209520745 | G51: 0.1075840389 | H51: -0.02079346626 | I51: 0.04068148148 | J51: 0.04057184751

Sheet Smoothed Input Details
A1: DNO | B1: =+'CDCM Forecast Data'!E3 -> WPD South Wales
A2: Charges for (year Y) | B2: =+'CDCM Forecast Data'!E11 -> 2015/16
A4: Year charges are set (year Y-1) | B4: =+'CDCM Forecast Data'!D11 -> 2014/15
A6: Year to which input data relates
A7: Year Y-2 | B7: 2013/14
A8: Year Y - 3 | B8: 2012/13
A9: Year Y - 4 | B9: 2011/12
A11: 1041 - load profile for demand users - coincidence factors
A12: 2012/13 charges are set in 2011/12 using historical dats for the previous three years
B14: Y - 4 | C14: Y - 3 | D14: Y - 2 | E14: Information to be used calculating tariffs in year t
A15: Domestic Unrestricted | B15: 0.8282994659 | C15: 0.8713522177 | D15: 0.8731337974 | E15: =AVERAGE(B15:D15) -> 0.8575951603
A16: Domestic Two Rate | B16: 0.2576230468 | C16: 0.3010968964 | D16: 0.307168313 | E16: =AVERAGE(B16:D16) -> 0.2886294187
A17: Domestic Off Peak (related MPAN)
A18: Small Non Domestic Unrestricted | B18: 0.6520518913 | C18: 0.6226606229 | D18: 0.6171804607 | E18: =AVERAGE(B18:D18) -> 0.6306309916
A19: Small Non Domestic Two Rate | B19: 0.6713964033 | C19: 0.7573365689 | D19: 0.7477580552 | E19: =AVERAGE(B19:D19) -> 0.7254970091
A20: Small Non Domestic Off Peak (related MPAN)
A21: LV Medium Non-Domestic | B21: 0.7777531371 | C21: 0.7743784738 | D21: 0.7636805803 | E21: =AVERAGE(B21:D21) -> 0.7719373971
A22: LV Sub Medium Non-Domestic | B22: 0.7777531371 | C22: 0.7743784738 | D22: 0.7636805803 | E22: 0.7719373971
A23: HV Medium Non-Domestic | B23: 0.5853658537 | C23: 0.350489636 | D23: 0.6083497241 | E23: 0.5147350712
A24: LV Network Domestic | B24: 0.7959889383 | C24: 0.8390655318 | D24: 0.8410899933 | E24: =AVERAGE(B24:D24) -> 0.8253814878
A25: LV Network Non-Domestic Non-CT | B25: 0.6554155671 | C25: 0.6460784387 | D25: 0.6398856442 | E25: 0.64712655
A26: LV HH Metered | B26: 0.7707540594 | C26: 0.7390384716 | D26: 0.7856149887 | E26: 0.7651358399
A27: LV Sub HH Metered | B27: 0.7707540594 | C27: 0.7390384716 | D27: 0.7856149887 | E27: 0.7651358399
A28: HV HH Metered | B28: 0.8684568384 | C28: 0.8201207357 | D28: 0.8643074986 | E28: 0.8509616909
A29: NHH UMS category A | B29: 1 | C29: 1 | D29: 1 | E29: =AVERAGE(B29:D29) -> 1
A30: NHH UMS category B | B30: 1 | C30: 0.9816506004 | D30: 1 | E30: 0.9938835335
A31: NHH UMS category C | B31: 1 | C31: 0.3597194389 | D31: 0.8917835671 | E31: =AVERAGE(B31:D31) -> 0.750501002
A32: NHH UMS category D | B32: 0 | C32: 0 | D32: 0 | E32: 0
A33: LV UMS (Pseudo HH Metered) | B33: 0.998762572 | C33: 0.9573544461 | D33: 0.9808283736 | E33: 0.9789817972
A37: 1041 - load profile for demand users - load factors
A38: 2012/13 charges are set in 2011/12 using historical data for the previous three years
B41: Y - 4 | C41: Y - 3 | D41: Y - 2 | E41: Information to be used calculating tariffs in year t
A42: Domestic Unrestricted | B42: 0.4294384501 | C42: 0.4391913157 | D42: 0.4514774655 | E42: =AVERAGE(B42:D42) -> 0.4400357438
A43: Domestic Two Rate | B43: 0.2230462624 | C43: 0.2531811132 | D43: 0.2737095896 | E43: 0.2499789884
A44: Domestic Off Peak (related MPAN) | B44: 0.407609098 | C44: 0.1812851036 | D44: 0.1827610142 | E44: 0.2572184053
A45: Small Non Domestic Unrestricted | B45: 0.4057342971 | C45: 0.4085906796 | D45: 0.4199327503 | E45: 0.4114192423
A46: Small Non Domestic Two Rate | B46: 0.5105414834 | C46: 0.5608018369 | D46: 0.5807271053 | E46: 0.5506901419
A47: Small Non Domestic Off Peak (related MPAN) | B47: 0.43366894 | C47: 0.1991033511 | D47: 0.208916287 | E47: 0.2805628594
A48: LV Medium Non-Domestic | B48: 0.5315239955 | C48: 0.5506836924 | D48: 0.5438716299 | E48: 0.5420264393
A49: LV Sub Medium Non-Domestic | B49: 0.5315239955 | C49: 0.5506836924 | D49: 0.5438716299 | E49: 0.5420264393
A50: HV Medium Non-Domestic | B50: 0.4406712886 | C50: 0.2384489499 | D50: 0.4398105179 | E50: 0.3729769188
A51: LV Network Domestic | B51: 0.4177429686 | C51: 0.4284164344 | D51: 0.4411581537 | E51: =AVERAGE(B51:D51) -> 0.4291058522
A52: LV Network Non-Domestic Non-CT | B52: 0.4239947227 | C52: 0.4341762432 | D52: 0.4469994972 | E52: 0.435056821
A53: LV HH Metered | B53: 0.5801081277 | C53: 0.5888251892 | D53: 0.5944962809 | E53: 0.587809866
A54: LV Sub HH Metered | B54: 0.5801081277 | C54: 0.5888251892 | D54: 0.5944962809 | E54: 0.587809866
A55: HV HH Metered | B55: 0.7396926088 | C55: 0.73391336 | D55: 0.7392821045 | E55: 0.7376293577
A56: NHH UMS category A | B56: 1 | C56: 1 | D56: 1 | E56: 1
A57: NHH UMS category B | B57: 0.4739221119 | C57: 0.4726883031 | D57: 0.4726883031 | E57: 0.4730995727
A58: NHH UMS category C | B58: 0.2533486416 | C58: 0.2412313783 | D58: 0.2412313783 | E58: 0.245270466
A59: NHH UMS category D | B59: 0.5114862443 | C59: 0.5155189536 | D59: 0.5155189536 | E59: 0.5141747171
A60: LV UMS (Pseudo HH Metered) | B60: 0.4867639486 | C60: 0.4729464117 | D60: 0.4631755191 | E60: 0.4742952931
A64: 1061 - Average split of rate 1 units by distribution time band
A65: 2012/13 charges are set in 2011/12 using historical data for the previous three years
B68: Y - 4 | E68: Y - 3 | H68: Y - 2 | K68: Information to be used calculating tariffs in year t
B69: Red | C69: Amber | D69: Green | E69: Red | F69: Amber | G69: Green | H69: Red | I69: Amber | J69: Green | K69: Red | L69: Amber | M69: Green
A70: Domestic Unrestricted | B70: 0.1132877896 | C70: 0.4987019696 | D70: 0.3880102408 | E70: 0.1128666636 | F70: 0.5037408954 | G70: 0.383392441 | H70: 0.1127954714 | I70: 0.5042711901 | J70: 0.3829333385 | K70: =AVERAGE(B70,E70,H70) -> 0.1129833082 | L70: 0.5022380184 | M70: 0.3847786734
A71: Domestic Two Rate | B71: 0.1353723323 | C71: 0.5730575064 | D71: 0.2915701613 | E71: 0.1315484671 | F71: 0.5790102315 | G71: 0.2894413014 | H71: 0.1328931322 | I71: 0.5807560549 | J71: 0.286350813 | K71: =AVERAGE(B71,E71,H71) -> 0.1332713105 | L71: =AVERAGE(C71,F71,I71) -> 0.5776079309 | M71: =AVERAGE(D71,G71,J71) -> 0.2891207585
A72: Domestic Off Peak (related MPAN) | B72: 0 | C72: 0.1640785697 | D72: 0.8359214303 | E72: 8.51277736e-07 | F72: 0.1728672673 | G72: 0.8271318814 | H72: 0 | I72: 0.1708525516 | J72: 0.8291474484 | K72: 2.837592453e-07 | L72: 0.1692661296 | M72: 0.8307335867
A73: Small Non Domestic Unrestricted | B73: 0.07181733142 | C73: 0.5869771253 | D73: 0.3412055433 | E73: 0.07056805402 | F73: 0.5834500426 | G73: 0.3459819034 | H73: 0.07122645423 | I73: 0.5831366277 | J73: 0.3456369181 | K73: 0.07120394656 | L73: 0.5845212652 | M73: 0.3442747882
A74: Small Non Domestic Two Rate | B74: 0.09602215411 | C74: 0.6376879372 | D74: 0.2662899087 | E74: 0.09863970582 | F74: 0.6633415268 | G74: 0.2380187674 | H74: 0.0988537607 | I74: 0.6645857638 | J74: 0.2365604755 | K74: 0.09783854021 | L74: 0.6552050759 | M74: 0.2469563839
A75: Small Non Domestic Off Peak (related MPAN) | B75: 0 | C75: 0.1862171693 | D75: 0.8137828307 | E75: 8.88883384e-05 | F75: 0.1707559552 | G75: 0.8291551564 | H75: 0.0001802107361 | I75: 0.1761742706 | J75: 0.8236455187 | K75: 8.969969148e-05 | L75: 0.1777157984 | M75: 0.8221945019
A76: LV Medium Non-Domestic | B76: 0.09603319977 | C76: 0.6317506661 | D76: 0.2722161341 | E76: 0.1031990466 | F76: 0.6758798541 | G76: 0.2209210993 | H76: 0.1043141822 | I76: 0.6751284387 | J76: 0.2205573791 | K76: 0.1011821429 | L76: 0.660919653 | M76: 0.2378982042
A77: LV Sub Medium Non-Domestic | B77: 0.09603319977 | C77: 0.6317506661 | D77: 0.2722161341 | E77: 0.1031990466 | F77: 0.6758798541 | G77: 0.2209210993 | H77: 0.09828704 | I77: 0.6917597159 | J77: 0.2099532441 | K77: 0.09917309545 | L77: 0.666463412 | M77: 0.2343634925
A78: HV Medium Non-Domestic | B78: 0.100514316 | C78: 0.6937552376 | D78: 0.2057304464 | E78: 0.09822614847 | F78: 0.6948264299 | G78: 0.2069474216 | H78: 0.09826447514 | I78: 0.6953412712 | J78: 0.2063942536 | K78: 0.09900164652 | L78: 0.6946409796 | M78: 0.2063573739
A82: 1062 - Average split of rate 2 units by distribution time band
A83: 2012/13 charges are set in 2011/12 using historical data for the previous three years
B86: Y - 4 | E86: Y - 3 | H86: Y - 2 | K86: Information to be used calculating tariffs in year t
B87: Red | C87: Amber | D87: Green | E87: Red | F87: Amber | G87: Green | H87: Red | I87: Amber | J87: Green | K87: Red | L87: Amber | M87: Green
A88: Domestic Two Rate | B88: 0 | C88: 0.04611378388 | D88: 0.9538862161 | E88: 0 | F88: 0.02778530974 | G88: 0.9722146903 | H88: 0 | I88: 0.03059271437 | J88: 0.9694072856 | K88: =AVERAGE(B88,E88,H88) -> 0 | L88: 0.03483060266 | M88: 0.9651693973
A89: Small Non Domestic Two Rate | B89: 4.967061133e-08 | C89: 0.05613271813 | D89: 0.9438672322 | E89: 0 | F89: 0.05850505929 | G89: 0.9414949407 | H89: 0 | I89: 0.0614481095 | J89: 0.9385518905 | K89: 1.655687044e-08 | L89: 0.05869529564 | M89: 0.9413046878
A90: LV Medium Non-Domestic | B90: 0 | C90: 0.004541124663 | D90: 0.9954588753 | E90: 0 | F90: 0.005099440088 | G90: 0.9949005599 | H90: 0 | I90: 0.00574999675 | J90: 0.9942500033 | K90: 0 | L90: 0.005130187167 | M90: 0.9948698128
A91: LV Sub Medium Non-Domestic | B91: 0 | C91: 0.004541124663 | D91: 0.9954588753 | E91: 0 | F91: 0.005099440088 | G91: 0.9949005599 | H91: 0 | I91: 0 | J91: 1 | K91: 0 | L91: 0.003213521584 | M91: 0.9967864784
A92: HV Medium Non-Domestic | B92: 0 | C92: 0.01267695648 | D92: 0.9873230435 | E92: 0 | F92: 0 | G92: 1 | H92: 0 | I92: 0 | J92: 1 | K92: 0 | L92: 0.00422565216 | M92: 0.9957743478
A96: 1064. Average split of rate 1 units by special distribution time band
B100: Y - 4 | E100: Y - 3 | H100: Y - 2 | K100: Information to be used calculating tariffs in year t
B101: Black | C101: Amber | D101: Green | E101: Black | F101: Amber | G101: Green | H101: Black | I101: Amber | J101: Green | K101: Black | L101: Amber | M101: Green
A102: NHH UMS category A | B102: 0.02197488584 | C102: 0.4812785388 | D102: 0.4967465753 | E102: 0.02226027397 | F102: 0.4800228311 | G102: 0.497716895 | H102: 0.02197488584 | I102: 0.4812785388 | J102: 0.4967465753 | K102: =AVERAGE(B102,E102,H102) -> 0.02207001522 | L102: =AVERAGE(C102,F102,I102) -> 0.4808599696 | M102: =AVERAGE(D102,G102,J102) -> 0.4970700152
A103: NHH UMS category B | B103: 0.04280518486 | C103: 0.1916741097 | D103: 0.7655207055 | E103: 0.04387900027 | F103: 0.194019027 | G103: 0.7621019727 | H103: 0.04320532234 | I103: 0.1948882388 | J103: 0.7619064389 | K103: 0.04329650249 | L103: 0.1935271252 | M103: 0.7631763724
A104: NHH UMS category C | B104: 0.08186894035 | C104: 0.388557695 | D104: 0.5295733647 | E104: 0.07265688475 | F104: 0.2953573573 | G104: 0.6319857579 | H104: 0.07149778291 | I104: 0.2969216351 | J104: 0.631580582 | K104: 0.07534120267 | L104: 0.3269455625 | M104: 0.5977132349
A105: NHH UMS category D | B105: 0.005485018991 | C105: 0.7293892578 | D105: 0.2651257232 | E105: 0.002269342041 | F105: 0.7422269637 | G105: 0.2555036942 | H105: 0.002322927927 | I105: 0.7438920779 | J105: 0.2537849942 | K105: 0.00335909632 | L105: 0.7385027665 | M105: 0.2581381372
A109: 1069 - Peaking probabilities by network level
A110: 2012/13 charges are set in 2011/12 using historical data for the previous three years
B113: Y - 4 | E113: Y - 3 | H113: Y - 2 | K113: Information to be used calculating tariffs in year t
B114: Red | C114: Amber | D114: Green | E114: Red | F114: Amber | G114: Green | H114: Red | I114: Amber | J114: Green | K114: Red | L114: Amber | M114: Green
A115: GSPs | B115: 0.7004897466 | C115: 0.2902106874 | D115: 0.009299565953 | E115: 0.4924760233 | F115: 0.4976705457 | G115: 0.009853430987 | H115: 0.6934078131 | I115: 0.3065921869 | J115: 0 | K115: =AVERAGE(B115,E115,H115) -> 0.6287911943 | L115: =AVERAGE(C115,F115,I115) -> 0.3648244733 | M115: =AVERAGE(D115,G115,J115) -> 0.006384332313
A116: 132kV | B116: 0.589014936 | C116: 0.330725388 | D116: 0.08025967603 | E116: 0.6538530855 | F116: 0.2643154186 | G116: 0.08183149593 | H116: 0.6223797142 | I116: 0.3132856421 | J116: 0.06433464371 | K116: 0.6217492452 | L116: 0.3027754829 | M116: 0.07547527189
A117: 132kV/EHV | B117: 0.589014936 | C117: 0.330725388 | D117: 0.08025967603 | E117: 0.6538530855 | F117: 0.2643154186 | G117: 0.08183149593 | H117: 0.6223797142 | I117: 0.3132856421 | J117: 0.06433464371 | K117: 0.6217492452 | L117: 0.3027754829 | M117: 0.07547527189
A118: EHV | B118: 0.6168824383 | C118: 0.3094566476 | D118: 0.07366091409 | E118: 0.5867129071 | F118: 0.3712797447 | G118: 0.04200734819 | H118: 0.5134749422 | I118: 0.4352011695 | J118: 0.05132388834 | K118: 0.5723567625 | L118: 0.3719791873 | M118: 0.05566405021
A119: EHV/HV | B119: 0.6168824383 | C119: 0.3094566476 | D119: 0.07366091409 | E119: 0.5867129071 | F119: 0.3712797447 | G119: 0.04200734819 | H119: 0.5134749422 | I119: 0.4352011695 | J119: 0.05132388834 | K119: 0.5723567625 | L119: 0.3719791873 | M119: 0.05566405021
A120: 132kV/HV | B120: 0.589014936 | C120: 0.330725388 | D120: 0.08025967603 | E120: 0.6538530855 | F120: 0.2643154186 | G120: 0.08183149593 | H120: 0.6223797142 | I120: 0.3132856421 | J120: 0.06433464371 | K120: 0.6217492452 | L120: 0.3027754829 | M120: 0.07547527189
A121: HV | B121: 0.6168824383 | C121: 0.3094566476 | D121: 0.07366091409 | E121: 0.5867129071 | F121: 0.3712797447 | G121: 0.04200734819 | H121: 0.5134749422 | I121: 0.4352011695 | J121: 0.05132388834 | K121: 0.5723567625 | L121: 0.3719791873 | M121: 0.05566405021
A122: HV/LV | B122: 0.6168824383 | C122: 0.3094566476 | D122: 0.07366091409 | E122: 0.5867129071 | F122: 0.3712797447 | G122: 0.04200734819 | H122: 0.5134749422 | I122: 0.4352011695 | J122: 0.05132388834 | K122: 0.5723567625 | L122: 0.3719791873 | M122: 0.05566405021
A123: LV circuits | B123: 0.6168824383 | C123: 0.3094566476 | D123: 0.07366091409 | E123: 0.5867129071 | F123: 0.3712797447 | G123: 0.04200734819 | H123: 0.5134749422 | I123: 0.4352011695 | J123: 0.05132388834 | K123: 0.5723567625 | L123: 0.3719791873 | M123: 0.05566405021

Sheet Mat of App
B3: 1025. Matrix of applicability of LV service models to tariffs with fixed charges
C5: ='CDCM Forecast Data'!$E$11 -> 2015/16 | K5: ='CDCM Forecast Data'!$F$11 -> 2016/17 | S5: ='CDCM Forecast Data'!$G$11 -> 2017/18 | AA5: ='CDCM Forecast Data'!$H$11 -> 2018/19 | AI5: ='CDCM Forecast Data'!$I$11 -> 2019/20
C6: LV service model 1 | D6: LV service model 2 | E6: LV service model 3 | F6: LV service model 4 | G6: LV service model 5 | H6: LV service model 6 | I6: LV service model 7 | J6: LV service model 8 | K6: LV service model 1 | L6: LV service model 2 | M6: LV service model 3 | N6: LV service model 4 | O6: LV service model 5 | P6: LV service model 6 | Q6: LV service model 7 | R6: LV service model 8 | S6: LV service model 1 | T6: LV service model 2 | U6: LV service model 3 | V6: LV service model 4 | W6: LV service model 5 | X6: LV service model 6 | Y6: LV service model 7 | Z6: LV service model 8 | AA6: LV service model 1 | AB6: LV service model 2 | AC6: LV service model 3 | AD6: LV service model 4 | AE6: LV service model 5 | AF6: LV service model 6 | AG6: LV service model 7 | AH6: LV service model 8 | AI6: LV service model 1 | AJ6: LV service model 2 | AK6: LV service model 3 | AL6: LV service model 4 | AM6: LV service model 5 | AN6: LV service model 6 | AO6: LV service model 7 | AP6: LV service model 8
B7: Domestic Unrestricted | C7: 0.05 | D7: 0 | E7: 0 | F7: 0 | K7: =C7 -> 0.05 | L7: =D7 -> 0 | M7: =E7 -> 0 | N7: =F7 -> 0 | O7: =G7 -> 0 | P7: =H7 -> 0 | Q7: =I7 -> 0 | R7: =J7 -> 0 | S7: =K7 -> 0.05 | T7: =L7 -> 0 | U7: =M7 -> 0 | V7: =N7 -> 0 | W7: =O7 -> 0 | X7: =P7 -> 0 | Y7: =Q7 -> 0 | Z7: =R7 -> 0 | AA7: =S7 -> 0.05 | AB7: =T7 -> 0 | AC7: =U7 -> 0 | AD7: =V7 -> 0 | AE7: =W7 -> 0 | AF7: =X7 -> 0 | AG7: =Y7 -> 0 | AH7: =Z7 -> 0 | AI7: =AA7 -> 0.05 | AJ7: =AB7 -> 0 | AK7: =AC7 -> 0 | AL7: =AD7 -> 0 | AM7: =AE7 -> 0 | AN7: =AF7 -> 0 | AO7: =AG7 -> 0 | AP7: =AH7 -> 0
B8: Domestic Two Rate | C8: 0.05 | D8: 0 | E8: 0 | F8: 0 | K8: 0.05 | L8: 0 | M8: 0 | N8: 0 | O8: 0 | P8: 0 | Q8: 0 | R8: 0 | S8: 0.05 | T8: 0 | U8: 0 | V8: 0 | W8: 0 | X8: 0 | Y8: 0 | Z8: 0 | AA8: 0.05 | AB8: 0 | AC8: 0 | AD8: 0 | AE8: 0 | AF8: 0 | AG8: 0 | AH8: 0 | AI8: 0.05 | AJ8: 0 | AK8: 0 | AL8: 0 | AM8: 0 | AN8: 0 | AO8: 0 | AP8: 0
B9: Small Non Domestic Unrestricted | C9: 0 | D9: 1 | E9: 0 | F9: 0 | K9: 0 | L9: 1 | M9: 0 | N9: 0 | O9: 0 | P9: 0 | Q9: 0 | R9: 0 | S9: 0 | T9: 1 | U9: 0 | V9: 0 | W9: 0 | X9: 0 | Y9: 0 | Z9: 0 | AA9: 0 | AB9: 1 | AC9: 0 | AD9: 0 | AE9: 0 | AF9: 0 | AG9: 0 | AH9: 0 | AI9: 0 | AJ9: 1 | AK9: 0 | AL9: 0 | AM9: 0 | AN9: 0 | AO9: 0 | AP9: 0
B10: Small Non Domestic Two Rate | C10: 0 | D10: 1 | E10: 0 | F10: 0 | K10: 0 | L10: 1 | M10: 0 | N10: 0 | O10: 0 | P10: 0 | Q10: 0 | R10: 0 | S10: 0 | T10: 1 | U10: 0 | V10: 0 | W10: 0 | X10: 0 | Y10: 0 | Z10: 0 | AA10: 0 | AB10: 1 | AC10: 0 | AD10: 0 | AE10: 0 | AF10: 0 | AG10: 0 | AH10: 0 | AI10: 0 | AJ10: 1 | AK10: 0 | AL10: 0 | AM10: 0 | AN10: 0 | AO10: 0 | AP10: 0
B11: LV Medium Non-Domestic | C11: 0 | D11: 0 | E11: 1 | F11: 0 | K11: =C11 -> 0 | L11: =D11 -> 0 | M11: =E11 -> 1 | N11: =F11 -> 0 | O11: =G11 -> 0 | P11: =H11 -> 0 | Q11: =I11 -> 0 | R11: =J11 -> 0 | S11: =K11 -> 0 | T11: =L11 -> 0 | U11: =M11 -> 1 | V11: =N11 -> 0 | W11: =O11 -> 0 | X11: =P11 -> 0 | Y11: =Q11 -> 0 | Z11: =R11 -> 0 | AA11: =S11 -> 0 | AB11: =T11 -> 0 | AC11: =U11 -> 1 | AD11: =V11 -> 0 | AE11: =W11 -> 0 | AF11: =X11 -> 0 | AG11: =Y11 -> 0 | AH11: =Z11 -> 0 | AI11: =AA11 -> 0 | AJ11: =AB11 -> 0 | AK11: =AC11 -> 1 | AL11: =AD11 -> 0 | AM11: =AE11 -> 0 | AN11: =AF11 -> 0 | AO11: =AG11 -> 0 | AP11: =AH11 -> 0
B12: LV Sub Medium Non-Domestic | C12: 0 | D12: 0 | E12: 0 | F12: 1 | K12: 0 | L12: 0 | M12: 0 | N12: 1 | O12: 0 | P12: 0 | Q12: 0 | R12: 0 | S12: 0 | T12: 0 | U12: 0 | V12: 1 | W12: 0 | X12: 0 | Y12: 0 | Z12: 0 | AA12: 0 | AB12: 0 | AC12: 0 | AD12: 1 | AE12: 0 | AF12: 0 | AG12: 0 | AH12: 0 | AI12: 0 | AJ12: 0 | AK12: 0 | AL12: 1 | AM12: 0 | AN12: 0 | AO12: 0 | AP12: 0
B13: LV Network Domestic | C13: 0.05 | K13: 0.05 | L13: 0 | M13: 0 | N13: 0 | O13: 0 | P13: 0 | Q13: 0 | R13: 0 | S13: 0.05 | T13: 0 | U13: 0 | V13: 0 | W13: 0 | X13: 0 | Y13: 0 | Z13: 0 | AA13: 0.05 | AB13: 0 | AC13: 0 | AD13: 0 | AE13: 0 | AF13: 0 | AG13: 0 | AH13: 0 | AI13: 0.05 | AJ13: 0 | AK13: 0 | AL13: 0 | AM13: 0 | AN13: 0 | AO13: 0 | AP13: 0
B14: LV Network Non-Domestic Non-CT | D14: 1 | K14: 0 | L14: 1 | M14: 0 | N14: 0 | O14: 0 | P14: 0 | Q14: 0 | R14: 0 | S14: 0 | T14: 1 | U14: 0 | V14: 0 | W14: 0 | X14: 0 | Y14: 0 | Z14: 0 | AA14: 0 | AB14: 1 | AC14: 0 | AD14: 0 | AE14: 0 | AF14: 0 | AG14: 0 | AH14: 0 | AI14: 0 | AJ14: 1 | AK14: 0 | AL14: 0 | AM14: 0 | AN14: 0 | AO14: 0 | AP14: 0
B15: LV HH Metered | C15: 0 | D15: 0 | E15: 0 | F15: 0 | G15: 1 | H15: 0 | I15: 0 | J15: 0 | K15: 0 | L15: 0 | M15: 0 | N15: 0 | O15: 1 | P15: 0 | Q15: 0 | R15: 0 | S15: 0 | T15: 0 | U15: 0 | V15: 0 | W15: 1 | X15: 0 | Y15: 0 | Z15: 0 | AA15: 0 | AB15: 0 | AC15: 0 | AD15: 0 | AE15: 1 | AF15: 0 | AG15: 0 | AH15: 0 | AI15: 0 | AJ15: 0 | AK15: 0 | AL15: 0 | AM15: 1 | AN15: 0 | AO15: 0 | AP15: 0
B16: LV Sub HH Metered | C16: 0 | D16: 0 | E16: 0 | F16: 0 | G16: 0 | H16: 1 | I16: 0 | J16: 0 | K16: 0 | L16: 0 | M16: 0 | N16: 0 | O16: 0 | P16: 1 | Q16: 0 | R16: 0 | S16: 0 | T16: 0 | U16: 0 | V16: 0 | W16: 0 | X16: 1 | Y16: 0 | Z16: 0 | AA16: 0 | AB16: 0 | AC16: 0 | AD16: 0 | AE16: 0 | AF16: 1 | AG16: 0 | AH16: 0 | AI16: 0 | AJ16: 0 | AK16: 0 | AL16: 0 | AM16: 0 | AN16: 1 | AO16: 0 | AP16: 0
B17: LV Generation NHH or Aggregate HH | C17: 0 | D17: 0 | E17: 0 | F17: 0 | G17: 0 | H17: 0 | I17: 1 | J17: 0 | K17: 0 | L17: 0 | M17: 0 | N17: 0 | O17: 0 | P17: 0 | Q17: 1 | R17: 0 | S17: 0 | T17: 0 | U17: 0 | V17: 0 | W17: 0 | X17: 0 | Y17: 1 | Z17: 0 | AA17: 0 | AB17: 0 | AC17: 0 | AD17: 0 | AE17: 0 | AF17: 0 | AG17: 1 | AH17: 0 | AI17: 0 | AJ17: 0 | AK17: 0 | AL17: 0 | AM17: 0 | AN17: 0 | AO17: 1 | AP17: 0
B18: LV Sub Generation NHH | C18: 0 | D18: 0 | E18: 0 | F18: 0 | G18: 0 | H18: 0 | I18: 1 | J18: 0 | K18: 0 | L18: 0 | M18: 0 | N18: 0 | O18: 0 | P18: 0 | Q18: 1 | R18: 0 | S18: 0 | T18: 0 | U18: 0 | V18: 0 | W18: 0 | X18: 0 | Y18: 1 | Z18: 0 | AA18: 0 | AB18: 0 | AC18: 0 | AD18: 0 | AE18: 0 | AF18: 0 | AG18: 1 | AH18: 0 | AI18: 0 | AJ18: 0 | AK18: 0 | AL18: 0 | AM18: 0 | AN18: 0 | AO18: 1 | AP18: 0
B19: LV Generation Intermittent | C19: 0 | D19: 0 | E19: 0 | F19: 0 | G19: 0 | H19: 0 | I19: 1 | J19: 0 | K19: 0 | L19: 0 | M19: 0 | N19: 0 | O19: 0 | P19: 0 | Q19: 1 | R19: 0 | S19: 0 | T19: 0 | U19: 0 | V19: 0 | W19: 0 | X19: 0 | Y19: 1 | Z19: 0 | AA19: 0 | AB19: 0 | AC19: 0 | AD19: 0 | AE19: 0 | AF19: 0 | AG19: 1 | AH19: 0 | AI19: 0 | AJ19: 0 | AK19: 0 | AL19: 0 | AM19: 0 | AN19: 0 | AO19: 1 | AP19: 0
B20: LV Generation Non-Intermittent | C20: 0 | D20: 0 | E20: 0 | F20: 0 | G20: 0 | H20: 0 | I20: 0 | J20: 0 | K20: 0 | L20: 0 | M20: 0 | N20: 0 | O20: 0 | P20: 0 | Q20: 0 | R20: 0 | S20: 0 | T20: 0 | U20: 0 | V20: 0 | W20: 0 | X20: 0 | Y20: 0 | Z20: 0 | AA20: 0 | AB20: 0 | AC20: 0 | AD20: 0 | AE20: 0 | AF20: 0 | AG20: 0 | AH20: 0 | AI20: 0 | AJ20: 0 | AK20: 0 | AL20: 0 | AM20: 0 | AN20: 0 | AO20: 0 | AP20: 0
B21: LV Sub Generation Intermittent | C21: 0 | D21: 0 | E21: 0 | F21: 0 | G21: 0 | H21: 0 | I21: 0 | J21: 0 | K21: 0 | L21: 0 | M21: 0 | N21: 0 | O21: 0 | P21: 0 | Q21: 0 | R21: 0 | S21: 0 | T21: 0 | U21: 0 | V21: 0 | W21: 0 | X21: 0 | Y21: 0 | Z21: 0 | AA21: 0 | AB21: 0 | AC21: 0 | AD21: 0 | AE21: 0 | AF21: 0 | AG21: 0 | AH21: 0 | AI21: 0 | AJ21: 0 | AK21: 0 | AL21: 0 | AM21: 0 | AN21: 0 | AO21: 0 | AP21: 0
B22: LV Sub Generation Non-Intermittent | C22: 0 | D22: 0 | E22: 0 | F22: 0 | G22: 0 | H22: 0 | I22: 0 | J22: 0 | K22: 0 | L22: 0 | M22: 0 | N22: 0 | O22: 0 | P22: 0 | Q22: 0 | R22: 0 | S22: 0 | T22: 0 | U22: 0 | V22: 0 | W22: 0 | X22: 0 | Y22: 0 | Z22: 0 | AA22: 0 | AB22: 0 | AC22: 0 | AD22: 0 | AE22: 0 | AF22: 0 | AG22: 0 | AH22: 0 | AI22: 0 | AJ22: 0 | AK22: 0 | AL22: 0 | AM22: 0 | AN22: 0 | AO22: 0 | AP22: 0
B24: 1026. Matrix of applicability of LV service models to unmetered tariffs
B26: Source: service models
B27: Proportion of service model involved in connecting load of 1 MWh/year | C27: ='CDCM Forecast Data'!$E$11 -> 2015/16 | K27: ='CDCM Forecast Data'!$F$11 -> 2016/17 | S27: ='CDCM Forecast Data'!$G$11 -> 2017/18 | AA27: ='CDCM Forecast Data'!$H$11 -> 2018/19 | AI27: ='CDCM Forecast Data'!$I$11 -> 2019/20
C28: LV service model 1 | D28: LV service model 2 | E28: LV service model 3 | F28: LV service model 4 | G28: LV service model 5 | H28: LV service model 6 | I28: LV service model 7 | J28: LV service model 8 | K28: LV service model 1 | L28: LV service model 2 | M28: LV service model 3 | N28: LV service model 4 | O28: LV service model 5 | P28: LV service model 6 | Q28: LV service model 7 | R28: LV service model 8 | S28: LV service model 1 | T28: LV service model 2 | U28: LV service model 3 | V28: LV service model 4 | W28: LV service model 5 | X28: LV service model 6 | Y28: LV service model 7 | Z28: LV service model 8 | AA28: LV service model 1 | AB28: LV service model 2 | AC28: LV service model 3 | AD28: LV service model 4 | AE28: LV service model 5 | AF28: LV service model 6 | AG28: LV service model 7 | AH28: LV service model 8 | AI28: LV service model 1 | AJ28: LV service model 2 | AK28: LV service model 3 | AL28: LV service model 4 | AM28: LV service model 5 | AN28: LV service model 6 | AO28: LV service model 7 | AP28: LV service model 8
B29: All LV unmetered tariffs | J29: 0.4876 | K29: =C29 -> 0 | L29: 0 | M29: 0 | N29: 0 | O29: 0 | P29: 0 | Q29: 0 | R29: 0.4876 | S29: =K29 -> 0 | T29: =L29 -> 0 | U29: =M29 -> 0 | V29: =N29 -> 0 | W29: =O29 -> 0 | X29: =P29 -> 0 | Y29: =Q29 -> 0 | Z29: =R29 -> 0.4876 | AA29: =S29 -> 0 | AB29: =T29 -> 0 | AC29: =U29 -> 0 | AD29: =V29 -> 0 | AE29: =W29 -> 0 | AF29: =X29 -> 0 | AG29: =Y29 -> 0 | AH29: =Z29 -> 0.4876 | AI29: =AA29 -> 0 | AJ29: =AB29 -> 0 | AK29: =AC29 -> 0 | AL29: =AD29 -> 0 | AM29: =AE29 -> 0 | AN29: =AF29 -> 0 | AO29: =AG29 -> 0 | AP29: =AH29 -> 0.4876
B31: 1028. Matrix of applicability of HV service models to tariffs with fixed charges
C32: ='CDCM Forecast Data'!$E$11 -> 2015/16 | H32: =+'CDCM Forecast Data'!F11 -> 2016/17 | M32: =+'CDCM Forecast Data'!G11 -> 2017/18 | R32: =+'CDCM Forecast Data'!H11 -> 2018/19 | W32: =+'CDCM Forecast Data'!I11 -> 2019/20
C33: HV service model 1 | D33: HV service model 2 | E33: HV service model 3 | F33: HV service model 4 | G33: HV service model 5 | H33: HV service model 1 | I33: HV service model 2 | J33: HV service model 3 | K33: HV service model 4 | L33: HV service model 5 | M33: HV service model 1 | N33: HV service model 2 | O33: HV service model 3 | P33: HV service model 4 | Q33: HV service model 5 | R33: HV service model 1 | S33: HV service model 2 | T33: HV service model 3 | U33: HV service model 4 | V33: HV service model 5 | W33: HV service model 1 | X33: HV service model 2 | Y33: HV service model 3 | Z33: HV service model 4 | AA33: HV service model 5
B34: HV Medium Non-Domestic | C34: 1 | H34: =C34 -> 1 | I34: =D34 -> 0 | J34: =E34 -> 0 | K34: =F34 -> 0 | L34: =G34 -> 0 | M34: =H34 -> 1 | N34: =I34 -> 0 | O34: =J34 -> 0 | P34: =K34 -> 0 | Q34: =L34 -> 0 | R34: =M34 -> 1 | S34: =N34 -> 0 | T34: =O34 -> 0 | U34: =P34 -> 0 | V34: =Q34 -> 0 | W34: =R34 -> 1 | X34: =S34 -> 0 | Y34: =T34 -> 0 | Z34: =U34 -> 0 | AA34: =V34 -> 0
B35: HV HH Metered | C35: 1 | H35: 1 | I35: 0 | J35: 0 | K35: 0 | L35: 0 | M35: 1 | N35: 0 | O35: 0 | P35: 0 | Q35: 0 | R35: 1 | S35: 0 | T35: 0 | U35: 0 | V35: 0 | W35: 1 | X35: 0 | Y35: 0 | Z35: 0 | AA35: 0
B36: HV Generation Intermittent | D36: 1 | H36: 0 | I36: 1 | J36: 0 | K36: 0 | L36: 0 | M36: 0 | N36: 1 | O36: 0 | P36: 0 | Q36: 0 | R36: 0 | S36: 1 | T36: 0 | U36: 0 | V36: 0 | W36: 0 | X36: 1 | Y36: 0 | Z36: 0 | AA36: 0
B37: HV Generation Non-Intermittent | D37: 1 | H37: 0 | I37: 1 | J37: 0 | K37: 0 | L37: 0 | M37: 0 | N37: 1 | O37: 0 | P37: 0 | Q37: 0 | R37: 0 | S37: 1 | T37: 0 | U37: 0 | V37: 0 | W37: 0 | X37: 1 | Y37: 0 | Z37: 0 | AA37: 0

Sheet CDCM Volume Forecasts
G3: Growth Rates (%)
G4: VOLUME - RED BAND | L4: VOLUME - AMBER BAND | P4: VOLUME - GREEN BAND | T4: CUSTOMER NUMBERS | X4: IMPORT CAPACITY | AB4: REACTIVE POWER
G5: Y | H5: Y + 1 | I5: Y + 2 | J5: Y + 3 | K5: Y + 4 | L5: Y + 1 | M5: Y + 2 | N5: Y + 3 | O5: Y + 4 | P5: Y + 1 | Q5: Y + 2 | R5: Y + 3 | S5: Y + 4 | T5: Y + 1 | U5: Y + 2 | V5: Y + 3 | W5: Y + 4 | X5: Y + 1 | Y5: Y + 2 | Z5: Y + 3 | AA5: Y + 4 | AB5: Y + 1 | AC5: Y + 2 | AD5: Y + 3 | AE5: Y + 4
E6: Customer Category | F6: Description | G6: =+'CDCM Forecast Data'!E11 -> 2015/16 | H6: =+'CDCM Forecast Data'!F11 -> 2016/17 | I6: =+'CDCM Forecast Data'!G11 -> 2017/18 | J6: =+'CDCM Forecast Data'!H11 -> 2018/19 | K6: =+'CDCM Forecast Data'!I11 -> 2019/20 | L6: =+H6 -> 2016/17 | M6: 2017/18 | N6: 2018/19 | O6: 2019/20 | P6: 2016/17 | Q6: 2017/18 | R6: 2018/19 | S6: 2019/20 | T6: 2016/17 | U6: 2017/18 | V6: 2018/19 | W6: 2019/20 | X6: 2016/17 | Y6: 2017/18 | Z6: 2018/19 | AA6: 2019/20 | AB6: 2016/17 | AC6: 2017/18 | AD6: 2018/19 | AE6: 2019/20 | AF6: Assumptions
E7: 1 | F7: Aggregated demand
E8: 2 | F8: Site-specific demand
E9: 3 | F9: Not used
E10: 4 | F10: Generation
E11: 5 | F11: Not used
E12: 6 | F12: Not used
E13: 7 | F13: Not used
E14: 8 | F14: Not used
E15: 9 | F15: Not used
E16: 10 | F16: Not used
E18: Summary Data | F18: Year | G18: =G6 -> 2015/16 | H18: =H6 -> 2016/17 | I18: =I6 -> 2017/18 | J18: =J6 -> 2018/19 | K18: =K6 -> 2019/20
F19: Total Volume | G19: =SUM(D28:F123) -> 8997160.846 | H19: =SUM(J28:L123) -> 8997160.846 | I19: =SUM(P28:R123) -> 8997160.846 | J19: =SUM(V28:X123) -> 8997160.846 | K19: =SUM(AB28:AD123) -> 8997160.846
F20: No. of MPANs | G20: =SUM(G28:G123) -> 1115236 | H20: =SUM(M28:M123) -> 1115236 | I20: =SUM(S28:S123) -> 1115236 | J20: =SUM(Y28:Y123) -> 1115236 | K20: =SUM(AE28:AE123) -> 1115236
F21: Total Import Capacity | G21: =SUM(H28:H123) -> 1294341 | H21: =SUM(N28:N123) -> 1294341 | I21: =SUM(T28:T123) -> 1294341 | J21: =SUM(Z28:Z123) -> 1294341 | K21: =SUM(AF28:AF123) -> 1294341
F22: Total Reactive | G22: =SUM(I28:I123) -> 286760 | H22: =SUM(O28:O123) -> 286760 | I22: =SUM(U28:U123) -> 286760 | J22: =SUM(AA28:AA123) -> 286760 | K22: =SUM(AG28:AG123) -> 286760
C25: 1053. Volume forecasts for the charging year: | D25: =G6& " - ("&G5&")" -> 2015/16 - (Y) | J25: =H6& " - ("&H5&")" -> 2016/17 - (Y + 1) | P25: =I6& " - ("&I5&")" -> 2017/18 - (Y + 2) | V25: =J6& " - ("&J5&")" -> 2018/19 - (Y + 3) | AB25: =K6& " - ("&K5&")" -> 2019/20 - (Y + 4)
B26: Customer Category | C26: Tariff | D26: Rate 1 units (MWh) | E26: Rate 2 units (MWh) | F26: Rate 3 units (MWh) | G26: MPANs | H26: Import capacity (kVA) | I26: Reactive power units (MVArh) | J26: Rate 1 units (MWh) | K26: Rate 2 units (MWh) | L26: Rate 3 units (MWh) | M26: MPANs | N26: Import capacity (kVA) | O26: Reactive power units (MVArh) | P26: Rate 1 units (MWh) | Q26: Rate 2 units (MWh) | R26: Rate 3 units (MWh) | S26: MPANs | T26: Import capacity (kVA) | U26: Reactive power units (MVArh) | V26: Rate 1 units (MWh) | W26: Rate 2 units (MWh) | X26: Rate 3 units (MWh) | Y26: MPANs | Z26: Import capacity (kVA) | AA26: Reactive power units (MVArh) | AB26: Rate 1 units (MWh) | AC26: Rate 2 units (MWh) | AD26: Rate 3 units (MWh) | AE26: MPANs | AF26: Import capacity (kVA) | AG26: Reactive power units (MVArh)
A27: 1 | C27: > Domestic Unrestricted
A28: =A27+1 -> 2 | B28: 1 | C28: Domestic Unrestricted | D28: 3242264.656 | G28: 964740 | J28: =IF(D28,((VLOOKUP($B28,$E$7:$AE$16,4)+1)*D28),) -> 3242264.656 | K28: =IF(E28,((VLOOKUP($B28,$E$7:$AE$16,8)+1)*E28),) -> 0 | L28: =IF(F28,((VLOOKUP($B28,$E$7:$AE$16,12)+1)*F28),) -> 0 | M28: =IF(G28,((VLOOKUP($B28,$E$7:$AE$16,16)+1)*G28),) -> 964740 | N28: =IF(H28,((VLOOKUP($B28,$E$7:$AE$16,20)+1)*H28),) -> 0 | O28: =IF(I28,((VLOOKUP($B28,$E$7:$AE$16,24)+1)*I28),) -> 0 | P28: =IF(D28,((VLOOKUP($B28,$E$7:$AE$16,5)+1)*J28),) -> 3242264.656 | Q28: =IF(E28,((VLOOKUP($B28,$E$7:$AE$16,5+4)+1)*K28),) -> 0 | R28: =IF(F28,((VLOOKUP($B28,$E$7:$AE$16,5+8)+1)*L28),) -> 0 | S28: =IF(G28,((VLOOKUP($B28,$E$7:$AE$16,5+12)+1)*M28),) -> 964740 | T28: =IF(H28,((VLOOKUP($B28,$E$7:$AE$16,5+16)+1)*N28),) -> 0 | U28: =IF(I28,((VLOOKUP($B28,$E$7:$AE$16,5+20)+1)*O28),) -> 0 | V28: =IF(D28,((VLOOKUP($B28,$E$7:$AE$16,6)+1)*P28),) -> 3242264.656 | W28: =IF(E28,((VLOOKUP($B28,$E$7:$AE$16,6+4)+1)*Q28),) -> 0 | X28: =IF(F28,((VLOOKUP($B28,$E$7:$AE$16,6+8)+1)*R28),) -> 0 | Y28: =IF(G28,((VLOOKUP($B28,$E$7:$AE$16,6+12)+1)*S28),) -> 964740 | Z28: =IF(H28,((VLOOKUP($B28,$E$7:$AE$16,6+16)+1)*T28),) -> 0 | AA28: =IF(I28,((VLOOKUP($B28,$E$7:$AE$16,6+20)+1)*U28),) -> 0 | AB28: =IF(D28,((VLOOKUP($B28,$E$7:$AE$16,7)+1)*V28),) -> 3242264.656 | AC28: =IF(E28,((VLOOKUP($B28,$E$7:$AE$16,7+4)+1)*W28),) -> 0 | AD28: =IF(F28,((VLOOKUP($B28,$E$7:$AE$16,7+8)+1)*X28),) -> 0 | AE28: =IF(G28,((VLOOKUP($B28,$E$7:$AE$16,7+12)+1)*Y28),) -> 964740 | AF28: =IF(H28,((VLOOKUP($B28,$E$7:$AE$16,7+16)+1)*Z28),) -> 0 | AG28: =IF(I28,((VLOOKUP($B28,$E$7:$AE$16,7+20)+1)*AA28),) -> 0
A29: =A28+1 -> 3 | B29: 1 | C29: LDNO LV: Domestic Unrestricted | D29: 2870.334985 | G29: 893 | J29: =IF(D29,((VLOOKUP($B29,$E$7:$AE$16,4)+1)*D29),) -> 2870.334985 | K29: =IF(E29,((VLOOKUP($B29,$E$7:$AE$16,8)+1)*E29),) -> 0 | L29: =IF(F29,((VLOOKUP($B29,$E$7:$AE$16,12)+1)*F29),) -> 0 | M29: =IF(G29,((VLOOKUP($B29,$E$7:$AE$16,16)+1)*G29),) -> 893 | N29: =IF(H29,((VLOOKUP($B29,$E$7:$AE$16,20)+1)*H29),) -> 0 | O29: =IF(I29,((VLOOKUP($B29,$E$7:$AE$16,24)+1)*I29),) -> 0 | P29: =IF(D29,((VLOOKUP($B29,$E$7:$AE$16,5)+1)*J29),) -> 2870.334985 | Q29: =IF(E29,((VLOOKUP($B29,$E$7:$AE$16,5+4)+1)*K29),) -> 0 | R29: =IF(F29,((VLOOKUP($B29,$E$7:$AE$16,5+8)+1)*L29),) -> 0 | S29: =IF(G29,((VLOOKUP($B29,$E$7:$AE$16,5+12)+1)*M29),) -> 893 | T29: =IF(H29,((VLOOKUP($B29,$E$7:$AE$16,5+16)+1)*N29),) -> 0 | U29: =IF(I29,((VLOOKUP($B29,$E$7:$AE$16,5+20)+1)*O29),) -> 0 | V29: =IF(D29,((VLOOKUP($B29,$E$7:$AE$16,6)+1)*P29),) -> 2870.334985 | W29: =IF(E29,((VLOOKUP($B29,$E$7:$AE$16,6+4)+1)*Q29),) -> 0 | X29: =IF(F29,((VLOOKUP($B29,$E$7:$AE$16,6+8)+1)*R29),) -> 0 | Y29: =IF(G29,((VLOOKUP($B29,$E$7:$AE$16,6+12)+1)*S29),) -> 893 | Z29: =IF(H29,((VLOOKUP($B29,$E$7:$AE$16,6+16)+1)*T29),) -> 0 | AA29: =IF(I29,((VLOOKUP($B29,$E$7:$AE$16,6+20)+1)*U29),) -> 0 | AB29: =IF(D29,((VLOOKUP($B29,$E$7:$AE$16,7)+1)*V29),) -> 2870.334985 | AC29: =IF(E29,((VLOOKUP($B29,$E$7:$AE$16,7+4)+1)*W29),) -> 0 | AD29: =IF(F29,((VLOOKUP($B29,$E$7:$AE$16,7+8)+1)*X29),) -> 0 | AE29: =IF(G29,((VLOOKUP($B29,$E$7:$AE$16,7+12)+1)*Y29),) -> 893 | AF29: =IF(H29,((VLOOKUP($B29,$E$7:$AE$16,7+16)+1)*Z29),) -> 0 | AG29: =IF(I29,((VLOOKUP($B29,$E$7:$AE$16,7+20)+1)*AA29),) -> 0
A30: 4 | B30: 1 | C30: LDNO HV: Domestic Unrestricted | D30: 11376.82715 | G30: 3843 | J30: =IF(D30,((VLOOKUP($B30,$E$7:$AE$16,4)+1)*D30),) -> 11376.82715 | K30: =IF(E30,((VLOOKUP($B30,$E$7:$AE$16,8)+1)*E30),) -> 0 | L30: =IF(F30,((VLOOKUP($B30,$E$7:$AE$16,12)+1)*F30),) -> 0 | M30: =IF(G30,((VLOOKUP($B30,$E$7:$AE$16,16)+1)*G30),) -> 3843 | N30: =IF(H30,((VLOOKUP($B30,$E$7:$AE$16,20)+1)*H30),) -> 0 | O30: =IF(I30,((VLOOKUP($B30,$E$7:$AE$16,24)+1)*I30),) -> 0 | P30: =IF(D30,((VLOOKUP($B30,$E$7:$AE$16,5)+1)*J30),) -> 11376.82715 | Q30: =IF(E30,((VLOOKUP($B30,$E$7:$AE$16,5+4)+1)*K30),) -> 0 | R30: =IF(F30,((VLOOKUP($B30,$E$7:$AE$16,5+8)+1)*L30),) -> 0 | S30: =IF(G30,((VLOOKUP($B30,$E$7:$AE$16,5+12)+1)*M30),) -> 3843 | T30: =IF(H30,((VLOOKUP($B30,$E$7:$AE$16,5+16)+1)*N30),) -> 0 | U30: =IF(I30,((VLOOKUP($B30,$E$7:$AE$16,5+20)+1)*O30),) -> 0 | V30: =IF(D30,((VLOOKUP($B30,$E$7:$AE$16,6)+1)*P30),) -> 11376.82715 | W30: =IF(E30,((VLOOKUP($B30,$E$7:$AE$16,6+4)+1)*Q30),) -> 0 | X30: =IF(F30,((VLOOKUP($B30,$E$7:$AE$16,6+8)+1)*R30),) -> 0 | Y30: =IF(G30,((VLOOKUP($B30,$E$7:$AE$16,6+12)+1)*S30),) -> 3843 | Z30: =IF(H30,((VLOOKUP($B30,$E$7:$AE$16,6+16)+1)*T30),) -> 0 | AA30: =IF(I30,((VLOOKUP($B30,$E$7:$AE$16,6+20)+1)*U30),) -> 0 | AB30: =IF(D30,((VLOOKUP($B30,$E$7:$AE$16,7)+1)*V30),) -> 11376.82715 | AC30: =IF(E30,((VLOOKUP($B30,$E$7:$AE$16,7+4)+1)*W30),) -> 0 | AD30: =IF(F30,((VLOOKUP($B30,$E$7:$AE$16,7+8)+1)*X30),) -> 0 | AE30: =IF(G30,((VLOOKUP($B30,$E$7:$AE$16,7+12)+1)*Y30),) -> 3843 | AF30: =IF(H30,((VLOOKUP($B30,$E$7:$AE$16,7+16)+1)*Z30),) -> 0 | AG30: =IF(I30,((VLOOKUP($B30,$E$7:$AE$16,7+20)+1)*AA30),) -> 0
A31: 5 | C31: > Domestic Two Rate
A32: 6 | B32: 1 | C32: Domestic Two Rate | D32: 174847.8894 | E32: 180701.5563 | G32: 58083 | J32: =IF(D32,((VLOOKUP($B32,$E$7:$AE$16,4)+1)*D32),) -> 174847.8894 | K32: =IF(E32,((VLOOKUP($B32,$E$7:$AE$16,8)+1)*E32),) -> 180701.5563 | L32: =IF(F32,((VLOOKUP($B32,$E$7:$AE$16,12)+1)*F32),) -> 0 | M32: =IF(G32,((VLOOKUP($B32,$E$7:$AE$16,16)+1)*G32),) -> 58083 | N32: =IF(H32,((VLOOKUP($B32,$E$7:$AE$16,20)+1)*H32),) -> 0 | O32: =IF(I32,((VLOOKUP($B32,$E$7:$AE$16,24)+1)*I32),) -> 0 | P32: =IF(D32,((VLOOKUP($B32,$E$7:$AE$16,5)+1)*J32),) -> 174847.8894 | Q32: =IF(E32,((VLOOKUP($B32,$E$7:$AE$16,5+4)+1)*K32),) -> 180701.5563 | R32: =IF(F32,((VLOOKUP($B32,$E$7:$AE$16,5+8)+1)*L32),) -> 0 | S32: =IF(G32,((VLOOKUP($B32,$E$7:$AE$16,5+12)+1)*M32),) -> 58083 | T32: =IF(H32,((VLOOKUP($B32,$E$7:$AE$16,5+16)+1)*N32),) -> 0 | U32: =IF(I32,((VLOOKUP($B32,$E$7:$AE$16,5+20)+1)*O32),) -> 0 | V32: =IF(D32,((VLOOKUP($B32,$E$7:$AE$16,6)+1)*P32),) -> 174847.8894 | W32: =IF(E32,((VLOOKUP($B32,$E$7:$AE$16,6+4)+1)*Q32),) -> 180701.5563 | X32: =IF(F32,((VLOOKUP($B32,$E$7:$AE$16,6+8)+1)*R32),) -> 0 | Y32: =IF(G32,((VLOOKUP($B32,$E$7:$AE$16,6+12)+1)*S32),) -> 58083 | Z32: =IF(H32,((VLOOKUP($B32,$E$7:$AE$16,6+16)+1)*T32),) -> 0 | AA32: =IF(I32,((VLOOKUP($B32,$E$7:$AE$16,6+20)+1)*U32),) -> 0 | AB32: =IF(D32,((VLOOKUP($B32,$E$7:$AE$16,7)+1)*V32),) -> 174847.8894 | AC32: =IF(E32,((VLOOKUP($B32,$E$7:$AE$16,7+4)+1)*W32),) -> 180701.5563 | AD32: =IF(F32,((VLOOKUP($B32,$E$7:$AE$16,7+8)+1)*X32),) -> 0 | AE32: =IF(G32,((VLOOKUP($B32,$E$7:$AE$16,7+12)+1)*Y32),) -> 58083 | AF32: =IF(H32,((VLOOKUP($B32,$E$7:$AE$16,7+16)+1)*Z32),) -> 0 | AG32: =IF(I32,((VLOOKUP($B32,$E$7:$AE$16,7+20)+1)*AA32),) -> 0
A33: 7 | B33: 1 | C33: LDNO LV: Domestic Two Rate | D33: 262.9871922 | E33: 6585.66953 | G33: 21 | J33: =IF(D33,((VLOOKUP($B33,$E$7:$AE$16,4)+1)*D33),) -> 262.9871922 | K33: =IF(E33,((VLOOKUP($B33,$E$7:$AE$16,8)+1)*E33),) -> 6585.66953 | L33: =IF(F33,((VLOOKUP($B33,$E$7:$AE$16,12)+1)*F33),) -> 0 | M33: =IF(G33,((VLOOKUP($B33,$E$7:$AE$16,16)+1)*G33),) -> 21 | N33: =IF(H33,((VLOOKUP($B33,$E$7:$AE$16,20)+1)*H33),) -> 0 | O33: =IF(I33,((VLOOKUP($B33,$E$7:$AE$16,24)+1)*I33),) -> 0 | P33: =IF(D33,((VLOOKUP($B33,$E$7:$AE$16,5)+1)*J33),) -> 262.9871922 | Q33: =IF(E33,((VLOOKUP($B33,$E$7:$AE$16,5+4)+1)*K33),) -> 6585.66953 | R33: =IF(F33,((VLOOKUP($B33,$E$7:$AE$16,5+8)+1)*L33),) -> 0 | S33: =IF(G33,((VLOOKUP($B33,$E$7:$AE$16,5+12)+1)*M33),) -> 21 | T33: =IF(H33,((VLOOKUP($B33,$E$7:$AE$16,5+16)+1)*N33),) -> 0 | U33: =IF(I33,((VLOOKUP($B33,$E$7:$AE$16,5+20)+1)*O33),) -> 0 | V33: =IF(D33,((VLOOKUP($B33,$E$7:$AE$16,6)+1)*P33),) -> 262.9871922 | W33: =IF(E33,((VLOOKUP($B33,$E$7:$AE$16,6+4)+1)*Q33),) -> 6585.66953 | X33: =IF(F33,((VLOOKUP($B33,$E$7:$AE$16,6+8)+1)*R33),) -> 0 | Y33: =IF(G33,((VLOOKUP($B33,$E$7:$AE$16,6+12)+1)*S33),) -> 21 | Z33: =IF(H33,((VLOOKUP($B33,$E$7:$AE$16,6+16)+1)*T33),) -> 0 | AA33: =IF(I33,((VLOOKUP($B33,$E$7:$AE$16,6+20)+1)*U33),) -> 0 | AB33: =IF(D33,((VLOOKUP($B33,$E$7:$AE$16,7)+1)*V33),) -> 262.9871922 | AC33: =IF(E33,((VLOOKUP($B33,$E$7:$AE$16,7+4)+1)*W33),) -> 6585.66953 | AD33: =IF(F33,((VLOOKUP($B33,$E$7:$AE$16,7+8)+1)*X33),) -> 0 | AE33: =IF(G33,((VLOOKUP($B33,$E$7:$AE$16,7+12)+1)*Y33),) -> 21 | AF33: =IF(H33,((VLOOKUP($B33,$E$7:$AE$16,7+16)+1)*Z33),) -> 0 | AG33: =IF(I33,((VLOOKUP($B33,$E$7:$AE$16,7+20)+1)*AA33),) -> 0
A34: 8 | B34: 1 | C34: LDNO HV: Domestic Two Rate | D34: 256.3006221 | E34: 349.8743055 | G34: 80 | J34: =IF(D34,((VLOOKUP($B34,$E$7:$AE$16,4)+1)*D34),) -> 256.3006221 | K34: =IF(E34,((VLOOKUP($B34,$E$7:$AE$16,8)+1)*E34),) -> 349.8743055 | L34: =IF(F34,((VLOOKUP($B34,$E$7:$AE$16,12)+1)*F34),) -> 0 | M34: =IF(G34,((VLOOKUP($B34,$E$7:$AE$16,16)+1)*G34),) -> 80 | N34: =IF(H34,((VLOOKUP($B34,$E$7:$AE$16,20)+1)*H34),) -> 0 | O34: =IF(I34,((VLOOKUP($B34,$E$7:$AE$16,24)+1)*I34),) -> 0 | P34: =IF(D34,((VLOOKUP($B34,$E$7:$AE$16,5)+1)*J34),) -> 256.3006221 | Q34: =IF(E34,((VLOOKUP($B34,$E$7:$AE$16,5+4)+1)*K34),) -> 349.8743055 | R34: =IF(F34,((VLOOKUP($B34,$E$7:$AE$16,5+8)+1)*L34),) -> 0 | S34: =IF(G34,((VLOOKUP($B34,$E$7:$AE$16,5+12)+1)*M34),) -> 80 | T34: =IF(H34,((VLOOKUP($B34,$E$7:$AE$16,5+16)+1)*N34),) -> 0 | U34: =IF(I34,((VLOOKUP($B34,$E$7:$AE$16,5+20)+1)*O34),) -> 0 | V34: =IF(D34,((VLOOKUP($B34,$E$7:$AE$16,6)+1)*P34),) -> 256.3006221 | W34: =IF(E34,((VLOOKUP($B34,$E$7:$AE$16,6+4)+1)*Q34),) -> 349.8743055 | X34: =IF(F34,((VLOOKUP($B34,$E$7:$AE$16,6+8)+1)*R34),) -> 0 | Y34: =IF(G34,((VLOOKUP($B34,$E$7:$AE$16,6+12)+1)*S34),) -> 80 | Z34: =IF(H34,((VLOOKUP($B34,$E$7:$AE$16,6+16)+1)*T34),) -> 0 | AA34: =IF(I34,((VLOOKUP($B34,$E$7:$AE$16,6+20)+1)*U34),) -> 0 | AB34: =IF(D34,((VLOOKUP($B34,$E$7:$AE$16,7)+1)*V34),) -> 256.3006221 | AC34: =IF(E34,((VLOOKUP($B34,$E$7:$AE$16,7+4)+1)*W34),) -> 349.8743055 | AD34: =IF(F34,((VLOOKUP($B34,$E$7:$AE$16,7+8)+1)*X34),) -> 0 | AE34: =IF(G34,((VLOOKUP($B34,$E$7:$AE$16,7+12)+1)*Y34),) -> 80 | AF34: =IF(H34,((VLOOKUP($B34,$E$7:$AE$16,7+16)+1)*Z34),) -> 0 | AG34: =IF(I34,((VLOOKUP($B34,$E$7:$AE$16,7+20)+1)*AA34),) -> 0
A35: 9 | C35: > Domestic Off Peak (related MPAN)
A36: 10 | B36: 1 | C36: Domestic Off Peak (related MPAN) | D36: 3613.144098 | G36: 0 | J36: =IF(D36,((VLOOKUP($B36,$E$7:$AE$16,4)+1)*D36),) -> 3613.144098 | K36: =IF(E36,((VLOOKUP($B36,$E$7:$AE$16,8)+1)*E36),) -> 0 | L36: =IF(F36,((VLOOKUP($B36,$E$7:$AE$16,12)+1)*F36),) -> 0 | M36: =IF(G36,((VLOOKUP($B36,$E$7:$AE$16,16)+1)*G36),) -> 0 | N36: =IF(H36,((VLOOKUP($B36,$E$7:$AE$16,20)+1)*H36),) -> 0 | O36: =IF(I36,((VLOOKUP($B36,$E$7:$AE$16,24)+1)*I36),) -> 0 | P36: =IF(D36,((VLOOKUP($B36,$E$7:$AE$16,5)+1)*J36),) -> 3613.144098 | Q36: =IF(E36,((VLOOKUP($B36,$E$7:$AE$16,5+4)+1)*K36),) -> 0 | R36: =IF(F36,((VLOOKUP($B36,$E$7:$AE$16,5+8)+1)*L36),) -> 0 | S36: =IF(G36,((VLOOKUP($B36,$E$7:$AE$16,5+12)+1)*M36),) -> 0 | T36: =IF(H36,((VLOOKUP($B36,$E$7:$AE$16,5+16)+1)*N36),) -> 0 | U36: =IF(I36,((VLOOKUP($B36,$E$7:$AE$16,5+20)+1)*O36),) -> 0 | V36: =IF(D36,((VLOOKUP($B36,$E$7:$AE$16,6)+1)*P36),) -> 3613.144098 | W36: =IF(E36,((VLOOKUP($B36,$E$7:$AE$16,6+4)+1)*Q36),) -> 0 | X36: =IF(F36,((VLOOKUP($B36,$E$7:$AE$16,6+8)+1)*R36),) -> 0 | Y36: =IF(G36,((VLOOKUP($B36,$E$7:$AE$16,6+12)+1)*S36),) -> 0 | Z36: =IF(H36,((VLOOKUP($B36,$E$7:$AE$16,6+16)+1)*T36),) -> 0 | AA36: =IF(I36,((VLOOKUP($B36,$E$7:$AE$16,6+20)+1)*U36),) -> 0 | AB36: =IF(D36,((VLOOKUP($B36,$E$7:$AE$16,7)+1)*V36),) -> 3613.144098 | AC36: =IF(E36,((VLOOKUP($B36,$E$7:$AE$16,7+4)+1)*W36),) -> 0 | AD36: =IF(F36,((VLOOKUP($B36,$E$7:$AE$16,7+8)+1)*X36),) -> 0 | AE36: =IF(G36,((VLOOKUP($B36,$E$7:$AE$16,7+12)+1)*Y36),) -> 0 | AF36: =IF(H36,((VLOOKUP($B36,$E$7:$AE$16,7+16)+1)*Z36),) -> 0 | AG36: =IF(I36,((VLOOKUP($B36,$E$7:$AE$16,7+20)+1)*AA36),) -> 0
A37: 11 | B37: 1 | C37: LDNO LV: Domestic Off Peak (related MPAN) | D37: 0 | G37: 0 | J37: =IF(D37,((VLOOKUP($B37,$E$7:$AE$16,4)+1)*D37),) -> 0 | K37: =IF(E37,((VLOOKUP($B37,$E$7:$AE$16,8)+1)*E37),) -> 0 | L37: =IF(F37,((VLOOKUP($B37,$E$7:$AE$16,12)+1)*F37),) -> 0 | M37: =IF(G37,((VLOOKUP($B37,$E$7:$AE$16,16)+1)*G37),) -> 0 | N37: =IF(H37,((VLOOKUP($B37,$E$7:$AE$16,20)+1)*H37),) -> 0 | O37: =IF(I37,((VLOOKUP($B37,$E$7:$AE$16,24)+1)*I37),) -> 0 | P37: =IF(D37,((VLOOKUP($B37,$E$7:$AE$16,5)+1)*J37),) -> 0 | Q37: =IF(E37,((VLOOKUP($B37,$E$7:$AE$16,5+4)+1)*K37),) -> 0 | R37: =IF(F37,((VLOOKUP($B37,$E$7:$AE$16,5+8)+1)*L37),) -> 0 | S37: =IF(G37,((VLOOKUP($B37,$E$7:$AE$16,5+12)+1)*M37),) -> 0 | T37: =IF(H37,((VLOOKUP($B37,$E$7:$AE$16,5+16)+1)*N37),) -> 0 | U37: =IF(I37,((VLOOKUP($B37,$E$7:$AE$16,5+20)+1)*O37),) -> 0 | V37: =IF(D37,((VLOOKUP($B37,$E$7:$AE$16,6)+1)*P37),) -> 0 | W37: =IF(E37,((VLOOKUP($B37,$E$7:$AE$16,6+4)+1)*Q37),) -> 0 | X37: =IF(F37,((VLOOKUP($B37,$E$7:$AE$16,6+8)+1)*R37),) -> 0 | Y37: =IF(G37,((VLOOKUP($B37,$E$7:$AE$16,6+12)+1)*S37),) -> 0 | Z37: =IF(H37,((VLOOKUP($B37,$E$7:$AE$16,6+16)+1)*T37),) -> 0 | AA37: =IF(I37,((VLOOKUP($B37,$E$7:$AE$16,6+20)+1)*U37),) -> 0 | AB37: =IF(D37,((VLOOKUP($B37,$E$7:$AE$16,7)+1)*V37),) -> 0 | AC37: =IF(E37,((VLOOKUP($B37,$E$7:$AE$16,7+4)+1)*W37),) -> 0 | AD37: =IF(F37,((VLOOKUP($B37,$E$7:$AE$16,7+8)+1)*X37),) -> 0 | AE37: =IF(G37,((VLOOKUP($B37,$E$7:$AE$16,7+12)+1)*Y37),) -> 0 | AF37: =IF(H37,((VLOOKUP($B37,$E$7:$AE$16,7+16)+1)*Z37),) -> 0 | AG37: =IF(I37,((VLOOKUP($B37,$E$7:$AE$16,7+20)+1)*AA37),) -> 0
A38: 12 | B38: 1 | C38: LDNO HV: Domestic Off Peak (related MPAN) | D38: 0 | G38: 0 | J38: =IF(D38,((VLOOKUP($B38,$E$7:$AE$16,4)+1)*D38),) -> 0 | K38: =IF(E38,((VLOOKUP($B38,$E$7:$AE$16,8)+1)*E38),) -> 0 | L38: =IF(F38,((VLOOKUP($B38,$E$7:$AE$16,12)+1)*F38),) -> 0 | M38: =IF(G38,((VLOOKUP($B38,$E$7:$AE$16,16)+1)*G38),) -> 0 | N38: =IF(H38,((VLOOKUP($B38,$E$7:$AE$16,20)+1)*H38),) -> 0 | O38: =IF(I38,((VLOOKUP($B38,$E$7:$AE$16,24)+1)*I38),) -> 0 | P38: =IF(D38,((VLOOKUP($B38,$E$7:$AE$16,5)+1)*J38),) -> 0 | Q38: =IF(E38,((VLOOKUP($B38,$E$7:$AE$16,5+4)+1)*K38),) -> 0 | R38: =IF(F38,((VLOOKUP($B38,$E$7:$AE$16,5+8)+1)*L38),) -> 0 | S38: =IF(G38,((VLOOKUP($B38,$E$7:$AE$16,5+12)+1)*M38),) -> 0 | T38: =IF(H38,((VLOOKUP($B38,$E$7:$AE$16,5+16)+1)*N38),) -> 0 | U38: =IF(I38,((VLOOKUP($B38,$E$7:$AE$16,5+20)+1)*O38),) -> 0 | V38: =IF(D38,((VLOOKUP($B38,$E$7:$AE$16,6)+1)*P38),) -> 0 | W38: =IF(E38,((VLOOKUP($B38,$E$7:$AE$16,6+4)+1)*Q38),) -> 0 | X38: =IF(F38,((VLOOKUP($B38,$E$7:$AE$16,6+8)+1)*R38),) -> 0 | Y38: =IF(G38,((VLOOKUP($B38,$E$7:$AE$16,6+12)+1)*S38),) -> 0 | Z38: =IF(H38,((VLOOKUP($B38,$E$7:$AE$16,6+16)+1)*T38),) -> 0 | AA38: =IF(I38,((VLOOKUP($B38,$E$7:$AE$16,6+20)+1)*U38),) -> 0 | AB38: =IF(D38,((VLOOKUP($B38,$E$7:$AE$16,7)+1)*V38),) -> 0 | AC38: =IF(E38,((VLOOKUP($B38,$E$7:$AE$16,7+4)+1)*W38),) -> 0 | AD38: =IF(F38,((VLOOKUP($B38,$E$7:$AE$16,7+8)+1)*X38),) -> 0 | AE38: =IF(G38,((VLOOKUP($B38,$E$7:$AE$16,7+12)+1)*Y38),) -> 0 | AF38: =IF(H38,((VLOOKUP($B38,$E$7:$AE$16,7+16)+1)*Z38),) -> 0 | AG38: =IF(I38,((VLOOKUP($B38,$E$7:$AE$16,7+20)+1)*AA38),) -> 0
A39: 13 | C39: > Small Non Domestic Unrestricted
A40: 14 | B40: 1 | C40: Small Non Domestic Unrestricted | D40: 823197.9586 | G40: 63787 | J40: =IF(D40,((VLOOKUP($B40,$E$7:$AE$16,4)+1)*D40),) -> 823197.9586 | K40: =IF(E40,((VLOOKUP($B40,$E$7:$AE$16,8)+1)*E40),) -> 0 | L40: =IF(F40,((VLOOKUP($B40,$E$7:$AE$16,12)+1)*F40),) -> 0 | M40: =IF(G40,((VLOOKUP($B40,$E$7:$AE$16,16)+1)*G40),) -> 63787 | N40: =IF(H40,((VLOOKUP($B40,$E$7:$AE$16,20)+1)*H40),) -> 0 | O40: =IF(I40,((VLOOKUP($B40,$E$7:$AE$16,24)+1)*I40),) -> 0 | P40: =IF(D40,((VLOOKUP($B40,$E$7:$AE$16,5)+1)*J40),) -> 823197.9586 | Q40: =IF(E40,((VLOOKUP($B40,$E$7:$AE$16,5+4)+1)*K40),) -> 0 | R40: =IF(F40,((VLOOKUP($B40,$E$7:$AE$16,5+8)+1)*L40),) -> 0 | S40: =IF(G40,((VLOOKUP($B40,$E$7:$AE$16,5+12)+1)*M40),) -> 63787 | T40: =IF(H40,((VLOOKUP($B40,$E$7:$AE$16,5+16)+1)*N40),) -> 0 | U40: =IF(I40,((VLOOKUP($B40,$E$7:$AE$16,5+20)+1)*O40),) -> 0 | V40: =IF(D40,((VLOOKUP($B40,$E$7:$AE$16,6)+1)*P40),) -> 823197.9586 | W40: =IF(E40,((VLOOKUP($B40,$E$7:$AE$16,6+4)+1)*Q40),) -> 0 | X40: =IF(F40,((VLOOKUP($B40,$E$7:$AE$16,6+8)+1)*R40),) -> 0 | Y40: =IF(G40,((VLOOKUP($B40,$E$7:$AE$16,6+12)+1)*S40),) -> 63787 | Z40: =IF(H40,((VLOOKUP($B40,$E$7:$AE$16,6+16)+1)*T40),) -> 0 | AA40: =IF(I40,((VLOOKUP($B40,$E$7:$AE$16,6+20)+1)*U40),) -> 0 | AB40: =IF(D40,((VLOOKUP($B40,$E$7:$AE$16,7)+1)*V40),) -> 823197.9586 | AC40: =IF(E40,((VLOOKUP($B40,$E$7:$AE$16,7+4)+1)*W40),) -> 0 | AD40: =IF(F40,((VLOOKUP($B40,$E$7:$AE$16,7+8)+1)*X40),) -> 0 | AE40: =IF(G40,((VLOOKUP($B40,$E$7:$AE$16,7+12)+1)*Y40),) -> 63787 | AF40: =IF(H40,((VLOOKUP($B40,$E$7:$AE$16,7+16)+1)*Z40),) -> 0 | AG40: =IF(I40,((VLOOKUP($B40,$E$7:$AE$16,7+20)+1)*AA40),) -> 0
A41: 15 | B41: 1 | C41: LDNO LV: Small Non Domestic Unrestricted | D41: 56.74361464 | G41: 4 | J41: =IF(D41,((VLOOKUP($B41,$E$7:$AE$16,4)+1)*D41),) -> 56.74361464 | K41: =IF(E41,((VLOOKUP($B41,$E$7:$AE$16,8)+1)*E41),) -> 0 | L41: =IF(F41,((VLOOKUP($B41,$E$7:$AE$16,12)+1)*F41),) -> 0 | M41: =IF(G41,((VLOOKUP($B41,$E$7:$AE$16,16)+1)*G41),) -> 4 | N41: =IF(H41,((VLOOKUP($B41,$E$7:$AE$16,20)+1)*H41),) -> 0 | O41: =IF(I41,((VLOOKUP($B41,$E$7:$AE$16,24)+1)*I41),) -> 0 | P41: =IF(D41,((VLOOKUP($B41,$E$7:$AE$16,5)+1)*J41),) -> 56.74361464 | Q41: =IF(E41,((VLOOKUP($B41,$E$7:$AE$16,5+4)+1)*K41),) -> 0 | R41: =IF(F41,((VLOOKUP($B41,$E$7:$AE$16,5+8)+1)*L41),) -> 0 | S41: =IF(G41,((VLOOKUP($B41,$E$7:$AE$16,5+12)+1)*M41),) -> 4 | T41: =IF(H41,((VLOOKUP($B41,$E$7:$AE$16,5+16)+1)*N41),) -> 0 | U41: =IF(I41,((VLOOKUP($B41,$E$7:$AE$16,5+20)+1)*O41),) -> 0 | V41: =IF(D41,((VLOOKUP($B41,$E$7:$AE$16,6)+1)*P41),) -> 56.74361464 | W41: =IF(E41,((VLOOKUP($B41,$E$7:$AE$16,6+4)+1)*Q41),) -> 0 | X41: =IF(F41,((VLOOKUP($B41,$E$7:$AE$16,6+8)+1)*R41),) -> 0 | Y41: =IF(G41,((VLOOKUP($B41,$E$7:$AE$16,6+12)+1)*S41),) -> 4 | Z41: =IF(H41,((VLOOKUP($B41,$E$7:$AE$16,6+16)+1)*T41),) -> 0 | AA41: =IF(I41,((VLOOKUP($B41,$E$7:$AE$16,6+20)+1)*U41),) -> 0 | AB41: =IF(D41,((VLOOKUP($B41,$E$7:$AE$16,7)+1)*V41),) -> 56.74361464 | AC41: =IF(E41,((VLOOKUP($B41,$E$7:$AE$16,7+4)+1)*W41),) -> 0 | AD41: =IF(F41,((VLOOKUP($B41,$E$7:$AE$16,7+8)+1)*X41),) -> 0 | AE41: =IF(G41,((VLOOKUP($B41,$E$7:$AE$16,7+12)+1)*Y41),) -> 4 | AF41: =IF(H41,((VLOOKUP($B41,$E$7:$AE$16,7+16)+1)*Z41),) -> 0 | AG41: =IF(I41,((VLOOKUP($B41,$E$7:$AE$16,7+20)+1)*AA41),) -> 0
A42: 16 | B42: 1 | C42: LDNO HV: Small Non Domestic Unrestricted | D42: 2717.089687 | G42: 110 | J42: =IF(D42,((VLOOKUP($B42,$E$7:$AE$16,4)+1)*D42),) -> 2717.089687 | K42: =IF(E42,((VLOOKUP($B42,$E$7:$AE$16,8)+1)*E42),) -> 0 | L42: =IF(F42,((VLOOKUP($B42,$E$7:$AE$16,12)+1)*F42),) -> 0 | M42: =IF(G42,((VLOOKUP($B42,$E$7:$AE$16,16)+1)*G42),) -> 110 | N42: =IF(H42,((VLOOKUP($B42,$E$7:$AE$16,20)+1)*H42),) -> 0 | O42: =IF(I42,((VLOOKUP($B42,$E$7:$AE$16,24)+1)*I42),) -> 0 | P42: =IF(D42,((VLOOKUP($B42,$E$7:$AE$16,5)+1)*J42),) -> 2717.089687 | Q42: =IF(E42,((VLOOKUP($B42,$E$7:$AE$16,5+4)+1)*K42),) -> 0 | R42: =IF(F42,((VLOOKUP($B42,$E$7:$AE$16,5+8)+1)*L42),) -> 0 | S42: =IF(G42,((VLOOKUP($B42,$E$7:$AE$16,5+12)+1)*M42),) -> 110 | T42: =IF(H42,((VLOOKUP($B42,$E$7:$AE$16,5+16)+1)*N42),) -> 0 | U42: =IF(I42,((VLOOKUP($B42,$E$7:$AE$16,5+20)+1)*O42),) -> 0 | V42: =IF(D42,((VLOOKUP($B42,$E$7:$AE$16,6)+1)*P42),) -> 2717.089687 | W42: =IF(E42,((VLOOKUP($B42,$E$7:$AE$16,6+4)+1)*Q42),) -> 0 | X42: =IF(F42,((VLOOKUP($B42,$E$7:$AE$16,6+8)+1)*R42),) -> 0 | Y42: =IF(G42,((VLOOKUP($B42,$E$7:$AE$16,6+12)+1)*S42),) -> 110 | Z42: =IF(H42,((VLOOKUP($B42,$E$7:$AE$16,6+16)+1)*T42),) -> 0 | AA42: =IF(I42,((VLOOKUP($B42,$E$7:$AE$16,6+20)+1)*U42),) -> 0 | AB42: =IF(D42,((VLOOKUP($B42,$E$7:$AE$16,7)+1)*V42),) -> 2717.089687 | AC42: =IF(E42,((VLOOKUP($B42,$E$7:$AE$16,7+4)+1)*W42),) -> 0 | AD42: =IF(F42,((VLOOKUP($B42,$E$7:$AE$16,7+8)+1)*X42),) -> 0 | AE42: =IF(G42,((VLOOKUP($B42,$E$7:$AE$16,7+12)+1)*Y42),) -> 110 | AF42: =IF(H42,((VLOOKUP($B42,$E$7:$AE$16,7+16)+1)*Z42),) -> 0 | AG42: =IF(I42,((VLOOKUP($B42,$E$7:$AE$16,7+20)+1)*AA42),) -> 0
A43: 17 | C43: > Small Non Domestic Two Rate
A44: 18 | B44: 1 | C44: Small Non Domestic Two Rate | D44: 206801.4093 | E44: 92825.53756 | G44: 13441 | J44: =IF(D44,((VLOOKUP($B44,$E$7:$AE$16,4)+1)*D44),) -> 206801.4093 | K44: =IF(E44,((VLOOKUP($B44,$E$7:$AE$16,8)+1)*E44),) -> 92825.53756 | L44: =IF(F44,((VLOOKUP($B44,$E$7:$AE$16,12)+1)*F44),) -> 0 | M44: =IF(G44,((VLOOKUP($B44,$E$7:$AE$16,16)+1)*G44),) -> 13441 | N44: =IF(H44,((VLOOKUP($B44,$E$7:$AE$16,20)+1)*H44),) -> 0 | O44: =IF(I44,((VLOOKUP($B44,$E$7:$AE$16,24)+1)*I44),) -> 0 | P44: =IF(D44,((VLOOKUP($B44,$E$7:$AE$16,5)+1)*J44),) -> 206801.4093 | Q44: =IF(E44,((VLOOKUP($B44,$E$7:$AE$16,5+4)+1)*K44),) -> 92825.53756 | R44: =IF(F44,((VLOOKUP($B44,$E$7:$AE$16,5+8)+1)*L44),) -> 0 | S44: =IF(G44,((VLOOKUP($B44,$E$7:$AE$16,5+12)+1)*M44),) -> 13441 | T44: =IF(H44,((VLOOKUP($B44,$E$7:$AE$16,5+16)+1)*N44),) -> 0 | U44: =IF(I44,((VLOOKUP($B44,$E$7:$AE$16,5+20)+1)*O44),) -> 0 | V44: =IF(D44,((VLOOKUP($B44,$E$7:$AE$16,6)+1)*P44),) -> 206801.4093 | W44: =IF(E44,((VLOOKUP($B44,$E$7:$AE$16,6+4)+1)*Q44),) -> 92825.53756 | X44: =IF(F44,((VLOOKUP($B44,$E$7:$AE$16,6+8)+1)*R44),) -> 0 | Y44: =IF(G44,((VLOOKUP($B44,$E$7:$AE$16,6+12)+1)*S44),) -> 13441 | Z44: =IF(H44,((VLOOKUP($B44,$E$7:$AE$16,6+16)+1)*T44),) -> 0 | AA44: =IF(I44,((VLOOKUP($B44,$E$7:$AE$16,6+20)+1)*U44),) -> 0 | AB44: =IF(D44,((VLOOKUP($B44,$E$7:$AE$16,7)+1)*V44),) -> 206801.4093 | AC44: =IF(E44,((VLOOKUP($B44,$E$7:$AE$16,7+4)+1)*W44),) -> 92825.53756 | AD44: =IF(F44,((VLOOKUP($B44,$E$7:$AE$16,7+8)+1)*X44),) -> 0 | AE44: =IF(G44,((VLOOKUP($B44,$E$7:$AE$16,7+12)+1)*Y44),) -> 13441 | AF44: =IF(H44,((VLOOKUP($B44,$E$7:$AE$16,7+16)+1)*Z44),) -> 0 | AG44: =IF(I44,((VLOOKUP($B44,$E$7:$AE$16,7+20)+1)*AA44),) -> 0
A45: 19 | B45: 1 | C45: LDNO LV: Small Non Domestic Two Rate | D45: 0 | E45: 0 | G45: 0 | J45: 0 | K45: 0 | L45: 0 | M45: 0 | N45: 0 | O45: 0 | P45: 0 | Q45: 0 | R45: 0 | S45: 0 | T45: 0 | U45: 0 | V45: 0 | W45: 0 | X45: 0 | Y45: 0 | Z45: 0 | AA45: 0 | AB45: 0 | AC45: 0 | AD45: 0 | AE45: 0 | AF45: 0 | AG45: 0
A46: 20 | B46: 1 | C46: LDNO HV: Small Non Domestic Two Rate | D46: 845.4213076 | E46: 110.3044954 | G46: 9 | J46: 845.4213076 | K46: 110.3044954 | L46: 0 | M46: 9 | N46: 0 | O46: 0 | P46: 845.4213076 | Q46: 110.3044954 | R46: 0 | S46: 9 | T46: 0 | U46: 0 | V46: 845.4213076 | W46: 110.3044954 | X46: 0 | Y46: 9 | Z46: 0 | AA46: 0 | AB46: 845.4213076 | AC46: 110.3044954 | AD46: 0 | AE46: 9 | AF46: 0 | AG46: 0
A47: 21 | C47: > Small Non Domestic Off Peak (related MPAN) | J47: 0 | K47: 0 | L47: 0 | M47: 0 | N47: 0 | O47: 0 | P47: 0 | Q47: 0 | R47: 0 | S47: 0 | T47: 0 | U47: 0 | V47: 0 | W47: 0 | X47: 0 | Y47: 0 | Z47: 0 | AA47: 0 | AB47: 0 | AC47: 0 | AD47: 0 | AE47: 0 | AF47: 0 | AG47: 0
A48: 22 | B48: 1 | C48: Small Non Domestic Off Peak (related MPAN) | D48: 2262.209359 | G48: 0 | J48: 2262.209359 | K48: 0 | L48: 0 | M48: 0 | N48: 0 | O48: 0 | P48: 2262.209359 | Q48: 0 | R48: 0 | S48: 0 | T48: 0 | U48: 0 | V48: 2262.209359 | W48: 0 | X48: 0 | Y48: 0 | Z48: 0 | AA48: 0 | AB48: 2262.209359 | AC48: 0 | AD48: 0 | AE48: 0 | AF48: 0 | AG48: 0
A49: 23 | B49: 1 | C49: LDNO LV: Small Non Domestic Off Peak (related MPAN) | D49: 0 | G49: 0 | J49: 0 | K49: 0 | L49: 0 | M49: 0 | N49: 0 | O49: 0 | P49: 0 | Q49: 0 | R49: 0 | S49: 0 | T49: 0 | U49: 0 | V49: 0 | W49: 0 | X49: 0 | Y49: 0 | Z49: 0 | AA49: 0 | AB49: 0 | AC49: 0 | AD49: 0 | AE49: 0 | AF49: 0 | AG49: 0
A50: 24 | B50: 1 | C50: LDNO HV: Small Non Domestic Off Peak (related MPAN) | D50: 0 | G50: 0 | J50: 0 | K50: 0 | L50: 0 | M50: 0 | N50: 0 | O50: 0 | P50: 0 | Q50: 0 | R50: 0 | S50: 0 | T50: 0 | U50: 0 | V50: 0 | W50: 0 | X50: 0 | Y50: 0 | Z50: 0 | AA50: 0 | AB50: 0 | AC50: 0 | AD50: 0 | AE50: 0 | AF50: 0 | AG50: 0
A51: 25 | C51: > LV Medium Non-Domestic | J51: 0 | K51: 0 | L51: 0 | M51: 0 | N51: 0 | O51: 0 | P51: 0 | Q51: 0 | R51: 0 | S51: 0 | T51: 0 | U51: 0 | V51: 0 | W51: 0 | X51: 0 | Y51: 0 | Z51: 0 | AA51: 0 | AB51: 0 | AC51: 0 | AD51: 0 | AE51: 0 | AF51: 0 | AG51: 0
A52: 26 | B52: 1 | C52: LV Medium Non-Domestic | D52: 379857.6711 | E52: 99896.63982 | G52: 4728 | J52: 379857.6711 | K52: 99896.63982 | L52: 0 | M52: 4728 | N52: 0 | O52: 0 | P52: 379857.6711 | Q52: 99896.63982 | R52: 0 | S52: 4728 | T52: 0 | U52: 0 | V52: 379857.6711 | W52: 99896.63982 | X52: 0 | Y52: 4728 | Z52: 0 | AA52: 0 | AB52: 379857.6711 | AC52: 99896.63982 | AD52: 0 | AE52: 4728 | AF52: 0 | AG52: 0
A53: 27 | B53: 1 | C53: LDNO LV: LV Medium Non-Domestic | D53: 0 | E53: 0 | G53: 0 | J53: 0 | K53: 0 | L53: 0 | M53: 0 | N53: 0 | O53: 0 | P53: 0 | Q53: 0 | R53: 0 | S53: 0 | T53: 0 | U53: 0 | V53: 0 | W53: 0 | X53: 0 | Y53: 0 | Z53: 0 | AA53: 0 | AB53: 0 | AC53: 0 | AD53: 0 | AE53: 0 | AF53: 0 | AG53: 0
A54: 28 | B54: 1 | C54: LDNO HV: LV Medium Non-Domestic | D54: 1094.445243 | E54: 144.8538285 | G54: 10 | J54: 1094.445243 | K54: 144.8538285 | L54: 0 | M54: 10 | N54: 0 | O54: 0 | P54: 1094.445243 | Q54: 144.8538285 | R54: 0 | S54: 10 | T54: 0 | U54: 0 | V54: 1094.445243 | W54: 144.8538285 | X54: 0 | Y54: 10 | Z54: 0 | AA54: 0 | AB54: 1094.445243 | AC54: 144.8538285 | AD54: 0 | AE54: 10 | AF54: 0 | AG54: 0
A55: 29 | C55: > LV Sub Medium Non-Domestic | J55: 0 | K55: 0 | L55: 0 | M55: 0 | N55: 0 | O55: 0 | P55: 0 | Q55: 0 | R55: 0 | S55: 0 | T55: 0 | U55: 0 | V55: 0 | W55: 0 | X55: 0 | Y55: 0 | Z55: 0 | AA55: 0 | AB55: 0 | AC55: 0 | AD55: 0 | AE55: 0 | AF55: 0 | AG55: 0
A56: 30 | B56: 1 | C56: LV Sub Medium Non-Domestic | D56: 517.040455 | E56: 136.8978314 | G56: 4 | J56: 517.040455 | K56: 136.8978314 | L56: 0 | M56: 4 | N56: 0 | O56: 0 | P56: 517.040455 | Q56: 136.8978314 | R56: 0 | S56: 4 | T56: 0 | U56: 0 | V56: 517.040455 | W56: 136.8978314 | X56: 0 | Y56: 4 | Z56: 0 | AA56: 0 | AB56: 517.040455 | AC56: 136.8978314 | AD56: 0 | AE56: 4 | AF56: 0 | AG56: 0
A57: 31 | C57: > HV Medium Non-Domestic | J57: 0 | K57: 0 | L57: 0 | M57: 0 | N57: 0 | O57: 0 | P57: 0 | Q57: 0 | R57: 0 | S57: 0 | T57: 0 | U57: 0 | V57: 0 | W57: 0 | X57: 0 | Y57: 0 | Z57: 0 | AA57: 0 | AB57: 0 | AC57: 0 | AD57: 0 | AE57: 0 | AF57: 0 | AG57: 0
A58: 32 | B58: 1 | C58: HV Medium Non-Domestic | D58: 753.6075426 | E58: 161.5955367 | G58: 13 | J58: 753.6075426 | K58: 161.5955367 | L58: 0 | M58: 13 | N58: 0 | O58: 0 | P58: 753.6075426 | Q58: 161.5955367 | R58: 0 | S58: 13 | T58: 0 | U58: 0 | V58: 753.6075426 | W58: 161.5955367 | X58: 0 | Y58: 13 | Z58: 0 | AA58: 0 | AB58: 753.6075426 | AC58: 161.5955367 | AD58: 0 | AE58: 13 | AF58: 0 | AG58: 0
A59: 33 | C59: > LV Network Domestic | J59: 0 | K59: 0 | L59: 0 | M59: 0 | N59: 0 | O59: 0 | P59: 0 | Q59: 0 | R59: 0 | S59: 0 | T59: 0 | U59: 0 | V59: 0 | W59: 0 | X59: 0 | Y59: 0 | Z59: 0 | AA59: 0 | AB59: 0 | AC59: 0 | AD59: 0 | AE59: 0 | AF59: 0 | AG59: 0
A60: 34 | B60: 1 | C60: LV Network Domestic | D60: 0 | E60: 0 | F60: 0 | G60: 0 | J60: 0 | K60: 0 | L60: 0 | M60: 0 | N60: 0 | O60: 0 | P60: 0 | Q60: 0 | R60: 0 | S60: 0 | T60: 0 | U60: 0 | V60: 0 | W60: 0 | X60: 0 | Y60: 0 | Z60: 0 | AA60: 0 | AB60: 0 | AC60: 0 | AD60: 0 | AE60: 0 | AF60: 0 | AG60: 0
A61: 35 | B61: 1 | C61: LDNO LV: LV Network Domestic | D61: 0 | E61: 0 | F61: 0 | G61: 0 | J61: 0 | K61: 0 | L61: 0 | M61: 0 | N61: 0 | O61: 0 | P61: 0 | Q61: 0 | R61: 0 | S61: 0 | T61: 0 | U61: 0 | V61: 0 | W61: 0 | X61: 0 | Y61: 0 | Z61: 0 | AA61: 0 | AB61: 0 | AC61: 0 | AD61: 0 | AE61: 0 | AF61: 0 | AG61: 0
A62: 36 | B62: 1 | C62: LDNO HV: LV Network Domestic | D62: 0 | E62: 0 | F62: 0 | G62: 0 | J62: 0 | K62: 0 | L62: 0 | M62: 0 | N62: 0 | O62: 0 | P62: 0 | Q62: 0 | R62: 0 | S62: 0 | T62: 0 | U62: 0 | V62: 0 | W62: 0 | X62: 0 | Y62: 0 | Z62: 0 | AA62: 0 | AB62: 0 | AC62: 0 | AD62: 0 | AE62: 0 | AF62: 0 | AG62: 0
A63: 37 | C63: > LV Network Non-Domestic Non-CT | J63: 0 | K63: 0 | L63: 0 | M63: 0 | N63: 0 | O63: 0 | P63: 0 | Q63: 0 | R63: 0 | S63: 0 | T63: 0 | U63: 0 | V63: 0 | W63: 0 | X63: 0 | Y63: 0 | Z63: 0 | AA63: 0 | AB63: 0 | AC63: 0 | AD63: 0 | AE63: 0 | AF63: 0 | AG63: 0
A64: 38 | B64: 1 | C64: LV Network Non-Domestic Non-CT | D64: 0 | E64: 0 | F64: 0 | G64: 0 | J64: 0 | K64: 0 | L64: 0 | M64: 0 | N64: 0 | O64: 0 | P64: 0 | Q64: 0 | R64: 0 | S64: 0 | T64: 0 | U64: 0 | V64: 0 | W64: 0 | X64: 0 | Y64: 0 | Z64: 0 | AA64: 0 | AB64: 0 | AC64: 0 | AD64: 0 | AE64: 0 | AF64: 0 | AG64: 0
A65: 39 | B65: 1 | C65: LDNO LV: LV Network Non-Domestic Non-CT | D65: 0 | E65: 0 | F65: 0 | G65: 0 | J65: 0 | K65: 0 | L65: 0 | M65: 0 | N65: 0 | O65: 0 | P65: 0 | Q65: 0 | R65: 0 | S65: 0 | T65: 0 | U65: 0 | V65: 0 | W65: 0 | X65: 0 | Y65: 0 | Z65: 0 | AA65: 0 | AB65: 0 | AC65: 0 | AD65: 0 | AE65: 0 | AF65: 0 | AG65: 0
A66: 40 | B66: 1 | C66: LDNO HV: LV Network Non-Domestic Non-CT | D66: 0 | E66: 0 | F66: 0 | G66: 0 | J66: 0 | K66: 0 | L66: 0 | M66: 0 | N66: 0 | O66: 0 | P66: 0 | Q66: 0 | R66: 0 | S66: 0 | T66: 0 | U66: 0 | V66: 0 | W66: 0 | X66: 0 | Y66: 0 | Z66: 0 | AA66: 0 | AB66: 0 | AC66: 0 | AD66: 0 | AE66: 0 | AF66: 0 | AG66: 0
A67: 41 | C67: > LV HH Metered | J67: 0 | K67: 0 | L67: 0 | M67: 0 | N67: 0 | O67: 0 | P67: 0 | Q67: 0 | R67: 0 | S67: 0 | T67: 0 | U67: 0 | V67: 0 | W67: 0 | X67: 0 | Y67: 0 | Z67: 0 | AA67: 0 | AB67: 0 | AC67: 0 | AD67: 0 | AE67: 0 | AF67: 0 | AG67: 0
A68: 42 | B68: 2 | C68: LV HH Metered | D68: 105280.6077 | E68: 666906.9124 | F68: 493272.9047 | G68: 3111 | H68: 578357 | I68: 121162 | J68: 105280.6077 | K68: 666906.9124 | L68: 493272.9047 | M68: 3111 | N68: 578357 | O68: 121162 | P68: 105280.6077 | Q68: 666906.9124 | R68: 493272.9047 | S68: 3111 | T68: 578357 | U68: 121162 | V68: 105280.6077 | W68: 666906.9124 | X68: 493272.9047 | Y68: 3111 | Z68: 578357 | AA68: 121162 | AB68: 105280.6077 | AC68: 666906.9124 | AD68: 493272.9047 | AE68: 3111 | AF68: 578357 | AG68: 121162
A69: 43 | B69: 2 | C69: LDNO LV: LV HH Metered | D69: 0 | E69: 0 | F69: 0 | G69: 0 | H69: 0 | I69: 0 | J69: 0 | K69: 0 | L69: 0 | M69: 0 | N69: 0 | O69: 0 | P69: 0 | Q69: 0 | R69: 0 | S69: 0 | T69: 0 | U69: 0 | V69: 0 | W69: 0 | X69: 0 | Y69: 0 | Z69: 0 | AA69: 0 | AB69: 0 | AC69: 0 | AD69: 0 | AE69: 0 | AF69: 0 | AG69: 0
A70: 44 | B70: 2 | C70: LDNO HV: LV HH Metered | D70: 1624.497247 | E70: 8871.815201 | F70: 6399.429536 | G70: 20 | H70: 6985 | I70: 558 | J70: 1624.497247 | K70: 8871.815201 | L70: 6399.429536 | M70: 20 | N70: 6985 | O70: 558 | P70: 1624.497247 | Q70: 8871.815201 | R70: 6399.429536 | S70: 20 | T70: 6985 | U70: 558 | V70: 1624.497247 | W70: 8871.815201 | X70: 6399.429536 | Y70: 20 | Z70: 6985 | AA70: 558 | AB70: 1624.497247 | AC70: 8871.815201 | AD70: 6399.429536 | AE70: 20 | AF70: 6985 | AG70: 558
A71: 45 | C71: > LV Sub HH Metered | J71: 0 | K71: 0 | L71: 0 | M71: 0 | N71: 0 | O71: 0 | P71: 0 | Q71: 0 | R71: 0 | S71: 0 | T71: 0 | U71: 0 | V71: 0 | W71: 0 | X71: 0 | Y71: 0 | Z71: 0 | AA71: 0 | AB71: 0 | AC71: 0 | AD71: 0 | AE71: 0 | AF71: 0 | AG71: 0
A72: 46 | B72: 2 | C72: LV Sub HH Metered | D72: 1334.786654 | E72: 7582.74753 | F72: 5677.712435 | G72: 18 | H72: 6238 | I72: 1758 | J72: 1334.786654 | K72: 7582.74753 | L72: 5677.712435 | M72: 18 | N72: 6238 | O72: 1758 | P72: 1334.786654 | Q72: 7582.74753 | R72: 5677.712435 | S72: 18 | T72: 6238 | U72: 1758 | V72: 1334.786654 | W72: 7582.74753 | X72: 5677.712435 | Y72: 18 | Z72: 6238 | AA72: 1758 | AB72: 1334.786654 | AC72: 7582.74753 | AD72: 5677.712435 | AE72: 18 | AF72: 6238 | AG72: 1758
A73: 47 | B73: 2 | C73: LDNO HV: LV Sub HH Metered | D73: 439.0533099 | E73: 2397.787892 | F73: 1729.57555 | G73: 5 | H73: 1067 | I73: 113 | J73: 439.0533099 | K73: 2397.787892 | L73: 1729.57555 | M73: 5 | N73: 1067 | O73: 113 | P73: 439.0533099 | Q73: 2397.787892 | R73: 1729.57555 | S73: 5 | T73: 1067 | U73: 113 | V73: 439.0533099 | W73: 2397.787892 | X73: 1729.57555 | Y73: 5 | Z73: 1067 | AA73: 113 | AB73: 439.0533099 | AC73: 2397.787892 | AD73: 1729.57555 | AE73: 5 | AF73: 1067 | AG73: 113
A74: 48 | C74: > HV HH Metered | J74: =IF(D74,((VLOOKUP($B74,$E$7:$AE$16,4)+1)*D74),) -> 0 | K74: =IF(E74,((VLOOKUP($B74,$E$7:$AE$16,8)+1)*E74),) -> 0 | L74: =IF(F74,((VLOOKUP($B74,$E$7:$AE$16,12)+1)*F74),) -> 0 | M74: =IF(G74,((VLOOKUP($B74,$E$7:$AE$16,16)+1)*G74),) -> 0 | N74: =IF(H74,((VLOOKUP($B74,$E$7:$AE$16,20)+1)*H74),) -> 0 | O74: =IF(I74,((VLOOKUP($B74,$E$7:$AE$16,24)+1)*I74),) -> 0 | P74: =IF(D74,((VLOOKUP($B74,$E$7:$AE$16,5)+1)*J74),) -> 0 | Q74: =IF(E74,((VLOOKUP($B74,$E$7:$AE$16,5+4)+1)*K74),) -> 0 | R74: =IF(F74,((VLOOKUP($B74,$E$7:$AE$16,5+8)+1)*L74),) -> 0 | S74: =IF(G74,((VLOOKUP($B74,$E$7:$AE$16,5+12)+1)*M74),) -> 0 | T74: =IF(H74,((VLOOKUP($B74,$E$7:$AE$16,5+16)+1)*N74),) -> 0 | U74: =IF(I74,((VLOOKUP($B74,$E$7:$AE$16,5+20)+1)*O74),) -> 0 | V74: =IF(D74,((VLOOKUP($B74,$E$7:$AE$16,6)+1)*P74),) -> 0 | W74: =IF(E74,((VLOOKUP($B74,$E$7:$AE$16,6+4)+1)*Q74),) -> 0 | X74: =IF(F74,((VLOOKUP($B74,$E$7:$AE$16,6+8)+1)*R74),) -> 0 | Y74: =IF(G74,((VLOOKUP($B74,$E$7:$AE$16,6+12)+1)*S74),) -> 0 | Z74: =IF(H74,((VLOOKUP($B74,$E$7:$AE$16,6+16)+1)*T74),) -> 0 | AA74: =IF(I74,((VLOOKUP($B74,$E$7:$AE$16,6+20)+1)*U74),) -> 0 | AB74: =IF(D74,((VLOOKUP($B74,$E$7:$AE$16,7)+1)*V74),) -> 0 | AC74: =IF(E74,((VLOOKUP($B74,$E$7:$AE$16,7+4)+1)*W74),) -> 0 | AD74: =IF(F74,((VLOOKUP($B74,$E$7:$AE$16,7+8)+1)*X74),) -> 0 | AE74: =IF(G74,((VLOOKUP($B74,$E$7:$AE$16,7+12)+1)*Y74),) -> 0 | AF74: =IF(H74,((VLOOKUP($B74,$E$7:$AE$16,7+16)+1)*Z74),) -> 0 | AG74: =IF(I74,((VLOOKUP($B74,$E$7:$AE$16,7+20)+1)*AA74),) -> 0
A75: 49 | B75: 2 | C75: HV HH Metered | D75: 168212.6081 | E75: 1015521.463 | F75: 952719.5658 | G75: 595 | H75: 696791 | I75: 160841 | J75: 168212.6081 | K75: 1015521.463 | L75: 952719.5658 | M75: 595 | N75: 696791 | O75: 160841 | P75: 168212.6081 | Q75: 1015521.463 | R75: 952719.5658 | S75: 595 | T75: 696791 | U75: 160841 | V75: 168212.6081 | W75: 1015521.463 | X75: 952719.5658 | Y75: 595 | Z75: 696791 | AA75: 160841 | AB75: 168212.6081 | AC75: 1015521.463 | AD75: 952719.5658 | AE75: 595 | AF75: 696791 | AG75: 160841
A76: 50 | B76: 2 | C76: LDNO HV: HV HH Metered | D76: 687.389194 | E76: 3897.128226 | F76: 3071.099793 | G76: 5 | H76: 4903 | I76: 358 | J76: 687.389194 | K76: 3897.128226 | L76: 3071.099793 | M76: 5 | N76: 4903 | O76: 358 | P76: 687.389194 | Q76: 3897.128226 | R76: 3071.099793 | S76: 5 | T76: 4903 | U76: 358 | V76: 687.389194 | W76: 3897.128226 | X76: 3071.099793 | Y76: 5 | Z76: 4903 | AA76: 358 | AB76: 687.389194 | AC76: 3897.128226 | AD76: 3071.099793 | AE76: 5 | AF76: 4903 | AG76: 358
A77: 51 | C77: > NHH UMS category A | J77: 0 | K77: 0 | L77: 0 | M77: 0 | N77: 0 | O77: 0 | P77: 0 | Q77: 0 | R77: 0 | S77: 0 | T77: 0 | U77: 0 | V77: 0 | W77: 0 | X77: 0 | Y77: 0 | Z77: 0 | AA77: 0 | AB77: 0 | AC77: 0 | AD77: 0 | AE77: 0 | AF77: 0 | AG77: 0
A78: 52 | B78: 1 | C78: NHH UMS category A | D78: 7597.295734 | G78: 514 | J78: 7597.295734 | K78: 0 | L78: 0 | M78: 514 | N78: 0 | O78: 0 | P78: 7597.295734 | Q78: 0 | R78: 0 | S78: 514 | T78: 0 | U78: 0 | V78: 7597.295734 | W78: 0 | X78: 0 | Y78: 514 | Z78: 0 | AA78: 0 | AB78: 7597.295734 | AC78: 0 | AD78: 0 | AE78: 514 | AF78: 0 | AG78: 0
A79: 53 | B79: 1 | C79: LDNO LV: NHH UMS category A | D79: 38.5737956 | G79: 0 | J79: 38.5737956 | K79: 0 | L79: 0 | M79: 0 | N79: 0 | O79: 0 | P79: 38.5737956 | Q79: 0 | R79: 0 | S79: 0 | T79: 0 | U79: 0 | V79: 38.5737956 | W79: 0 | X79: 0 | Y79: 0 | Z79: 0 | AA79: 0 | AB79: 38.5737956 | AC79: 0 | AD79: 0 | AE79: 0 | AF79: 0 | AG79: 0
A80: 54 | B80: 1 | C80: LDNO HV: NHH UMS category A | D80: 180.4253354 | G80: 0 | J80: 180.4253354 | K80: 0 | L80: 0 | M80: 0 | N80: 0 | O80: 0 | P80: 180.4253354 | Q80: 0 | R80: 0 | S80: 0 | T80: 0 | U80: 0 | V80: 180.4253354 | W80: 0 | X80: 0 | Y80: 0 | Z80: 0 | AA80: 0 | AB80: 180.4253354 | AC80: 0 | AD80: 0 | AE80: 0 | AF80: 0 | AG80: 0
A81: 55 | C81: > NHH UMS category B | J81: 0 | K81: 0 | L81: 0 | M81: 0 | N81: 0 | O81: 0 | P81: 0 | Q81: 0 | R81: 0 | S81: 0 | T81: 0 | U81: 0 | V81: 0 | W81: 0 | X81: 0 | Y81: 0 | Z81: 0 | AA81: 0 | AB81: 0 | AC81: 0 | AD81: 0 | AE81: 0 | AF81: 0 | AG81: 0
A82: 56 | B82: 1 | C82: NHH UMS category B | D82: 5952.574488 | G82: 749 | J82: 5952.574488 | K82: 0 | L82: 0 | M82: 749 | N82: 0 | O82: 0 | P82: 5952.574488 | Q82: 0 | R82: 0 | S82: 749 | T82: 0 | U82: 0 | V82: 5952.574488 | W82: 0 | X82: 0 | Y82: 749 | Z82: 0 | AA82: 0 | AB82: 5952.574488 | AC82: 0 | AD82: 0 | AE82: 749 | AF82: 0 | AG82: 0
A83: 57 | B83: 1 | C83: LDNO LV: NHH UMS category B | D83: 5.417933864 | G83: 0 | J83: 5.417933864 | K83: 0 | L83: 0 | M83: 0 | N83: 0 | O83: 0 | P83: 5.417933864 | Q83: 0 | R83: 0 | S83: 0 | T83: 0 | U83: 0 | V83: 5.417933864 | W83: 0 | X83: 0 | Y83: 0 | Z83: 0 | AA83: 0 | AB83: 5.417933864 | AC83: 0 | AD83: 0 | AE83: 0 | AF83: 0 | AG83: 0
A84: 58 | B84: 1 | C84: LDNO HV: NHH UMS category B | D84: 258.8270455 | G84: 0 | J84: 258.8270455 | K84: 0 | L84: 0 | M84: 0 | N84: 0 | O84: 0 | P84: 258.8270455 | Q84: 0 | R84: 0 | S84: 0 | T84: 0 | U84: 0 | V84: 258.8270455 | W84: 0 | X84: 0 | Y84: 0 | Z84: 0 | AA84: 0 | AB84: 258.8270455 | AC84: 0 | AD84: 0 | AE84: 0 | AF84: 0 | AG84: 0
A85: 59 | C85: > NHH UMS category C | J85: 0 | K85: 0 | L85: 0 | M85: 0 | N85: 0 | O85: 0 | P85: 0 | Q85: 0 | R85: 0 | S85: 0 | T85: 0 | U85: 0 | V85: 0 | W85: 0 | X85: 0 | Y85: 0 | Z85: 0 | AA85: 0 | AB85: 0 | AC85: 0 | AD85: 0 | AE85: 0 | AF85: 0 | AG85: 0
A86: 60 | B86: 1 | C86: NHH UMS category C | D86: 378.2703802 | G86: 84 | J86: 378.2703802 | K86: 0 | L86: 0 | M86: 84 | N86: 0 | O86: 0 | P86: 378.2703802 | Q86: 0 | R86: 0 | S86: 84 | T86: 0 | U86: 0 | V86: 378.2703802 | W86: 0 | X86: 0 | Y86: 84 | Z86: 0 | AA86: 0 | AB86: 378.2703802 | AC86: 0 | AD86: 0 | AE86: 84 | AF86: 0 | AG86: 0
A87: 61 | B87: 1 | C87: LDNO LV: NHH UMS category C | D87: 0 | G87: 0 | J87: 0 | K87: 0 | L87: 0 | M87: 0 | N87: 0 | O87: 0 | P87: 0 | Q87: 0 | R87: 0 | S87: 0 | T87: 0 | U87: 0 | V87: 0 | W87: 0 | X87: 0 | Y87: 0 | Z87: 0 | AA87: 0 | AB87: 0 | AC87: 0 | AD87: 0 | AE87: 0 | AF87: 0 | AG87: 0
A88: 62 | B88: 1 | C88: LDNO HV: NHH UMS category C | D88: 0 | G88: 0 | J88: 0 | K88: 0 | L88: 0 | M88: 0 | N88: 0 | O88: 0 | P88: 0 | Q88: 0 | R88: 0 | S88: 0 | T88: 0 | U88: 0 | V88: 0 | W88: 0 | X88: 0 | Y88: 0 | Z88: 0 | AA88: 0 | AB88: 0 | AC88: 0 | AD88: 0 | AE88: 0 | AF88: 0 | AG88: 0
A89: 63 | C89: > NHH UMS category D | J89: 0 | K89: 0 | L89: 0 | M89: 0 | N89: 0 | O89: 0 | P89: 0 | Q89: 0 | R89: 0 | S89: 0 | T89: 0 | U89: 0 | V89: 0 | W89: 0 | X89: 0 | Y89: 0 | Z89: 0 | AA89: 0 | AB89: 0 | AC89: 0 | AD89: 0 | AE89: 0 | AF89: 0 | AG89: 0
A90: 64 | B90: 1 | C90: NHH UMS category D | D90: 0 | G90: 1 | J90: 0 | K90: 0 | L90: 0 | M90: 1 | N90: 0 | O90: 0 | P90: 0 | Q90: 0 | R90: 0 | S90: 1 | T90: 0 | U90: 0 | V90: 0 | W90: 0 | X90: 0 | Y90: 1 | Z90: 0 | AA90: 0 | AB90: 0 | AC90: 0 | AD90: 0 | AE90: 1 | AF90: 0 | AG90: 0
A91: 65 | B91: 1 | C91: LDNO LV: NHH UMS category D | D91: 0 | G91: 0 | J91: 0 | K91: 0 | L91: 0 | M91: 0 | N91: 0 | O91: 0 | P91: 0 | Q91: 0 | R91: 0 | S91: 0 | T91: 0 | U91: 0 | V91: 0 | W91: 0 | X91: 0 | Y91: 0 | Z91: 0 | AA91: 0 | AB91: 0 | AC91: 0 | AD91: 0 | AE91: 0 | AF91: 0 | AG91: 0
A92: 66 | B92: 1 | C92: LDNO HV: NHH UMS category D | D92: 0 | G92: 0 | J92: 0 | K92: 0 | L92: 0 | M92: 0 | N92: 0 | O92: 0 | P92: 0 | Q92: 0 | R92: 0 | S92: 0 | T92: 0 | U92: 0 | V92: 0 | W92: 0 | X92: 0 | Y92: 0 | Z92: 0 | AA92: 0 | AB92: 0 | AC92: 0 | AD92: 0 | AE92: 0 | AF92: 0 | AG92: 0
A93: =A92+1 -> 67 | C93: > LV UMS (Pseudo HH Metered) | J93: 0 | K93: 0 | L93: 0 | M93: 0 | N93: 0 | O93: 0 | P93: 0 | Q93: 0 | R93: 0 | S93: 0 | T93: 0 | U93: 0 | V93: 0 | W93: 0 | X93: 0 | Y93: 0 | Z93: 0 | AA93: 0 | AB93: 0 | AC93: 0 | AD93: 0 | AE93: 0 | AF93: 0 | AG93: 0
A94: 68 | B94: 2 | C94: LV UMS (Pseudo HH Metered) | D94: 6228.095998 | E94: 35918.74585 | F94: 102458.5463 | G94: 26 | J94: 6228.095998 | K94: 35918.74585 | L94: 102458.5463 | M94: 26 | N94: 0 | O94: 0 | P94: 6228.095998 | Q94: 35918.74585 | R94: 102458.5463 | S94: 26 | T94: 0 | U94: 0 | V94: 6228.095998 | W94: 35918.74585 | X94: 102458.5463 | Y94: 26 | Z94: 0 | AA94: 0 | AB94: 6228.095998 | AC94: 35918.74585 | AD94: 102458.5463 | AE94: 26 | AF94: 0 | AG94: 0
A95: 69 | B95: 2 | C95: LDNO LV: LV UMS (Pseudo HH Metered) | D95: 0 | E95: 0 | F95: 0 | G95: 0 | J95: 0 | K95: 0 | L95: 0 | M95: 0 | N95: 0 | O95: 0 | P95: 0 | Q95: 0 | R95: 0 | S95: 0 | T95: 0 | U95: 0 | V95: 0 | W95: 0 | X95: 0 | Y95: 0 | Z95: 0 | AA95: 0 | AB95: 0 | AC95: 0 | AD95: 0 | AE95: 0 | AF95: 0 | AG95: 0
A96: 70 | B96: 2 | C96: LDNO HV: LV UMS (Pseudo HH Metered) | D96: 0 | E96: 0 | F96: 0 | G96: 0 | J96: 0 | K96: 0 | L96: 0 | M96: 0 | N96: 0 | O96: 0 | P96: 0 | Q96: 0 | R96: 0 | S96: 0 | T96: 0 | U96: 0 | V96: 0 | W96: 0 | X96: 0 | Y96: 0 | Z96: 0 | AA96: 0 | AB96: 0 | AC96: 0 | AD96: 0 | AE96: 0 | AF96: 0 | AG96: 0
A97: 71 | C97: > LV Generation NHH or Aggregate HH | J97: 0 | K97: 0 | L97: 0 | M97: 0 | N97: 0 | O97: 0 | P97: 0 | Q97: 0 | R97: 0 | S97: 0 | T97: 0 | U97: 0 | V97: 0 | W97: 0 | X97: 0 | Y97: 0 | Z97: 0 | AA97: 0 | AB97: 0 | AC97: 0 | AD97: 0 | AE97: 0 | AF97: 0 | AG97: 0
A98: 72 | B98: 4 | C98: LV Generation NHH or Aggregate HH | D98: 602.2974873 | G98: 130 | J98: 602.2974873 | K98: 0 | L98: 0 | M98: 130 | N98: 0 | O98: 0 | P98: 602.2974873 | Q98: 0 | R98: 0 | S98: 130 | T98: 0 | U98: 0 | V98: 602.2974873 | W98: 0 | X98: 0 | Y98: 130 | Z98: 0 | AA98: 0 | AB98: 602.2974873 | AC98: 0 | AD98: 0 | AE98: 130 | AF98: 0 | AG98: 0
A99: 73 | B99: 4 | C99: LDNO LV: LV Generation NHH or Aggregate HH | D99: 0 | G99: 0 | J99: 0 | K99: 0 | L99: 0 | M99: 0 | N99: 0 | O99: 0 | P99: 0 | Q99: 0 | R99: 0 | S99: 0 | T99: 0 | U99: 0 | V99: 0 | W99: 0 | X99: 0 | Y99: 0 | Z99: 0 | AA99: 0 | AB99: 0 | AC99: 0 | AD99: 0 | AE99: 0 | AF99: 0 | AG99: 0
A100: 74 | B100: 4 | C100: LDNO HV: LV Generation NHH or Aggregate HH | D100: 0 | G100: 0 | J100: 0 | K100: 0 | L100: 0 | M100: 0 | N100: 0 | O100: 0 | P100: 0 | Q100: 0 | R100: 0 | S100: 0 | T100: 0 | U100: 0 | V100: 0 | W100: 0 | X100: 0 | Y100: 0 | Z100: 0 | AA100: 0 | AB100: 0 | AC100: 0 | AD100: 0 | AE100: 0 | AF100: 0 | AG100: 0
A101: 75 | C101: > LV Sub Generation NHH | J101: 0 | K101: 0 | L101: 0 | M101: 0 | N101: 0 | O101: 0 | P101: 0 | Q101: 0 | R101: 0 | S101: 0 | T101: 0 | U101: 0 | V101: 0 | W101: 0 | X101: 0 | Y101: 0 | Z101: 0 | AA101: 0 | AB101: 0 | AC101: 0 | AD101: 0 | AE101: 0 | AF101: 0 | AG101: 0
A102: 76 | B102: 4 | C102: LV Sub Generation NHH | D102: 0 | G102: 0 | J102: 0 | K102: 0 | L102: 0 | M102: 0 | N102: 0 | O102: 0 | P102: 0 | Q102: 0 | R102: 0 | S102: 0 | T102: 0 | U102: 0 | V102: 0 | W102: 0 | X102: 0 | Y102: 0 | Z102: 0 | AA102: 0 | AB102: 0 | AC102: 0 | AD102: 0 | AE102: 0 | AF102: 0 | AG102: 0
A103: 77 | B103: 4 | C103: LDNO HV: LV Sub Generation NHH | D103: 0 | G103: 0 | J103: 0 | K103: 0 | L103: 0 | M103: 0 | N103: 0 | O103: 0 | P103: 0 | Q103: 0 | R103: 0 | S103: 0 | T103: 0 | U103: 0 | V103: 0 | W103: 0 | X103: 0 | Y103: 0 | Z103: 0 | AA103: 0 | AB103: 0 | AC103: 0 | AD103: 0 | AE103: 0 | AF103: 0 | AG103: 0
A104: 78 | C104: > LV Generation Intermittent | J104: 0 | K104: 0 | L104: 0 | M104: 0 | N104: 0 | O104: 0 | P104: 0 | Q104: 0 | R104: 0 | S104: 0 | T104: 0 | U104: 0 | V104: 0 | W104: 0 | X104: 0 | Y104: 0 | Z104: 0 | AA104: 0 | AB104: 0 | AC104: 0 | AD104: 0 | AE104: 0 | AF104: 0 | AG104: 0
A105: 79 | B105: 4 | C105: LV Generation Intermittent | D105: 9529.950474 | G105: 146 | I105: 338 | J105: 9529.950474 | K105: 0 | L105: 0 | M105: 146 | N105: 0 | O105: 338 | P105: 9529.950474 | Q105: 0 | R105: 0 | S105: 146 | T105: 0 | U105: 338 | V105: 9529.950474 | W105: 0 | X105: 0 | Y105: 146 | Z105: 0 | AA105: 338 | AB105: 9529.950474 | AC105: 0 | AD105: 0 | AE105: 146 | AF105: 0 | AG105: 338
A106: 80 | B106: 4 | C106: LDNO LV: LV Generation Intermittent | D106: 0 | G106: 0 | I106: 0 | J106: =IF(D106,((VLOOKUP($B106,$E$7:$AE$16,4)+1)*D106),) -> 0 | K106: =IF(E106,((VLOOKUP($B106,$E$7:$AE$16,8)+1)*E106),) -> 0 | L106: =IF(F106,((VLOOKUP($B106,$E$7:$AE$16,12)+1)*F106),) -> 0 | M106: =IF(G106,((VLOOKUP($B106,$E$7:$AE$16,16)+1)*G106),) -> 0 | N106: =IF(H106,((VLOOKUP($B106,$E$7:$AE$16,20)+1)*H106),) -> 0 | O106: =IF(I106,((VLOOKUP($B106,$E$7:$AE$16,24)+1)*I106),) -> 0 | P106: =IF(D106,((VLOOKUP($B106,$E$7:$AE$16,5)+1)*J106),) -> 0 | Q106: =IF(E106,((VLOOKUP($B106,$E$7:$AE$16,5+4)+1)*K106),) -> 0 | R106: =IF(F106,((VLOOKUP($B106,$E$7:$AE$16,5+8)+1)*L106),) -> 0 | S106: =IF(G106,((VLOOKUP($B106,$E$7:$AE$16,5+12)+1)*M106),) -> 0 | T106: =IF(H106,((VLOOKUP($B106,$E$7:$AE$16,5+16)+1)*N106),) -> 0 | U106: =IF(I106,((VLOOKUP($B106,$E$7:$AE$16,5+20)+1)*O106),) -> 0 | V106: =IF(D106,((VLOOKUP($B106,$E$7:$AE$16,6)+1)*P106),) -> 0 | W106: =IF(E106,((VLOOKUP($B106,$E$7:$AE$16,6+4)+1)*Q106),) -> 0 | X106: =IF(F106,((VLOOKUP($B106,$E$7:$AE$16,6+8)+1)*R106),) -> 0 | Y106: =IF(G106,((VLOOKUP($B106,$E$7:$AE$16,6+12)+1)*S106),) -> 0 | Z106: =IF(H106,((VLOOKUP($B106,$E$7:$AE$16,6+16)+1)*T106),) -> 0 | AA106: =IF(I106,((VLOOKUP($B106,$E$7:$AE$16,6+20)+1)*U106),) -> 0 | AB106: =IF(D106,((VLOOKUP($B106,$E$7:$AE$16,7)+1)*V106),) -> 0 | AC106: =IF(E106,((VLOOKUP($B106,$E$7:$AE$16,7+4)+1)*W106),) -> 0 | AD106: =IF(F106,((VLOOKUP($B106,$E$7:$AE$16,7+8)+1)*X106),) -> 0 | AE106: =IF(G106,((VLOOKUP($B106,$E$7:$AE$16,7+12)+1)*Y106),) -> 0 | AF106: =IF(H106,((VLOOKUP($B106,$E$7:$AE$16,7+16)+1)*Z106),) -> 0 | AG106: =IF(I106,((VLOOKUP($B106,$E$7:$AE$16,7+20)+1)*AA106),) -> 0
A107: 81 | B107: 4 | C107: LDNO HV: LV Generation Intermittent | D107: 0 | G107: 0 | I107: 0 | J107: 0 | K107: 0 | L107: 0 | M107: 0 | N107: 0 | O107: 0 | P107: 0 | Q107: 0 | R107: 0 | S107: 0 | T107: 0 | U107: 0 | V107: 0 | W107: 0 | X107: 0 | Y107: 0 | Z107: 0 | AA107: 0 | AB107: 0 | AC107: 0 | AD107: 0 | AE107: 0 | AF107: 0 | AG107: 0
A108: 82 | C108: > LV Generation Non-Intermittent | J108: 0 | K108: 0 | L108: 0 | M108: 0 | N108: 0 | O108: 0 | P108: 0 | Q108: 0 | R108: 0 | S108: 0 | T108: 0 | U108: 0 | V108: 0 | W108: 0 | X108: 0 | Y108: 0 | Z108: 0 | AA108: 0 | AB108: 0 | AC108: 0 | AD108: 0 | AE108: 0 | AF108: 0 | AG108: 0
A109: 83 | B109: 4 | C109: LV Generation Non-Intermittent | D109: 130.2286029 | E109: 867.149333 | F109: 897.8999599 | G109: 11 | I109: 31 | J109: 130.2286029 | K109: 867.149333 | L109: 897.8999599 | M109: 11 | N109: 0 | O109: 31 | P109: 130.2286029 | Q109: 867.149333 | R109: 897.8999599 | S109: 11 | T109: 0 | U109: 31 | V109: 130.2286029 | W109: 867.149333 | X109: 897.8999599 | Y109: 11 | Z109: 0 | AA109: 31 | AB109: 130.2286029 | AC109: 867.149333 | AD109: 897.8999599 | AE109: 11 | AF109: 0 | AG109: 31
A110: 84 | B110: 4 | C110: LDNO LV: LV Generation Non-Intermittent | D110: 0 | E110: 0 | F110: 0 | G110: 0 | I110: 0 | J110: 0 | K110: 0 | L110: 0 | M110: 0 | N110: 0 | O110: 0 | P110: 0 | Q110: 0 | R110: 0 | S110: 0 | T110: 0 | U110: 0 | V110: 0 | W110: 0 | X110: 0 | Y110: 0 | Z110: 0 | AA110: 0 | AB110: 0 | AC110: 0 | AD110: 0 | AE110: 0 | AF110: 0 | AG110: 0
A111: 85 | B111: 4 | C111: LDNO HV: LV Generation Non-Intermittent | D111: 0 | E111: 0 | F111: 0 | G111: 0 | I111: 0 | J111: 0 | K111: 0 | L111: 0 | M111: 0 | N111: 0 | O111: 0 | P111: 0 | Q111: 0 | R111: 0 | S111: 0 | T111: 0 | U111: 0 | V111: 0 | W111: 0 | X111: 0 | Y111: 0 | Z111: 0 | AA111: 0 | AB111: 0 | AC111: 0 | AD111: 0 | AE111: 0 | AF111: 0 | AG111: 0
A112: 86 | C112: > LV Sub Generation Intermittent | J112: 0 | K112: 0 | L112: 0 | M112: 0 | N112: 0 | O112: 0 | P112: 0 | Q112: 0 | R112: 0 | S112: 0 | T112: 0 | U112: 0 | V112: 0 | W112: 0 | X112: 0 | Y112: 0 | Z112: 0 | AA112: 0 | AB112: 0 | AC112: 0 | AD112: 0 | AE112: 0 | AF112: 0 | AG112: 0
A113: 87 | B113: 4 | C113: LV Sub Generation Intermittent | D113: 37.671 | G113: 1 | I113: 0 | J113: 37.671 | K113: 0 | L113: 0 | M113: 1 | N113: 0 | O113: 0 | P113: 37.671 | Q113: 0 | R113: 0 | S113: 1 | T113: 0 | U113: 0 | V113: 37.671 | W113: 0 | X113: 0 | Y113: 1 | Z113: 0 | AA113: 0 | AB113: 37.671 | AC113: 0 | AD113: 0 | AE113: 1 | AF113: 0 | AG113: 0
A114: 88 | B114: 4 | C114: LDNO HV: LV Sub Generation Intermittent | D114: 0 | G114: 0 | I114: 0 | J114: 0 | K114: 0 | L114: 0 | M114: 0 | N114: 0 | O114: 0 | P114: 0 | Q114: 0 | R114: 0 | S114: 0 | T114: 0 | U114: 0 | V114: 0 | W114: 0 | X114: 0 | Y114: 0 | Z114: 0 | AA114: 0 | AB114: 0 | AC114: 0 | AD114: 0 | AE114: 0 | AF114: 0 | AG114: 0
A115: 89 | C115: > LV Sub Generation Non-Intermittent | J115: 0 | K115: 0 | L115: 0 | M115: 0 | N115: 0 | O115: 0 | P115: 0 | Q115: 0 | R115: 0 | S115: 0 | T115: 0 | U115: 0 | V115: 0 | W115: 0 | X115: 0 | Y115: 0 | Z115: 0 | AA115: 0 | AB115: 0 | AC115: 0 | AD115: 0 | AE115: 0 | AF115: 0 | AG115: 0
A116: 90 | B116: 4 | C116: LV Sub Generation Non-Intermittent | D116: 0 | E116: 0 | F116: 0 | G116: 0 | I116: 0 | J116: =IF(D116,((VLOOKUP($B116,$E$7:$AE$16,4)+1)*D116),) -> 0 | K116: =IF(E116,((VLOOKUP($B116,$E$7:$AE$16,8)+1)*E116),) -> 0 | L116: =IF(F116,((VLOOKUP($B116,$E$7:$AE$16,12)+1)*F116),) -> 0 | M116: =IF(G116,((VLOOKUP($B116,$E$7:$AE$16,16)+1)*G116),) -> 0 | N116: =IF(H116,((VLOOKUP($B116,$E$7:$AE$16,20)+1)*H116),) -> 0 | O116: =IF(I116,((VLOOKUP($B116,$E$7:$AE$16,24)+1)*I116),) -> 0 | P116: =IF(D116,((VLOOKUP($B116,$E$7:$AE$16,5)+1)*J116),) -> 0 | Q116: =IF(E116,((VLOOKUP($B116,$E$7:$AE$16,5+4)+1)*K116),) -> 0 | R116: =IF(F116,((VLOOKUP($B116,$E$7:$AE$16,5+8)+1)*L116),) -> 0 | S116: =IF(G116,((VLOOKUP($B116,$E$7:$AE$16,5+12)+1)*M116),) -> 0 | T116: =IF(H116,((VLOOKUP($B116,$E$7:$AE$16,5+16)+1)*N116),) -> 0 | U116: =IF(I116,((VLOOKUP($B116,$E$7:$AE$16,5+20)+1)*O116),) -> 0 | V116: =IF(D116,((VLOOKUP($B116,$E$7:$AE$16,6)+1)*P116),) -> 0 | W116: =IF(E116,((VLOOKUP($B116,$E$7:$AE$16,6+4)+1)*Q116),) -> 0 | X116: =IF(F116,((VLOOKUP($B116,$E$7:$AE$16,6+8)+1)*R116),) -> 0 | Y116: =IF(G116,((VLOOKUP($B116,$E$7:$AE$16,6+12)+1)*S116),) -> 0 | Z116: =IF(H116,((VLOOKUP($B116,$E$7:$AE$16,6+16)+1)*T116),) -> 0 | AA116: =IF(I116,((VLOOKUP($B116,$E$7:$AE$16,6+20)+1)*U116),) -> 0 | AB116: =IF(D116,((VLOOKUP($B116,$E$7:$AE$16,7)+1)*V116),) -> 0 | AC116: =IF(E116,((VLOOKUP($B116,$E$7:$AE$16,7+4)+1)*W116),) -> 0 | AD116: =IF(F116,((VLOOKUP($B116,$E$7:$AE$16,7+8)+1)*X116),) -> 0 | AE116: =IF(G116,((VLOOKUP($B116,$E$7:$AE$16,7+12)+1)*Y116),) -> 0 | AF116: =IF(H116,((VLOOKUP($B116,$E$7:$AE$16,7+16)+1)*Z116),) -> 0 | AG116: =IF(I116,((VLOOKUP($B116,$E$7:$AE$16,7+20)+1)*AA116),) -> 0
A117: 91 | B117: 4 | C117: LDNO HV: LV Sub Generation Non-Intermittent | D117: 0 | E117: 0 | F117: 0 | G117: 0 | I117: 0 | J117: 0 | K117: 0 | L117: 0 | M117: 0 | N117: 0 | O117: 0 | P117: 0 | Q117: 0 | R117: 0 | S117: 0 | T117: 0 | U117: 0 | V117: 0 | W117: 0 | X117: 0 | Y117: 0 | Z117: 0 | AA117: 0 | AB117: 0 | AC117: 0 | AD117: 0 | AE117: 0 | AF117: 0 | AG117: 0
A118: 92 | C118: > HV Generation Intermittent | J118: 0 | K118: 0 | L118: 0 | M118: 0 | N118: 0 | O118: 0 | P118: 0 | Q118: 0 | R118: 0 | S118: 0 | T118: 0 | U118: 0 | V118: 0 | W118: 0 | X118: 0 | Y118: 0 | Z118: 0 | AA118: 0 | AB118: 0 | AC118: 0 | AD118: 0 | AE118: 0 | AF118: 0 | AG118: 0
A119: 93 | B119: 4 | C119: HV Generation Intermittent | D119: 44577.68929 | G119: 27 | I119: 859 | J119: 44577.68929 | K119: 0 | L119: 0 | M119: 27 | N119: 0 | O119: 859 | P119: 44577.68929 | Q119: 0 | R119: 0 | S119: 27 | T119: 0 | U119: 859 | V119: 44577.68929 | W119: 0 | X119: 0 | Y119: 27 | Z119: 0 | AA119: 859 | AB119: 44577.68929 | AC119: 0 | AD119: 0 | AE119: 27 | AF119: 0 | AG119: 859
A120: 94 | B120: 4 | C120: LDNO HV: HV Generation Intermittent | D120: 0 | G120: 0 | I120: 0 | J120: 0 | K120: 0 | L120: 0 | M120: 0 | N120: 0 | O120: 0 | P120: 0 | Q120: 0 | R120: 0 | S120: 0 | T120: 0 | U120: 0 | V120: 0 | W120: 0 | X120: 0 | Y120: 0 | Z120: 0 | AA120: 0 | AB120: 0 | AC120: 0 | AD120: 0 | AE120: 0 | AF120: 0 | AG120: 0
A121: 95 | C121: > HV Generation Non-Intermittent | J121: 0 | K121: 0 | L121: 0 | M121: 0 | N121: 0 | O121: 0 | P121: 0 | Q121: 0 | R121: 0 | S121: 0 | T121: 0 | U121: 0 | V121: 0 | W121: 0 | X121: 0 | Y121: 0 | Z121: 0 | AA121: 0 | AB121: 0 | AC121: 0 | AD121: 0 | AE121: 0 | AF121: 0 | AG121: 0
A122: 96 | B122: 4 | C122: HV Generation Non-Intermittent | D122: 9070.723565 | E122: 44174.55844 | F122: 48120.15617 | G122: 27 | I122: 742 | J122: =IF(D122,((VLOOKUP($B122,$E$7:$AE$16,4)+1)*D122),) -> 9070.723565 | K122: =IF(E122,((VLOOKUP($B122,$E$7:$AE$16,8)+1)*E122),) -> 44174.55844 | L122: =IF(F122,((VLOOKUP($B122,$E$7:$AE$16,12)+1)*F122),) -> 48120.15617 | M122: =IF(G122,((VLOOKUP($B122,$E$7:$AE$16,16)+1)*G122),) -> 27 | N122: =IF(H122,((VLOOKUP($B122,$E$7:$AE$16,20)+1)*H122),) -> 0 | O122: =IF(I122,((VLOOKUP($B122,$E$7:$AE$16,24)+1)*I122),) -> 742 | P122: =IF(D122,((VLOOKUP($B122,$E$7:$AE$16,5)+1)*J122),) -> 9070.723565 | Q122: =IF(E122,((VLOOKUP($B122,$E$7:$AE$16,5+4)+1)*K122),) -> 44174.55844 | R122: =IF(F122,((VLOOKUP($B122,$E$7:$AE$16,5+8)+1)*L122),) -> 48120.15617 | S122: =IF(G122,((VLOOKUP($B122,$E$7:$AE$16,5+12)+1)*M122),) -> 27 | T122: =IF(H122,((VLOOKUP($B122,$E$7:$AE$16,5+16)+1)*N122),) -> 0 | U122: =IF(I122,((VLOOKUP($B122,$E$7:$AE$16,5+20)+1)*O122),) -> 742 | V122: =IF(D122,((VLOOKUP($B122,$E$7:$AE$16,6)+1)*P122),) -> 9070.723565 | W122: =IF(E122,((VLOOKUP($B122,$E$7:$AE$16,6+4)+1)*Q122),) -> 44174.55844 | X122: =IF(F122,((VLOOKUP($B122,$E$7:$AE$16,6+8)+1)*R122),) -> 48120.15617 | Y122: =IF(G122,((VLOOKUP($B122,$E$7:$AE$16,6+12)+1)*S122),) -> 27 | Z122: =IF(H122,((VLOOKUP($B122,$E$7:$AE$16,6+16)+1)*T122),) -> 0 | AA122: =IF(I122,((VLOOKUP($B122,$E$7:$AE$16,6+20)+1)*U122),) -> 742 | AB122: =IF(D122,((VLOOKUP($B122,$E$7:$AE$16,7)+1)*V122),) -> 9070.723565 | AC122: =IF(E122,((VLOOKUP($B122,$E$7:$AE$16,7+4)+1)*W122),) -> 44174.55844 | AD122: =IF(F122,((VLOOKUP($B122,$E$7:$AE$16,7+8)+1)*X122),) -> 48120.15617 | AE122: =IF(G122,((VLOOKUP($B122,$E$7:$AE$16,7+12)+1)*Y122),) -> 27 | AF122: =IF(H122,((VLOOKUP($B122,$E$7:$AE$16,7+16)+1)*Z122),) -> 0 | AG122: =IF(I122,((VLOOKUP($B122,$E$7:$AE$16,7+20)+1)*AA122),) -> 742
A123: 97 | B123: 4 | C123: LDNO HV: HV Generation Non-Intermittent | D123: 0 | E123: 0 | F123: 0 | G123: 0 | I123: 0 | J123: 0 | K123: 0 | L123: 0 | M123: 0 | N123: 0 | O123: 0 | P123: 0 | Q123: 0 | R123: 0 | S123: 0 | T123: 0 | U123: 0 | V123: 0 | W123: 0 | X123: 0 | Y123: 0 | Z123: 0 | AA123: 0 | AB123: 0 | AC123: 0 | AD123: 0 | AE123: 0 | AF123: 0 | AG123: 0

Sheet CDCM Timebands
B2: CDCM Timebands
C4: 2015/16
C5: WD (incl. bank holidays) | D5: WE | E5: 2016/17 | F5: 2017/18 | G5: 2018/19 | H5: 2019/20
B6: Red | C6: 17:00 - 19:30 | E6: No Change | F6: No Change | G6: No Change | H6: No Change
B8: Amber | C8: 07:30 - 17:00 | D8: 12:00 - 13:00
C9: 19:30 - 22:00 | D9: 16:00 - 21:00
B10: Green | C10: 00.00 - 07.30 | D10: 00:00 - 12:00
C11: 22:00 - 24:00 | D11: 13:00 - 16:00
D12: 21:00 - 24:00
C14: 2015/16
C15: WD (incl. bank holidays) Nov to Feb (excluding 22nd Dec to 4th Jan inclusive) | D15: WD (incl. bank holidays) Mar to Oct (plus 22nd Dec to 4th Jan inclusive) | E15: WE | F15: 2016/17 | G15: 2017/18 | H15: 2018/19 | I15: 2019/20
B16: Black | C16: 17:00 - 19:30 | F16: No Change | G16: No Change | H16: No Change | I16: No Change
B18: Yellow | C18: 07:30 - 17:00 | D18: 07:30 - 22:00 | E18: 12:00 - 13:00
C19: 19:30 - 22:00 | E19: 16:00 - 21:00
B20: Green | C20: 00.00 - 07.30 | D20: 00.00 - 07.30 | E20: 00:00 - 12:00
C21: 22:00 - 24:00 | D21: 22:00 - 24:00 | E21: 13:00 - 16:00
E22: 21:00 - 24:00

Sheet (Y)
A1: Input data (Y)
A4: 1000. Company, charging year, data version
B6: Company | C6: Year | D6: Version
A7: Company, charging year, data version | B7: =VLOOKUP(Vlookup!B7,'CDCM Forecast Data'!$A$14:$I$271,5,FALSE) -> 0 | C7: =VLOOKUP(Vlookup!C7,'CDCM Forecast Data'!$A$14:$I$271,5,FALSE) -> 0 | D7: =VLOOKUP(Vlookup!D7,'CDCM Forecast Data'!$A$14:$I$271,5,FALSE) -> 0
A9: 1010. Financial and general assumptions
A11: Sources: financial assumptions; calendar; network model.
A12: These financial assumptions determine the annuity rate applied to convert the asset values of the network model into an annual charge.
B13: Rate of return | C13: Annualisation period (years) | D13: Annuity proportion for customer-contributed assets | E13: Power factor | F13: Days in the charging period
A14: Financial and general assumptions | B14: =VLOOKUP(Vlookup!B14,'CDCM Forecast Data'!$A$14:$I$271,5,FALSE) -> 0.056 | C14: =VLOOKUP(Vlookup!C14,'CDCM Forecast Data'!$A$14:$I$271,5,FALSE) -> 40 | E14: =VLOOKUP(Vlookup!E14,'CDCM Forecast Data'!$A$14:$I$271,5,FALSE) -> 0.95 | F14: =VLOOKUP(Vlookup!F14,'CDCM Forecast Data'!$A$14:$I$271,5,FALSE) -> 366
A16: 1017. Diversity allowance between top and bottom of network level
A18: Source: operational data analysis and/or network model.
A19: The diversity figure against GSP is the diversity between GSP Group (the whole system) and individual GSPs.
A20: The diversity figure against 132kV is the diversity between GSPs (the top of the 132kV network) and 132kV/EHV bulk supply points (the bottom of the 132kV network).
A21: The diversity figure against EHV is the diversity between 132kV/EHV bulk supply points (the top of the EHV network) and EHV/HV primary substations (the bottom of the EHV network).
A22: The diversity figure against HV is the diversity between EHV/HV primary substations (the top of the HV network) and HV/LV substations (the bottom of the HV network).
B23: Diversity allowance between top and bottom of network level
A24: GSPs | B24: =VLOOKUP(Vlookup!B24,'CDCM Forecast Data'!$A$14:$I$271,5,FALSE) -> 0.06382978723
A25: 132kV | B25: =VLOOKUP(Vlookup!B25,'CDCM Forecast Data'!$A$14:$I$271,5,FALSE) -> 0.053
A26: 132kV/EHV
A27: EHV | B27: =VLOOKUP(Vlookup!B27,'CDCM Forecast Data'!$A$14:$I$271,5,FALSE) -> 0.099
A28: EHV/HV
A29: HV | B29: =VLOOKUP(Vlookup!B29,'CDCM Forecast Data'!$A$14:$I$271,5,FALSE) -> 0.37
A30: HV/LV
A31: LV circuits
A33: 1018. Proportion of relevant load going through 132kV/HV direct transformation
B35: 132kV/HV
A36: EHV/HV | B36: =VLOOKUP(Vlookup!B36,'CDCM Forecast Data'!$A$14:$I$271,5,FALSE) -> 0.3
A38: 1019. Network model GSP peak demand (MW)
B40: Network model GSP peak demand (MW)
A41: Network model GSP peak demand (MW) | B41: =VLOOKUP(Vlookup!B41,'CDCM Forecast Data'!$A$14:$I$271,5,FALSE) -> 500
A43: 1020. Gross asset cost by network level (£)
B45: Gross assets £
A46: 132kV | B46: =VLOOKUP(Vlookup!B46,'CDCM Forecast Data'!$A$14:$I$271,5,FALSE) -> 126742800.8
A47: 132kV/EHV | B47: =VLOOKUP(Vlookup!B47,'CDCM Forecast Data'!$A$14:$I$271,5,FALSE) -> 11727619.48
A48: EHV | B48: =VLOOKUP(Vlookup!B48,'CDCM Forecast Data'!$A$14:$I$271,5,FALSE) -> 40825605.19
A49: EHV/HV | B49: =VLOOKUP(Vlookup!B49,'CDCM Forecast Data'!$A$14:$I$271,5,FALSE) -> 28230963.57
A50: 132kV/HV | B50: =VLOOKUP(Vlookup!B50,'CDCM Forecast Data'!$A$14:$I$271,5,FALSE) -> 9082872.907
A51: HV | B51: =VLOOKUP(Vlookup!B51,'CDCM Forecast Data'!$A$14:$I$271,5,FALSE) -> 159925863.5
A52: HV/LV | B52: =VLOOKUP(Vlookup!B52,'CDCM Forecast Data'!$A$14:$I$271,5,FALSE) -> 56418406.46
A53: LV circuits | B53: =VLOOKUP(Vlookup!B53,'CDCM Forecast Data'!$A$14:$I$271,5,FALSE) -> 120998312.9
A55: 1022. LV service model asset cost (£)
B57: LV service model 1 | C57: LV service model 2 | D57: LV service model 3 | E57: LV service model 4 | F57: LV service model 5 | G57: LV service model 6 | H57: LV service model 7 | I57: LV service model 8
A58: LV service model asset cost (£) | B58: =VLOOKUP(Vlookup!B58,'CDCM Forecast Data'!$A$14:$I$271,5,FALSE) -> 4818.312533 | C58: =VLOOKUP(Vlookup!C58,'CDCM Forecast Data'!$A$14:$I$271,5,FALSE) -> 588.8475667 | D58: =VLOOKUP(Vlookup!D58,'CDCM Forecast Data'!$A$14:$I$271,5,FALSE) -> 688.3550083 | E58: =VLOOKUP(Vlookup!E58,'CDCM Forecast Data'!$A$14:$I$271,5,FALSE) -> 508.3187333 | F58: =VLOOKUP(Vlookup!F58,'CDCM Forecast Data'!$A$14:$I$271,5,FALSE) -> 1179.954953 | G58: =VLOOKUP(Vlookup!G58,'CDCM Forecast Data'!$A$14:$I$271,5,FALSE) -> 892.507875 | H58: =VLOOKUP(Vlookup!H58,'CDCM Forecast Data'!$A$14:$I$271,5,FALSE) -> 0 | I58: =VLOOKUP(Vlookup!I58,'CDCM Forecast Data'!$A$14:$I$271,5,FALSE) -> 468.8148
A60: 1023. HV service model asset cost (£)
B62: HV service model 1 | C62: HV service model 2 | D62: HV service model 3 | E62: HV service model 4 | F62: HV service model 5
A63: HV service model asset cost (£) | B63: =VLOOKUP(Vlookup!B63,'CDCM Forecast Data'!$A$14:$I$271,5,FALSE) -> 8971.25056 | C63: =VLOOKUP(Vlookup!C63,'CDCM Forecast Data'!$A$14:$I$271,5,FALSE) -> 4334.24 | D63: =VLOOKUP(Vlookup!D63,'CDCM Forecast Data'!$A$14:$I$271,5,FALSE) -> 0 | E63: =VLOOKUP(Vlookup!E63,'CDCM Forecast Data'!$A$14:$I$271,5,FALSE) -> 0 | F63: =VLOOKUP(Vlookup!F63,'CDCM Forecast Data'!$A$14:$I$271,5,FALSE) -> 0
A65: 1025. Matrix of applicability of LV service models to tariffs with fixed charges
B66: 2 | C66: =B66+1 -> 3 | D66: 4 | E66: 5 | F66: 6 | G66: 7 | H66: 8 | I66: 9
B67: LV service model 1 | C67: LV service model 2 | D67: LV service model 3 | E67: LV service model 4 | F67: LV service model 5 | G67: LV service model 6 | H67: LV service model 7 | I67: LV service model 8
A68: Domestic Unrestricted | B68: =VLOOKUP($A68,'Mat of App'!$B$7:$AP$37,B$66,FALSE) -> 0.05 | C68: =VLOOKUP($A68,'Mat of App'!$B$7:$AP$37,C$66,FALSE) -> 0 | D68: =VLOOKUP($A68,'Mat of App'!$B$7:$AP$37,D$66,FALSE) -> 0 | E68: =VLOOKUP($A68,'Mat of App'!$B$7:$AP$37,E$66,FALSE) -> 0 | F68: =VLOOKUP($A68,'Mat of App'!$B$7:$AP$37,F$66,FALSE) -> 0 | G68: =VLOOKUP($A68,'Mat of App'!$B$7:$AP$37,G$66,FALSE) -> 0 | H68: =VLOOKUP($A68,'Mat of App'!$B$7:$AP$37,H$66,FALSE) -> 0 | I68: =VLOOKUP($A68,'Mat of App'!$B$7:$AP$37,I$66,FALSE) -> 0
A69: Domestic Two Rate | B69: =VLOOKUP($A69,'Mat of App'!$B$7:$AP$37,B$66,FALSE) -> 0.05 | C69: =VLOOKUP($A69,'Mat of App'!$B$7:$AP$37,C$66,FALSE) -> 0 | D69: =VLOOKUP($A69,'Mat of App'!$B$7:$AP$37,D$66,FALSE) -> 0 | E69: =VLOOKUP($A69,'Mat of App'!$B$7:$AP$37,E$66,FALSE) -> 0 | F69: =VLOOKUP($A69,'Mat of App'!$B$7:$AP$37,F$66,FALSE) -> 0 | G69: =VLOOKUP($A69,'Mat of App'!$B$7:$AP$37,G$66,FALSE) -> 0 | H69: =VLOOKUP($A69,'Mat of App'!$B$7:$AP$37,H$66,FALSE) -> 0 | I69: =VLOOKUP($A69,'Mat of App'!$B$7:$AP$37,I$66,FALSE) -> 0
A70: Small Non Domestic Unrestricted | B70: =VLOOKUP($A70,'Mat of App'!$B$7:$AP$37,B$66,FALSE) -> 0 | C70: =VLOOKUP($A70,'Mat of App'!$B$7:$AP$37,C$66,FALSE) -> 1 | D70: =VLOOKUP($A70,'Mat of App'!$B$7:$AP$37,D$66,FALSE) -> 0 | E70: =VLOOKUP($A70,'Mat of App'!$B$7:$AP$37,E$66,FALSE) -> 0 | F70: =VLOOKUP($A70,'Mat of App'!$B$7:$AP$37,F$66,FALSE) -> 0 | G70: =VLOOKUP($A70,'Mat of App'!$B$7:$AP$37,G$66,FALSE) -> 0 | H70: =VLOOKUP($A70,'Mat of App'!$B$7:$AP$37,H$66,FALSE) -> 0 | I70: =VLOOKUP($A70,'Mat of App'!$B$7:$AP$37,I$66,FALSE) -> 0
A71: Small Non Domestic Two Rate | B71: =VLOOKUP($A71,'Mat of App'!$B$7:$AP$37,B$66,FALSE) -> 0 | C71: =VLOOKUP($A71,'Mat of App'!$B$7:$AP$37,C$66,FALSE) -> 1 | D71: =VLOOKUP($A71,'Mat of App'!$B$7:$AP$37,D$66,FALSE) -> 0 | E71: =VLOOKUP($A71,'Mat of App'!$B$7:$AP$37,E$66,FALSE) -> 0 | F71: =VLOOKUP($A71,'Mat of App'!$B$7:$AP$37,F$66,FALSE) -> 0 | G71: =VLOOKUP($A71,'Mat of App'!$B$7:$AP$37,G$66,FALSE) -> 0 | H71: =VLOOKUP($A71,'Mat of App'!$B$7:$AP$37,H$66,FALSE) -> 0 | I71: =VLOOKUP($A71,'Mat of App'!$B$7:$AP$37,I$66,FALSE) -> 0
A72: LV Medium Non-Domestic | B72: =VLOOKUP($A72,'Mat of App'!$B$7:$AP$37,B$66,FALSE) -> 0 | C72: =VLOOKUP($A72,'Mat of App'!$B$7:$AP$37,C$66,FALSE) -> 0 | D72: =VLOOKUP($A72,'Mat of App'!$B$7:$AP$37,D$66,FALSE) -> 1 | E72: =VLOOKUP($A72,'Mat of App'!$B$7:$AP$37,E$66,FALSE) -> 0 | F72: =VLOOKUP($A72,'Mat of App'!$B$7:$AP$37,F$66,FALSE) -> 0 | G72: =VLOOKUP($A72,'Mat of App'!$B$7:$AP$37,G$66,FALSE) -> 0 | H72: =VLOOKUP($A72,'Mat of App'!$B$7:$AP$37,H$66,FALSE) -> 0 | I72: =VLOOKUP($A72,'Mat of App'!$B$7:$AP$37,I$66,FALSE) -> 0
A73: LV Sub Medium Non-Domestic | B73: =VLOOKUP($A73,'Mat of App'!$B$7:$AP$37,B$66,FALSE) -> 0 | C73: =VLOOKUP($A73,'Mat of App'!$B$7:$AP$37,C$66,FALSE) -> 0 | D73: =VLOOKUP($A73,'Mat of App'!$B$7:$AP$37,D$66,FALSE) -> 0 | E73: =VLOOKUP($A73,'Mat of App'!$B$7:$AP$37,E$66,FALSE) -> 1 | F73: =VLOOKUP($A73,'Mat of App'!$B$7:$AP$37,F$66,FALSE) -> 0 | G73: =VLOOKUP($A73,'Mat of App'!$B$7:$AP$37,G$66,FALSE) -> 0 | H73: =VLOOKUP($A73,'Mat of App'!$B$7:$AP$37,H$66,FALSE) -> 0 | I73: =VLOOKUP($A73,'Mat of App'!$B$7:$AP$37,I$66,FALSE) -> 0
A74: LV Network Domestic | B74: =VLOOKUP($A74,'Mat of App'!$B$7:$AP$37,B$66,FALSE) -> 0.05 | C74: =VLOOKUP($A74,'Mat of App'!$B$7:$AP$37,C$66,FALSE) -> 0 | D74: =VLOOKUP($A74,'Mat of App'!$B$7:$AP$37,D$66,FALSE) -> 0 | E74: =VLOOKUP($A74,'Mat of App'!$B$7:$AP$37,E$66,FALSE) -> 0 | F74: =VLOOKUP($A74,'Mat of App'!$B$7:$AP$37,F$66,FALSE) -> 0 | G74: =VLOOKUP($A74,'Mat of App'!$B$7:$AP$37,G$66,FALSE) -> 0 | H74: =VLOOKUP($A74,'Mat of App'!$B$7:$AP$37,H$66,FALSE) -> 0 | I74: =VLOOKUP($A74,'Mat of App'!$B$7:$AP$37,I$66,FALSE) -> 0
A75: LV Network Non-Domestic Non-CT | B75: =VLOOKUP($A75,'Mat of App'!$B$7:$AP$37,B$66,FALSE) -> 0 | C75: =VLOOKUP($A75,'Mat of App'!$B$7:$AP$37,C$66,FALSE) -> 1 | D75: =VLOOKUP($A75,'Mat of App'!$B$7:$AP$37,D$66,FALSE) -> 0 | E75: =VLOOKUP($A75,'Mat of App'!$B$7:$AP$37,E$66,FALSE) -> 0 | F75: =VLOOKUP($A75,'Mat of App'!$B$7:$AP$37,F$66,FALSE) -> 0 | G75: =VLOOKUP($A75,'Mat of App'!$B$7:$AP$37,G$66,FALSE) -> 0 | H75: =VLOOKUP($A75,'Mat of App'!$B$7:$AP$37,H$66,FALSE) -> 0 | I75: =VLOOKUP($A75,'Mat of App'!$B$7:$AP$37,I$66,FALSE) -> 0
A76: LV HH Metered | B76: =VLOOKUP($A76,'Mat of App'!$B$7:$AP$37,B$66,FALSE) -> 0 | C76: =VLOOKUP($A76,'Mat of App'!$B$7:$AP$37,C$66,FALSE) -> 0 | D76: =VLOOKUP($A76,'Mat of App'!$B$7:$AP$37,D$66,FALSE) -> 0 | E76: =VLOOKUP($A76,'Mat of App'!$B$7:$AP$37,E$66,FALSE) -> 0 | F76: =VLOOKUP($A76,'Mat of App'!$B$7:$AP$37,F$66,FALSE) -> 1 | G76: =VLOOKUP($A76,'Mat of App'!$B$7:$AP$37,G$66,FALSE) -> 0 | H76: =VLOOKUP($A76,'Mat of App'!$B$7:$AP$37,H$66,FALSE) -> 0 | I76: =VLOOKUP($A76,'Mat of App'!$B$7:$AP$37,I$66,FALSE) -> 0
A77: LV Sub HH Metered | B77: =VLOOKUP($A77,'Mat of App'!$B$7:$AP$37,B$66,FALSE) -> 0 | C77: =VLOOKUP($A77,'Mat of App'!$B$7:$AP$37,C$66,FALSE) -> 0 | D77: =VLOOKUP($A77,'Mat of App'!$B$7:$AP$37,D$66,FALSE) -> 0 | E77: =VLOOKUP($A77,'Mat of App'!$B$7:$AP$37,E$66,FALSE) -> 0 | F77: =VLOOKUP($A77,'Mat of App'!$B$7:$AP$37,F$66,FALSE) -> 0 | G77: =VLOOKUP($A77,'Mat of App'!$B$7:$AP$37,G$66,FALSE) -> 1 | H77: =VLOOKUP($A77,'Mat of App'!$B$7:$AP$37,H$66,FALSE) -> 0 | I77: =VLOOKUP($A77,'Mat of App'!$B$7:$AP$37,I$66,FALSE) -> 0
A78: LV Generation NHH or Aggregate HH | B78: =VLOOKUP($A78,'Mat of App'!$B$7:$AP$37,B$66,FALSE) -> 0 | C78: =VLOOKUP($A78,'Mat of App'!$B$7:$AP$37,C$66,FALSE) -> 0 | D78: =VLOOKUP($A78,'Mat of App'!$B$7:$AP$37,D$66,FALSE) -> 0 | E78: =VLOOKUP($A78,'Mat of App'!$B$7:$AP$37,E$66,FALSE) -> 0 | F78: =VLOOKUP($A78,'Mat of App'!$B$7:$AP$37,F$66,FALSE) -> 0 | G78: =VLOOKUP($A78,'Mat of App'!$B$7:$AP$37,G$66,FALSE) -> 0 | H78: =VLOOKUP($A78,'Mat of App'!$B$7:$AP$37,H$66,FALSE) -> 1 | I78: =VLOOKUP($A78,'Mat of App'!$B$7:$AP$37,I$66,FALSE) -> 0
A79: LV Sub Generation NHH | B79: =VLOOKUP($A79,'Mat of App'!$B$7:$AP$37,B$66,FALSE) -> 0 | C79: =VLOOKUP($A79,'Mat of App'!$B$7:$AP$37,C$66,FALSE) -> 0 | D79: =VLOOKUP($A79,'Mat of App'!$B$7:$AP$37,D$66,FALSE) -> 0 | E79: =VLOOKUP($A79,'Mat of App'!$B$7:$AP$37,E$66,FALSE) -> 0 | F79: =VLOOKUP($A79,'Mat of App'!$B$7:$AP$37,F$66,FALSE) -> 0 | G79: =VLOOKUP($A79,'Mat of App'!$B$7:$AP$37,G$66,FALSE) -> 0 | H79: =VLOOKUP($A79,'Mat of App'!$B$7:$AP$37,H$66,FALSE) -> 1 | I79: =VLOOKUP($A79,'Mat of App'!$B$7:$AP$37,I$66,FALSE) -> 0
A80: LV Generation Intermittent | B80: =VLOOKUP($A80,'Mat of App'!$B$7:$AP$37,B$66,FALSE) -> 0 | C80: =VLOOKUP($A80,'Mat of App'!$B$7:$AP$37,C$66,FALSE) -> 0 | D80: =VLOOKUP($A80,'Mat of App'!$B$7:$AP$37,D$66,FALSE) -> 0 | E80: =VLOOKUP($A80,'Mat of App'!$B$7:$AP$37,E$66,FALSE) -> 0 | F80: =VLOOKUP($A80,'Mat of App'!$B$7:$AP$37,F$66,FALSE) -> 0 | G80: =VLOOKUP($A80,'Mat of App'!$B$7:$AP$37,G$66,FALSE) -> 0 | H80: =VLOOKUP($A80,'Mat of App'!$B$7:$AP$37,H$66,FALSE) -> 1 | I80: =VLOOKUP($A80,'Mat of App'!$B$7:$AP$37,I$66,FALSE) -> 0
A81: LV Generation Non-Intermittent | B81: =VLOOKUP($A81,'Mat of App'!$B$7:$AP$37,B$66,FALSE) -> 0 | C81: =VLOOKUP($A81,'Mat of App'!$B$7:$AP$37,C$66,FALSE) -> 0 | D81: =VLOOKUP($A81,'Mat of App'!$B$7:$AP$37,D$66,FALSE) -> 0 | E81: =VLOOKUP($A81,'Mat of App'!$B$7:$AP$37,E$66,FALSE) -> 0 | F81: =VLOOKUP($A81,'Mat of App'!$B$7:$AP$37,F$66,FALSE) -> 0 | G81: =VLOOKUP($A81,'Mat of App'!$B$7:$AP$37,G$66,FALSE) -> 0 | H81: =VLOOKUP($A81,'Mat of App'!$B$7:$AP$37,H$66,FALSE) -> 0 | I81: =VLOOKUP($A81,'Mat of App'!$B$7:$AP$37,I$66,FALSE) -> 0
A82: LV Sub Generation Intermittent | B82: =VLOOKUP($A82,'Mat of App'!$B$7:$AP$37,B$66,FALSE) -> 0 | C82: =VLOOKUP($A82,'Mat of App'!$B$7:$AP$37,C$66,FALSE) -> 0 | D82: =VLOOKUP($A82,'Mat of App'!$B$7:$AP$37,D$66,FALSE) -> 0 | E82: =VLOOKUP($A82,'Mat of App'!$B$7:$AP$37,E$66,FALSE) -> 0 | F82: =VLOOKUP($A82,'Mat of App'!$B$7:$AP$37,F$66,FALSE) -> 0 | G82: =VLOOKUP($A82,'Mat of App'!$B$7:$AP$37,G$66,FALSE) -> 0 | H82: =VLOOKUP($A82,'Mat of App'!$B$7:$AP$37,H$66,FALSE) -> 0 | I82: =VLOOKUP($A82,'Mat of App'!$B$7:$AP$37,I$66,FALSE) -> 0
A83: LV Sub Generation Non-Intermittent | B83: =VLOOKUP($A83,'Mat of App'!$B$7:$AP$37,B$66,FALSE) -> 0 | C83: =VLOOKUP($A83,'Mat of App'!$B$7:$AP$37,C$66,FALSE) -> 0 | D83: =VLOOKUP($A83,'Mat of App'!$B$7:$AP$37,D$66,FALSE) -> 0 | E83: =VLOOKUP($A83,'Mat of App'!$B$7:$AP$37,E$66,FALSE) -> 0 | F83: =VLOOKUP($A83,'Mat of App'!$B$7:$AP$37,F$66,FALSE) -> 0 | G83: =VLOOKUP($A83,'Mat of App'!$B$7:$AP$37,G$66,FALSE) -> 0 | H83: =VLOOKUP($A83,'Mat of App'!$B$7:$AP$37,H$66,FALSE) -> 0 | I83: =VLOOKUP($A83,'Mat of App'!$B$7:$AP$37,I$66,FALSE) -> 0
A85: 1026. Matrix of applicability of LV service models to unmetered tariffs
A87: Source: service models
A88: Proportion of service model involved in connecting load of 1 MWh/year
B89: LV service model 1 | C89: LV service model 2 | D89: LV service model 3 | E89: LV service model 4 | F89: LV service model 5 | G89: LV service model 6 | H89: LV service model 7 | I89: LV service model 8
A90: All LV unmetered tariffs | B90: =VLOOKUP($A90,'Mat of App'!$B$7:$AP$37,B$66,FALSE) -> 0 | C90: =VLOOKUP($A90,'Mat of App'!$B$7:$AP$37,C$66,FALSE) -> 0 | D90: =VLOOKUP($A90,'Mat of App'!$B$7:$AP$37,D$66,FALSE) -> 0 | E90: =VLOOKUP($A90,'Mat of App'!$B$7:$AP$37,E$66,FALSE) -> 0 | F90: =VLOOKUP($A90,'Mat of App'!$B$7:$AP$37,F$66,FALSE) -> 0 | G90: =VLOOKUP($A90,'Mat of App'!$B$7:$AP$37,G$66,FALSE) -> 0 | H90: =VLOOKUP($A90,'Mat of App'!$B$7:$AP$37,H$66,FALSE) -> 0 | I90: =VLOOKUP($A90,'Mat of App'!$B$7:$AP$37,I$66,FALSE) -> 0.4876
A92: 1028. Matrix of applicability of HV service models to tariffs with fixed charges
B93: 2 | C93: =B93+1 -> 3 | D93: =C93+1 -> 4 | E93: =D93+1 -> 5 | F93: =E93+1 -> 6
B94: HV service model 1 | C94: HV service model 2 | D94: HV service model 3 | E94: HV service model 4 | F94: HV service model 5
A95: HV Medium Non-Domestic | B95: =VLOOKUP($A95,'Mat of App'!$B$7:$AP$37,B$93,FALSE) -> 1 | C95: =VLOOKUP($A95,'Mat of App'!$B$7:$AP$37,C$93,FALSE) -> 0 | D95: =VLOOKUP($A95,'Mat of App'!$B$7:$AP$37,D$93,FALSE) -> 0 | E95: =VLOOKUP($A95,'Mat of App'!$B$7:$AP$37,E$93,FALSE) -> 0 | F95: =VLOOKUP($A95,'Mat of App'!$B$7:$AP$37,F$93,FALSE) -> 0
A96: HV HH Metered | B96: =VLOOKUP($A96,'Mat of App'!$B$7:$AP$37,B$93,FALSE) -> 1 | C96: =VLOOKUP($A96,'Mat of App'!$B$7:$AP$37,C$93,FALSE) -> 0 | D96: =VLOOKUP($A96,'Mat of App'!$B$7:$AP$37,D$93,FALSE) -> 0 | E96: =VLOOKUP($A96,'Mat of App'!$B$7:$AP$37,E$93,FALSE) -> 0 | F96: =VLOOKUP($A96,'Mat of App'!$B$7:$AP$37,F$93,FALSE) -> 0
A97: HV Generation Intermittent | B97: =VLOOKUP($A97,'Mat of App'!$B$7:$AP$37,B$93,FALSE) -> 0 | C97: =VLOOKUP($A97,'Mat of App'!$B$7:$AP$37,C$93,FALSE) -> 1 | D97: =VLOOKUP($A97,'Mat of App'!$B$7:$AP$37,D$93,FALSE) -> 0 | E97: =VLOOKUP($A97,'Mat of App'!$B$7:$AP$37,E$93,FALSE) -> 0 | F97: =VLOOKUP($A97,'Mat of App'!$B$7:$AP$37,F$93,FALSE) -> 0
A98: HV Generation Non-Intermittent | B98: =VLOOKUP($A98,'Mat of App'!$B$7:$AP$37,B$93,FALSE) -> 0 | C98: =VLOOKUP($A98,'Mat of App'!$B$7:$AP$37,C$93,FALSE) -> 1 | D98: =VLOOKUP($A98,'Mat of App'!$B$7:$AP$37,D$93,FALSE) -> 0 | E98: =VLOOKUP($A98,'Mat of App'!$B$7:$AP$37,E$93,FALSE) -> 0 | F98: =VLOOKUP($A98,'Mat of App'!$B$7:$AP$37,F$93,FALSE) -> 0
A100: 1032. Loss adjustment factors to transmission
A102: Source: losses model or loss adjustment factors at time of system peak.
B103: 132kV | C103: 132kV/EHV | D103: EHV | E103: EHV/HV | F103: HV | G103: HV/LV | H103: LV circuits
A104: Loss adjustment factor | B104: =VLOOKUP(Vlookup!B69,'CDCM Forecast Data'!$A$14:$I$271,5,FALSE) -> 1.0097 | C104: =VLOOKUP(Vlookup!C69,'CDCM Forecast Data'!$A$14:$I$271,5,FALSE) -> 1.0142 | D104: =VLOOKUP(Vlookup!D69,'CDCM Forecast Data'!$A$14:$I$271,5,FALSE) -> 1.027 | E104: =VLOOKUP(Vlookup!E69,'CDCM Forecast Data'!$A$14:$I$271,5,FALSE) -> 1.0349 | F104: =VLOOKUP(Vlookup!F69,'CDCM Forecast Data'!$A$14:$I$271,5,FALSE) -> 1.0439 | G104: =VLOOKUP(Vlookup!G69,'CDCM Forecast Data'!$A$14:$I$271,5,FALSE) -> 1.064 | H104: =VLOOKUP(Vlookup!H69,'CDCM Forecast Data'!$A$14:$I$271,5,FALSE) -> 1.085
A106: 1037. Embedded network (LDNO) discounts
A108: Source: separate price control disaggregation model.
B109: No discount | C109: LDNO LV: LV user | D109: LDNO HV: LV user | E109: LDNO HV: LV sub user | F109: LDNO HV: HV user
A110: LDNO discount | C110: =VLOOKUP(Vlookup!C75,'CDCM Forecast Data'!$A$14:$I$271,5,FALSE) -> 0.3196377719 | D110: =VLOOKUP(Vlookup!D75,'CDCM Forecast Data'!$A$14:$I$271,5,FALSE) -> 0.6384671566 | E110: =VLOOKUP(Vlookup!E75,'CDCM Forecast Data'!$A$14:$I$271,5,FALSE) -> 0.4534915681 | F110: =VLOOKUP(Vlookup!F75,'CDCM Forecast Data'!$A$14:$I$271,5,FALSE) -> 0.3444440504
A112: 1041. Load profile data for demand users
A114: Source: load data analysis.
B115: Coincidence factor | C115: Load factor
A116: Domestic Unrestricted | B116: =VLOOKUP(Vlookup!B81,'CDCM Forecast Data'!$A$14:$I$271,5,FALSE) -> 0.8575951603 | C116: =VLOOKUP(Vlookup!C81,'CDCM Forecast Data'!$A$14:$I$271,5,FALSE) -> 0.4400357438
A117: Domestic Two Rate | B117: =VLOOKUP(Vlookup!B82,'CDCM Forecast Data'!$A$14:$I$271,5,FALSE) -> 0.2886294187 | C117: =VLOOKUP(Vlookup!C82,'CDCM Forecast Data'!$A$14:$I$271,5,FALSE) -> 0.2499789884
A118: Domestic Off Peak (related MPAN) | C118: =VLOOKUP(Vlookup!C83,'CDCM Forecast Data'!$A$14:$I$271,5,FALSE) -> 0.2572184053
A119: Small Non Domestic Unrestricted | B119: =VLOOKUP(Vlookup!B84,'CDCM Forecast Data'!$A$14:$I$271,5,FALSE) -> 0.6306309916 | C119: =VLOOKUP(Vlookup!C84,'CDCM Forecast Data'!$A$14:$I$271,5,FALSE) -> 0.4114192423
A120: Small Non Domestic Two Rate | B120: =VLOOKUP(Vlookup!B85,'CDCM Forecast Data'!$A$14:$I$271,5,FALSE) -> 0.7254970091 | C120: =VLOOKUP(Vlookup!C85,'CDCM Forecast Data'!$A$14:$I$271,5,FALSE) -> 0.5506901419
A121: Small Non Domestic Off Peak (related MPAN) | C121: =VLOOKUP(Vlookup!C86,'CDCM Forecast Data'!$A$14:$I$271,5,FALSE) -> 0.2805628594
A122: LV Medium Non-Domestic | B122: =VLOOKUP(Vlookup!B87,'CDCM Forecast Data'!$A$14:$I$271,5,FALSE) -> 0.7719373971 | C122: =VLOOKUP(Vlookup!C87,'CDCM Forecast Data'!$A$14:$I$271,5,FALSE) -> 0.5420264393
A123: LV Sub Medium Non-Domestic | B123: =VLOOKUP(Vlookup!B88,'CDCM Forecast Data'!$A$14:$I$271,5,FALSE) -> 0.7719373971 | C123: =VLOOKUP(Vlookup!C88,'CDCM Forecast Data'!$A$14:$I$271,5,FALSE) -> 0.5420264393
A124: HV Medium Non-Domestic | B124: =VLOOKUP(Vlookup!B89,'CDCM Forecast Data'!$A$14:$I$271,5,FALSE) -> 0.5147350712 | C124: =VLOOKUP(Vlookup!C89,'CDCM Forecast Data'!$A$14:$I$271,5,FALSE) -> 0.3729769188
A125: LV Network Domestic | B125: =VLOOKUP(Vlookup!B90,'CDCM Forecast Data'!$A$14:$I$271,5,FALSE) -> 0.8253814878 | C125: =VLOOKUP(Vlookup!C90,'CDCM Forecast Data'!$A$14:$I$271,5,FALSE) -> 0.4291058522
A126: LV Network Non-Domestic Non-CT | B126: =VLOOKUP(Vlookup!B91,'CDCM Forecast Data'!$A$14:$I$271,5,FALSE) -> 0.64712655 | C126: =VLOOKUP(Vlookup!C91,'CDCM Forecast Data'!$A$14:$I$271,5,FALSE) -> 0.435056821
A127: LV HH Metered | B127: =VLOOKUP(Vlookup!B92,'CDCM Forecast Data'!$A$14:$I$271,5,FALSE) -> 0.7651358399 | C127: =VLOOKUP(Vlookup!C92,'CDCM Forecast Data'!$A$14:$I$271,5,FALSE) -> 0.587809866
A128: LV Sub HH Metered | B128: =VLOOKUP(Vlookup!B93,'CDCM Forecast Data'!$A$14:$I$271,5,FALSE) -> 0.7651358399 | C128: =VLOOKUP(Vlookup!C93,'CDCM Forecast Data'!$A$14:$I$271,5,FALSE) -> 0.587809866
A129: HV HH Metered | B129: =VLOOKUP(Vlookup!B94,'CDCM Forecast Data'!$A$14:$I$271,5,FALSE) -> 0.8509616909 | C129: =VLOOKUP(Vlookup!C94,'CDCM Forecast Data'!$A$14:$I$271,5,FALSE) -> 0.7376293577
A130: NHH UMS category A | B130: =VLOOKUP(Vlookup!B95,'CDCM Forecast Data'!$A$14:$I$271,5,FALSE) -> 1 | C130: =VLOOKUP(Vlookup!C95,'CDCM Forecast Data'!$A$14:$I$271,5,FALSE) -> 1
A131: NHH UMS category B | B131: =VLOOKUP(Vlookup!B96,'CDCM Forecast Data'!$A$14:$I$271,5,FALSE) -> 0.9938835335 | C131: =VLOOKUP(Vlookup!C96,'CDCM Forecast Data'!$A$14:$I$271,5,FALSE) -> 0.4730995727
A132: NHH UMS category C | B132: =VLOOKUP(Vlookup!B97,'CDCM Forecast Data'!$A$14:$I$271,5,FALSE) -> 0.750501002 | C132: =VLOOKUP(Vlookup!C97,'CDCM Forecast Data'!$A$14:$I$271,5,FALSE) -> 0.245270466
A133: NHH UMS category D | B133: =VLOOKUP(Vlookup!B98,'CDCM Forecast Data'!$A$14:$I$271,5,FALSE) -> 0 | C133: =VLOOKUP(Vlookup!C98,'CDCM Forecast Data'!$A$14:$I$271,5,FALSE) -> 0.5141747171
A134: LV UMS (Pseudo HH Metered) | B134: =VLOOKUP(Vlookup!B99,'CDCM Forecast Data'!$A$14:$I$271,5,FALSE) -> 0.9789817972 | C134: =VLOOKUP(Vlookup!C99,'CDCM Forecast Data'!$A$14:$I$271,5,FALSE) -> 0.4742952931
A136: 1053. Volume forecasts for the charging year
B137: 4 | C137: 5 | D137: 6 | E137: 7 | F137: 8 | G137: 9
A138: Source: forecast.
A139: Please include MPAN counts for tariffs with no fixed charge (e.g. off-peak tariffs),
A140: but exclude MPANs on tariffs with a fixed charge that are not subject to a fixed charge due to a site grouping arrangement.
B141: Rate 1 units (MWh) | C141: Rate 2 units (MWh) | D141: Rate 3 units (MWh) | E141: MPANs | F141: Import capacity (kVA) | G141: Reactive power units (MVArh)
A142: > Domestic Unrestricted | B142: =VLOOKUP(Vlookup!$B107,'CDCM Volume Forecasts'!$A$27:$AG$123,B$137,FALSE) -> 0 | C142: =VLOOKUP(Vlookup!$B107,'CDCM Volume Forecasts'!$A$27:$AG$123,C$137,FALSE) -> 0 | D142: =VLOOKUP(Vlookup!$B107,'CDCM Volume Forecasts'!$A$27:$AG$123,D$137,FALSE) -> 0 | E142: =VLOOKUP(Vlookup!$B107,'CDCM Volume Forecasts'!$A$27:$AG$123,E$137,FALSE) -> 0 | F142: =VLOOKUP(Vlookup!$B107,'CDCM Volume Forecasts'!$A$27:$AG$123,F$137,FALSE) -> 0 | G142: =VLOOKUP(Vlookup!$B107,'CDCM Volume Forecasts'!$A$27:$AG$123,G$137,FALSE) -> 0
A143: Domestic Unrestricted | B143: =VLOOKUP(Vlookup!$B108,'CDCM Volume Forecasts'!$A$27:$AG$123,B$137,FALSE) -> 3242264.656 | C143: =VLOOKUP(Vlookup!$B108,'CDCM Volume Forecasts'!$A$27:$AG$123,C$137,FALSE) -> 0 | D143: =VLOOKUP(Vlookup!$B108,'CDCM Volume Forecasts'!$A$27:$AG$123,D$137,FALSE) -> 0 | E143: =VLOOKUP(Vlookup!$B108,'CDCM Volume Forecasts'!$A$27:$AG$123,E$137,FALSE) -> 964740 | F143: =VLOOKUP(Vlookup!$B108,'CDCM Volume Forecasts'!$A$27:$AG$123,F$137,FALSE) -> 0 | G143: =VLOOKUP(Vlookup!$B108,'CDCM Volume Forecasts'!$A$27:$AG$123,G$137,FALSE) -> 0
A144: LDNO LV: Domestic Unrestricted | B144: =VLOOKUP(Vlookup!$B109,'CDCM Volume Forecasts'!$A$27:$AG$123,B$137,FALSE) -> 2870.334985 | C144: =VLOOKUP(Vlookup!$B109,'CDCM Volume Forecasts'!$A$27:$AG$123,C$137,FALSE) -> 0 | D144: =VLOOKUP(Vlookup!$B109,'CDCM Volume Forecasts'!$A$27:$AG$123,D$137,FALSE) -> 0 | E144: =VLOOKUP(Vlookup!$B109,'CDCM Volume Forecasts'!$A$27:$AG$123,E$137,FALSE) -> 893 | F144: =VLOOKUP(Vlookup!$B109,'CDCM Volume Forecasts'!$A$27:$AG$123,F$137,FALSE) -> 0 | G144: =VLOOKUP(Vlookup!$B109,'CDCM Volume Forecasts'!$A$27:$AG$123,G$137,FALSE) -> 0
A145: LDNO HV: Domestic Unrestricted | B145: =VLOOKUP(Vlookup!$B110,'CDCM Volume Forecasts'!$A$27:$AG$123,B$137,FALSE) -> 11376.82715 | C145: =VLOOKUP(Vlookup!$B110,'CDCM Volume Forecasts'!$A$27:$AG$123,C$137,FALSE) -> 0 | D145: =VLOOKUP(Vlookup!$B110,'CDCM Volume Forecasts'!$A$27:$AG$123,D$137,FALSE) -> 0 | E145: =VLOOKUP(Vlookup!$B110,'CDCM Volume Forecasts'!$A$27:$AG$123,E$137,FALSE) -> 3843 | F145: =VLOOKUP(Vlookup!$B110,'CDCM Volume Forecasts'!$A$27:$AG$123,F$137,FALSE) -> 0 | G145: =VLOOKUP(Vlookup!$B110,'CDCM Volume Forecasts'!$A$27:$AG$123,G$137,FALSE) -> 0
A146: > Domestic Two Rate | B146: =VLOOKUP(Vlookup!$B111,'CDCM Volume Forecasts'!$A$27:$AG$123,B$137,FALSE) -> 0 | C146: =VLOOKUP(Vlookup!$B111,'CDCM Volume Forecasts'!$A$27:$AG$123,C$137,FALSE) -> 0 | D146: =VLOOKUP(Vlookup!$B111,'CDCM Volume Forecasts'!$A$27:$AG$123,D$137,FALSE) -> 0 | E146: =VLOOKUP(Vlookup!$B111,'CDCM Volume Forecasts'!$A$27:$AG$123,E$137,FALSE) -> 0 | F146: =VLOOKUP(Vlookup!$B111,'CDCM Volume Forecasts'!$A$27:$AG$123,F$137,FALSE) -> 0 | G146: =VLOOKUP(Vlookup!$B111,'CDCM Volume Forecasts'!$A$27:$AG$123,G$137,FALSE) -> 0
A147: Domestic Two Rate | B147: =VLOOKUP(Vlookup!$B112,'CDCM Volume Forecasts'!$A$27:$AG$123,B$137,FALSE) -> 174847.8894 | C147: =VLOOKUP(Vlookup!$B112,'CDCM Volume Forecasts'!$A$27:$AG$123,C$137,FALSE) -> 180701.5563 | D147: =VLOOKUP(Vlookup!$B112,'CDCM Volume Forecasts'!$A$27:$AG$123,D$137,FALSE) -> 0 | E147: =VLOOKUP(Vlookup!$B112,'CDCM Volume Forecasts'!$A$27:$AG$123,E$137,FALSE) -> 58083 | F147: =VLOOKUP(Vlookup!$B112,'CDCM Volume Forecasts'!$A$27:$AG$123,F$137,FALSE) -> 0 | G147: =VLOOKUP(Vlookup!$B112,'CDCM Volume Forecasts'!$A$27:$AG$123,G$137,FALSE) -> 0
A148: LDNO LV: Domestic Two Rate | B148: =VLOOKUP(Vlookup!$B113,'CDCM Volume Forecasts'!$A$27:$AG$123,B$137,FALSE) -> 262.9871922 | C148: =VLOOKUP(Vlookup!$B113,'CDCM Volume Forecasts'!$A$27:$AG$123,C$137,FALSE) -> 6585.66953 | D148: =VLOOKUP(Vlookup!$B113,'CDCM Volume Forecasts'!$A$27:$AG$123,D$137,FALSE) -> 0 | E148: =VLOOKUP(Vlookup!$B113,'CDCM Volume Forecasts'!$A$27:$AG$123,E$137,FALSE) -> 21 | F148: =VLOOKUP(Vlookup!$B113,'CDCM Volume Forecasts'!$A$27:$AG$123,F$137,FALSE) -> 0 | G148: =VLOOKUP(Vlookup!$B113,'CDCM Volume Forecasts'!$A$27:$AG$123,G$137,FALSE) -> 0
A149: LDNO HV: Domestic Two Rate | B149: =VLOOKUP(Vlookup!$B114,'CDCM Volume Forecasts'!$A$27:$AG$123,B$137,FALSE) -> 256.3006221 | C149: =VLOOKUP(Vlookup!$B114,'CDCM Volume Forecasts'!$A$27:$AG$123,C$137,FALSE) -> 349.8743055 | D149: =VLOOKUP(Vlookup!$B114,'CDCM Volume Forecasts'!$A$27:$AG$123,D$137,FALSE) -> 0 | E149: =VLOOKUP(Vlookup!$B114,'CDCM Volume Forecasts'!$A$27:$AG$123,E$137,FALSE) -> 80 | F149: =VLOOKUP(Vlookup!$B114,'CDCM Volume Forecasts'!$A$27:$AG$123,F$137,FALSE) -> 0 | G149: =VLOOKUP(Vlookup!$B114,'CDCM Volume Forecasts'!$A$27:$AG$123,G$137,FALSE) -> 0
A150: > Domestic Off Peak (related MPAN) | B150: =VLOOKUP(Vlookup!$B115,'CDCM Volume Forecasts'!$A$27:$AG$123,B$137,FALSE) -> 0 | C150: =VLOOKUP(Vlookup!$B115,'CDCM Volume Forecasts'!$A$27:$AG$123,C$137,FALSE) -> 0 | D150: =VLOOKUP(Vlookup!$B115,'CDCM Volume Forecasts'!$A$27:$AG$123,D$137,FALSE) -> 0 | E150: =VLOOKUP(Vlookup!$B115,'CDCM Volume Forecasts'!$A$27:$AG$123,E$137,FALSE) -> 0 | F150: =VLOOKUP(Vlookup!$B115,'CDCM Volume Forecasts'!$A$27:$AG$123,F$137,FALSE) -> 0 | G150: =VLOOKUP(Vlookup!$B115,'CDCM Volume Forecasts'!$A$27:$AG$123,G$137,FALSE) -> 0
A151: Domestic Off Peak (related MPAN) | B151: =VLOOKUP(Vlookup!$B116,'CDCM Volume Forecasts'!$A$27:$AG$123,B$137,FALSE) -> 3613.144098 | C151: =VLOOKUP(Vlookup!$B116,'CDCM Volume Forecasts'!$A$27:$AG$123,C$137,FALSE) -> 0 | D151: =VLOOKUP(Vlookup!$B116,'CDCM Volume Forecasts'!$A$27:$AG$123,D$137,FALSE) -> 0 | E151: =VLOOKUP(Vlookup!$B116,'CDCM Volume Forecasts'!$A$27:$AG$123,E$137,FALSE) -> 0 | F151: =VLOOKUP(Vlookup!$B116,'CDCM Volume Forecasts'!$A$27:$AG$123,F$137,FALSE) -> 0 | G151: =VLOOKUP(Vlookup!$B116,'CDCM Volume Forecasts'!$A$27:$AG$123,G$137,FALSE) -> 0
A152: LDNO LV: Domestic Off Peak (related MPAN) | B152: =VLOOKUP(Vlookup!$B117,'CDCM Volume Forecasts'!$A$27:$AG$123,B$137,FALSE) -> 0 | C152: =VLOOKUP(Vlookup!$B117,'CDCM Volume Forecasts'!$A$27:$AG$123,C$137,FALSE) -> 0 | D152: =VLOOKUP(Vlookup!$B117,'CDCM Volume Forecasts'!$A$27:$AG$123,D$137,FALSE) -> 0 | E152: =VLOOKUP(Vlookup!$B117,'CDCM Volume Forecasts'!$A$27:$AG$123,E$137,FALSE) -> 0 | F152: =VLOOKUP(Vlookup!$B117,'CDCM Volume Forecasts'!$A$27:$AG$123,F$137,FALSE) -> 0 | G152: =VLOOKUP(Vlookup!$B117,'CDCM Volume Forecasts'!$A$27:$AG$123,G$137,FALSE) -> 0
A153: LDNO HV: Domestic Off Peak (related MPAN) | B153: =VLOOKUP(Vlookup!$B118,'CDCM Volume Forecasts'!$A$27:$AG$123,B$137,FALSE) -> 0 | C153: =VLOOKUP(Vlookup!$B118,'CDCM Volume Forecasts'!$A$27:$AG$123,C$137,FALSE) -> 0 | D153: =VLOOKUP(Vlookup!$B118,'CDCM Volume Forecasts'!$A$27:$AG$123,D$137,FALSE) -> 0 | E153: =VLOOKUP(Vlookup!$B118,'CDCM Volume Forecasts'!$A$27:$AG$123,E$137,FALSE) -> 0 | F153: =VLOOKUP(Vlookup!$B118,'CDCM Volume Forecasts'!$A$27:$AG$123,F$137,FALSE) -> 0 | G153: =VLOOKUP(Vlookup!$B118,'CDCM Volume Forecasts'!$A$27:$AG$123,G$137,FALSE) -> 0
A154: > Small Non Domestic Unrestricted | B154: =VLOOKUP(Vlookup!$B119,'CDCM Volume Forecasts'!$A$27:$AG$123,B$137,FALSE) -> 0 | C154: =VLOOKUP(Vlookup!$B119,'CDCM Volume Forecasts'!$A$27:$AG$123,C$137,FALSE) -> 0 | D154: =VLOOKUP(Vlookup!$B119,'CDCM Volume Forecasts'!$A$27:$AG$123,D$137,FALSE) -> 0 | E154: =VLOOKUP(Vlookup!$B119,'CDCM Volume Forecasts'!$A$27:$AG$123,E$137,FALSE) -> 0 | F154: =VLOOKUP(Vlookup!$B119,'CDCM Volume Forecasts'!$A$27:$AG$123,F$137,FALSE) -> 0 | G154: =VLOOKUP(Vlookup!$B119,'CDCM Volume Forecasts'!$A$27:$AG$123,G$137,FALSE) -> 0
A155: Small Non Domestic Unrestricted | B155: =VLOOKUP(Vlookup!$B120,'CDCM Volume Forecasts'!$A$27:$AG$123,B$137,FALSE) -> 823197.9586 | C155: =VLOOKUP(Vlookup!$B120,'CDCM Volume Forecasts'!$A$27:$AG$123,C$137,FALSE) -> 0 | D155: =VLOOKUP(Vlookup!$B120,'CDCM Volume Forecasts'!$A$27:$AG$123,D$137,FALSE) -> 0 | E155: =VLOOKUP(Vlookup!$B120,'CDCM Volume Forecasts'!$A$27:$AG$123,E$137,FALSE) -> 63787 | F155: =VLOOKUP(Vlookup!$B120,'CDCM Volume Forecasts'!$A$27:$AG$123,F$137,FALSE) -> 0 | G155: =VLOOKUP(Vlookup!$B120,'CDCM Volume Forecasts'!$A$27:$AG$123,G$137,FALSE) -> 0
A156: LDNO LV: Small Non Domestic Unrestricted | B156: =VLOOKUP(Vlookup!$B121,'CDCM Volume Forecasts'!$A$27:$AG$123,B$137,FALSE) -> 56.74361464 | C156: =VLOOKUP(Vlookup!$B121,'CDCM Volume Forecasts'!$A$27:$AG$123,C$137,FALSE) -> 0 | D156: =VLOOKUP(Vlookup!$B121,'CDCM Volume Forecasts'!$A$27:$AG$123,D$137,FALSE) -> 0 | E156: =VLOOKUP(Vlookup!$B121,'CDCM Volume Forecasts'!$A$27:$AG$123,E$137,FALSE) -> 4 | F156: =VLOOKUP(Vlookup!$B121,'CDCM Volume Forecasts'!$A$27:$AG$123,F$137,FALSE) -> 0 | G156: =VLOOKUP(Vlookup!$B121,'CDCM Volume Forecasts'!$A$27:$AG$123,G$137,FALSE) -> 0
A157: LDNO HV: Small Non Domestic Unrestricted | B157: =VLOOKUP(Vlookup!$B122,'CDCM Volume Forecasts'!$A$27:$AG$123,B$137,FALSE) -> 2717.089687 | C157: =VLOOKUP(Vlookup!$B122,'CDCM Volume Forecasts'!$A$27:$AG$123,C$137,FALSE) -> 0 | D157: =VLOOKUP(Vlookup!$B122,'CDCM Volume Forecasts'!$A$27:$AG$123,D$137,FALSE) -> 0 | E157: =VLOOKUP(Vlookup!$B122,'CDCM Volume Forecasts'!$A$27:$AG$123,E$137,FALSE) -> 110 | F157: =VLOOKUP(Vlookup!$B122,'CDCM Volume Forecasts'!$A$27:$AG$123,F$137,FALSE) -> 0 | G157: =VLOOKUP(Vlookup!$B122,'CDCM Volume Forecasts'!$A$27:$AG$123,G$137,FALSE) -> 0
A158: > Small Non Domestic Two Rate | B158: =VLOOKUP(Vlookup!$B123,'CDCM Volume Forecasts'!$A$27:$AG$123,B$137,FALSE) -> 0 | C158: =VLOOKUP(Vlookup!$B123,'CDCM Volume Forecasts'!$A$27:$AG$123,C$137,FALSE) -> 0 | D158: =VLOOKUP(Vlookup!$B123,'CDCM Volume Forecasts'!$A$27:$AG$123,D$137,FALSE) -> 0 | E158: =VLOOKUP(Vlookup!$B123,'CDCM Volume Forecasts'!$A$27:$AG$123,E$137,FALSE) -> 0 | F158: =VLOOKUP(Vlookup!$B123,'CDCM Volume Forecasts'!$A$27:$AG$123,F$137,FALSE) -> 0 | G158: =VLOOKUP(Vlookup!$B123,'CDCM Volume Forecasts'!$A$27:$AG$123,G$137,FALSE) -> 0
A159: Small Non Domestic Two Rate | B159: =VLOOKUP(Vlookup!$B124,'CDCM Volume Forecasts'!$A$27:$AG$123,B$137,FALSE) -> 206801.4093 | C159: =VLOOKUP(Vlookup!$B124,'CDCM Volume Forecasts'!$A$27:$AG$123,C$137,FALSE) -> 92825.53756 | D159: =VLOOKUP(Vlookup!$B124,'CDCM Volume Forecasts'!$A$27:$AG$123,D$137,FALSE) -> 0 | E159: =VLOOKUP(Vlookup!$B124,'CDCM Volume Forecasts'!$A$27:$AG$123,E$137,FALSE) -> 13441 | F159: =VLOOKUP(Vlookup!$B124,'CDCM Volume Forecasts'!$A$27:$AG$123,F$137,FALSE) -> 0 | G159: =VLOOKUP(Vlookup!$B124,'CDCM Volume Forecasts'!$A$27:$AG$123,G$137,FALSE) -> 0
A160: LDNO LV: Small Non Domestic Two Rate | B160: =VLOOKUP(Vlookup!$B125,'CDCM Volume Forecasts'!$A$27:$AG$123,B$137,FALSE) -> 0 | C160: =VLOOKUP(Vlookup!$B125,'CDCM Volume Forecasts'!$A$27:$AG$123,C$137,FALSE) -> 0 | D160: =VLOOKUP(Vlookup!$B125,'CDCM Volume Forecasts'!$A$27:$AG$123,D$137,FALSE) -> 0 | E160: =VLOOKUP(Vlookup!$B125,'CDCM Volume Forecasts'!$A$27:$AG$123,E$137,FALSE) -> 0 | F160: =VLOOKUP(Vlookup!$B125,'CDCM Volume Forecasts'!$A$27:$AG$123,F$137,FALSE) -> 0 | G160: =VLOOKUP(Vlookup!$B125,'CDCM Volume Forecasts'!$A$27:$AG$123,G$137,FALSE) -> 0
A161: LDNO HV: Small Non Domestic Two Rate | B161: =VLOOKUP(Vlookup!$B126,'CDCM Volume Forecasts'!$A$27:$AG$123,B$137,FALSE) -> 845.4213076 | C161: =VLOOKUP(Vlookup!$B126,'CDCM Volume Forecasts'!$A$27:$AG$123,C$137,FALSE) -> 110.3044954 | D161: =VLOOKUP(Vlookup!$B126,'CDCM Volume Forecasts'!$A$27:$AG$123,D$137,FALSE) -> 0 | E161: =VLOOKUP(Vlookup!$B126,'CDCM Volume Forecasts'!$A$27:$AG$123,E$137,FALSE) -> 9 | F161: =VLOOKUP(Vlookup!$B126,'CDCM Volume Forecasts'!$A$27:$AG$123,F$137,FALSE) -> 0 | G161: =VLOOKUP(Vlookup!$B126,'CDCM Volume Forecasts'!$A$27:$AG$123,G$137,FALSE) -> 0
A162: > Small Non Domestic Off Peak (related MPAN) | B162: =VLOOKUP(Vlookup!$B127,'CDCM Volume Forecasts'!$A$27:$AG$123,B$137,FALSE) -> 0 | C162: =VLOOKUP(Vlookup!$B127,'CDCM Volume Forecasts'!$A$27:$AG$123,C$137,FALSE) -> 0 | D162: =VLOOKUP(Vlookup!$B127,'CDCM Volume Forecasts'!$A$27:$AG$123,D$137,FALSE) -> 0 | E162: =VLOOKUP(Vlookup!$B127,'CDCM Volume Forecasts'!$A$27:$AG$123,E$137,FALSE) -> 0 | F162: =VLOOKUP(Vlookup!$B127,'CDCM Volume Forecasts'!$A$27:$AG$123,F$137,FALSE) -> 0 | G162: =VLOOKUP(Vlookup!$B127,'CDCM Volume Forecasts'!$A$27:$AG$123,G$137,FALSE) -> 0
A163: Small Non Domestic Off Peak (related MPAN) | B163: =VLOOKUP(Vlookup!$B128,'CDCM Volume Forecasts'!$A$27:$AG$123,B$137,FALSE) -> 2262.209359 | C163: =VLOOKUP(Vlookup!$B128,'CDCM Volume Forecasts'!$A$27:$AG$123,C$137,FALSE) -> 0 | D163: =VLOOKUP(Vlookup!$B128,'CDCM Volume Forecasts'!$A$27:$AG$123,D$137,FALSE) -> 0 | E163: =VLOOKUP(Vlookup!$B128,'CDCM Volume Forecasts'!$A$27:$AG$123,E$137,FALSE) -> 0 | F163: =VLOOKUP(Vlookup!$B128,'CDCM Volume Forecasts'!$A$27:$AG$123,F$137,FALSE) -> 0 | G163: =VLOOKUP(Vlookup!$B128,'CDCM Volume Forecasts'!$A$27:$AG$123,G$137,FALSE) -> 0
A164: LDNO LV: Small Non Domestic Off Peak (related MPAN) | B164: =VLOOKUP(Vlookup!$B129,'CDCM Volume Forecasts'!$A$27:$AG$123,B$137,FALSE) -> 0 | C164: =VLOOKUP(Vlookup!$B129,'CDCM Volume Forecasts'!$A$27:$AG$123,C$137,FALSE) -> 0 | D164: =VLOOKUP(Vlookup!$B129,'CDCM Volume Forecasts'!$A$27:$AG$123,D$137,FALSE) -> 0 | E164: =VLOOKUP(Vlookup!$B129,'CDCM Volume Forecasts'!$A$27:$AG$123,E$137,FALSE) -> 0 | F164: =VLOOKUP(Vlookup!$B129,'CDCM Volume Forecasts'!$A$27:$AG$123,F$137,FALSE) -> 0 | G164: =VLOOKUP(Vlookup!$B129,'CDCM Volume Forecasts'!$A$27:$AG$123,G$137,FALSE) -> 0
A165: LDNO HV: Small Non Domestic Off Peak (related MPAN) | B165: =VLOOKUP(Vlookup!$B130,'CDCM Volume Forecasts'!$A$27:$AG$123,B$137,FALSE) -> 0 | C165: =VLOOKUP(Vlookup!$B130,'CDCM Volume Forecasts'!$A$27:$AG$123,C$137,FALSE) -> 0 | D165: =VLOOKUP(Vlookup!$B130,'CDCM Volume Forecasts'!$A$27:$AG$123,D$137,FALSE) -> 0 | E165: =VLOOKUP(Vlookup!$B130,'CDCM Volume Forecasts'!$A$27:$AG$123,E$137,FALSE) -> 0 | F165: =VLOOKUP(Vlookup!$B130,'CDCM Volume Forecasts'!$A$27:$AG$123,F$137,FALSE) -> 0 | G165: =VLOOKUP(Vlookup!$B130,'CDCM Volume Forecasts'!$A$27:$AG$123,G$137,FALSE) -> 0
A166: > LV Medium Non-Domestic | B166: =VLOOKUP(Vlookup!$B131,'CDCM Volume Forecasts'!$A$27:$AG$123,B$137,FALSE) -> 0 | C166: =VLOOKUP(Vlookup!$B131,'CDCM Volume Forecasts'!$A$27:$AG$123,C$137,FALSE) -> 0 | D166: =VLOOKUP(Vlookup!$B131,'CDCM Volume Forecasts'!$A$27:$AG$123,D$137,FALSE) -> 0 | E166: =VLOOKUP(Vlookup!$B131,'CDCM Volume Forecasts'!$A$27:$AG$123,E$137,FALSE) -> 0 | F166: =VLOOKUP(Vlookup!$B131,'CDCM Volume Forecasts'!$A$27:$AG$123,F$137,FALSE) -> 0 | G166: =VLOOKUP(Vlookup!$B131,'CDCM Volume Forecasts'!$A$27:$AG$123,G$137,FALSE) -> 0
A167: LV Medium Non-Domestic | B167: =VLOOKUP(Vlookup!$B132,'CDCM Volume Forecasts'!$A$27:$AG$123,B$137,FALSE) -> 379857.6711 | C167: =VLOOKUP(Vlookup!$B132,'CDCM Volume Forecasts'!$A$27:$AG$123,C$137,FALSE) -> 99896.63982 | D167: =VLOOKUP(Vlookup!$B132,'CDCM Volume Forecasts'!$A$27:$AG$123,D$137,FALSE) -> 0 | E167: =VLOOKUP(Vlookup!$B132,'CDCM Volume Forecasts'!$A$27:$AG$123,E$137,FALSE) -> 4728 | F167: =VLOOKUP(Vlookup!$B132,'CDCM Volume Forecasts'!$A$27:$AG$123,F$137,FALSE) -> 0 | G167: =VLOOKUP(Vlookup!$B132,'CDCM Volume Forecasts'!$A$27:$AG$123,G$137,FALSE) -> 0
A168: LDNO LV: LV Medium Non-Domestic | B168: =VLOOKUP(Vlookup!$B133,'CDCM Volume Forecasts'!$A$27:$AG$123,B$137,FALSE) -> 0 | C168: =VLOOKUP(Vlookup!$B133,'CDCM Volume Forecasts'!$A$27:$AG$123,C$137,FALSE) -> 0 | D168: =VLOOKUP(Vlookup!$B133,'CDCM Volume Forecasts'!$A$27:$AG$123,D$137,FALSE) -> 0 | E168: =VLOOKUP(Vlookup!$B133,'CDCM Volume Forecasts'!$A$27:$AG$123,E$137,FALSE) -> 0 | F168: =VLOOKUP(Vlookup!$B133,'CDCM Volume Forecasts'!$A$27:$AG$123,F$137,FALSE) -> 0 | G168: =VLOOKUP(Vlookup!$B133,'CDCM Volume Forecasts'!$A$27:$AG$123,G$137,FALSE) -> 0
A169: LDNO HV: LV Medium Non-Domestic | B169: =VLOOKUP(Vlookup!$B134,'CDCM Volume Forecasts'!$A$27:$AG$123,B$137,FALSE) -> 1094.445243 | C169: =VLOOKUP(Vlookup!$B134,'CDCM Volume Forecasts'!$A$27:$AG$123,C$137,FALSE) -> 144.8538285 | D169: =VLOOKUP(Vlookup!$B134,'CDCM Volume Forecasts'!$A$27:$AG$123,D$137,FALSE) -> 0 | E169: =VLOOKUP(Vlookup!$B134,'CDCM Volume Forecasts'!$A$27:$AG$123,E$137,FALSE) -> 10 | F169: =VLOOKUP(Vlookup!$B134,'CDCM Volume Forecasts'!$A$27:$AG$123,F$137,FALSE) -> 0 | G169: =VLOOKUP(Vlookup!$B134,'CDCM Volume Forecasts'!$A$27:$AG$123,G$137,FALSE) -> 0
A170: > LV Sub Medium Non-Domestic | B170: =VLOOKUP(Vlookup!$B135,'CDCM Volume Forecasts'!$A$27:$AG$123,B$137,FALSE) -> 0 | C170: =VLOOKUP(Vlookup!$B135,'CDCM Volume Forecasts'!$A$27:$AG$123,C$137,FALSE) -> 0 | D170: =VLOOKUP(Vlookup!$B135,'CDCM Volume Forecasts'!$A$27:$AG$123,D$137,FALSE) -> 0 | E170: =VLOOKUP(Vlookup!$B135,'CDCM Volume Forecasts'!$A$27:$AG$123,E$137,FALSE) -> 0 | F170: =VLOOKUP(Vlookup!$B135,'CDCM Volume Forecasts'!$A$27:$AG$123,F$137,FALSE) -> 0 | G170: =VLOOKUP(Vlookup!$B135,'CDCM Volume Forecasts'!$A$27:$AG$123,G$137,FALSE) -> 0
A171: LV Sub Medium Non-Domestic | B171: =VLOOKUP(Vlookup!$B136,'CDCM Volume Forecasts'!$A$27:$AG$123,B$137,FALSE) -> 517.040455 | C171: =VLOOKUP(Vlookup!$B136,'CDCM Volume Forecasts'!$A$27:$AG$123,C$137,FALSE) -> 136.8978314 | D171: =VLOOKUP(Vlookup!$B136,'CDCM Volume Forecasts'!$A$27:$AG$123,D$137,FALSE) -> 0 | E171: =VLOOKUP(Vlookup!$B136,'CDCM Volume Forecasts'!$A$27:$AG$123,E$137,FALSE) -> 4 | F171: =VLOOKUP(Vlookup!$B136,'CDCM Volume Forecasts'!$A$27:$AG$123,F$137,FALSE) -> 0 | G171: =VLOOKUP(Vlookup!$B136,'CDCM Volume Forecasts'!$A$27:$AG$123,G$137,FALSE) -> 0
A172: > HV Medium Non-Domestic | B172: =VLOOKUP(Vlookup!$B137,'CDCM Volume Forecasts'!$A$27:$AG$123,B$137,FALSE) -> 0 | C172: =VLOOKUP(Vlookup!$B137,'CDCM Volume Forecasts'!$A$27:$AG$123,C$137,FALSE) -> 0 | D172: =VLOOKUP(Vlookup!$B137,'CDCM Volume Forecasts'!$A$27:$AG$123,D$137,FALSE) -> 0 | E172: =VLOOKUP(Vlookup!$B137,'CDCM Volume Forecasts'!$A$27:$AG$123,E$137,FALSE) -> 0 | F172: =VLOOKUP(Vlookup!$B137,'CDCM Volume Forecasts'!$A$27:$AG$123,F$137,FALSE) -> 0 | G172: =VLOOKUP(Vlookup!$B137,'CDCM Volume Forecasts'!$A$27:$AG$123,G$137,FALSE) -> 0
A173: HV Medium Non-Domestic | B173: =VLOOKUP(Vlookup!$B138,'CDCM Volume Forecasts'!$A$27:$AG$123,B$137,FALSE) -> 753.6075426 | C173: =VLOOKUP(Vlookup!$B138,'CDCM Volume Forecasts'!$A$27:$AG$123,C$137,FALSE) -> 161.5955367 | D173: =VLOOKUP(Vlookup!$B138,'CDCM Volume Forecasts'!$A$27:$AG$123,D$137,FALSE) -> 0 | E173: =VLOOKUP(Vlookup!$B138,'CDCM Volume Forecasts'!$A$27:$AG$123,E$137,FALSE) -> 13 | F173: =VLOOKUP(Vlookup!$B138,'CDCM Volume Forecasts'!$A$27:$AG$123,F$137,FALSE) -> 0 | G173: =VLOOKUP(Vlookup!$B138,'CDCM Volume Forecasts'!$A$27:$AG$123,G$137,FALSE) -> 0
A174: > LV Network Domestic | B174: =VLOOKUP(Vlookup!$B139,'CDCM Volume Forecasts'!$A$27:$AG$123,B$137,FALSE) -> 0 | C174: =VLOOKUP(Vlookup!$B139,'CDCM Volume Forecasts'!$A$27:$AG$123,C$137,FALSE) -> 0 | D174: =VLOOKUP(Vlookup!$B139,'CDCM Volume Forecasts'!$A$27:$AG$123,D$137,FALSE) -> 0 | E174: =VLOOKUP(Vlookup!$B139,'CDCM Volume Forecasts'!$A$27:$AG$123,E$137,FALSE) -> 0 | F174: =VLOOKUP(Vlookup!$B139,'CDCM Volume Forecasts'!$A$27:$AG$123,F$137,FALSE) -> 0 | G174: =VLOOKUP(Vlookup!$B139,'CDCM Volume Forecasts'!$A$27:$AG$123,G$137,FALSE) -> 0
A175: LV Network Domestic | B175: =VLOOKUP(Vlookup!$B140,'CDCM Volume Forecasts'!$A$27:$AG$123,B$137,FALSE) -> 0 | C175: =VLOOKUP(Vlookup!$B140,'CDCM Volume Forecasts'!$A$27:$AG$123,C$137,FALSE) -> 0 | D175: =VLOOKUP(Vlookup!$B140,'CDCM Volume Forecasts'!$A$27:$AG$123,D$137,FALSE) -> 0 | E175: =VLOOKUP(Vlookup!$B140,'CDCM Volume Forecasts'!$A$27:$AG$123,E$137,FALSE) -> 0 | F175: =VLOOKUP(Vlookup!$B140,'CDCM Volume Forecasts'!$A$27:$AG$123,F$137,FALSE) -> 0 | G175: =VLOOKUP(Vlookup!$B140,'CDCM Volume Forecasts'!$A$27:$AG$123,G$137,FALSE) -> 0
A176: LDNO LV: LV Network Domestic | B176: =VLOOKUP(Vlookup!$B141,'CDCM Volume Forecasts'!$A$27:$AG$123,B$137,FALSE) -> 0 | C176: =VLOOKUP(Vlookup!$B141,'CDCM Volume Forecasts'!$A$27:$AG$123,C$137,FALSE) -> 0 | D176: =VLOOKUP(Vlookup!$B141,'CDCM Volume Forecasts'!$A$27:$AG$123,D$137,FALSE) -> 0 | E176: =VLOOKUP(Vlookup!$B141,'CDCM Volume Forecasts'!$A$27:$AG$123,E$137,FALSE) -> 0 | F176: =VLOOKUP(Vlookup!$B141,'CDCM Volume Forecasts'!$A$27:$AG$123,F$137,FALSE) -> 0 | G176: =VLOOKUP(Vlookup!$B141,'CDCM Volume Forecasts'!$A$27:$AG$123,G$137,FALSE) -> 0
A177: LDNO HV: LV Network Domestic | B177: =VLOOKUP(Vlookup!$B142,'CDCM Volume Forecasts'!$A$27:$AG$123,B$137,FALSE) -> 0 | C177: =VLOOKUP(Vlookup!$B142,'CDCM Volume Forecasts'!$A$27:$AG$123,C$137,FALSE) -> 0 | D177: =VLOOKUP(Vlookup!$B142,'CDCM Volume Forecasts'!$A$27:$AG$123,D$137,FALSE) -> 0 | E177: =VLOOKUP(Vlookup!$B142,'CDCM Volume Forecasts'!$A$27:$AG$123,E$137,FALSE) -> 0 | F177: =VLOOKUP(Vlookup!$B142,'CDCM Volume Forecasts'!$A$27:$AG$123,F$137,FALSE) -> 0 | G177: =VLOOKUP(Vlookup!$B142,'CDCM Volume Forecasts'!$A$27:$AG$123,G$137,FALSE) -> 0
A178: > LV Network Non-Domestic Non-CT | B178: =VLOOKUP(Vlookup!$B143,'CDCM Volume Forecasts'!$A$27:$AG$123,B$137,FALSE) -> 0 | C178: =VLOOKUP(Vlookup!$B143,'CDCM Volume Forecasts'!$A$27:$AG$123,C$137,FALSE) -> 0 | D178: =VLOOKUP(Vlookup!$B143,'CDCM Volume Forecasts'!$A$27:$AG$123,D$137,FALSE) -> 0 | E178: =VLOOKUP(Vlookup!$B143,'CDCM Volume Forecasts'!$A$27:$AG$123,E$137,FALSE) -> 0 | F178: =VLOOKUP(Vlookup!$B143,'CDCM Volume Forecasts'!$A$27:$AG$123,F$137,FALSE) -> 0 | G178: =VLOOKUP(Vlookup!$B143,'CDCM Volume Forecasts'!$A$27:$AG$123,G$137,FALSE) -> 0
A179: LV Network Non-Domestic Non-CT | B179: =VLOOKUP(Vlookup!$B144,'CDCM Volume Forecasts'!$A$27:$AG$123,B$137,FALSE) -> 0 | C179: =VLOOKUP(Vlookup!$B144,'CDCM Volume Forecasts'!$A$27:$AG$123,C$137,FALSE) -> 0 | D179: =VLOOKUP(Vlookup!$B144,'CDCM Volume Forecasts'!$A$27:$AG$123,D$137,FALSE) -> 0 | E179: =VLOOKUP(Vlookup!$B144,'CDCM Volume Forecasts'!$A$27:$AG$123,E$137,FALSE) -> 0 | F179: =VLOOKUP(Vlookup!$B144,'CDCM Volume Forecasts'!$A$27:$AG$123,F$137,FALSE) -> 0 | G179: =VLOOKUP(Vlookup!$B144,'CDCM Volume Forecasts'!$A$27:$AG$123,G$137,FALSE) -> 0
A180: LDNO LV: LV Network Non-Domestic Non-CT | B180: =VLOOKUP(Vlookup!$B145,'CDCM Volume Forecasts'!$A$27:$AG$123,B$137,FALSE) -> 0 | C180: =VLOOKUP(Vlookup!$B145,'CDCM Volume Forecasts'!$A$27:$AG$123,C$137,FALSE) -> 0 | D180: =VLOOKUP(Vlookup!$B145,'CDCM Volume Forecasts'!$A$27:$AG$123,D$137,FALSE) -> 0 | E180: =VLOOKUP(Vlookup!$B145,'CDCM Volume Forecasts'!$A$27:$AG$123,E$137,FALSE) -> 0 | F180: =VLOOKUP(Vlookup!$B145,'CDCM Volume Forecasts'!$A$27:$AG$123,F$137,FALSE) -> 0 | G180: =VLOOKUP(Vlookup!$B145,'CDCM Volume Forecasts'!$A$27:$AG$123,G$137,FALSE) -> 0
A181: LDNO HV: LV Network Non-Domestic Non-CT | B181: =VLOOKUP(Vlookup!$B146,'CDCM Volume Forecasts'!$A$27:$AG$123,B$137,FALSE) -> 0 | C181: =VLOOKUP(Vlookup!$B146,'CDCM Volume Forecasts'!$A$27:$AG$123,C$137,FALSE) -> 0 | D181: =VLOOKUP(Vlookup!$B146,'CDCM Volume Forecasts'!$A$27:$AG$123,D$137,FALSE) -> 0 | E181: =VLOOKUP(Vlookup!$B146,'CDCM Volume Forecasts'!$A$27:$AG$123,E$137,FALSE) -> 0 | F181: =VLOOKUP(Vlookup!$B146,'CDCM Volume Forecasts'!$A$27:$AG$123,F$137,FALSE) -> 0 | G181: =VLOOKUP(Vlookup!$B146,'CDCM Volume Forecasts'!$A$27:$AG$123,G$137,FALSE) -> 0
A182: > LV HH Metered | B182: =VLOOKUP(Vlookup!$B147,'CDCM Volume Forecasts'!$A$27:$AG$123,B$137,FALSE) -> 0 | C182: =VLOOKUP(Vlookup!$B147,'CDCM Volume Forecasts'!$A$27:$AG$123,C$137,FALSE) -> 0 | D182: =VLOOKUP(Vlookup!$B147,'CDCM Volume Forecasts'!$A$27:$AG$123,D$137,FALSE) -> 0 | E182: =VLOOKUP(Vlookup!$B147,'CDCM Volume Forecasts'!$A$27:$AG$123,E$137,FALSE) -> 0 | F182: =VLOOKUP(Vlookup!$B147,'CDCM Volume Forecasts'!$A$27:$AG$123,F$137,FALSE) -> 0 | G182: =VLOOKUP(Vlookup!$B147,'CDCM Volume Forecasts'!$A$27:$AG$123,G$137,FALSE) -> 0
A183: LV HH Metered | B183: =VLOOKUP(Vlookup!$B148,'CDCM Volume Forecasts'!$A$27:$AG$123,B$137,FALSE) -> 105280.6077 | C183: =VLOOKUP(Vlookup!$B148,'CDCM Volume Forecasts'!$A$27:$AG$123,C$137,FALSE) -> 666906.9124 | D183: =VLOOKUP(Vlookup!$B148,'CDCM Volume Forecasts'!$A$27:$AG$123,D$137,FALSE) -> 493272.9047 | E183: =VLOOKUP(Vlookup!$B148,'CDCM Volume Forecasts'!$A$27:$AG$123,E$137,FALSE) -> 3111 | F183: =VLOOKUP(Vlookup!$B148,'CDCM Volume Forecasts'!$A$27:$AG$123,F$137,FALSE) -> 578357 | G183: =VLOOKUP(Vlookup!$B148,'CDCM Volume Forecasts'!$A$27:$AG$123,G$137,FALSE) -> 121162
A184: LDNO LV: LV HH Metered | B184: =VLOOKUP(Vlookup!$B149,'CDCM Volume Forecasts'!$A$27:$AG$123,B$137,FALSE) -> 0 | C184: =VLOOKUP(Vlookup!$B149,'CDCM Volume Forecasts'!$A$27:$AG$123,C$137,FALSE) -> 0 | D184: =VLOOKUP(Vlookup!$B149,'CDCM Volume Forecasts'!$A$27:$AG$123,D$137,FALSE) -> 0 | E184: =VLOOKUP(Vlookup!$B149,'CDCM Volume Forecasts'!$A$27:$AG$123,E$137,FALSE) -> 0 | F184: =VLOOKUP(Vlookup!$B149,'CDCM Volume Forecasts'!$A$27:$AG$123,F$137,FALSE) -> 0 | G184: =VLOOKUP(Vlookup!$B149,'CDCM Volume Forecasts'!$A$27:$AG$123,G$137,FALSE) -> 0
A185: LDNO HV: LV HH Metered | B185: =VLOOKUP(Vlookup!$B150,'CDCM Volume Forecasts'!$A$27:$AG$123,B$137,FALSE) -> 1624.497247 | C185: =VLOOKUP(Vlookup!$B150,'CDCM Volume Forecasts'!$A$27:$AG$123,C$137,FALSE) -> 8871.815201 | D185: =VLOOKUP(Vlookup!$B150,'CDCM Volume Forecasts'!$A$27:$AG$123,D$137,FALSE) -> 6399.429536 | E185: =VLOOKUP(Vlookup!$B150,'CDCM Volume Forecasts'!$A$27:$AG$123,E$137,FALSE) -> 20 | F185: =VLOOKUP(Vlookup!$B150,'CDCM Volume Forecasts'!$A$27:$AG$123,F$137,FALSE) -> 6985 | G185: =VLOOKUP(Vlookup!$B150,'CDCM Volume Forecasts'!$A$27:$AG$123,G$137,FALSE) -> 558
A186: > LV Sub HH Metered | B186: =VLOOKUP(Vlookup!$B151,'CDCM Volume Forecasts'!$A$27:$AG$123,B$137,FALSE) -> 0 | C186: =VLOOKUP(Vlookup!$B151,'CDCM Volume Forecasts'!$A$27:$AG$123,C$137,FALSE) -> 0 | D186: =VLOOKUP(Vlookup!$B151,'CDCM Volume Forecasts'!$A$27:$AG$123,D$137,FALSE) -> 0 | E186: =VLOOKUP(Vlookup!$B151,'CDCM Volume Forecasts'!$A$27:$AG$123,E$137,FALSE) -> 0 | F186: =VLOOKUP(Vlookup!$B151,'CDCM Volume Forecasts'!$A$27:$AG$123,F$137,FALSE) -> 0 | G186: =VLOOKUP(Vlookup!$B151,'CDCM Volume Forecasts'!$A$27:$AG$123,G$137,FALSE) -> 0
A187: LV Sub HH Metered | B187: =VLOOKUP(Vlookup!$B152,'CDCM Volume Forecasts'!$A$27:$AG$123,B$137,FALSE) -> 1334.786654 | C187: =VLOOKUP(Vlookup!$B152,'CDCM Volume Forecasts'!$A$27:$AG$123,C$137,FALSE) -> 7582.74753 | D187: =VLOOKUP(Vlookup!$B152,'CDCM Volume Forecasts'!$A$27:$AG$123,D$137,FALSE) -> 5677.712435 | E187: =VLOOKUP(Vlookup!$B152,'CDCM Volume Forecasts'!$A$27:$AG$123,E$137,FALSE) -> 18 | F187: =VLOOKUP(Vlookup!$B152,'CDCM Volume Forecasts'!$A$27:$AG$123,F$137,FALSE) -> 6238 | G187: =VLOOKUP(Vlookup!$B152,'CDCM Volume Forecasts'!$A$27:$AG$123,G$137,FALSE) -> 1758
A188: LDNO HV: LV Sub HH Metered | B188: =VLOOKUP(Vlookup!$B153,'CDCM Volume Forecasts'!$A$27:$AG$123,B$137,FALSE) -> 439.0533099 | C188: =VLOOKUP(Vlookup!$B153,'CDCM Volume Forecasts'!$A$27:$AG$123,C$137,FALSE) -> 2397.787892 | D188: =VLOOKUP(Vlookup!$B153,'CDCM Volume Forecasts'!$A$27:$AG$123,D$137,FALSE) -> 1729.57555 | E188: =VLOOKUP(Vlookup!$B153,'CDCM Volume Forecasts'!$A$27:$AG$123,E$137,FALSE) -> 5 | F188: =VLOOKUP(Vlookup!$B153,'CDCM Volume Forecasts'!$A$27:$AG$123,F$137,FALSE) -> 1067 | G188: =VLOOKUP(Vlookup!$B153,'CDCM Volume Forecasts'!$A$27:$AG$123,G$137,FALSE) -> 113
A189: > HV HH Metered | B189: =VLOOKUP(Vlookup!$B154,'CDCM Volume Forecasts'!$A$27:$AG$123,B$137,FALSE) -> 0 | C189: =VLOOKUP(Vlookup!$B154,'CDCM Volume Forecasts'!$A$27:$AG$123,C$137,FALSE) -> 0 | D189: =VLOOKUP(Vlookup!$B154,'CDCM Volume Forecasts'!$A$27:$AG$123,D$137,FALSE) -> 0 | E189: =VLOOKUP(Vlookup!$B154,'CDCM Volume Forecasts'!$A$27:$AG$123,E$137,FALSE) -> 0 | F189: =VLOOKUP(Vlookup!$B154,'CDCM Volume Forecasts'!$A$27:$AG$123,F$137,FALSE) -> 0 | G189: =VLOOKUP(Vlookup!$B154,'CDCM Volume Forecasts'!$A$27:$AG$123,G$137,FALSE) -> 0
A190: HV HH Metered | B190: =VLOOKUP(Vlookup!$B155,'CDCM Volume Forecasts'!$A$27:$AG$123,B$137,FALSE) -> 168212.6081 | C190: =VLOOKUP(Vlookup!$B155,'CDCM Volume Forecasts'!$A$27:$AG$123,C$137,FALSE) -> 1015521.463 | D190: =VLOOKUP(Vlookup!$B155,'CDCM Volume Forecasts'!$A$27:$AG$123,D$137,FALSE) -> 952719.5658 | E190: =VLOOKUP(Vlookup!$B155,'CDCM Volume Forecasts'!$A$27:$AG$123,E$137,FALSE) -> 595 | F190: =VLOOKUP(Vlookup!$B155,'CDCM Volume Forecasts'!$A$27:$AG$123,F$137,FALSE) -> 696791 | G190: =VLOOKUP(Vlookup!$B155,'CDCM Volume Forecasts'!$A$27:$AG$123,G$137,FALSE) -> 160841
A191: LDNO HV: HV HH Metered | B191: =VLOOKUP(Vlookup!$B156,'CDCM Volume Forecasts'!$A$27:$AG$123,B$137,FALSE) -> 687.389194 | C191: =VLOOKUP(Vlookup!$B156,'CDCM Volume Forecasts'!$A$27:$AG$123,C$137,FALSE) -> 3897.128226 | D191: =VLOOKUP(Vlookup!$B156,'CDCM Volume Forecasts'!$A$27:$AG$123,D$137,FALSE) -> 3071.099793 | E191: =VLOOKUP(Vlookup!$B156,'CDCM Volume Forecasts'!$A$27:$AG$123,E$137,FALSE) -> 5 | F191: =VLOOKUP(Vlookup!$B156,'CDCM Volume Forecasts'!$A$27:$AG$123,F$137,FALSE) -> 4903 | G191: =VLOOKUP(Vlookup!$B156,'CDCM Volume Forecasts'!$A$27:$AG$123,G$137,FALSE) -> 358
A192: > NHH UMS category A | B192: =VLOOKUP(Vlookup!$B157,'CDCM Volume Forecasts'!$A$27:$AG$123,B$137,FALSE) -> 0 | C192: =VLOOKUP(Vlookup!$B157,'CDCM Volume Forecasts'!$A$27:$AG$123,C$137,FALSE) -> 0 | D192: =VLOOKUP(Vlookup!$B157,'CDCM Volume Forecasts'!$A$27:$AG$123,D$137,FALSE) -> 0 | E192: =VLOOKUP(Vlookup!$B157,'CDCM Volume Forecasts'!$A$27:$AG$123,E$137,FALSE) -> 0 | F192: =VLOOKUP(Vlookup!$B157,'CDCM Volume Forecasts'!$A$27:$AG$123,F$137,FALSE) -> 0 | G192: =VLOOKUP(Vlookup!$B157,'CDCM Volume Forecasts'!$A$27:$AG$123,G$137,FALSE) -> 0
A193: NHH UMS category A | B193: =VLOOKUP(Vlookup!$B158,'CDCM Volume Forecasts'!$A$27:$AG$123,B$137,FALSE) -> 7597.295734 | C193: =VLOOKUP(Vlookup!$B158,'CDCM Volume Forecasts'!$A$27:$AG$123,C$137,FALSE) -> 0 | D193: =VLOOKUP(Vlookup!$B158,'CDCM Volume Forecasts'!$A$27:$AG$123,D$137,FALSE) -> 0 | E193: =VLOOKUP(Vlookup!$B158,'CDCM Volume Forecasts'!$A$27:$AG$123,E$137,FALSE) -> 514 | F193: =VLOOKUP(Vlookup!$B158,'CDCM Volume Forecasts'!$A$27:$AG$123,F$137,FALSE) -> 0 | G193: =VLOOKUP(Vlookup!$B158,'CDCM Volume Forecasts'!$A$27:$AG$123,G$137,FALSE) -> 0
A194: LDNO LV: NHH UMS category A | B194: =VLOOKUP(Vlookup!$B159,'CDCM Volume Forecasts'!$A$27:$AG$123,B$137,FALSE) -> 38.5737956 | C194: =VLOOKUP(Vlookup!$B159,'CDCM Volume Forecasts'!$A$27:$AG$123,C$137,FALSE) -> 0 | D194: =VLOOKUP(Vlookup!$B159,'CDCM Volume Forecasts'!$A$27:$AG$123,D$137,FALSE) -> 0 | E194: =VLOOKUP(Vlookup!$B159,'CDCM Volume Forecasts'!$A$27:$AG$123,E$137,FALSE) -> 0 | F194: =VLOOKUP(Vlookup!$B159,'CDCM Volume Forecasts'!$A$27:$AG$123,F$137,FALSE) -> 0 | G194: =VLOOKUP(Vlookup!$B159,'CDCM Volume Forecasts'!$A$27:$AG$123,G$137,FALSE) -> 0
A195: LDNO HV: NHH UMS category A | B195: =VLOOKUP(Vlookup!$B160,'CDCM Volume Forecasts'!$A$27:$AG$123,B$137,FALSE) -> 180.4253354 | C195: =VLOOKUP(Vlookup!$B160,'CDCM Volume Forecasts'!$A$27:$AG$123,C$137,FALSE) -> 0 | D195: =VLOOKUP(Vlookup!$B160,'CDCM Volume Forecasts'!$A$27:$AG$123,D$137,FALSE) -> 0 | E195: =VLOOKUP(Vlookup!$B160,'CDCM Volume Forecasts'!$A$27:$AG$123,E$137,FALSE) -> 0 | F195: =VLOOKUP(Vlookup!$B160,'CDCM Volume Forecasts'!$A$27:$AG$123,F$137,FALSE) -> 0 | G195: =VLOOKUP(Vlookup!$B160,'CDCM Volume Forecasts'!$A$27:$AG$123,G$137,FALSE) -> 0
A196: > NHH UMS category B | B196: =VLOOKUP(Vlookup!$B161,'CDCM Volume Forecasts'!$A$27:$AG$123,B$137,FALSE) -> 0 | C196: =VLOOKUP(Vlookup!$B161,'CDCM Volume Forecasts'!$A$27:$AG$123,C$137,FALSE) -> 0 | D196: =VLOOKUP(Vlookup!$B161,'CDCM Volume Forecasts'!$A$27:$AG$123,D$137,FALSE) -> 0 | E196: =VLOOKUP(Vlookup!$B161,'CDCM Volume Forecasts'!$A$27:$AG$123,E$137,FALSE) -> 0 | F196: =VLOOKUP(Vlookup!$B161,'CDCM Volume Forecasts'!$A$27:$AG$123,F$137,FALSE) -> 0 | G196: =VLOOKUP(Vlookup!$B161,'CDCM Volume Forecasts'!$A$27:$AG$123,G$137,FALSE) -> 0
A197: NHH UMS category B | B197: =VLOOKUP(Vlookup!$B162,'CDCM Volume Forecasts'!$A$27:$AG$123,B$137,FALSE) -> 5952.574488 | C197: =VLOOKUP(Vlookup!$B162,'CDCM Volume Forecasts'!$A$27:$AG$123,C$137,FALSE) -> 0 | D197: =VLOOKUP(Vlookup!$B162,'CDCM Volume Forecasts'!$A$27:$AG$123,D$137,FALSE) -> 0 | E197: =VLOOKUP(Vlookup!$B162,'CDCM Volume Forecasts'!$A$27:$AG$123,E$137,FALSE) -> 749 | F197: =VLOOKUP(Vlookup!$B162,'CDCM Volume Forecasts'!$A$27:$AG$123,F$137,FALSE) -> 0 | G197: =VLOOKUP(Vlookup!$B162,'CDCM Volume Forecasts'!$A$27:$AG$123,G$137,FALSE) -> 0
A198: LDNO LV: NHH UMS category B | B198: =VLOOKUP(Vlookup!$B163,'CDCM Volume Forecasts'!$A$27:$AG$123,B$137,FALSE) -> 5.417933864 | C198: =VLOOKUP(Vlookup!$B163,'CDCM Volume Forecasts'!$A$27:$AG$123,C$137,FALSE) -> 0 | D198: =VLOOKUP(Vlookup!$B163,'CDCM Volume Forecasts'!$A$27:$AG$123,D$137,FALSE) -> 0 | E198: =VLOOKUP(Vlookup!$B163,'CDCM Volume Forecasts'!$A$27:$AG$123,E$137,FALSE) -> 0 | F198: =VLOOKUP(Vlookup!$B163,'CDCM Volume Forecasts'!$A$27:$AG$123,F$137,FALSE) -> 0 | G198: =VLOOKUP(Vlookup!$B163,'CDCM Volume Forecasts'!$A$27:$AG$123,G$137,FALSE) -> 0
A199: LDNO HV: NHH UMS category B | B199: =VLOOKUP(Vlookup!$B164,'CDCM Volume Forecasts'!$A$27:$AG$123,B$137,FALSE) -> 258.8270455 | C199: =VLOOKUP(Vlookup!$B164,'CDCM Volume Forecasts'!$A$27:$AG$123,C$137,FALSE) -> 0 | D199: =VLOOKUP(Vlookup!$B164,'CDCM Volume Forecasts'!$A$27:$AG$123,D$137,FALSE) -> 0 | E199: =VLOOKUP(Vlookup!$B164,'CDCM Volume Forecasts'!$A$27:$AG$123,E$137,FALSE) -> 0 | F199: =VLOOKUP(Vlookup!$B164,'CDCM Volume Forecasts'!$A$27:$AG$123,F$137,FALSE) -> 0 | G199: =VLOOKUP(Vlookup!$B164,'CDCM Volume Forecasts'!$A$27:$AG$123,G$137,FALSE) -> 0
A200: > NHH UMS category C | B200: =VLOOKUP(Vlookup!$B165,'CDCM Volume Forecasts'!$A$27:$AG$123,B$137,FALSE) -> 0 | C200: =VLOOKUP(Vlookup!$B165,'CDCM Volume Forecasts'!$A$27:$AG$123,C$137,FALSE) -> 0 | D200: =VLOOKUP(Vlookup!$B165,'CDCM Volume Forecasts'!$A$27:$AG$123,D$137,FALSE) -> 0 | E200: =VLOOKUP(Vlookup!$B165,'CDCM Volume Forecasts'!$A$27:$AG$123,E$137,FALSE) -> 0 | F200: =VLOOKUP(Vlookup!$B165,'CDCM Volume Forecasts'!$A$27:$AG$123,F$137,FALSE) -> 0 | G200: =VLOOKUP(Vlookup!$B165,'CDCM Volume Forecasts'!$A$27:$AG$123,G$137,FALSE) -> 0
A201: NHH UMS category C | B201: =VLOOKUP(Vlookup!$B166,'CDCM Volume Forecasts'!$A$27:$AG$123,B$137,FALSE) -> 378.2703802 | C201: =VLOOKUP(Vlookup!$B166,'CDCM Volume Forecasts'!$A$27:$AG$123,C$137,FALSE) -> 0 | D201: =VLOOKUP(Vlookup!$B166,'CDCM Volume Forecasts'!$A$27:$AG$123,D$137,FALSE) -> 0 | E201: =VLOOKUP(Vlookup!$B166,'CDCM Volume Forecasts'!$A$27:$AG$123,E$137,FALSE) -> 84 | F201: =VLOOKUP(Vlookup!$B166,'CDCM Volume Forecasts'!$A$27:$AG$123,F$137,FALSE) -> 0 | G201: =VLOOKUP(Vlookup!$B166,'CDCM Volume Forecasts'!$A$27:$AG$123,G$137,FALSE) -> 0
A202: LDNO LV: NHH UMS category C | B202: =VLOOKUP(Vlookup!$B167,'CDCM Volume Forecasts'!$A$27:$AG$123,B$137,FALSE) -> 0 | C202: =VLOOKUP(Vlookup!$B167,'CDCM Volume Forecasts'!$A$27:$AG$123,C$137,FALSE) -> 0 | D202: =VLOOKUP(Vlookup!$B167,'CDCM Volume Forecasts'!$A$27:$AG$123,D$137,FALSE) -> 0 | E202: =VLOOKUP(Vlookup!$B167,'CDCM Volume Forecasts'!$A$27:$AG$123,E$137,FALSE) -> 0 | F202: =VLOOKUP(Vlookup!$B167,'CDCM Volume Forecasts'!$A$27:$AG$123,F$137,FALSE) -> 0 | G202: =VLOOKUP(Vlookup!$B167,'CDCM Volume Forecasts'!$A$27:$AG$123,G$137,FALSE) -> 0
A203: LDNO HV: NHH UMS category C | B203: =VLOOKUP(Vlookup!$B168,'CDCM Volume Forecasts'!$A$27:$AG$123,B$137,FALSE) -> 0 | C203: =VLOOKUP(Vlookup!$B168,'CDCM Volume Forecasts'!$A$27:$AG$123,C$137,FALSE) -> 0 | D203: =VLOOKUP(Vlookup!$B168,'CDCM Volume Forecasts'!$A$27:$AG$123,D$137,FALSE) -> 0 | E203: =VLOOKUP(Vlookup!$B168,'CDCM Volume Forecasts'!$A$27:$AG$123,E$137,FALSE) -> 0 | F203: =VLOOKUP(Vlookup!$B168,'CDCM Volume Forecasts'!$A$27:$AG$123,F$137,FALSE) -> 0 | G203: =VLOOKUP(Vlookup!$B168,'CDCM Volume Forecasts'!$A$27:$AG$123,G$137,FALSE) -> 0
A204: > NHH UMS category D | B204: =VLOOKUP(Vlookup!$B169,'CDCM Volume Forecasts'!$A$27:$AG$123,B$137,FALSE) -> 0 | C204: =VLOOKUP(Vlookup!$B169,'CDCM Volume Forecasts'!$A$27:$AG$123,C$137,FALSE) -> 0 | D204: =VLOOKUP(Vlookup!$B169,'CDCM Volume Forecasts'!$A$27:$AG$123,D$137,FALSE) -> 0 | E204: =VLOOKUP(Vlookup!$B169,'CDCM Volume Forecasts'!$A$27:$AG$123,E$137,FALSE) -> 0 | F204: =VLOOKUP(Vlookup!$B169,'CDCM Volume Forecasts'!$A$27:$AG$123,F$137,FALSE) -> 0 | G204: =VLOOKUP(Vlookup!$B169,'CDCM Volume Forecasts'!$A$27:$AG$123,G$137,FALSE) -> 0
A205: NHH UMS category D | B205: =VLOOKUP(Vlookup!$B170,'CDCM Volume Forecasts'!$A$27:$AG$123,B$137,FALSE) -> 0 | C205: =VLOOKUP(Vlookup!$B170,'CDCM Volume Forecasts'!$A$27:$AG$123,C$137,FALSE) -> 0 | D205: =VLOOKUP(Vlookup!$B170,'CDCM Volume Forecasts'!$A$27:$AG$123,D$137,FALSE) -> 0 | E205: =VLOOKUP(Vlookup!$B170,'CDCM Volume Forecasts'!$A$27:$AG$123,E$137,FALSE) -> 1 | F205: =VLOOKUP(Vlookup!$B170,'CDCM Volume Forecasts'!$A$27:$AG$123,F$137,FALSE) -> 0 | G205: =VLOOKUP(Vlookup!$B170,'CDCM Volume Forecasts'!$A$27:$AG$123,G$137,FALSE) -> 0
A206: LDNO LV: NHH UMS category D | B206: =VLOOKUP(Vlookup!$B171,'CDCM Volume Forecasts'!$A$27:$AG$123,B$137,FALSE) -> 0 | C206: =VLOOKUP(Vlookup!$B171,'CDCM Volume Forecasts'!$A$27:$AG$123,C$137,FALSE) -> 0 | D206: =VLOOKUP(Vlookup!$B171,'CDCM Volume Forecasts'!$A$27:$AG$123,D$137,FALSE) -> 0 | E206: =VLOOKUP(Vlookup!$B171,'CDCM Volume Forecasts'!$A$27:$AG$123,E$137,FALSE) -> 0 | F206: =VLOOKUP(Vlookup!$B171,'CDCM Volume Forecasts'!$A$27:$AG$123,F$137,FALSE) -> 0 | G206: =VLOOKUP(Vlookup!$B171,'CDCM Volume Forecasts'!$A$27:$AG$123,G$137,FALSE) -> 0
A207: LDNO HV: NHH UMS category D | B207: =VLOOKUP(Vlookup!$B172,'CDCM Volume Forecasts'!$A$27:$AG$123,B$137,FALSE) -> 0 | C207: =VLOOKUP(Vlookup!$B172,'CDCM Volume Forecasts'!$A$27:$AG$123,C$137,FALSE) -> 0 | D207: =VLOOKUP(Vlookup!$B172,'CDCM Volume Forecasts'!$A$27:$AG$123,D$137,FALSE) -> 0 | E207: =VLOOKUP(Vlookup!$B172,'CDCM Volume Forecasts'!$A$27:$AG$123,E$137,FALSE) -> 0 | F207: =VLOOKUP(Vlookup!$B172,'CDCM Volume Forecasts'!$A$27:$AG$123,F$137,FALSE) -> 0 | G207: =VLOOKUP(Vlookup!$B172,'CDCM Volume Forecasts'!$A$27:$AG$123,G$137,FALSE) -> 0
A208: > LV UMS (Pseudo HH Metered) | B208: =VLOOKUP(Vlookup!$B173,'CDCM Volume Forecasts'!$A$27:$AG$123,B$137,FALSE) -> 0 | C208: =VLOOKUP(Vlookup!$B173,'CDCM Volume Forecasts'!$A$27:$AG$123,C$137,FALSE) -> 0 | D208: =VLOOKUP(Vlookup!$B173,'CDCM Volume Forecasts'!$A$27:$AG$123,D$137,FALSE) -> 0 | E208: =VLOOKUP(Vlookup!$B173,'CDCM Volume Forecasts'!$A$27:$AG$123,E$137,FALSE) -> 0 | F208: =VLOOKUP(Vlookup!$B173,'CDCM Volume Forecasts'!$A$27:$AG$123,F$137,FALSE) -> 0 | G208: =VLOOKUP(Vlookup!$B173,'CDCM Volume Forecasts'!$A$27:$AG$123,G$137,FALSE) -> 0
A209: LV UMS (Pseudo HH Metered) | B209: =VLOOKUP(Vlookup!$B174,'CDCM Volume Forecasts'!$A$27:$AG$123,B$137,FALSE) -> 6228.095998 | C209: =VLOOKUP(Vlookup!$B174,'CDCM Volume Forecasts'!$A$27:$AG$123,C$137,FALSE) -> 35918.74585 | D209: =VLOOKUP(Vlookup!$B174,'CDCM Volume Forecasts'!$A$27:$AG$123,D$137,FALSE) -> 102458.5463 | E209: =VLOOKUP(Vlookup!$B174,'CDCM Volume Forecasts'!$A$27:$AG$123,E$137,FALSE) -> 26 | F209: =VLOOKUP(Vlookup!$B174,'CDCM Volume Forecasts'!$A$27:$AG$123,F$137,FALSE) -> 0 | G209: =VLOOKUP(Vlookup!$B174,'CDCM Volume Forecasts'!$A$27:$AG$123,G$137,FALSE) -> 0
A210: LDNO LV: LV UMS (Pseudo HH Metered) | B210: =VLOOKUP(Vlookup!$B175,'CDCM Volume Forecasts'!$A$27:$AG$123,B$137,FALSE) -> 0 | C210: =VLOOKUP(Vlookup!$B175,'CDCM Volume Forecasts'!$A$27:$AG$123,C$137,FALSE) -> 0 | D210: =VLOOKUP(Vlookup!$B175,'CDCM Volume Forecasts'!$A$27:$AG$123,D$137,FALSE) -> 0 | E210: =VLOOKUP(Vlookup!$B175,'CDCM Volume Forecasts'!$A$27:$AG$123,E$137,FALSE) -> 0 | F210: =VLOOKUP(Vlookup!$B175,'CDCM Volume Forecasts'!$A$27:$AG$123,F$137,FALSE) -> 0 | G210: =VLOOKUP(Vlookup!$B175,'CDCM Volume Forecasts'!$A$27:$AG$123,G$137,FALSE) -> 0
A211: LDNO HV: LV UMS (Pseudo HH Metered) | B211: =VLOOKUP(Vlookup!$B176,'CDCM Volume Forecasts'!$A$27:$AG$123,B$137,FALSE) -> 0 | C211: =VLOOKUP(Vlookup!$B176,'CDCM Volume Forecasts'!$A$27:$AG$123,C$137,FALSE) -> 0 | D211: =VLOOKUP(Vlookup!$B176,'CDCM Volume Forecasts'!$A$27:$AG$123,D$137,FALSE) -> 0 | E211: =VLOOKUP(Vlookup!$B176,'CDCM Volume Forecasts'!$A$27:$AG$123,E$137,FALSE) -> 0 | F211: =VLOOKUP(Vlookup!$B176,'CDCM Volume Forecasts'!$A$27:$AG$123,F$137,FALSE) -> 0 | G211: =VLOOKUP(Vlookup!$B176,'CDCM Volume Forecasts'!$A$27:$AG$123,G$137,FALSE) -> 0
A212: > LV Generation NHH or Aggregate HH | B212: =VLOOKUP(Vlookup!$B177,'CDCM Volume Forecasts'!$A$27:$AG$123,B$137,FALSE) -> 0 | C212: =VLOOKUP(Vlookup!$B177,'CDCM Volume Forecasts'!$A$27:$AG$123,C$137,FALSE) -> 0 | D212: =VLOOKUP(Vlookup!$B177,'CDCM Volume Forecasts'!$A$27:$AG$123,D$137,FALSE) -> 0 | E212: =VLOOKUP(Vlookup!$B177,'CDCM Volume Forecasts'!$A$27:$AG$123,E$137,FALSE) -> 0 | F212: =VLOOKUP(Vlookup!$B177,'CDCM Volume Forecasts'!$A$27:$AG$123,F$137,FALSE) -> 0 | G212: =VLOOKUP(Vlookup!$B177,'CDCM Volume Forecasts'!$A$27:$AG$123,G$137,FALSE) -> 0
A213: LV Generation NHH or Aggregate HH | B213: =VLOOKUP(Vlookup!$B178,'CDCM Volume Forecasts'!$A$27:$AG$123,B$137,FALSE) -> 602.2974873 | C213: =VLOOKUP(Vlookup!$B178,'CDCM Volume Forecasts'!$A$27:$AG$123,C$137,FALSE) -> 0 | D213: =VLOOKUP(Vlookup!$B178,'CDCM Volume Forecasts'!$A$27:$AG$123,D$137,FALSE) -> 0 | E213: =VLOOKUP(Vlookup!$B178,'CDCM Volume Forecasts'!$A$27:$AG$123,E$137,FALSE) -> 130 | F213: =VLOOKUP(Vlookup!$B178,'CDCM Volume Forecasts'!$A$27:$AG$123,F$137,FALSE) -> 0 | G213: =VLOOKUP(Vlookup!$B178,'CDCM Volume Forecasts'!$A$27:$AG$123,G$137,FALSE) -> 0
A214: LDNO LV: LV Generation NHH or Aggregate HH | B214: =VLOOKUP(Vlookup!$B179,'CDCM Volume Forecasts'!$A$27:$AG$123,B$137,FALSE) -> 0 | C214: =VLOOKUP(Vlookup!$B179,'CDCM Volume Forecasts'!$A$27:$AG$123,C$137,FALSE) -> 0 | D214: =VLOOKUP(Vlookup!$B179,'CDCM Volume Forecasts'!$A$27:$AG$123,D$137,FALSE) -> 0 | E214: =VLOOKUP(Vlookup!$B179,'CDCM Volume Forecasts'!$A$27:$AG$123,E$137,FALSE) -> 0 | F214: =VLOOKUP(Vlookup!$B179,'CDCM Volume Forecasts'!$A$27:$AG$123,F$137,FALSE) -> 0 | G214: =VLOOKUP(Vlookup!$B179,'CDCM Volume Forecasts'!$A$27:$AG$123,G$137,FALSE) -> 0
A215: LDNO HV: LV Generation NHH or Aggregate HH | B215: =VLOOKUP(Vlookup!$B180,'CDCM Volume Forecasts'!$A$27:$AG$123,B$137,FALSE) -> 0 | C215: =VLOOKUP(Vlookup!$B180,'CDCM Volume Forecasts'!$A$27:$AG$123,C$137,FALSE) -> 0 | D215: =VLOOKUP(Vlookup!$B180,'CDCM Volume Forecasts'!$A$27:$AG$123,D$137,FALSE) -> 0 | E215: =VLOOKUP(Vlookup!$B180,'CDCM Volume Forecasts'!$A$27:$AG$123,E$137,FALSE) -> 0 | F215: =VLOOKUP(Vlookup!$B180,'CDCM Volume Forecasts'!$A$27:$AG$123,F$137,FALSE) -> 0 | G215: =VLOOKUP(Vlookup!$B180,'CDCM Volume Forecasts'!$A$27:$AG$123,G$137,FALSE) -> 0
A216: > LV Sub Generation NHH | B216: =VLOOKUP(Vlookup!$B181,'CDCM Volume Forecasts'!$A$27:$AG$123,B$137,FALSE) -> 0 | C216: =VLOOKUP(Vlookup!$B181,'CDCM Volume Forecasts'!$A$27:$AG$123,C$137,FALSE) -> 0 | D216: =VLOOKUP(Vlookup!$B181,'CDCM Volume Forecasts'!$A$27:$AG$123,D$137,FALSE) -> 0 | E216: =VLOOKUP(Vlookup!$B181,'CDCM Volume Forecasts'!$A$27:$AG$123,E$137,FALSE) -> 0 | F216: =VLOOKUP(Vlookup!$B181,'CDCM Volume Forecasts'!$A$27:$AG$123,F$137,FALSE) -> 0 | G216: =VLOOKUP(Vlookup!$B181,'CDCM Volume Forecasts'!$A$27:$AG$123,G$137,FALSE) -> 0
A217: LV Sub Generation NHH | B217: =VLOOKUP(Vlookup!$B182,'CDCM Volume Forecasts'!$A$27:$AG$123,B$137,FALSE) -> 0 | C217: =VLOOKUP(Vlookup!$B182,'CDCM Volume Forecasts'!$A$27:$AG$123,C$137,FALSE) -> 0 | D217: =VLOOKUP(Vlookup!$B182,'CDCM Volume Forecasts'!$A$27:$AG$123,D$137,FALSE) -> 0 | E217: =VLOOKUP(Vlookup!$B182,'CDCM Volume Forecasts'!$A$27:$AG$123,E$137,FALSE) -> 0 | F217: =VLOOKUP(Vlookup!$B182,'CDCM Volume Forecasts'!$A$27:$AG$123,F$137,FALSE) -> 0 | G217: =VLOOKUP(Vlookup!$B182,'CDCM Volume Forecasts'!$A$27:$AG$123,G$137,FALSE) -> 0
A218: LDNO HV: LV Sub Generation NHH | B218: =VLOOKUP(Vlookup!$B183,'CDCM Volume Forecasts'!$A$27:$AG$123,B$137,FALSE) -> 0 | C218: =VLOOKUP(Vlookup!$B183,'CDCM Volume Forecasts'!$A$27:$AG$123,C$137,FALSE) -> 0 | D218: =VLOOKUP(Vlookup!$B183,'CDCM Volume Forecasts'!$A$27:$AG$123,D$137,FALSE) -> 0 | E218: =VLOOKUP(Vlookup!$B183,'CDCM Volume Forecasts'!$A$27:$AG$123,E$137,FALSE) -> 0 | F218: =VLOOKUP(Vlookup!$B183,'CDCM Volume Forecasts'!$A$27:$AG$123,F$137,FALSE) -> 0 | G218: =VLOOKUP(Vlookup!$B183,'CDCM Volume Forecasts'!$A$27:$AG$123,G$137,FALSE) -> 0
A219: > LV Generation Intermittent | B219: =VLOOKUP(Vlookup!$B184,'CDCM Volume Forecasts'!$A$27:$AG$123,B$137,FALSE) -> 0 | C219: =VLOOKUP(Vlookup!$B184,'CDCM Volume Forecasts'!$A$27:$AG$123,C$137,FALSE) -> 0 | D219: =VLOOKUP(Vlookup!$B184,'CDCM Volume Forecasts'!$A$27:$AG$123,D$137,FALSE) -> 0 | E219: =VLOOKUP(Vlookup!$B184,'CDCM Volume Forecasts'!$A$27:$AG$123,E$137,FALSE) -> 0 | F219: =VLOOKUP(Vlookup!$B184,'CDCM Volume Forecasts'!$A$27:$AG$123,F$137,FALSE) -> 0 | G219: =VLOOKUP(Vlookup!$B184,'CDCM Volume Forecasts'!$A$27:$AG$123,G$137,FALSE) -> 0
A220: LV Generation Intermittent | B220: =VLOOKUP(Vlookup!$B185,'CDCM Volume Forecasts'!$A$27:$AG$123,B$137,FALSE) -> 9529.950474 | C220: =VLOOKUP(Vlookup!$B185,'CDCM Volume Forecasts'!$A$27:$AG$123,C$137,FALSE) -> 0 | D220: =VLOOKUP(Vlookup!$B185,'CDCM Volume Forecasts'!$A$27:$AG$123,D$137,FALSE) -> 0 | E220: =VLOOKUP(Vlookup!$B185,'CDCM Volume Forecasts'!$A$27:$AG$123,E$137,FALSE) -> 146 | F220: =VLOOKUP(Vlookup!$B185,'CDCM Volume Forecasts'!$A$27:$AG$123,F$137,FALSE) -> 0 | G220: =VLOOKUP(Vlookup!$B185,'CDCM Volume Forecasts'!$A$27:$AG$123,G$137,FALSE) -> 338
A221: LDNO LV: LV Generation Intermittent | B221: =VLOOKUP(Vlookup!$B186,'CDCM Volume Forecasts'!$A$27:$AG$123,B$137,FALSE) -> 0 | C221: =VLOOKUP(Vlookup!$B186,'CDCM Volume Forecasts'!$A$27:$AG$123,C$137,FALSE) -> 0 | D221: =VLOOKUP(Vlookup!$B186,'CDCM Volume Forecasts'!$A$27:$AG$123,D$137,FALSE) -> 0 | E221: =VLOOKUP(Vlookup!$B186,'CDCM Volume Forecasts'!$A$27:$AG$123,E$137,FALSE) -> 0 | F221: =VLOOKUP(Vlookup!$B186,'CDCM Volume Forecasts'!$A$27:$AG$123,F$137,FALSE) -> 0 | G221: =VLOOKUP(Vlookup!$B186,'CDCM Volume Forecasts'!$A$27:$AG$123,G$137,FALSE) -> 0
A222: LDNO HV: LV Generation Intermittent | B222: =VLOOKUP(Vlookup!$B187,'CDCM Volume Forecasts'!$A$27:$AG$123,B$137,FALSE) -> 0 | C222: =VLOOKUP(Vlookup!$B187,'CDCM Volume Forecasts'!$A$27:$AG$123,C$137,FALSE) -> 0 | D222: =VLOOKUP(Vlookup!$B187,'CDCM Volume Forecasts'!$A$27:$AG$123,D$137,FALSE) -> 0 | E222: =VLOOKUP(Vlookup!$B187,'CDCM Volume Forecasts'!$A$27:$AG$123,E$137,FALSE) -> 0 | F222: =VLOOKUP(Vlookup!$B187,'CDCM Volume Forecasts'!$A$27:$AG$123,F$137,FALSE) -> 0 | G222: =VLOOKUP(Vlookup!$B187,'CDCM Volume Forecasts'!$A$27:$AG$123,G$137,FALSE) -> 0
A223: > LV Generation Non-Intermittent | B223: =VLOOKUP(Vlookup!$B188,'CDCM Volume Forecasts'!$A$27:$AG$123,B$137,FALSE) -> 0 | C223: =VLOOKUP(Vlookup!$B188,'CDCM Volume Forecasts'!$A$27:$AG$123,C$137,FALSE) -> 0 | D223: =VLOOKUP(Vlookup!$B188,'CDCM Volume Forecasts'!$A$27:$AG$123,D$137,FALSE) -> 0 | E223: =VLOOKUP(Vlookup!$B188,'CDCM Volume Forecasts'!$A$27:$AG$123,E$137,FALSE) -> 0 | F223: =VLOOKUP(Vlookup!$B188,'CDCM Volume Forecasts'!$A$27:$AG$123,F$137,FALSE) -> 0 | G223: =VLOOKUP(Vlookup!$B188,'CDCM Volume Forecasts'!$A$27:$AG$123,G$137,FALSE) -> 0
A224: LV Generation Non-Intermittent | B224: =VLOOKUP(Vlookup!$B189,'CDCM Volume Forecasts'!$A$27:$AG$123,B$137,FALSE) -> 130.2286029 | C224: =VLOOKUP(Vlookup!$B189,'CDCM Volume Forecasts'!$A$27:$AG$123,C$137,FALSE) -> 867.149333 | D224: =VLOOKUP(Vlookup!$B189,'CDCM Volume Forecasts'!$A$27:$AG$123,D$137,FALSE) -> 897.8999599 | E224: =VLOOKUP(Vlookup!$B189,'CDCM Volume Forecasts'!$A$27:$AG$123,E$137,FALSE) -> 11 | F224: =VLOOKUP(Vlookup!$B189,'CDCM Volume Forecasts'!$A$27:$AG$123,F$137,FALSE) -> 0 | G224: =VLOOKUP(Vlookup!$B189,'CDCM Volume Forecasts'!$A$27:$AG$123,G$137,FALSE) -> 31
A225: LDNO LV: LV Generation Non-Intermittent | B225: =VLOOKUP(Vlookup!$B190,'CDCM Volume Forecasts'!$A$27:$AG$123,B$137,FALSE) -> 0 | C225: =VLOOKUP(Vlookup!$B190,'CDCM Volume Forecasts'!$A$27:$AG$123,C$137,FALSE) -> 0 | D225: =VLOOKUP(Vlookup!$B190,'CDCM Volume Forecasts'!$A$27:$AG$123,D$137,FALSE) -> 0 | E225: =VLOOKUP(Vlookup!$B190,'CDCM Volume Forecasts'!$A$27:$AG$123,E$137,FALSE) -> 0 | F225: =VLOOKUP(Vlookup!$B190,'CDCM Volume Forecasts'!$A$27:$AG$123,F$137,FALSE) -> 0 | G225: =VLOOKUP(Vlookup!$B190,'CDCM Volume Forecasts'!$A$27:$AG$123,G$137,FALSE) -> 0
A226: LDNO HV: LV Generation Non-Intermittent | B226: =VLOOKUP(Vlookup!$B191,'CDCM Volume Forecasts'!$A$27:$AG$123,B$137,FALSE) -> 0 | C226: =VLOOKUP(Vlookup!$B191,'CDCM Volume Forecasts'!$A$27:$AG$123,C$137,FALSE) -> 0 | D226: =VLOOKUP(Vlookup!$B191,'CDCM Volume Forecasts'!$A$27:$AG$123,D$137,FALSE) -> 0 | E226: =VLOOKUP(Vlookup!$B191,'CDCM Volume Forecasts'!$A$27:$AG$123,E$137,FALSE) -> 0 | F226: =VLOOKUP(Vlookup!$B191,'CDCM Volume Forecasts'!$A$27:$AG$123,F$137,FALSE) -> 0 | G226: =VLOOKUP(Vlookup!$B191,'CDCM Volume Forecasts'!$A$27:$AG$123,G$137,FALSE) -> 0
A227: > LV Sub Generation Intermittent | B227: =VLOOKUP(Vlookup!$B192,'CDCM Volume Forecasts'!$A$27:$AG$123,B$137,FALSE) -> 0 | C227: =VLOOKUP(Vlookup!$B192,'CDCM Volume Forecasts'!$A$27:$AG$123,C$137,FALSE) -> 0 | D227: =VLOOKUP(Vlookup!$B192,'CDCM Volume Forecasts'!$A$27:$AG$123,D$137,FALSE) -> 0 | E227: =VLOOKUP(Vlookup!$B192,'CDCM Volume Forecasts'!$A$27:$AG$123,E$137,FALSE) -> 0 | F227: =VLOOKUP(Vlookup!$B192,'CDCM Volume Forecasts'!$A$27:$AG$123,F$137,FALSE) -> 0 | G227: =VLOOKUP(Vlookup!$B192,'CDCM Volume Forecasts'!$A$27:$AG$123,G$137,FALSE) -> 0
A228: LV Sub Generation Intermittent | B228: =VLOOKUP(Vlookup!$B193,'CDCM Volume Forecasts'!$A$27:$AG$123,B$137,FALSE) -> 37.671 | C228: =VLOOKUP(Vlookup!$B193,'CDCM Volume Forecasts'!$A$27:$AG$123,C$137,FALSE) -> 0 | D228: =VLOOKUP(Vlookup!$B193,'CDCM Volume Forecasts'!$A$27:$AG$123,D$137,FALSE) -> 0 | E228: =VLOOKUP(Vlookup!$B193,'CDCM Volume Forecasts'!$A$27:$AG$123,E$137,FALSE) -> 1 | F228: =VLOOKUP(Vlookup!$B193,'CDCM Volume Forecasts'!$A$27:$AG$123,F$137,FALSE) -> 0 | G228: =VLOOKUP(Vlookup!$B193,'CDCM Volume Forecasts'!$A$27:$AG$123,G$137,FALSE) -> 0
... 81 more rows

Sheet (Y+1)
A1: Input data (Y+1)
A4: 1000. Company, charging year, data version
B6: Company | C6: Year | D6: Version
A7: Company, charging year, data version | B7: =VLOOKUP(Vlookup!B7,'CDCM Forecast Data'!$A$14:$I$271,6,FALSE) -> 0 | C7: =VLOOKUP(Vlookup!C7,'CDCM Forecast Data'!$A$14:$I$271,6,FALSE) -> 0 | D7: =VLOOKUP(Vlookup!D7,'CDCM Forecast Data'!$A$14:$I$271,6,FALSE) -> 0
A9: 1010. Financial and general assumptions
A11: Sources: financial assumptions; calendar; network model.
A12: These financial assumptions determine the annuity rate applied to convert the asset values of the network model into an annual charge.
B13: Rate of return | C13: Annualisation period (years) | D13: Annuity proportion for customer-contributed assets | E13: Power factor | F13: Days in the charging period
A14: Financial and general assumptions | B14: =VLOOKUP(Vlookup!B14,'CDCM Forecast Data'!$A$14:$I$271,6,FALSE) -> 0.056 | C14: =VLOOKUP(Vlookup!C14,'CDCM Forecast Data'!$A$14:$I$271,6,FALSE) -> 40 | E14: =VLOOKUP(Vlookup!E14,'CDCM Forecast Data'!$A$14:$I$271,6,FALSE) -> 0.95 | F14: =VLOOKUP(Vlookup!F14,'CDCM Forecast Data'!$A$14:$I$271,6,FALSE) -> 365
A16: 1017. Diversity allowance between top and bottom of network level
A18: Source: operational data analysis and/or network model.
A19: The diversity figure against GSP is the diversity between GSP Group (the whole system) and individual GSPs.
A20: The diversity figure against 132kV is the diversity between GSPs (the top of the 132kV network) and 132kV/EHV bulk supply points (the bottom of the 132kV network).
A21: The diversity figure against EHV is the diversity between 132kV/EHV bulk supply points (the top of the EHV network) and EHV/HV primary substations (the bottom of the EHV network).
A22: The diversity figure against HV is the diversity between EHV/HV primary substations (the top of the HV network) and HV/LV substations (the bottom of the HV network).
B23: Diversity allowance between top and bottom of network level
A24: GSPs | B24: =VLOOKUP(Vlookup!B24,'CDCM Forecast Data'!$A$14:$I$271,6,FALSE) -> 0.06382978723
A25: 132kV | B25: =VLOOKUP(Vlookup!B25,'CDCM Forecast Data'!$A$14:$I$271,6,FALSE) -> 0.053
A26: 132kV/EHV
A27: EHV | B27: =VLOOKUP(Vlookup!B27,'CDCM Forecast Data'!$A$14:$I$271,6,FALSE) -> 0.099
A28: EHV/HV
A29: HV | B29: =VLOOKUP(Vlookup!B29,'CDCM Forecast Data'!$A$14:$I$271,6,FALSE) -> 0.37
A30: HV/LV
A31: LV circuits
A33: 1018. Proportion of relevant load going through 132kV/HV direct transformation
B35: 132kV/HV
A36: EHV/HV | B36: =VLOOKUP(Vlookup!B36,'CDCM Forecast Data'!$A$14:$I$271,6,FALSE) -> 0.3
A38: 1019. Network model GSP peak demand (MW)
B40: Network model GSP peak demand (MW)
A41: Network model GSP peak demand (MW) | B41: =VLOOKUP(Vlookup!B41,'CDCM Forecast Data'!$A$14:$I$271,6,FALSE) -> 500
A43: 1020. Gross asset cost by network level (£)
B45: Gross assets £
A46: 132kV | B46: =VLOOKUP(Vlookup!B46,'CDCM Forecast Data'!$A$14:$I$271,6,FALSE) -> 129768341.4
A47: 132kV/EHV | B47: =VLOOKUP(Vlookup!B47,'CDCM Forecast Data'!$A$14:$I$271,6,FALSE) -> 11461874.67
A48: EHV | B48: =VLOOKUP(Vlookup!B48,'CDCM Forecast Data'!$A$14:$I$271,6,FALSE) -> 34011588.19
A49: EHV/HV | B49: =VLOOKUP(Vlookup!B49,'CDCM Forecast Data'!$A$14:$I$271,6,FALSE) -> 29589844.91
A50: 132kV/HV | B50: =VLOOKUP(Vlookup!B50,'CDCM Forecast Data'!$A$14:$I$271,6,FALSE) -> 9528375.246
A51: HV | B51: =VLOOKUP(Vlookup!B51,'CDCM Forecast Data'!$A$14:$I$271,6,FALSE) -> 142733572.5
A52: HV/LV | B52: =VLOOKUP(Vlookup!B52,'CDCM Forecast Data'!$A$14:$I$271,6,FALSE) -> 55142476.59
A53: LV circuits | B53: =VLOOKUP(Vlookup!B53,'CDCM Forecast Data'!$A$14:$I$271,6,FALSE) -> 113568500.3
A55: 1022. LV service model asset cost (£)
B57: LV service model 1 | C57: LV service model 2 | D57: LV service model 3 | E57: LV service model 4 | F57: LV service model 5 | G57: LV service model 6 | H57: LV service model 7 | I57: LV service model 8
A58: LV service model asset cost (£) | B58: =VLOOKUP(Vlookup!B58,'CDCM Forecast Data'!$A$14:$I$271,6,FALSE) -> 5105.17672 | C58: =VLOOKUP(Vlookup!C58,'CDCM Forecast Data'!$A$14:$I$271,6,FALSE) -> 574.28134 | D58: =VLOOKUP(Vlookup!D58,'CDCM Forecast Data'!$A$14:$I$271,6,FALSE) -> 699.18344 | E58: =VLOOKUP(Vlookup!E58,'CDCM Forecast Data'!$A$14:$I$271,6,FALSE) -> 518.5284 | F58: =VLOOKUP(Vlookup!F58,'CDCM Forecast Data'!$A$14:$I$271,6,FALSE) -> 1178.730448 | G58: =VLOOKUP(Vlookup!G58,'CDCM Forecast Data'!$A$14:$I$271,6,FALSE) -> 907.87362 | H58: =VLOOKUP(Vlookup!H58,'CDCM Forecast Data'!$A$14:$I$271,6,FALSE) -> 0 | I58: =VLOOKUP(Vlookup!I58,'CDCM Forecast Data'!$A$14:$I$271,6,FALSE) -> 474.8232
A60: 1023. HV service model asset cost (£)
B62: HV service model 1 | C62: HV service model 2 | D62: HV service model 3 | E62: HV service model 4 | F62: HV service model 5
A63: HV service model asset cost (£) | B63: =VLOOKUP(Vlookup!B63,'CDCM Forecast Data'!$A$14:$I$271,6,FALSE) -> 9007.159776 | C63: =VLOOKUP(Vlookup!C63,'CDCM Forecast Data'!$A$14:$I$271,6,FALSE) -> 4342.656 | D63: =VLOOKUP(Vlookup!D63,'CDCM Forecast Data'!$A$14:$I$271,6,FALSE) -> 0 | E63: =VLOOKUP(Vlookup!E63,'CDCM Forecast Data'!$A$14:$I$271,6,FALSE) -> 0 | F63: =VLOOKUP(Vlookup!F63,'CDCM Forecast Data'!$A$14:$I$271,6,FALSE) -> 0
A65: 1025. Matrix of applicability of LV service models to tariffs with fixed charges
B66: 10 | C66: =B66+1 -> 11 | D66: 12 | E66: 13 | F66: 14 | G66: 15 | H66: 16 | I66: 17
B67: LV service model 1 | C67: LV service model 2 | D67: LV service model 3 | E67: LV service model 4 | F67: LV service model 5 | G67: LV service model 6 | H67: LV service model 7 | I67: LV service model 8
A68: Domestic Unrestricted | B68: =VLOOKUP($A68,'Mat of App'!$B$7:$AP$37,B$66,FALSE) -> 0.05 | C68: =VLOOKUP($A68,'Mat of App'!$B$7:$AP$37,C$66,FALSE) -> 0 | D68: =VLOOKUP($A68,'Mat of App'!$B$7:$AP$37,D$66,FALSE) -> 0 | E68: =VLOOKUP($A68,'Mat of App'!$B$7:$AP$37,E$66,FALSE) -> 0 | F68: =VLOOKUP($A68,'Mat of App'!$B$7:$AP$37,F$66,FALSE) -> 0 | G68: =VLOOKUP($A68,'Mat of App'!$B$7:$AP$37,G$66,FALSE) -> 0 | H68: =VLOOKUP($A68,'Mat of App'!$B$7:$AP$37,H$66,FALSE) -> 0 | I68: =VLOOKUP($A68,'Mat of App'!$B$7:$AP$37,I$66,FALSE) -> 0
A69: Domestic Two Rate | B69: =VLOOKUP($A69,'Mat of App'!$B$7:$AP$37,B$66,FALSE) -> 0.05 | C69: =VLOOKUP($A69,'Mat of App'!$B$7:$AP$37,C$66,FALSE) -> 0 | D69: =VLOOKUP($A69,'Mat of App'!$B$7:$AP$37,D$66,FALSE) -> 0 | E69: =VLOOKUP($A69,'Mat of App'!$B$7:$AP$37,E$66,FALSE) -> 0 | F69: =VLOOKUP($A69,'Mat of App'!$B$7:$AP$37,F$66,FALSE) -> 0 | G69: =VLOOKUP($A69,'Mat of App'!$B$7:$AP$37,G$66,FALSE) -> 0 | H69: =VLOOKUP($A69,'Mat of App'!$B$7:$AP$37,H$66,FALSE) -> 0 | I69: =VLOOKUP($A69,'Mat of App'!$B$7:$AP$37,I$66,FALSE) -> 0
A70: Small Non Domestic Unrestricted | B70: =VLOOKUP($A70,'Mat of App'!$B$7:$AP$37,B$66,FALSE) -> 0 | C70: =VLOOKUP($A70,'Mat of App'!$B$7:$AP$37,C$66,FALSE) -> 1 | D70: =VLOOKUP($A70,'Mat of App'!$B$7:$AP$37,D$66,FALSE) -> 0 | E70: =VLOOKUP($A70,'Mat of App'!$B$7:$AP$37,E$66,FALSE) -> 0 | F70: =VLOOKUP($A70,'Mat of App'!$B$7:$AP$37,F$66,FALSE) -> 0 | G70: =VLOOKUP($A70,'Mat of App'!$B$7:$AP$37,G$66,FALSE) -> 0 | H70: =VLOOKUP($A70,'Mat of App'!$B$7:$AP$37,H$66,FALSE) -> 0 | I70: =VLOOKUP($A70,'Mat of App'!$B$7:$AP$37,I$66,FALSE) -> 0
A71: Small Non Domestic Two Rate | B71: =VLOOKUP($A71,'Mat of App'!$B$7:$AP$37,B$66,FALSE) -> 0 | C71: =VLOOKUP($A71,'Mat of App'!$B$7:$AP$37,C$66,FALSE) -> 1 | D71: =VLOOKUP($A71,'Mat of App'!$B$7:$AP$37,D$66,FALSE) -> 0 | E71: =VLOOKUP($A71,'Mat of App'!$B$7:$AP$37,E$66,FALSE) -> 0 | F71: =VLOOKUP($A71,'Mat of App'!$B$7:$AP$37,F$66,FALSE) -> 0 | G71: =VLOOKUP($A71,'Mat of App'!$B$7:$AP$37,G$66,FALSE) -> 0 | H71: =VLOOKUP($A71,'Mat of App'!$B$7:$AP$37,H$66,FALSE) -> 0 | I71: =VLOOKUP($A71,'Mat of App'!$B$7:$AP$37,I$66,FALSE) -> 0
A72: LV Medium Non-Domestic | B72: =VLOOKUP($A72,'Mat of App'!$B$7:$AP$37,B$66,FALSE) -> 0 | C72: =VLOOKUP($A72,'Mat of App'!$B$7:$AP$37,C$66,FALSE) -> 0 | D72: =VLOOKUP($A72,'Mat of App'!$B$7:$AP$37,D$66,FALSE) -> 1 | E72: =VLOOKUP($A72,'Mat of App'!$B$7:$AP$37,E$66,FALSE) -> 0 | F72: =VLOOKUP($A72,'Mat of App'!$B$7:$AP$37,F$66,FALSE) -> 0 | G72: =VLOOKUP($A72,'Mat of App'!$B$7:$AP$37,G$66,FALSE) -> 0 | H72: =VLOOKUP($A72,'Mat of App'!$B$7:$AP$37,H$66,FALSE) -> 0 | I72: =VLOOKUP($A72,'Mat of App'!$B$7:$AP$37,I$66,FALSE) -> 0
A73: LV Sub Medium Non-Domestic | B73: =VLOOKUP($A73,'Mat of App'!$B$7:$AP$37,B$66,FALSE) -> 0 | C73: =VLOOKUP($A73,'Mat of App'!$B$7:$AP$37,C$66,FALSE) -> 0 | D73: =VLOOKUP($A73,'Mat of App'!$B$7:$AP$37,D$66,FALSE) -> 0 | E73: =VLOOKUP($A73,'Mat of App'!$B$7:$AP$37,E$66,FALSE) -> 1 | F73: =VLOOKUP($A73,'Mat of App'!$B$7:$AP$37,F$66,FALSE) -> 0 | G73: =VLOOKUP($A73,'Mat of App'!$B$7:$AP$37,G$66,FALSE) -> 0 | H73: =VLOOKUP($A73,'Mat of App'!$B$7:$AP$37,H$66,FALSE) -> 0 | I73: =VLOOKUP($A73,'Mat of App'!$B$7:$AP$37,I$66,FALSE) -> 0
A74: LV Network Domestic | B74: =VLOOKUP($A74,'Mat of App'!$B$7:$AP$37,B$66,FALSE) -> 0.05 | C74: =VLOOKUP($A74,'Mat of App'!$B$7:$AP$37,C$66,FALSE) -> 0 | D74: =VLOOKUP($A74,'Mat of App'!$B$7:$AP$37,D$66,FALSE) -> 0 | E74: =VLOOKUP($A74,'Mat of App'!$B$7:$AP$37,E$66,FALSE) -> 0 | F74: =VLOOKUP($A74,'Mat of App'!$B$7:$AP$37,F$66,FALSE) -> 0 | G74: =VLOOKUP($A74,'Mat of App'!$B$7:$AP$37,G$66,FALSE) -> 0 | H74: =VLOOKUP($A74,'Mat of App'!$B$7:$AP$37,H$66,FALSE) -> 0 | I74: =VLOOKUP($A74,'Mat of App'!$B$7:$AP$37,I$66,FALSE) -> 0
A75: LV Network Non-Domestic Non-CT | B75: =VLOOKUP($A75,'Mat of App'!$B$7:$AP$37,B$66,FALSE) -> 0 | C75: =VLOOKUP($A75,'Mat of App'!$B$7:$AP$37,C$66,FALSE) -> 1 | D75: =VLOOKUP($A75,'Mat of App'!$B$7:$AP$37,D$66,FALSE) -> 0 | E75: =VLOOKUP($A75,'Mat of App'!$B$7:$AP$37,E$66,FALSE) -> 0 | F75: =VLOOKUP($A75,'Mat of App'!$B$7:$AP$37,F$66,FALSE) -> 0 | G75: =VLOOKUP($A75,'Mat of App'!$B$7:$AP$37,G$66,FALSE) -> 0 | H75: =VLOOKUP($A75,'Mat of App'!$B$7:$AP$37,H$66,FALSE) -> 0 | I75: =VLOOKUP($A75,'Mat of App'!$B$7:$AP$37,I$66,FALSE) -> 0
A76: LV HH Metered | B76: =VLOOKUP($A76,'Mat of App'!$B$7:$AP$37,B$66,FALSE) -> 0 | C76: =VLOOKUP($A76,'Mat of App'!$B$7:$AP$37,C$66,FALSE) -> 0 | D76: =VLOOKUP($A76,'Mat of App'!$B$7:$AP$37,D$66,FALSE) -> 0 | E76: =VLOOKUP($A76,'Mat of App'!$B$7:$AP$37,E$66,FALSE) -> 0 | F76: =VLOOKUP($A76,'Mat of App'!$B$7:$AP$37,F$66,FALSE) -> 1 | G76: =VLOOKUP($A76,'Mat of App'!$B$7:$AP$37,G$66,FALSE) -> 0 | H76: =VLOOKUP($A76,'Mat of App'!$B$7:$AP$37,H$66,FALSE) -> 0 | I76: =VLOOKUP($A76,'Mat of App'!$B$7:$AP$37,I$66,FALSE) -> 0
A77: LV Sub HH Metered | B77: =VLOOKUP($A77,'Mat of App'!$B$7:$AP$37,B$66,FALSE) -> 0 | C77: =VLOOKUP($A77,'Mat of App'!$B$7:$AP$37,C$66,FALSE) -> 0 | D77: =VLOOKUP($A77,'Mat of App'!$B$7:$AP$37,D$66,FALSE) -> 0 | E77: =VLOOKUP($A77,'Mat of App'!$B$7:$AP$37,E$66,FALSE) -> 0 | F77: =VLOOKUP($A77,'Mat of App'!$B$7:$AP$37,F$66,FALSE) -> 0 | G77: =VLOOKUP($A77,'Mat of App'!$B$7:$AP$37,G$66,FALSE) -> 1 | H77: =VLOOKUP($A77,'Mat of App'!$B$7:$AP$37,H$66,FALSE) -> 0 | I77: =VLOOKUP($A77,'Mat of App'!$B$7:$AP$37,I$66,FALSE) -> 0
A78: LV Generation NHH or Aggregate HH | B78: =VLOOKUP($A78,'Mat of App'!$B$7:$AP$37,B$66,FALSE) -> 0 | C78: =VLOOKUP($A78,'Mat of App'!$B$7:$AP$37,C$66,FALSE) -> 0 | D78: =VLOOKUP($A78,'Mat of App'!$B$7:$AP$37,D$66,FALSE) -> 0 | E78: =VLOOKUP($A78,'Mat of App'!$B$7:$AP$37,E$66,FALSE) -> 0 | F78: =VLOOKUP($A78,'Mat of App'!$B$7:$AP$37,F$66,FALSE) -> 0 | G78: =VLOOKUP($A78,'Mat of App'!$B$7:$AP$37,G$66,FALSE) -> 0 | H78: =VLOOKUP($A78,'Mat of App'!$B$7:$AP$37,H$66,FALSE) -> 1 | I78: =VLOOKUP($A78,'Mat of App'!$B$7:$AP$37,I$66,FALSE) -> 0
A79: LV Sub Generation NHH | B79: =VLOOKUP($A79,'Mat of App'!$B$7:$AP$37,B$66,FALSE) -> 0 | C79: =VLOOKUP($A79,'Mat of App'!$B$7:$AP$37,C$66,FALSE) -> 0 | D79: =VLOOKUP($A79,'Mat of App'!$B$7:$AP$37,D$66,FALSE) -> 0 | E79: =VLOOKUP($A79,'Mat of App'!$B$7:$AP$37,E$66,FALSE) -> 0 | F79: =VLOOKUP($A79,'Mat of App'!$B$7:$AP$37,F$66,FALSE) -> 0 | G79: =VLOOKUP($A79,'Mat of App'!$B$7:$AP$37,G$66,FALSE) -> 0 | H79: =VLOOKUP($A79,'Mat of App'!$B$7:$AP$37,H$66,FALSE) -> 1 | I79: =VLOOKUP($A79,'Mat of App'!$B$7:$AP$37,I$66,FALSE) -> 0
A80: LV Generation Intermittent | B80: =VLOOKUP($A80,'Mat of App'!$B$7:$AP$37,B$66,FALSE) -> 0 | C80: =VLOOKUP($A80,'Mat of App'!$B$7:$AP$37,C$66,FALSE) -> 0 | D80: =VLOOKUP($A80,'Mat of App'!$B$7:$AP$37,D$66,FALSE) -> 0 | E80: =VLOOKUP($A80,'Mat of App'!$B$7:$AP$37,E$66,FALSE) -> 0 | F80: =VLOOKUP($A80,'Mat of App'!$B$7:$AP$37,F$66,FALSE) -> 0 | G80: =VLOOKUP($A80,'Mat of App'!$B$7:$AP$37,G$66,FALSE) -> 0 | H80: =VLOOKUP($A80,'Mat of App'!$B$7:$AP$37,H$66,FALSE) -> 1 | I80: =VLOOKUP($A80,'Mat of App'!$B$7:$AP$37,I$66,FALSE) -> 0
A81: LV Generation Non-Intermittent | B81: =VLOOKUP($A81,'Mat of App'!$B$7:$AP$37,B$66,FALSE) -> 0 | C81: =VLOOKUP($A81,'Mat of App'!$B$7:$AP$37,C$66,FALSE) -> 0 | D81: =VLOOKUP($A81,'Mat of App'!$B$7:$AP$37,D$66,FALSE) -> 0 | E81: =VLOOKUP($A81,'Mat of App'!$B$7:$AP$37,E$66,FALSE) -> 0 | F81: =VLOOKUP($A81,'Mat of App'!$B$7:$AP$37,F$66,FALSE) -> 0 | G81: =VLOOKUP($A81,'Mat of App'!$B$7:$AP$37,G$66,FALSE) -> 0 | H81: =VLOOKUP($A81,'Mat of App'!$B$7:$AP$37,H$66,FALSE) -> 0 | I81: =VLOOKUP($A81,'Mat of App'!$B$7:$AP$37,I$66,FALSE) -> 0
A82: LV Sub Generation Intermittent | B82: =VLOOKUP($A82,'Mat of App'!$B$7:$AP$37,B$66,FALSE) -> 0 | C82: =VLOOKUP($A82,'Mat of App'!$B$7:$AP$37,C$66,FALSE) -> 0 | D82: =VLOOKUP($A82,'Mat of App'!$B$7:$AP$37,D$66,FALSE) -> 0 | E82: =VLOOKUP($A82,'Mat of App'!$B$7:$AP$37,E$66,FALSE) -> 0 | F82: =VLOOKUP($A82,'Mat of App'!$B$7:$AP$37,F$66,FALSE) -> 0 | G82: =VLOOKUP($A82,'Mat of App'!$B$7:$AP$37,G$66,FALSE) -> 0 | H82: =VLOOKUP($A82,'Mat of App'!$B$7:$AP$37,H$66,FALSE) -> 0 | I82: =VLOOKUP($A82,'Mat of App'!$B$7:$AP$37,I$66,FALSE) -> 0
A83: LV Sub Generation Non-Intermittent | B83: =VLOOKUP($A83,'Mat of App'!$B$7:$AP$37,B$66,FALSE) -> 0 | C83: =VLOOKUP($A83,'Mat of App'!$B$7:$AP$37,C$66,FALSE) -> 0 | D83: =VLOOKUP($A83,'Mat of App'!$B$7:$AP$37,D$66,FALSE) -> 0 | E83: =VLOOKUP($A83,'Mat of App'!$B$7:$AP$37,E$66,FALSE) -> 0 | F83: =VLOOKUP($A83,'Mat of App'!$B$7:$AP$37,F$66,FALSE) -> 0 | G83: =VLOOKUP($A83,'Mat of App'!$B$7:$AP$37,G$66,FALSE) -> 0 | H83: =VLOOKUP($A83,'Mat of App'!$B$7:$AP$37,H$66,FALSE) -> 0 | I83: =VLOOKUP($A83,'Mat of App'!$B$7:$AP$37,I$66,FALSE) -> 0
A85: 1026. Matrix of applicability of LV service models to unmetered tariffs
A87: Source: service models
A88: Proportion of service model involved in connecting load of 1 MWh/year
B89: LV service model 1 | C89: LV service model 2 | D89: LV service model 3 | E89: LV service model 4 | F89: LV service model 5 | G89: LV service model 6 | H89: LV service model 7 | I89: LV service model 8
A90: All LV unmetered tariffs | B90: =VLOOKUP($A90,'Mat of App'!$B$7:$AP$37,B$66,FALSE) -> 0 | C90: =VLOOKUP($A90,'Mat of App'!$B$7:$AP$37,C$66,FALSE) -> 0 | D90: =VLOOKUP($A90,'Mat of App'!$B$7:$AP$37,D$66,FALSE) -> 0 | E90: =VLOOKUP($A90,'Mat of App'!$B$7:$AP$37,E$66,FALSE) -> 0 | F90: =VLOOKUP($A90,'Mat of App'!$B$7:$AP$37,F$66,FALSE) -> 0 | G90: =VLOOKUP($A90,'Mat of App'!$B$7:$AP$37,G$66,FALSE) -> 0 | H90: =VLOOKUP($A90,'Mat of App'!$B$7:$AP$37,H$66,FALSE) -> 0 | I90: =VLOOKUP($A90,'Mat of App'!$B$7:$AP$37,I$66,FALSE) -> 0.4876
A92: 1028. Matrix of applicability of HV service models to tariffs with fixed charges
B93: 7 | C93: =B93+1 -> 8 | D93: =C93+1 -> 9 | E93: =D93+1 -> 10 | F93: =E93+1 -> 11
B94: HV service model 1 | C94: HV service model 2 | D94: HV service model 3 | E94: HV service model 4 | F94: HV service model 5
A95: HV Medium Non-Domestic | B95: =VLOOKUP($A95,'Mat of App'!$B$7:$AP$37,B$93,FALSE) -> 1 | C95: =VLOOKUP($A95,'Mat of App'!$B$7:$AP$37,C$93,FALSE) -> 0 | D95: =VLOOKUP($A95,'Mat of App'!$B$7:$AP$37,D$93,FALSE) -> 0 | E95: =VLOOKUP($A95,'Mat of App'!$B$7:$AP$37,E$93,FALSE) -> 0 | F95: =VLOOKUP($A95,'Mat of App'!$B$7:$AP$37,F$93,FALSE) -> 0
A96: HV HH Metered | B96: =VLOOKUP($A96,'Mat of App'!$B$7:$AP$37,B$93,FALSE) -> 1 | C96: =VLOOKUP($A96,'Mat of App'!$B$7:$AP$37,C$93,FALSE) -> 0 | D96: =VLOOKUP($A96,'Mat of App'!$B$7:$AP$37,D$93,FALSE) -> 0 | E96: =VLOOKUP($A96,'Mat of App'!$B$7:$AP$37,E$93,FALSE) -> 0 | F96: =VLOOKUP($A96,'Mat of App'!$B$7:$AP$37,F$93,FALSE) -> 0
A97: HV Generation Intermittent | B97: =VLOOKUP($A97,'Mat of App'!$B$7:$AP$37,B$93,FALSE) -> 0 | C97: =VLOOKUP($A97,'Mat of App'!$B$7:$AP$37,C$93,FALSE) -> 1 | D97: =VLOOKUP($A97,'Mat of App'!$B$7:$AP$37,D$93,FALSE) -> 0 | E97: =VLOOKUP($A97,'Mat of App'!$B$7:$AP$37,E$93,FALSE) -> 0 | F97: =VLOOKUP($A97,'Mat of App'!$B$7:$AP$37,F$93,FALSE) -> 0
A98: HV Generation Non-Intermittent | B98: =VLOOKUP($A98,'Mat of App'!$B$7:$AP$37,B$93,FALSE) -> 0 | C98: =VLOOKUP($A98,'Mat of App'!$B$7:$AP$37,C$93,FALSE) -> 1 | D98: =VLOOKUP($A98,'Mat of App'!$B$7:$AP$37,D$93,FALSE) -> 0 | E98: =VLOOKUP($A98,'Mat of App'!$B$7:$AP$37,E$93,FALSE) -> 0 | F98: =VLOOKUP($A98,'Mat of App'!$B$7:$AP$37,F$93,FALSE) -> 0
A100: 1032. Loss adjustment factors to transmission
A102: Source: losses model or loss adjustment factors at time of system peak.
B103: 132kV | C103: 132kV/EHV | D103: EHV | E103: EHV/HV | F103: HV | G103: HV/LV | H103: LV circuits
A104: Loss adjustment factor | B104: =VLOOKUP(Vlookup!B69,'CDCM Forecast Data'!$A$14:$I$271,6,FALSE) -> 1.0097 | C104: =VLOOKUP(Vlookup!C69,'CDCM Forecast Data'!$A$14:$I$271,6,FALSE) -> 1.0142 | D104: =VLOOKUP(Vlookup!D69,'CDCM Forecast Data'!$A$14:$I$271,6,FALSE) -> 1.027 | E104: =VLOOKUP(Vlookup!E69,'CDCM Forecast Data'!$A$14:$I$271,6,FALSE) -> 1.0349 | F104: =VLOOKUP(Vlookup!F69,'CDCM Forecast Data'!$A$14:$I$271,6,FALSE) -> 1.0439 | G104: =VLOOKUP(Vlookup!G69,'CDCM Forecast Data'!$A$14:$I$271,6,FALSE) -> 1.064 | H104: =VLOOKUP(Vlookup!H69,'CDCM Forecast Data'!$A$14:$I$271,6,FALSE) -> 1.085
A106: 1037. Embedded network (LDNO) discounts
A108: Source: separate price control disaggregation model.
B109: No discount | C109: LDNO LV: LV user | D109: LDNO HV: LV user | E109: LDNO HV: LV sub user | F109: LDNO HV: HV user
A110: LDNO discount | C110: =VLOOKUP(Vlookup!C75,'CDCM Forecast Data'!$A$14:$I$271,6,FALSE) -> 0.3196377719 | D110: =VLOOKUP(Vlookup!D75,'CDCM Forecast Data'!$A$14:$I$271,6,FALSE) -> 0.6384671566 | E110: =VLOOKUP(Vlookup!E75,'CDCM Forecast Data'!$A$14:$I$271,6,FALSE) -> 0.4534915681 | F110: =VLOOKUP(Vlookup!F75,'CDCM Forecast Data'!$A$14:$I$271,6,FALSE) -> 0.3444440504
A112: 1041. Load profile data for demand users
A114: Source: load data analysis.
B115: Coincidence factor | C115: Load factor
A116: Domestic Unrestricted | B116: =VLOOKUP(Vlookup!B81,'CDCM Forecast Data'!$A$14:$I$271,6,FALSE) -> 0.8575951603 | C116: =VLOOKUP(Vlookup!C81,'CDCM Forecast Data'!$A$14:$I$271,6,FALSE) -> 0.4400357438
A117: Domestic Two Rate | B117: =VLOOKUP(Vlookup!B82,'CDCM Forecast Data'!$A$14:$I$271,6,FALSE) -> 0.2886294187 | C117: =VLOOKUP(Vlookup!C82,'CDCM Forecast Data'!$A$14:$I$271,6,FALSE) -> 0.2499789884
A118: Domestic Off Peak (related MPAN) | C118: =VLOOKUP(Vlookup!C83,'CDCM Forecast Data'!$A$14:$I$271,6,FALSE) -> 0.2572184053
A119: Small Non Domestic Unrestricted | B119: =VLOOKUP(Vlookup!B84,'CDCM Forecast Data'!$A$14:$I$271,6,FALSE) -> 0.6306309916 | C119: =VLOOKUP(Vlookup!C84,'CDCM Forecast Data'!$A$14:$I$271,6,FALSE) -> 0.4114192423
A120: Small Non Domestic Two Rate | B120: =VLOOKUP(Vlookup!B85,'CDCM Forecast Data'!$A$14:$I$271,6,FALSE) -> 0.7254970091 | C120: =VLOOKUP(Vlookup!C85,'CDCM Forecast Data'!$A$14:$I$271,6,FALSE) -> 0.5506901419
A121: Small Non Domestic Off Peak (related MPAN) | C121: =VLOOKUP(Vlookup!C86,'CDCM Forecast Data'!$A$14:$I$271,6,FALSE) -> 0.2805628594
A122: LV Medium Non-Domestic | B122: =VLOOKUP(Vlookup!B87,'CDCM Forecast Data'!$A$14:$I$271,6,FALSE) -> 0.7719373971 | C122: =VLOOKUP(Vlookup!C87,'CDCM Forecast Data'!$A$14:$I$271,6,FALSE) -> 0.5420264393
A123: LV Sub Medium Non-Domestic | B123: =VLOOKUP(Vlookup!B88,'CDCM Forecast Data'!$A$14:$I$271,6,FALSE) -> 0.7719373971 | C123: =VLOOKUP(Vlookup!C88,'CDCM Forecast Data'!$A$14:$I$271,6,FALSE) -> 0.5420264393
A124: HV Medium Non-Domestic | B124: =VLOOKUP(Vlookup!B89,'CDCM Forecast Data'!$A$14:$I$271,6,FALSE) -> 0.5147350712 | C124: =VLOOKUP(Vlookup!C89,'CDCM Forecast Data'!$A$14:$I$271,6,FALSE) -> 0.3729769188
A125: LV Network Domestic | B125: =VLOOKUP(Vlookup!B90,'CDCM Forecast Data'!$A$14:$I$271,6,FALSE) -> 0.8253814878 | C125: =VLOOKUP(Vlookup!C90,'CDCM Forecast Data'!$A$14:$I$271,6,FALSE) -> 0.4291058522
A126: LV Network Non-Domestic Non-CT | B126: =VLOOKUP(Vlookup!B91,'CDCM Forecast Data'!$A$14:$I$271,6,FALSE) -> 0.64712655 | C126: =VLOOKUP(Vlookup!C91,'CDCM Forecast Data'!$A$14:$I$271,6,FALSE) -> 0.435056821
A127: LV HH Metered | B127: =VLOOKUP(Vlookup!B92,'CDCM Forecast Data'!$A$14:$I$271,6,FALSE) -> 0.7651358399 | C127: =VLOOKUP(Vlookup!C92,'CDCM Forecast Data'!$A$14:$I$271,6,FALSE) -> 0.587809866
A128: LV Sub HH Metered | B128: =VLOOKUP(Vlookup!B93,'CDCM Forecast Data'!$A$14:$I$271,6,FALSE) -> 0.7651358399 | C128: =VLOOKUP(Vlookup!C93,'CDCM Forecast Data'!$A$14:$I$271,6,FALSE) -> 0.587809866
A129: HV HH Metered | B129: =VLOOKUP(Vlookup!B94,'CDCM Forecast Data'!$A$14:$I$271,6,FALSE) -> 0.8509616909 | C129: =VLOOKUP(Vlookup!C94,'CDCM Forecast Data'!$A$14:$I$271,6,FALSE) -> 0.7376293577
A130: NHH UMS category A | B130: =VLOOKUP(Vlookup!B95,'CDCM Forecast Data'!$A$14:$I$271,6,FALSE) -> 1 | C130: =VLOOKUP(Vlookup!C95,'CDCM Forecast Data'!$A$14:$I$271,6,FALSE) -> 1
A131: NHH UMS category B | B131: =VLOOKUP(Vlookup!B96,'CDCM Forecast Data'!$A$14:$I$271,6,FALSE) -> 0.9938835335 | C131: =VLOOKUP(Vlookup!C96,'CDCM Forecast Data'!$A$14:$I$271,6,FALSE) -> 0.4730995727
A132: NHH UMS category C | B132: =VLOOKUP(Vlookup!B97,'CDCM Forecast Data'!$A$14:$I$271,6,FALSE) -> 0.750501002 | C132: =VLOOKUP(Vlookup!C97,'CDCM Forecast Data'!$A$14:$I$271,6,FALSE) -> 0.245270466
A133: NHH UMS category D | B133: =VLOOKUP(Vlookup!B98,'CDCM Forecast Data'!$A$14:$I$271,6,FALSE) -> 0 | C133: =VLOOKUP(Vlookup!C98,'CDCM Forecast Data'!$A$14:$I$271,6,FALSE) -> 0.5141747171
A134: LV UMS (Pseudo HH Metered) | B134: =VLOOKUP(Vlookup!B99,'CDCM Forecast Data'!$A$14:$I$271,6,FALSE) -> 0.9789817972 | C134: =VLOOKUP(Vlookup!C99,'CDCM Forecast Data'!$A$14:$I$271,6,FALSE) -> 0.4742952931
A136: 1053. Volume forecasts for the charging year
B137: 10 | C137: 11 | D137: 12 | E137: 13 | F137: 14 | G137: 15
A138: Source: forecast.
A139: Please include MPAN counts for tariffs with no fixed charge (e.g. off-peak tariffs),
A140: but exclude MPANs on tariffs with a fixed charge that are not subject to a fixed charge due to a site grouping arrangement.
B141: Rate 1 units (MWh) | C141: Rate 2 units (MWh) | D141: Rate 3 units (MWh) | E141: MPANs | F141: Import capacity (kVA) | G141: Reactive power units (MVArh)
A142: > Domestic Unrestricted | B142: =VLOOKUP(Vlookup!$B107,'CDCM Volume Forecasts'!$A$27:$AG$123,B$137,FALSE) -> 0 | C142: =VLOOKUP(Vlookup!$B107,'CDCM Volume Forecasts'!$A$27:$AG$123,C$137,FALSE) -> 0 | D142: =VLOOKUP(Vlookup!$B107,'CDCM Volume Forecasts'!$A$27:$AG$123,D$137,FALSE) -> 0 | E142: =VLOOKUP(Vlookup!$B107,'CDCM Volume Forecasts'!$A$27:$AG$123,E$137,FALSE) -> 0 | F142: =VLOOKUP(Vlookup!$B107,'CDCM Volume Forecasts'!$A$27:$AG$123,F$137,FALSE) -> 0 | G142: =VLOOKUP(Vlookup!$B107,'CDCM Volume Forecasts'!$A$27:$AG$123,G$137,FALSE) -> 0
A143: Domestic Unrestricted | B143: =VLOOKUP(Vlookup!$B108,'CDCM Volume Forecasts'!$A$27:$AG$123,B$137,FALSE) -> 3242264.656 | C143: =VLOOKUP(Vlookup!$B108,'CDCM Volume Forecasts'!$A$27:$AG$123,C$137,FALSE) -> 0 | D143: =VLOOKUP(Vlookup!$B108,'CDCM Volume Forecasts'!$A$27:$AG$123,D$137,FALSE) -> 0 | E143: =VLOOKUP(Vlookup!$B108,'CDCM Volume Forecasts'!$A$27:$AG$123,E$137,FALSE) -> 964740 | F143: =VLOOKUP(Vlookup!$B108,'CDCM Volume Forecasts'!$A$27:$AG$123,F$137,FALSE) -> 0 | G143: =VLOOKUP(Vlookup!$B108,'CDCM Volume Forecasts'!$A$27:$AG$123,G$137,FALSE) -> 0
A144: LDNO LV: Domestic Unrestricted | B144: =VLOOKUP(Vlookup!$B109,'CDCM Volume Forecasts'!$A$27:$AG$123,B$137,FALSE) -> 2870.334985 | C144: =VLOOKUP(Vlookup!$B109,'CDCM Volume Forecasts'!$A$27:$AG$123,C$137,FALSE) -> 0 | D144: =VLOOKUP(Vlookup!$B109,'CDCM Volume Forecasts'!$A$27:$AG$123,D$137,FALSE) -> 0 | E144: =VLOOKUP(Vlookup!$B109,'CDCM Volume Forecasts'!$A$27:$AG$123,E$137,FALSE) -> 893 | F144: =VLOOKUP(Vlookup!$B109,'CDCM Volume Forecasts'!$A$27:$AG$123,F$137,FALSE) -> 0 | G144: =VLOOKUP(Vlookup!$B109,'CDCM Volume Forecasts'!$A$27:$AG$123,G$137,FALSE) -> 0
A145: LDNO HV: Domestic Unrestricted | B145: =VLOOKUP(Vlookup!$B110,'CDCM Volume Forecasts'!$A$27:$AG$123,B$137,FALSE) -> 11376.82715 | C145: =VLOOKUP(Vlookup!$B110,'CDCM Volume Forecasts'!$A$27:$AG$123,C$137,FALSE) -> 0 | D145: =VLOOKUP(Vlookup!$B110,'CDCM Volume Forecasts'!$A$27:$AG$123,D$137,FALSE) -> 0 | E145: =VLOOKUP(Vlookup!$B110,'CDCM Volume Forecasts'!$A$27:$AG$123,E$137,FALSE) -> 3843 | F145: =VLOOKUP(Vlookup!$B110,'CDCM Volume Forecasts'!$A$27:$AG$123,F$137,FALSE) -> 0 | G145: =VLOOKUP(Vlookup!$B110,'CDCM Volume Forecasts'!$A$27:$AG$123,G$137,FALSE) -> 0
A146: > Domestic Two Rate | B146: =VLOOKUP(Vlookup!$B111,'CDCM Volume Forecasts'!$A$27:$AG$123,B$137,FALSE) -> 0 | C146: =VLOOKUP(Vlookup!$B111,'CDCM Volume Forecasts'!$A$27:$AG$123,C$137,FALSE) -> 0 | D146: =VLOOKUP(Vlookup!$B111,'CDCM Volume Forecasts'!$A$27:$AG$123,D$137,FALSE) -> 0 | E146: =VLOOKUP(Vlookup!$B111,'CDCM Volume Forecasts'!$A$27:$AG$123,E$137,FALSE) -> 0 | F146: =VLOOKUP(Vlookup!$B111,'CDCM Volume Forecasts'!$A$27:$AG$123,F$137,FALSE) -> 0 | G146: =VLOOKUP(Vlookup!$B111,'CDCM Volume Forecasts'!$A$27:$AG$123,G$137,FALSE) -> 0
A147: Domestic Two Rate | B147: =VLOOKUP(Vlookup!$B112,'CDCM Volume Forecasts'!$A$27:$AG$123,B$137,FALSE) -> 174847.8894 | C147: =VLOOKUP(Vlookup!$B112,'CDCM Volume Forecasts'!$A$27:$AG$123,C$137,FALSE) -> 180701.5563 | D147: =VLOOKUP(Vlookup!$B112,'CDCM Volume Forecasts'!$A$27:$AG$123,D$137,FALSE) -> 0 | E147: =VLOOKUP(Vlookup!$B112,'CDCM Volume Forecasts'!$A$27:$AG$123,E$137,FALSE) -> 58083 | F147: =VLOOKUP(Vlookup!$B112,'CDCM Volume Forecasts'!$A$27:$AG$123,F$137,FALSE) -> 0 | G147: =VLOOKUP(Vlookup!$B112,'CDCM Volume Forecasts'!$A$27:$AG$123,G$137,FALSE) -> 0
A148: LDNO LV: Domestic Two Rate | B148: =VLOOKUP(Vlookup!$B113,'CDCM Volume Forecasts'!$A$27:$AG$123,B$137,FALSE) -> 262.9871922 | C148: =VLOOKUP(Vlookup!$B113,'CDCM Volume Forecasts'!$A$27:$AG$123,C$137,FALSE) -> 6585.66953 | D148: =VLOOKUP(Vlookup!$B113,'CDCM Volume Forecasts'!$A$27:$AG$123,D$137,FALSE) -> 0 | E148: =VLOOKUP(Vlookup!$B113,'CDCM Volume Forecasts'!$A$27:$AG$123,E$137,FALSE) -> 21 | F148: =VLOOKUP(Vlookup!$B113,'CDCM Volume Forecasts'!$A$27:$AG$123,F$137,FALSE) -> 0 | G148: =VLOOKUP(Vlookup!$B113,'CDCM Volume Forecasts'!$A$27:$AG$123,G$137,FALSE) -> 0
A149: LDNO HV: Domestic Two Rate | B149: =VLOOKUP(Vlookup!$B114,'CDCM Volume Forecasts'!$A$27:$AG$123,B$137,FALSE) -> 256.3006221 | C149: =VLOOKUP(Vlookup!$B114,'CDCM Volume Forecasts'!$A$27:$AG$123,C$137,FALSE) -> 349.8743055 | D149: =VLOOKUP(Vlookup!$B114,'CDCM Volume Forecasts'!$A$27:$AG$123,D$137,FALSE) -> 0 | E149: =VLOOKUP(Vlookup!$B114,'CDCM Volume Forecasts'!$A$27:$AG$123,E$137,FALSE) -> 80 | F149: =VLOOKUP(Vlookup!$B114,'CDCM Volume Forecasts'!$A$27:$AG$123,F$137,FALSE) -> 0 | G149: =VLOOKUP(Vlookup!$B114,'CDCM Volume Forecasts'!$A$27:$AG$123,G$137,FALSE) -> 0
A150: > Domestic Off Peak (related MPAN) | B150: =VLOOKUP(Vlookup!$B115,'CDCM Volume Forecasts'!$A$27:$AG$123,B$137,FALSE) -> 0 | C150: =VLOOKUP(Vlookup!$B115,'CDCM Volume Forecasts'!$A$27:$AG$123,C$137,FALSE) -> 0 | D150: =VLOOKUP(Vlookup!$B115,'CDCM Volume Forecasts'!$A$27:$AG$123,D$137,FALSE) -> 0 | E150: =VLOOKUP(Vlookup!$B115,'CDCM Volume Forecasts'!$A$27:$AG$123,E$137,FALSE) -> 0 | F150: =VLOOKUP(Vlookup!$B115,'CDCM Volume Forecasts'!$A$27:$AG$123,F$137,FALSE) -> 0 | G150: =VLOOKUP(Vlookup!$B115,'CDCM Volume Forecasts'!$A$27:$AG$123,G$137,FALSE) -> 0
A151: Domestic Off Peak (related MPAN) | B151: =VLOOKUP(Vlookup!$B116,'CDCM Volume Forecasts'!$A$27:$AG$123,B$137,FALSE) -> 3613.144098 | C151: =VLOOKUP(Vlookup!$B116,'CDCM Volume Forecasts'!$A$27:$AG$123,C$137,FALSE) -> 0 | D151: =VLOOKUP(Vlookup!$B116,'CDCM Volume Forecasts'!$A$27:$AG$123,D$137,FALSE) -> 0 | E151: =VLOOKUP(Vlookup!$B116,'CDCM Volume Forecasts'!$A$27:$AG$123,E$137,FALSE) -> 0 | F151: =VLOOKUP(Vlookup!$B116,'CDCM Volume Forecasts'!$A$27:$AG$123,F$137,FALSE) -> 0 | G151: =VLOOKUP(Vlookup!$B116,'CDCM Volume Forecasts'!$A$27:$AG$123,G$137,FALSE) -> 0
A152: LDNO LV: Domestic Off Peak (related MPAN) | B152: =VLOOKUP(Vlookup!$B117,'CDCM Volume Forecasts'!$A$27:$AG$123,B$137,FALSE) -> 0 | C152: =VLOOKUP(Vlookup!$B117,'CDCM Volume Forecasts'!$A$27:$AG$123,C$137,FALSE) -> 0 | D152: =VLOOKUP(Vlookup!$B117,'CDCM Volume Forecasts'!$A$27:$AG$123,D$137,FALSE) -> 0 | E152: =VLOOKUP(Vlookup!$B117,'CDCM Volume Forecasts'!$A$27:$AG$123,E$137,FALSE) -> 0 | F152: =VLOOKUP(Vlookup!$B117,'CDCM Volume Forecasts'!$A$27:$AG$123,F$137,FALSE) -> 0 | G152: =VLOOKUP(Vlookup!$B117,'CDCM Volume Forecasts'!$A$27:$AG$123,G$137,FALSE) -> 0
A153: LDNO HV: Domestic Off Peak (related MPAN) | B153: =VLOOKUP(Vlookup!$B118,'CDCM Volume Forecasts'!$A$27:$AG$123,B$137,FALSE) -> 0 | C153: =VLOOKUP(Vlookup!$B118,'CDCM Volume Forecasts'!$A$27:$AG$123,C$137,FALSE) -> 0 | D153: =VLOOKUP(Vlookup!$B118,'CDCM Volume Forecasts'!$A$27:$AG$123,D$137,FALSE) -> 0 | E153: =VLOOKUP(Vlookup!$B118,'CDCM Volume Forecasts'!$A$27:$AG$123,E$137,FALSE) -> 0 | F153: =VLOOKUP(Vlookup!$B118,'CDCM Volume Forecasts'!$A$27:$AG$123,F$137,FALSE) -> 0 | G153: =VLOOKUP(Vlookup!$B118,'CDCM Volume Forecasts'!$A$27:$AG$123,G$137,FALSE) -> 0
A154: > Small Non Domestic Unrestricted | B154: =VLOOKUP(Vlookup!$B119,'CDCM Volume Forecasts'!$A$27:$AG$123,B$137,FALSE) -> 0 | C154: =VLOOKUP(Vlookup!$B119,'CDCM Volume Forecasts'!$A$27:$AG$123,C$137,FALSE) -> 0 | D154: =VLOOKUP(Vlookup!$B119,'CDCM Volume Forecasts'!$A$27:$AG$123,D$137,FALSE) -> 0 | E154: =VLOOKUP(Vlookup!$B119,'CDCM Volume Forecasts'!$A$27:$AG$123,E$137,FALSE) -> 0 | F154: =VLOOKUP(Vlookup!$B119,'CDCM Volume Forecasts'!$A$27:$AG$123,F$137,FALSE) -> 0 | G154: =VLOOKUP(Vlookup!$B119,'CDCM Volume Forecasts'!$A$27:$AG$123,G$137,FALSE) -> 0
A155: Small Non Domestic Unrestricted | B155: =VLOOKUP(Vlookup!$B120,'CDCM Volume Forecasts'!$A$27:$AG$123,B$137,FALSE) -> 823197.9586 | C155: =VLOOKUP(Vlookup!$B120,'CDCM Volume Forecasts'!$A$27:$AG$123,C$137,FALSE) -> 0 | D155: =VLOOKUP(Vlookup!$B120,'CDCM Volume Forecasts'!$A$27:$AG$123,D$137,FALSE) -> 0 | E155: =VLOOKUP(Vlookup!$B120,'CDCM Volume Forecasts'!$A$27:$AG$123,E$137,FALSE) -> 63787 | F155: =VLOOKUP(Vlookup!$B120,'CDCM Volume Forecasts'!$A$27:$AG$123,F$137,FALSE) -> 0 | G155: =VLOOKUP(Vlookup!$B120,'CDCM Volume Forecasts'!$A$27:$AG$123,G$137,FALSE) -> 0
A156: LDNO LV: Small Non Domestic Unrestricted | B156: =VLOOKUP(Vlookup!$B121,'CDCM Volume Forecasts'!$A$27:$AG$123,B$137,FALSE) -> 56.74361464 | C156: =VLOOKUP(Vlookup!$B121,'CDCM Volume Forecasts'!$A$27:$AG$123,C$137,FALSE) -> 0 | D156: =VLOOKUP(Vlookup!$B121,'CDCM Volume Forecasts'!$A$27:$AG$123,D$137,FALSE) -> 0 | E156: =VLOOKUP(Vlookup!$B121,'CDCM Volume Forecasts'!$A$27:$AG$123,E$137,FALSE) -> 4 | F156: =VLOOKUP(Vlookup!$B121,'CDCM Volume Forecasts'!$A$27:$AG$123,F$137,FALSE) -> 0 | G156: =VLOOKUP(Vlookup!$B121,'CDCM Volume Forecasts'!$A$27:$AG$123,G$137,FALSE) -> 0
A157: LDNO HV: Small Non Domestic Unrestricted | B157: =VLOOKUP(Vlookup!$B122,'CDCM Volume Forecasts'!$A$27:$AG$123,B$137,FALSE) -> 2717.089687 | C157: =VLOOKUP(Vlookup!$B122,'CDCM Volume Forecasts'!$A$27:$AG$123,C$137,FALSE) -> 0 | D157: =VLOOKUP(Vlookup!$B122,'CDCM Volume Forecasts'!$A$27:$AG$123,D$137,FALSE) -> 0 | E157: =VLOOKUP(Vlookup!$B122,'CDCM Volume Forecasts'!$A$27:$AG$123,E$137,FALSE) -> 110 | F157: =VLOOKUP(Vlookup!$B122,'CDCM Volume Forecasts'!$A$27:$AG$123,F$137,FALSE) -> 0 | G157: =VLOOKUP(Vlookup!$B122,'CDCM Volume Forecasts'!$A$27:$AG$123,G$137,FALSE) -> 0
A158: > Small Non Domestic Two Rate | B158: =VLOOKUP(Vlookup!$B123,'CDCM Volume Forecasts'!$A$27:$AG$123,B$137,FALSE) -> 0 | C158: =VLOOKUP(Vlookup!$B123,'CDCM Volume Forecasts'!$A$27:$AG$123,C$137,FALSE) -> 0 | D158: =VLOOKUP(Vlookup!$B123,'CDCM Volume Forecasts'!$A$27:$AG$123,D$137,FALSE) -> 0 | E158: =VLOOKUP(Vlookup!$B123,'CDCM Volume Forecasts'!$A$27:$AG$123,E$137,FALSE) -> 0 | F158: =VLOOKUP(Vlookup!$B123,'CDCM Volume Forecasts'!$A$27:$AG$123,F$137,FALSE) -> 0 | G158: =VLOOKUP(Vlookup!$B123,'CDCM Volume Forecasts'!$A$27:$AG$123,G$137,FALSE) -> 0
A159: Small Non Domestic Two Rate | B159: =VLOOKUP(Vlookup!$B124,'CDCM Volume Forecasts'!$A$27:$AG$123,B$137,FALSE) -> 206801.4093 | C159: =VLOOKUP(Vlookup!$B124,'CDCM Volume Forecasts'!$A$27:$AG$123,C$137,FALSE) -> 92825.53756 | D159: =VLOOKUP(Vlookup!$B124,'CDCM Volume Forecasts'!$A$27:$AG$123,D$137,FALSE) -> 0 | E159: =VLOOKUP(Vlookup!$B124,'CDCM Volume Forecasts'!$A$27:$AG$123,E$137,FALSE) -> 13441 | F159: =VLOOKUP(Vlookup!$B124,'CDCM Volume Forecasts'!$A$27:$AG$123,F$137,FALSE) -> 0 | G159: =VLOOKUP(Vlookup!$B124,'CDCM Volume Forecasts'!$A$27:$AG$123,G$137,FALSE) -> 0
A160: LDNO LV: Small Non Domestic Two Rate | B160: =VLOOKUP(Vlookup!$B125,'CDCM Volume Forecasts'!$A$27:$AG$123,B$137,FALSE) -> 0 | C160: =VLOOKUP(Vlookup!$B125,'CDCM Volume Forecasts'!$A$27:$AG$123,C$137,FALSE) -> 0 | D160: =VLOOKUP(Vlookup!$B125,'CDCM Volume Forecasts'!$A$27:$AG$123,D$137,FALSE) -> 0 | E160: =VLOOKUP(Vlookup!$B125,'CDCM Volume Forecasts'!$A$27:$AG$123,E$137,FALSE) -> 0 | F160: =VLOOKUP(Vlookup!$B125,'CDCM Volume Forecasts'!$A$27:$AG$123,F$137,FALSE) -> 0 | G160: =VLOOKUP(Vlookup!$B125,'CDCM Volume Forecasts'!$A$27:$AG$123,G$137,FALSE) -> 0
A161: LDNO HV: Small Non Domestic Two Rate | B161: =VLOOKUP(Vlookup!$B126,'CDCM Volume Forecasts'!$A$27:$AG$123,B$137,FALSE) -> 845.4213076 | C161: =VLOOKUP(Vlookup!$B126,'CDCM Volume Forecasts'!$A$27:$AG$123,C$137,FALSE) -> 110.3044954 | D161: =VLOOKUP(Vlookup!$B126,'CDCM Volume Forecasts'!$A$27:$AG$123,D$137,FALSE) -> 0 | E161: =VLOOKUP(Vlookup!$B126,'CDCM Volume Forecasts'!$A$27:$AG$123,E$137,FALSE) -> 9 | F161: =VLOOKUP(Vlookup!$B126,'CDCM Volume Forecasts'!$A$27:$AG$123,F$137,FALSE) -> 0 | G161: =VLOOKUP(Vlookup!$B126,'CDCM Volume Forecasts'!$A$27:$AG$123,G$137,FALSE) -> 0
A162: > Small Non Domestic Off Peak (related MPAN) | B162: =VLOOKUP(Vlookup!$B127,'CDCM Volume Forecasts'!$A$27:$AG$123,B$137,FALSE) -> 0 | C162: =VLOOKUP(Vlookup!$B127,'CDCM Volume Forecasts'!$A$27:$AG$123,C$137,FALSE) -> 0 | D162: =VLOOKUP(Vlookup!$B127,'CDCM Volume Forecasts'!$A$27:$AG$123,D$137,FALSE) -> 0 | E162: =VLOOKUP(Vlookup!$B127,'CDCM Volume Forecasts'!$A$27:$AG$123,E$137,FALSE) -> 0 | F162: =VLOOKUP(Vlookup!$B127,'CDCM Volume Forecasts'!$A$27:$AG$123,F$137,FALSE) -> 0 | G162: =VLOOKUP(Vlookup!$B127,'CDCM Volume Forecasts'!$A$27:$AG$123,G$137,FALSE) -> 0
A163: Small Non Domestic Off Peak (related MPAN) | B163: =VLOOKUP(Vlookup!$B128,'CDCM Volume Forecasts'!$A$27:$AG$123,B$137,FALSE) -> 2262.209359 | C163: =VLOOKUP(Vlookup!$B128,'CDCM Volume Forecasts'!$A$27:$AG$123,C$137,FALSE) -> 0 | D163: =VLOOKUP(Vlookup!$B128,'CDCM Volume Forecasts'!$A$27:$AG$123,D$137,FALSE) -> 0 | E163: =VLOOKUP(Vlookup!$B128,'CDCM Volume Forecasts'!$A$27:$AG$123,E$137,FALSE) -> 0 | F163: =VLOOKUP(Vlookup!$B128,'CDCM Volume Forecasts'!$A$27:$AG$123,F$137,FALSE) -> 0 | G163: =VLOOKUP(Vlookup!$B128,'CDCM Volume Forecasts'!$A$27:$AG$123,G$137,FALSE) -> 0
A164: LDNO LV: Small Non Domestic Off Peak (related MPAN) | B164: =VLOOKUP(Vlookup!$B129,'CDCM Volume Forecasts'!$A$27:$AG$123,B$137,FALSE) -> 0 | C164: =VLOOKUP(Vlookup!$B129,'CDCM Volume Forecasts'!$A$27:$AG$123,C$137,FALSE) -> 0 | D164: =VLOOKUP(Vlookup!$B129,'CDCM Volume Forecasts'!$A$27:$AG$123,D$137,FALSE) -> 0 | E164: =VLOOKUP(Vlookup!$B129,'CDCM Volume Forecasts'!$A$27:$AG$123,E$137,FALSE) -> 0 | F164: =VLOOKUP(Vlookup!$B129,'CDCM Volume Forecasts'!$A$27:$AG$123,F$137,FALSE) -> 0 | G164: =VLOOKUP(Vlookup!$B129,'CDCM Volume Forecasts'!$A$27:$AG$123,G$137,FALSE) -> 0
A165: LDNO HV: Small Non Domestic Off Peak (related MPAN) | B165: =VLOOKUP(Vlookup!$B130,'CDCM Volume Forecasts'!$A$27:$AG$123,B$137,FALSE) -> 0 | C165: =VLOOKUP(Vlookup!$B130,'CDCM Volume Forecasts'!$A$27:$AG$123,C$137,FALSE) -> 0 | D165: =VLOOKUP(Vlookup!$B130,'CDCM Volume Forecasts'!$A$27:$AG$123,D$137,FALSE) -> 0 | E165: =VLOOKUP(Vlookup!$B130,'CDCM Volume Forecasts'!$A$27:$AG$123,E$137,FALSE) -> 0 | F165: =VLOOKUP(Vlookup!$B130,'CDCM Volume Forecasts'!$A$27:$AG$123,F$137,FALSE) -> 0 | G165: =VLOOKUP(Vlookup!$B130,'CDCM Volume Forecasts'!$A$27:$AG$123,G$137,FALSE) -> 0
A166: > LV Medium Non-Domestic | B166: =VLOOKUP(Vlookup!$B131,'CDCM Volume Forecasts'!$A$27:$AG$123,B$137,FALSE) -> 0 | C166: =VLOOKUP(Vlookup!$B131,'CDCM Volume Forecasts'!$A$27:$AG$123,C$137,FALSE) -> 0 | D166: =VLOOKUP(Vlookup!$B131,'CDCM Volume Forecasts'!$A$27:$AG$123,D$137,FALSE) -> 0 | E166: =VLOOKUP(Vlookup!$B131,'CDCM Volume Forecasts'!$A$27:$AG$123,E$137,FALSE) -> 0 | F166: =VLOOKUP(Vlookup!$B131,'CDCM Volume Forecasts'!$A$27:$AG$123,F$137,FALSE) -> 0 | G166: =VLOOKUP(Vlookup!$B131,'CDCM Volume Forecasts'!$A$27:$AG$123,G$137,FALSE) -> 0
A167: LV Medium Non-Domestic | B167: =VLOOKUP(Vlookup!$B132,'CDCM Volume Forecasts'!$A$27:$AG$123,B$137,FALSE) -> 379857.6711 | C167: =VLOOKUP(Vlookup!$B132,'CDCM Volume Forecasts'!$A$27:$AG$123,C$137,FALSE) -> 99896.63982 | D167: =VLOOKUP(Vlookup!$B132,'CDCM Volume Forecasts'!$A$27:$AG$123,D$137,FALSE) -> 0 | E167: =VLOOKUP(Vlookup!$B132,'CDCM Volume Forecasts'!$A$27:$AG$123,E$137,FALSE) -> 4728 | F167: =VLOOKUP(Vlookup!$B132,'CDCM Volume Forecasts'!$A$27:$AG$123,F$137,FALSE) -> 0 | G167: =VLOOKUP(Vlookup!$B132,'CDCM Volume Forecasts'!$A$27:$AG$123,G$137,FALSE) -> 0
A168: LDNO LV: LV Medium Non-Domestic | B168: =VLOOKUP(Vlookup!$B133,'CDCM Volume Forecasts'!$A$27:$AG$123,B$137,FALSE) -> 0 | C168: =VLOOKUP(Vlookup!$B133,'CDCM Volume Forecasts'!$A$27:$AG$123,C$137,FALSE) -> 0 | D168: =VLOOKUP(Vlookup!$B133,'CDCM Volume Forecasts'!$A$27:$AG$123,D$137,FALSE) -> 0 | E168: =VLOOKUP(Vlookup!$B133,'CDCM Volume Forecasts'!$A$27:$AG$123,E$137,FALSE) -> 0 | F168: =VLOOKUP(Vlookup!$B133,'CDCM Volume Forecasts'!$A$27:$AG$123,F$137,FALSE) -> 0 | G168: =VLOOKUP(Vlookup!$B133,'CDCM Volume Forecasts'!$A$27:$AG$123,G$137,FALSE) -> 0
A169: LDNO HV: LV Medium Non-Domestic | B169: =VLOOKUP(Vlookup!$B134,'CDCM Volume Forecasts'!$A$27:$AG$123,B$137,FALSE) -> 1094.445243 | C169: =VLOOKUP(Vlookup!$B134,'CDCM Volume Forecasts'!$A$27:$AG$123,C$137,FALSE) -> 144.8538285 | D169: =VLOOKUP(Vlookup!$B134,'CDCM Volume Forecasts'!$A$27:$AG$123,D$137,FALSE) -> 0 | E169: =VLOOKUP(Vlookup!$B134,'CDCM Volume Forecasts'!$A$27:$AG$123,E$137,FALSE) -> 10 | F169: =VLOOKUP(Vlookup!$B134,'CDCM Volume Forecasts'!$A$27:$AG$123,F$137,FALSE) -> 0 | G169: =VLOOKUP(Vlookup!$B134,'CDCM Volume Forecasts'!$A$27:$AG$123,G$137,FALSE) -> 0
A170: > LV Sub Medium Non-Domestic | B170: =VLOOKUP(Vlookup!$B135,'CDCM Volume Forecasts'!$A$27:$AG$123,B$137,FALSE) -> 0 | C170: =VLOOKUP(Vlookup!$B135,'CDCM Volume Forecasts'!$A$27:$AG$123,C$137,FALSE) -> 0 | D170: =VLOOKUP(Vlookup!$B135,'CDCM Volume Forecasts'!$A$27:$AG$123,D$137,FALSE) -> 0 | E170: =VLOOKUP(Vlookup!$B135,'CDCM Volume Forecasts'!$A$27:$AG$123,E$137,FALSE) -> 0 | F170: =VLOOKUP(Vlookup!$B135,'CDCM Volume Forecasts'!$A$27:$AG$123,F$137,FALSE) -> 0 | G170: =VLOOKUP(Vlookup!$B135,'CDCM Volume Forecasts'!$A$27:$AG$123,G$137,FALSE) -> 0
A171: LV Sub Medium Non-Domestic | B171: =VLOOKUP(Vlookup!$B136,'CDCM Volume Forecasts'!$A$27:$AG$123,B$137,FALSE) -> 517.040455 | C171: =VLOOKUP(Vlookup!$B136,'CDCM Volume Forecasts'!$A$27:$AG$123,C$137,FALSE) -> 136.8978314 | D171: =VLOOKUP(Vlookup!$B136,'CDCM Volume Forecasts'!$A$27:$AG$123,D$137,FALSE) -> 0 | E171: =VLOOKUP(Vlookup!$B136,'CDCM Volume Forecasts'!$A$27:$AG$123,E$137,FALSE) -> 4 | F171: =VLOOKUP(Vlookup!$B136,'CDCM Volume Forecasts'!$A$27:$AG$123,F$137,FALSE) -> 0 | G171: =VLOOKUP(Vlookup!$B136,'CDCM Volume Forecasts'!$A$27:$AG$123,G$137,FALSE) -> 0
A172: > HV Medium Non-Domestic | B172: =VLOOKUP(Vlookup!$B137,'CDCM Volume Forecasts'!$A$27:$AG$123,B$137,FALSE) -> 0 | C172: =VLOOKUP(Vlookup!$B137,'CDCM Volume Forecasts'!$A$27:$AG$123,C$137,FALSE) -> 0 | D172: =VLOOKUP(Vlookup!$B137,'CDCM Volume Forecasts'!$A$27:$AG$123,D$137,FALSE) -> 0 | E172: =VLOOKUP(Vlookup!$B137,'CDCM Volume Forecasts'!$A$27:$AG$123,E$137,FALSE) -> 0 | F172: =VLOOKUP(Vlookup!$B137,'CDCM Volume Forecasts'!$A$27:$AG$123,F$137,FALSE) -> 0 | G172: =VLOOKUP(Vlookup!$B137,'CDCM Volume Forecasts'!$A$27:$AG$123,G$137,FALSE) -> 0
A173: HV Medium Non-Domestic | B173: =VLOOKUP(Vlookup!$B138,'CDCM Volume Forecasts'!$A$27:$AG$123,B$137,FALSE) -> 753.6075426 | C173: =VLOOKUP(Vlookup!$B138,'CDCM Volume Forecasts'!$A$27:$AG$123,C$137,FALSE) -> 161.5955367 | D173: =VLOOKUP(Vlookup!$B138,'CDCM Volume Forecasts'!$A$27:$AG$123,D$137,FALSE) -> 0 | E173: =VLOOKUP(Vlookup!$B138,'CDCM Volume Forecasts'!$A$27:$AG$123,E$137,FALSE) -> 13 | F173: =VLOOKUP(Vlookup!$B138,'CDCM Volume Forecasts'!$A$27:$AG$123,F$137,FALSE) -> 0 | G173: =VLOOKUP(Vlookup!$B138,'CDCM Volume Forecasts'!$A$27:$AG$123,G$137,FALSE) -> 0
A174: > LV Network Domestic | B174: =VLOOKUP(Vlookup!$B139,'CDCM Volume Forecasts'!$A$27:$AG$123,B$137,FALSE) -> 0 | C174: =VLOOKUP(Vlookup!$B139,'CDCM Volume Forecasts'!$A$27:$AG$123,C$137,FALSE) -> 0 | D174: =VLOOKUP(Vlookup!$B139,'CDCM Volume Forecasts'!$A$27:$AG$123,D$137,FALSE) -> 0 | E174: =VLOOKUP(Vlookup!$B139,'CDCM Volume Forecasts'!$A$27:$AG$123,E$137,FALSE) -> 0 | F174: =VLOOKUP(Vlookup!$B139,'CDCM Volume Forecasts'!$A$27:$AG$123,F$137,FALSE) -> 0 | G174: =VLOOKUP(Vlookup!$B139,'CDCM Volume Forecasts'!$A$27:$AG$123,G$137,FALSE) -> 0
A175: LV Network Domestic | B175: =VLOOKUP(Vlookup!$B140,'CDCM Volume Forecasts'!$A$27:$AG$123,B$137,FALSE) -> 0 | C175: =VLOOKUP(Vlookup!$B140,'CDCM Volume Forecasts'!$A$27:$AG$123,C$137,FALSE) -> 0 | D175: =VLOOKUP(Vlookup!$B140,'CDCM Volume Forecasts'!$A$27:$AG$123,D$137,FALSE) -> 0 | E175: =VLOOKUP(Vlookup!$B140,'CDCM Volume Forecasts'!$A$27:$AG$123,E$137,FALSE) -> 0 | F175: =VLOOKUP(Vlookup!$B140,'CDCM Volume Forecasts'!$A$27:$AG$123,F$137,FALSE) -> 0 | G175: =VLOOKUP(Vlookup!$B140,'CDCM Volume Forecasts'!$A$27:$AG$123,G$137,FALSE) -> 0
A176: LDNO LV: LV Network Domestic | B176: =VLOOKUP(Vlookup!$B141,'CDCM Volume Forecasts'!$A$27:$AG$123,B$137,FALSE) -> 0 | C176: =VLOOKUP(Vlookup!$B141,'CDCM Volume Forecasts'!$A$27:$AG$123,C$137,FALSE) -> 0 | D176: =VLOOKUP(Vlookup!$B141,'CDCM Volume Forecasts'!$A$27:$AG$123,D$137,FALSE) -> 0 | E176: =VLOOKUP(Vlookup!$B141,'CDCM Volume Forecasts'!$A$27:$AG$123,E$137,FALSE) -> 0 | F176: =VLOOKUP(Vlookup!$B141,'CDCM Volume Forecasts'!$A$27:$AG$123,F$137,FALSE) -> 0 | G176: =VLOOKUP(Vlookup!$B141,'CDCM Volume Forecasts'!$A$27:$AG$123,G$137,FALSE) -> 0
A177: LDNO HV: LV Network Domestic | B177: =VLOOKUP(Vlookup!$B142,'CDCM Volume Forecasts'!$A$27:$AG$123,B$137,FALSE) -> 0 | C177: =VLOOKUP(Vlookup!$B142,'CDCM Volume Forecasts'!$A$27:$AG$123,C$137,FALSE) -> 0 | D177: =VLOOKUP(Vlookup!$B142,'CDCM Volume Forecasts'!$A$27:$AG$123,D$137,FALSE) -> 0 | E177: =VLOOKUP(Vlookup!$B142,'CDCM Volume Forecasts'!$A$27:$AG$123,E$137,FALSE) -> 0 | F177: =VLOOKUP(Vlookup!$B142,'CDCM Volume Forecasts'!$A$27:$AG$123,F$137,FALSE) -> 0 | G177: =VLOOKUP(Vlookup!$B142,'CDCM Volume Forecasts'!$A$27:$AG$123,G$137,FALSE) -> 0
A178: > LV Network Non-Domestic Non-CT | B178: =VLOOKUP(Vlookup!$B143,'CDCM Volume Forecasts'!$A$27:$AG$123,B$137,FALSE) -> 0 | C178: =VLOOKUP(Vlookup!$B143,'CDCM Volume Forecasts'!$A$27:$AG$123,C$137,FALSE) -> 0 | D178: =VLOOKUP(Vlookup!$B143,'CDCM Volume Forecasts'!$A$27:$AG$123,D$137,FALSE) -> 0 | E178: =VLOOKUP(Vlookup!$B143,'CDCM Volume Forecasts'!$A$27:$AG$123,E$137,FALSE) -> 0 | F178: =VLOOKUP(Vlookup!$B143,'CDCM Volume Forecasts'!$A$27:$AG$123,F$137,FALSE) -> 0 | G178: =VLOOKUP(Vlookup!$B143,'CDCM Volume Forecasts'!$A$27:$AG$123,G$137,FALSE) -> 0
A179: LV Network Non-Domestic Non-CT | B179: =VLOOKUP(Vlookup!$B144,'CDCM Volume Forecasts'!$A$27:$AG$123,B$137,FALSE) -> 0 | C179: =VLOOKUP(Vlookup!$B144,'CDCM Volume Forecasts'!$A$27:$AG$123,C$137,FALSE) -> 0 | D179: =VLOOKUP(Vlookup!$B144,'CDCM Volume Forecasts'!$A$27:$AG$123,D$137,FALSE) -> 0 | E179: =VLOOKUP(Vlookup!$B144,'CDCM Volume Forecasts'!$A$27:$AG$123,E$137,FALSE) -> 0 | F179: =VLOOKUP(Vlookup!$B144,'CDCM Volume Forecasts'!$A$27:$AG$123,F$137,FALSE) -> 0 | G179: =VLOOKUP(Vlookup!$B144,'CDCM Volume Forecasts'!$A$27:$AG$123,G$137,FALSE) -> 0
A180: LDNO LV: LV Network Non-Domestic Non-CT | B180: =VLOOKUP(Vlookup!$B145,'CDCM Volume Forecasts'!$A$27:$AG$123,B$137,FALSE) -> 0 | C180: =VLOOKUP(Vlookup!$B145,'CDCM Volume Forecasts'!$A$27:$AG$123,C$137,FALSE) -> 0 | D180: =VLOOKUP(Vlookup!$B145,'CDCM Volume Forecasts'!$A$27:$AG$123,D$137,FALSE) -> 0 | E180: =VLOOKUP(Vlookup!$B145,'CDCM Volume Forecasts'!$A$27:$AG$123,E$137,FALSE) -> 0 | F180: =VLOOKUP(Vlookup!$B145,'CDCM Volume Forecasts'!$A$27:$AG$123,F$137,FALSE) -> 0 | G180: =VLOOKUP(Vlookup!$B145,'CDCM Volume Forecasts'!$A$27:$AG$123,G$137,FALSE) -> 0
A181: LDNO HV: LV Network Non-Domestic Non-CT | B181: =VLOOKUP(Vlookup!$B146,'CDCM Volume Forecasts'!$A$27:$AG$123,B$137,FALSE) -> 0 | C181: =VLOOKUP(Vlookup!$B146,'CDCM Volume Forecasts'!$A$27:$AG$123,C$137,FALSE) -> 0 | D181: =VLOOKUP(Vlookup!$B146,'CDCM Volume Forecasts'!$A$27:$AG$123,D$137,FALSE) -> 0 | E181: =VLOOKUP(Vlookup!$B146,'CDCM Volume Forecasts'!$A$27:$AG$123,E$137,FALSE) -> 0 | F181: =VLOOKUP(Vlookup!$B146,'CDCM Volume Forecasts'!$A$27:$AG$123,F$137,FALSE) -> 0 | G181: =VLOOKUP(Vlookup!$B146,'CDCM Volume Forecasts'!$A$27:$AG$123,G$137,FALSE) -> 0
A182: > LV HH Metered | B182: =VLOOKUP(Vlookup!$B147,'CDCM Volume Forecasts'!$A$27:$AG$123,B$137,FALSE) -> 0 | C182: =VLOOKUP(Vlookup!$B147,'CDCM Volume Forecasts'!$A$27:$AG$123,C$137,FALSE) -> 0 | D182: =VLOOKUP(Vlookup!$B147,'CDCM Volume Forecasts'!$A$27:$AG$123,D$137,FALSE) -> 0 | E182: =VLOOKUP(Vlookup!$B147,'CDCM Volume Forecasts'!$A$27:$AG$123,E$137,FALSE) -> 0 | F182: =VLOOKUP(Vlookup!$B147,'CDCM Volume Forecasts'!$A$27:$AG$123,F$137,FALSE) -> 0 | G182: =VLOOKUP(Vlookup!$B147,'CDCM Volume Forecasts'!$A$27:$AG$123,G$137,FALSE) -> 0
A183: LV HH Metered | B183: =VLOOKUP(Vlookup!$B148,'CDCM Volume Forecasts'!$A$27:$AG$123,B$137,FALSE) -> 105280.6077 | C183: =VLOOKUP(Vlookup!$B148,'CDCM Volume Forecasts'!$A$27:$AG$123,C$137,FALSE) -> 666906.9124 | D183: =VLOOKUP(Vlookup!$B148,'CDCM Volume Forecasts'!$A$27:$AG$123,D$137,FALSE) -> 493272.9047 | E183: =VLOOKUP(Vlookup!$B148,'CDCM Volume Forecasts'!$A$27:$AG$123,E$137,FALSE) -> 3111 | F183: =VLOOKUP(Vlookup!$B148,'CDCM Volume Forecasts'!$A$27:$AG$123,F$137,FALSE) -> 578357 | G183: =VLOOKUP(Vlookup!$B148,'CDCM Volume Forecasts'!$A$27:$AG$123,G$137,FALSE) -> 121162
A184: LDNO LV: LV HH Metered | B184: =VLOOKUP(Vlookup!$B149,'CDCM Volume Forecasts'!$A$27:$AG$123,B$137,FALSE) -> 0 | C184: =VLOOKUP(Vlookup!$B149,'CDCM Volume Forecasts'!$A$27:$AG$123,C$137,FALSE) -> 0 | D184: =VLOOKUP(Vlookup!$B149,'CDCM Volume Forecasts'!$A$27:$AG$123,D$137,FALSE) -> 0 | E184: =VLOOKUP(Vlookup!$B149,'CDCM Volume Forecasts'!$A$27:$AG$123,E$137,FALSE) -> 0 | F184: =VLOOKUP(Vlookup!$B149,'CDCM Volume Forecasts'!$A$27:$AG$123,F$137,FALSE) -> 0 | G184: =VLOOKUP(Vlookup!$B149,'CDCM Volume Forecasts'!$A$27:$AG$123,G$137,FALSE) -> 0
A185: LDNO HV: LV HH Metered | B185: =VLOOKUP(Vlookup!$B150,'CDCM Volume Forecasts'!$A$27:$AG$123,B$137,FALSE) -> 1624.497247 | C185: =VLOOKUP(Vlookup!$B150,'CDCM Volume Forecasts'!$A$27:$AG$123,C$137,FALSE) -> 8871.815201 | D185: =VLOOKUP(Vlookup!$B150,'CDCM Volume Forecasts'!$A$27:$AG$123,D$137,FALSE) -> 6399.429536 | E185: =VLOOKUP(Vlookup!$B150,'CDCM Volume Forecasts'!$A$27:$AG$123,E$137,FALSE) -> 20 | F185: =VLOOKUP(Vlookup!$B150,'CDCM Volume Forecasts'!$A$27:$AG$123,F$137,FALSE) -> 6985 | G185: =VLOOKUP(Vlookup!$B150,'CDCM Volume Forecasts'!$A$27:$AG$123,G$137,FALSE) -> 558
A186: > LV Sub HH Metered | B186: =VLOOKUP(Vlookup!$B151,'CDCM Volume Forecasts'!$A$27:$AG$123,B$137,FALSE) -> 0 | C186: =VLOOKUP(Vlookup!$B151,'CDCM Volume Forecasts'!$A$27:$AG$123,C$137,FALSE) -> 0 | D186: =VLOOKUP(Vlookup!$B151,'CDCM Volume Forecasts'!$A$27:$AG$123,D$137,FALSE) -> 0 | E186: =VLOOKUP(Vlookup!$B151,'CDCM Volume Forecasts'!$A$27:$AG$123,E$137,FALSE) -> 0 | F186: =VLOOKUP(Vlookup!$B151,'CDCM Volume Forecasts'!$A$27:$AG$123,F$137,FALSE) -> 0 | G186: =VLOOKUP(Vlookup!$B151,'CDCM Volume Forecasts'!$A$27:$AG$123,G$137,FALSE) -> 0
A187: LV Sub HH Metered | B187: =VLOOKUP(Vlookup!$B152,'CDCM Volume Forecasts'!$A$27:$AG$123,B$137,FALSE) -> 1334.786654 | C187: =VLOOKUP(Vlookup!$B152,'CDCM Volume Forecasts'!$A$27:$AG$123,C$137,FALSE) -> 7582.74753 | D187: =VLOOKUP(Vlookup!$B152,'CDCM Volume Forecasts'!$A$27:$AG$123,D$137,FALSE) -> 5677.712435 | E187: =VLOOKUP(Vlookup!$B152,'CDCM Volume Forecasts'!$A$27:$AG$123,E$137,FALSE) -> 18 | F187: =VLOOKUP(Vlookup!$B152,'CDCM Volume Forecasts'!$A$27:$AG$123,F$137,FALSE) -> 6238 | G187: =VLOOKUP(Vlookup!$B152,'CDCM Volume Forecasts'!$A$27:$AG$123,G$137,FALSE) -> 1758
A188: LDNO HV: LV Sub HH Metered | B188: =VLOOKUP(Vlookup!$B153,'CDCM Volume Forecasts'!$A$27:$AG$123,B$137,FALSE) -> 439.0533099 | C188: =VLOOKUP(Vlookup!$B153,'CDCM Volume Forecasts'!$A$27:$AG$123,C$137,FALSE) -> 2397.787892 | D188: =VLOOKUP(Vlookup!$B153,'CDCM Volume Forecasts'!$A$27:$AG$123,D$137,FALSE) -> 1729.57555 | E188: =VLOOKUP(Vlookup!$B153,'CDCM Volume Forecasts'!$A$27:$AG$123,E$137,FALSE) -> 5 | F188: =VLOOKUP(Vlookup!$B153,'CDCM Volume Forecasts'!$A$27:$AG$123,F$137,FALSE) -> 1067 | G188: =VLOOKUP(Vlookup!$B153,'CDCM Volume Forecasts'!$A$27:$AG$123,G$137,FALSE) -> 113
A189: > HV HH Metered | B189: =VLOOKUP(Vlookup!$B154,'CDCM Volume Forecasts'!$A$27:$AG$123,B$137,FALSE) -> 0 | C189: =VLOOKUP(Vlookup!$B154,'CDCM Volume Forecasts'!$A$27:$AG$123,C$137,FALSE) -> 0 | D189: =VLOOKUP(Vlookup!$B154,'CDCM Volume Forecasts'!$A$27:$AG$123,D$137,FALSE) -> 0 | E189: =VLOOKUP(Vlookup!$B154,'CDCM Volume Forecasts'!$A$27:$AG$123,E$137,FALSE) -> 0 | F189: =VLOOKUP(Vlookup!$B154,'CDCM Volume Forecasts'!$A$27:$AG$123,F$137,FALSE) -> 0 | G189: =VLOOKUP(Vlookup!$B154,'CDCM Volume Forecasts'!$A$27:$AG$123,G$137,FALSE) -> 0
A190: HV HH Metered | B190: =VLOOKUP(Vlookup!$B155,'CDCM Volume Forecasts'!$A$27:$AG$123,B$137,FALSE) -> 168212.6081 | C190: =VLOOKUP(Vlookup!$B155,'CDCM Volume Forecasts'!$A$27:$AG$123,C$137,FALSE) -> 1015521.463 | D190: =VLOOKUP(Vlookup!$B155,'CDCM Volume Forecasts'!$A$27:$AG$123,D$137,FALSE) -> 952719.5658 | E190: =VLOOKUP(Vlookup!$B155,'CDCM Volume Forecasts'!$A$27:$AG$123,E$137,FALSE) -> 595 | F190: =VLOOKUP(Vlookup!$B155,'CDCM Volume Forecasts'!$A$27:$AG$123,F$137,FALSE) -> 696791 | G190: =VLOOKUP(Vlookup!$B155,'CDCM Volume Forecasts'!$A$27:$AG$123,G$137,FALSE) -> 160841
A191: LDNO HV: HV HH Metered | B191: =VLOOKUP(Vlookup!$B156,'CDCM Volume Forecasts'!$A$27:$AG$123,B$137,FALSE) -> 687.389194 | C191: =VLOOKUP(Vlookup!$B156,'CDCM Volume Forecasts'!$A$27:$AG$123,C$137,FALSE) -> 3897.128226 | D191: =VLOOKUP(Vlookup!$B156,'CDCM Volume Forecasts'!$A$27:$AG$123,D$137,FALSE) -> 3071.099793 | E191: =VLOOKUP(Vlookup!$B156,'CDCM Volume Forecasts'!$A$27:$AG$123,E$137,FALSE) -> 5 | F191: =VLOOKUP(Vlookup!$B156,'CDCM Volume Forecasts'!$A$27:$AG$123,F$137,FALSE) -> 4903 | G191: =VLOOKUP(Vlookup!$B156,'CDCM Volume Forecasts'!$A$27:$AG$123,G$137,FALSE) -> 358
A192: > NHH UMS category A | B192: =VLOOKUP(Vlookup!$B157,'CDCM Volume Forecasts'!$A$27:$AG$123,B$137,FALSE) -> 0 | C192: =VLOOKUP(Vlookup!$B157,'CDCM Volume Forecasts'!$A$27:$AG$123,C$137,FALSE) -> 0 | D192: =VLOOKUP(Vlookup!$B157,'CDCM Volume Forecasts'!$A$27:$AG$123,D$137,FALSE) -> 0 | E192: =VLOOKUP(Vlookup!$B157,'CDCM Volume Forecasts'!$A$27:$AG$123,E$137,FALSE) -> 0 | F192: =VLOOKUP(Vlookup!$B157,'CDCM Volume Forecasts'!$A$27:$AG$123,F$137,FALSE) -> 0 | G192: =VLOOKUP(Vlookup!$B157,'CDCM Volume Forecasts'!$A$27:$AG$123,G$137,FALSE) -> 0
A193: NHH UMS category A | B193: =VLOOKUP(Vlookup!$B158,'CDCM Volume Forecasts'!$A$27:$AG$123,B$137,FALSE) -> 7597.295734 | C193: =VLOOKUP(Vlookup!$B158,'CDCM Volume Forecasts'!$A$27:$AG$123,C$137,FALSE) -> 0 | D193: =VLOOKUP(Vlookup!$B158,'CDCM Volume Forecasts'!$A$27:$AG$123,D$137,FALSE) -> 0 | E193: =VLOOKUP(Vlookup!$B158,'CDCM Volume Forecasts'!$A$27:$AG$123,E$137,FALSE) -> 514 | F193: =VLOOKUP(Vlookup!$B158,'CDCM Volume Forecasts'!$A$27:$AG$123,F$137,FALSE) -> 0 | G193: =VLOOKUP(Vlookup!$B158,'CDCM Volume Forecasts'!$A$27:$AG$123,G$137,FALSE) -> 0
A194: LDNO LV: NHH UMS category A | B194: =VLOOKUP(Vlookup!$B159,'CDCM Volume Forecasts'!$A$27:$AG$123,B$137,FALSE) -> 38.5737956 | C194: =VLOOKUP(Vlookup!$B159,'CDCM Volume Forecasts'!$A$27:$AG$123,C$137,FALSE) -> 0 | D194: =VLOOKUP(Vlookup!$B159,'CDCM Volume Forecasts'!$A$27:$AG$123,D$137,FALSE) -> 0 | E194: =VLOOKUP(Vlookup!$B159,'CDCM Volume Forecasts'!$A$27:$AG$123,E$137,FALSE) -> 0 | F194: =VLOOKUP(Vlookup!$B159,'CDCM Volume Forecasts'!$A$27:$AG$123,F$137,FALSE) -> 0 | G194: =VLOOKUP(Vlookup!$B159,'CDCM Volume Forecasts'!$A$27:$AG$123,G$137,FALSE) -> 0
A195: LDNO HV: NHH UMS category A | B195: =VLOOKUP(Vlookup!$B160,'CDCM Volume Forecasts'!$A$27:$AG$123,B$137,FALSE) -> 180.4253354 | C195: =VLOOKUP(Vlookup!$B160,'CDCM Volume Forecasts'!$A$27:$AG$123,C$137,FALSE) -> 0 | D195: =VLOOKUP(Vlookup!$B160,'CDCM Volume Forecasts'!$A$27:$AG$123,D$137,FALSE) -> 0 | E195: =VLOOKUP(Vlookup!$B160,'CDCM Volume Forecasts'!$A$27:$AG$123,E$137,FALSE) -> 0 | F195: =VLOOKUP(Vlookup!$B160,'CDCM Volume Forecasts'!$A$27:$AG$123,F$137,FALSE) -> 0 | G195: =VLOOKUP(Vlookup!$B160,'CDCM Volume Forecasts'!$A$27:$AG$123,G$137,FALSE) -> 0
A196: > NHH UMS category B | B196: =VLOOKUP(Vlookup!$B161,'CDCM Volume Forecasts'!$A$27:$AG$123,B$137,FALSE) -> 0 | C196: =VLOOKUP(Vlookup!$B161,'CDCM Volume Forecasts'!$A$27:$AG$123,C$137,FALSE) -> 0 | D196: =VLOOKUP(Vlookup!$B161,'CDCM Volume Forecasts'!$A$27:$AG$123,D$137,FALSE) -> 0 | E196: =VLOOKUP(Vlookup!$B161,'CDCM Volume Forecasts'!$A$27:$AG$123,E$137,FALSE) -> 0 | F196: =VLOOKUP(Vlookup!$B161,'CDCM Volume Forecasts'!$A$27:$AG$123,F$137,FALSE) -> 0 | G196: =VLOOKUP(Vlookup!$B161,'CDCM Volume Forecasts'!$A$27:$AG$123,G$137,FALSE) -> 0
A197: NHH UMS category B | B197: =VLOOKUP(Vlookup!$B162,'CDCM Volume Forecasts'!$A$27:$AG$123,B$137,FALSE) -> 5952.574488 | C197: =VLOOKUP(Vlookup!$B162,'CDCM Volume Forecasts'!$A$27:$AG$123,C$137,FALSE) -> 0 | D197: =VLOOKUP(Vlookup!$B162,'CDCM Volume Forecasts'!$A$27:$AG$123,D$137,FALSE) -> 0 | E197: =VLOOKUP(Vlookup!$B162,'CDCM Volume Forecasts'!$A$27:$AG$123,E$137,FALSE) -> 749 | F197: =VLOOKUP(Vlookup!$B162,'CDCM Volume Forecasts'!$A$27:$AG$123,F$137,FALSE) -> 0 | G197: =VLOOKUP(Vlookup!$B162,'CDCM Volume Forecasts'!$A$27:$AG$123,G$137,FALSE) -> 0
A198: LDNO LV: NHH UMS category B | B198: =VLOOKUP(Vlookup!$B163,'CDCM Volume Forecasts'!$A$27:$AG$123,B$137,FALSE) -> 5.417933864 | C198: =VLOOKUP(Vlookup!$B163,'CDCM Volume Forecasts'!$A$27:$AG$123,C$137,FALSE) -> 0 | D198: =VLOOKUP(Vlookup!$B163,'CDCM Volume Forecasts'!$A$27:$AG$123,D$137,FALSE) -> 0 | E198: =VLOOKUP(Vlookup!$B163,'CDCM Volume Forecasts'!$A$27:$AG$123,E$137,FALSE) -> 0 | F198: =VLOOKUP(Vlookup!$B163,'CDCM Volume Forecasts'!$A$27:$AG$123,F$137,FALSE) -> 0 | G198: =VLOOKUP(Vlookup!$B163,'CDCM Volume Forecasts'!$A$27:$AG$123,G$137,FALSE) -> 0
A199: LDNO HV: NHH UMS category B | B199: =VLOOKUP(Vlookup!$B164,'CDCM Volume Forecasts'!$A$27:$AG$123,B$137,FALSE) -> 258.8270455 | C199: =VLOOKUP(Vlookup!$B164,'CDCM Volume Forecasts'!$A$27:$AG$123,C$137,FALSE) -> 0 | D199: =VLOOKUP(Vlookup!$B164,'CDCM Volume Forecasts'!$A$27:$AG$123,D$137,FALSE) -> 0 | E199: =VLOOKUP(Vlookup!$B164,'CDCM Volume Forecasts'!$A$27:$AG$123,E$137,FALSE) -> 0 | F199: =VLOOKUP(Vlookup!$B164,'CDCM Volume Forecasts'!$A$27:$AG$123,F$137,FALSE) -> 0 | G199: =VLOOKUP(Vlookup!$B164,'CDCM Volume Forecasts'!$A$27:$AG$123,G$137,FALSE) -> 0
A200: > NHH UMS category C | B200: =VLOOKUP(Vlookup!$B165,'CDCM Volume Forecasts'!$A$27:$AG$123,B$137,FALSE) -> 0 | C200: =VLOOKUP(Vlookup!$B165,'CDCM Volume Forecasts'!$A$27:$AG$123,C$137,FALSE) -> 0 | D200: =VLOOKUP(Vlookup!$B165,'CDCM Volume Forecasts'!$A$27:$AG$123,D$137,FALSE) -> 0 | E200: =VLOOKUP(Vlookup!$B165,'CDCM Volume Forecasts'!$A$27:$AG$123,E$137,FALSE) -> 0 | F200: =VLOOKUP(Vlookup!$B165,'CDCM Volume Forecasts'!$A$27:$AG$123,F$137,FALSE) -> 0 | G200: =VLOOKUP(Vlookup!$B165,'CDCM Volume Forecasts'!$A$27:$AG$123,G$137,FALSE) -> 0
A201: NHH UMS category C | B201: =VLOOKUP(Vlookup!$B166,'CDCM Volume Forecasts'!$A$27:$AG$123,B$137,FALSE) -> 378.2703802 | C201: =VLOOKUP(Vlookup!$B166,'CDCM Volume Forecasts'!$A$27:$AG$123,C$137,FALSE) -> 0 | D201: =VLOOKUP(Vlookup!$B166,'CDCM Volume Forecasts'!$A$27:$AG$123,D$137,FALSE) -> 0 | E201: =VLOOKUP(Vlookup!$B166,'CDCM Volume Forecasts'!$A$27:$AG$123,E$137,FALSE) -> 84 | F201: =VLOOKUP(Vlookup!$B166,'CDCM Volume Forecasts'!$A$27:$AG$123,F$137,FALSE) -> 0 | G201: =VLOOKUP(Vlookup!$B166,'CDCM Volume Forecasts'!$A$27:$AG$123,G$137,FALSE) -> 0
A202: LDNO LV: NHH UMS category C | B202: =VLOOKUP(Vlookup!$B167,'CDCM Volume Forecasts'!$A$27:$AG$123,B$137,FALSE) -> 0 | C202: =VLOOKUP(Vlookup!$B167,'CDCM Volume Forecasts'!$A$27:$AG$123,C$137,FALSE) -> 0 | D202: =VLOOKUP(Vlookup!$B167,'CDCM Volume Forecasts'!$A$27:$AG$123,D$137,FALSE) -> 0 | E202: =VLOOKUP(Vlookup!$B167,'CDCM Volume Forecasts'!$A$27:$AG$123,E$137,FALSE) -> 0 | F202: =VLOOKUP(Vlookup!$B167,'CDCM Volume Forecasts'!$A$27:$AG$123,F$137,FALSE) -> 0 | G202: =VLOOKUP(Vlookup!$B167,'CDCM Volume Forecasts'!$A$27:$AG$123,G$137,FALSE) -> 0
A203: LDNO HV: NHH UMS category C | B203: =VLOOKUP(Vlookup!$B168,'CDCM Volume Forecasts'!$A$27:$AG$123,B$137,FALSE) -> 0 | C203: =VLOOKUP(Vlookup!$B168,'CDCM Volume Forecasts'!$A$27:$AG$123,C$137,FALSE) -> 0 | D203: =VLOOKUP(Vlookup!$B168,'CDCM Volume Forecasts'!$A$27:$AG$123,D$137,FALSE) -> 0 | E203: =VLOOKUP(Vlookup!$B168,'CDCM Volume Forecasts'!$A$27:$AG$123,E$137,FALSE) -> 0 | F203: =VLOOKUP(Vlookup!$B168,'CDCM Volume Forecasts'!$A$27:$AG$123,F$137,FALSE) -> 0 | G203: =VLOOKUP(Vlookup!$B168,'CDCM Volume Forecasts'!$A$27:$AG$123,G$137,FALSE) -> 0
A204: > NHH UMS category D | B204: =VLOOKUP(Vlookup!$B169,'CDCM Volume Forecasts'!$A$27:$AG$123,B$137,FALSE) -> 0 | C204: =VLOOKUP(Vlookup!$B169,'CDCM Volume Forecasts'!$A$27:$AG$123,C$137,FALSE) -> 0 | D204: =VLOOKUP(Vlookup!$B169,'CDCM Volume Forecasts'!$A$27:$AG$123,D$137,FALSE) -> 0 | E204: =VLOOKUP(Vlookup!$B169,'CDCM Volume Forecasts'!$A$27:$AG$123,E$137,FALSE) -> 0 | F204: =VLOOKUP(Vlookup!$B169,'CDCM Volume Forecasts'!$A$27:$AG$123,F$137,FALSE) -> 0 | G204: =VLOOKUP(Vlookup!$B169,'CDCM Volume Forecasts'!$A$27:$AG$123,G$137,FALSE) -> 0
A205: NHH UMS category D | B205: =VLOOKUP(Vlookup!$B170,'CDCM Volume Forecasts'!$A$27:$AG$123,B$137,FALSE) -> 0 | C205: =VLOOKUP(Vlookup!$B170,'CDCM Volume Forecasts'!$A$27:$AG$123,C$137,FALSE) -> 0 | D205: =VLOOKUP(Vlookup!$B170,'CDCM Volume Forecasts'!$A$27:$AG$123,D$137,FALSE) -> 0 | E205: =VLOOKUP(Vlookup!$B170,'CDCM Volume Forecasts'!$A$27:$AG$123,E$137,FALSE) -> 1 | F205: =VLOOKUP(Vlookup!$B170,'CDCM Volume Forecasts'!$A$27:$AG$123,F$137,FALSE) -> 0 | G205: =VLOOKUP(Vlookup!$B170,'CDCM Volume Forecasts'!$A$27:$AG$123,G$137,FALSE) -> 0
A206: LDNO LV: NHH UMS category D | B206: =VLOOKUP(Vlookup!$B171,'CDCM Volume Forecasts'!$A$27:$AG$123,B$137,FALSE) -> 0 | C206: =VLOOKUP(Vlookup!$B171,'CDCM Volume Forecasts'!$A$27:$AG$123,C$137,FALSE) -> 0 | D206: =VLOOKUP(Vlookup!$B171,'CDCM Volume Forecasts'!$A$27:$AG$123,D$137,FALSE) -> 0 | E206: =VLOOKUP(Vlookup!$B171,'CDCM Volume Forecasts'!$A$27:$AG$123,E$137,FALSE) -> 0 | F206: =VLOOKUP(Vlookup!$B171,'CDCM Volume Forecasts'!$A$27:$AG$123,F$137,FALSE) -> 0 | G206: =VLOOKUP(Vlookup!$B171,'CDCM Volume Forecasts'!$A$27:$AG$123,G$137,FALSE) -> 0
A207: LDNO HV: NHH UMS category D | B207: =VLOOKUP(Vlookup!$B172,'CDCM Volume Forecasts'!$A$27:$AG$123,B$137,FALSE) -> 0 | C207: =VLOOKUP(Vlookup!$B172,'CDCM Volume Forecasts'!$A$27:$AG$123,C$137,FALSE) -> 0 | D207: =VLOOKUP(Vlookup!$B172,'CDCM Volume Forecasts'!$A$27:$AG$123,D$137,FALSE) -> 0 | E207: =VLOOKUP(Vlookup!$B172,'CDCM Volume Forecasts'!$A$27:$AG$123,E$137,FALSE) -> 0 | F207: =VLOOKUP(Vlookup!$B172,'CDCM Volume Forecasts'!$A$27:$AG$123,F$137,FALSE) -> 0 | G207: =VLOOKUP(Vlookup!$B172,'CDCM Volume Forecasts'!$A$27:$AG$123,G$137,FALSE) -> 0
A208: > LV UMS (Pseudo HH Metered) | B208: =VLOOKUP(Vlookup!$B173,'CDCM Volume Forecasts'!$A$27:$AG$123,B$137,FALSE) -> 0 | C208: =VLOOKUP(Vlookup!$B173,'CDCM Volume Forecasts'!$A$27:$AG$123,C$137,FALSE) -> 0 | D208: =VLOOKUP(Vlookup!$B173,'CDCM Volume Forecasts'!$A$27:$AG$123,D$137,FALSE) -> 0 | E208: =VLOOKUP(Vlookup!$B173,'CDCM Volume Forecasts'!$A$27:$AG$123,E$137,FALSE) -> 0 | F208: =VLOOKUP(Vlookup!$B173,'CDCM Volume Forecasts'!$A$27:$AG$123,F$137,FALSE) -> 0 | G208: =VLOOKUP(Vlookup!$B173,'CDCM Volume Forecasts'!$A$27:$AG$123,G$137,FALSE) -> 0
A209: LV UMS (Pseudo HH Metered) | B209: =VLOOKUP(Vlookup!$B174,'CDCM Volume Forecasts'!$A$27:$AG$123,B$137,FALSE) -> 6228.095998 | C209: =VLOOKUP(Vlookup!$B174,'CDCM Volume Forecasts'!$A$27:$AG$123,C$137,FALSE) -> 35918.74585 | D209: =VLOOKUP(Vlookup!$B174,'CDCM Volume Forecasts'!$A$27:$AG$123,D$137,FALSE) -> 102458.5463 | E209: =VLOOKUP(Vlookup!$B174,'CDCM Volume Forecasts'!$A$27:$AG$123,E$137,FALSE) -> 26 | F209: =VLOOKUP(Vlookup!$B174,'CDCM Volume Forecasts'!$A$27:$AG$123,F$137,FALSE) -> 0 | G209: =VLOOKUP(Vlookup!$B174,'CDCM Volume Forecasts'!$A$27:$AG$123,G$137,FALSE) -> 0
A210: LDNO LV: LV UMS (Pseudo HH Metered) | B210: =VLOOKUP(Vlookup!$B175,'CDCM Volume Forecasts'!$A$27:$AG$123,B$137,FALSE) -> 0 | C210: =VLOOKUP(Vlookup!$B175,'CDCM Volume Forecasts'!$A$27:$AG$123,C$137,FALSE) -> 0 | D210: =VLOOKUP(Vlookup!$B175,'CDCM Volume Forecasts'!$A$27:$AG$123,D$137,FALSE) -> 0 | E210: =VLOOKUP(Vlookup!$B175,'CDCM Volume Forecasts'!$A$27:$AG$123,E$137,FALSE) -> 0 | F210: =VLOOKUP(Vlookup!$B175,'CDCM Volume Forecasts'!$A$27:$AG$123,F$137,FALSE) -> 0 | G210: =VLOOKUP(Vlookup!$B175,'CDCM Volume Forecasts'!$A$27:$AG$123,G$137,FALSE) -> 0
A211: LDNO HV: LV UMS (Pseudo HH Metered) | B211: =VLOOKUP(Vlookup!$B176,'CDCM Volume Forecasts'!$A$27:$AG$123,B$137,FALSE) -> 0 | C211: =VLOOKUP(Vlookup!$B176,'CDCM Volume Forecasts'!$A$27:$AG$123,C$137,FALSE) -> 0 | D211: =VLOOKUP(Vlookup!$B176,'CDCM Volume Forecasts'!$A$27:$AG$123,D$137,FALSE) -> 0 | E211: =VLOOKUP(Vlookup!$B176,'CDCM Volume Forecasts'!$A$27:$AG$123,E$137,FALSE) -> 0 | F211: =VLOOKUP(Vlookup!$B176,'CDCM Volume Forecasts'!$A$27:$AG$123,F$137,FALSE) -> 0 | G211: =VLOOKUP(Vlookup!$B176,'CDCM Volume Forecasts'!$A$27:$AG$123,G$137,FALSE) -> 0
A212: > LV Generation NHH or Aggregate HH | B212: =VLOOKUP(Vlookup!$B177,'CDCM Volume Forecasts'!$A$27:$AG$123,B$137,FALSE) -> 0 | C212: =VLOOKUP(Vlookup!$B177,'CDCM Volume Forecasts'!$A$27:$AG$123,C$137,FALSE) -> 0 | D212: =VLOOKUP(Vlookup!$B177,'CDCM Volume Forecasts'!$A$27:$AG$123,D$137,FALSE) -> 0 | E212: =VLOOKUP(Vlookup!$B177,'CDCM Volume Forecasts'!$A$27:$AG$123,E$137,FALSE) -> 0 | F212: =VLOOKUP(Vlookup!$B177,'CDCM Volume Forecasts'!$A$27:$AG$123,F$137,FALSE) -> 0 | G212: =VLOOKUP(Vlookup!$B177,'CDCM Volume Forecasts'!$A$27:$AG$123,G$137,FALSE) -> 0
A213: LV Generation NHH or Aggregate HH | B213: =VLOOKUP(Vlookup!$B178,'CDCM Volume Forecasts'!$A$27:$AG$123,B$137,FALSE) -> 602.2974873 | C213: =VLOOKUP(Vlookup!$B178,'CDCM Volume Forecasts'!$A$27:$AG$123,C$137,FALSE) -> 0 | D213: =VLOOKUP(Vlookup!$B178,'CDCM Volume Forecasts'!$A$27:$AG$123,D$137,FALSE) -> 0 | E213: =VLOOKUP(Vlookup!$B178,'CDCM Volume Forecasts'!$A$27:$AG$123,E$137,FALSE) -> 130 | F213: =VLOOKUP(Vlookup!$B178,'CDCM Volume Forecasts'!$A$27:$AG$123,F$137,FALSE) -> 0 | G213: =VLOOKUP(Vlookup!$B178,'CDCM Volume Forecasts'!$A$27:$AG$123,G$137,FALSE) -> 0
A214: LDNO LV: LV Generation NHH or Aggregate HH | B214: =VLOOKUP(Vlookup!$B179,'CDCM Volume Forecasts'!$A$27:$AG$123,B$137,FALSE) -> 0 | C214: =VLOOKUP(Vlookup!$B179,'CDCM Volume Forecasts'!$A$27:$AG$123,C$137,FALSE) -> 0 | D214: =VLOOKUP(Vlookup!$B179,'CDCM Volume Forecasts'!$A$27:$AG$123,D$137,FALSE) -> 0 | E214: =VLOOKUP(Vlookup!$B179,'CDCM Volume Forecasts'!$A$27:$AG$123,E$137,FALSE) -> 0 | F214: =VLOOKUP(Vlookup!$B179,'CDCM Volume Forecasts'!$A$27:$AG$123,F$137,FALSE) -> 0 | G214: =VLOOKUP(Vlookup!$B179,'CDCM Volume Forecasts'!$A$27:$AG$123,G$137,FALSE) -> 0
A215: LDNO HV: LV Generation NHH or Aggregate HH | B215: =VLOOKUP(Vlookup!$B180,'CDCM Volume Forecasts'!$A$27:$AG$123,B$137,FALSE) -> 0 | C215: =VLOOKUP(Vlookup!$B180,'CDCM Volume Forecasts'!$A$27:$AG$123,C$137,FALSE) -> 0 | D215: =VLOOKUP(Vlookup!$B180,'CDCM Volume Forecasts'!$A$27:$AG$123,D$137,FALSE) -> 0 | E215: =VLOOKUP(Vlookup!$B180,'CDCM Volume Forecasts'!$A$27:$AG$123,E$137,FALSE) -> 0 | F215: =VLOOKUP(Vlookup!$B180,'CDCM Volume Forecasts'!$A$27:$AG$123,F$137,FALSE) -> 0 | G215: =VLOOKUP(Vlookup!$B180,'CDCM Volume Forecasts'!$A$27:$AG$123,G$137,FALSE) -> 0
A216: > LV Sub Generation NHH | B216: =VLOOKUP(Vlookup!$B181,'CDCM Volume Forecasts'!$A$27:$AG$123,B$137,FALSE) -> 0 | C216: =VLOOKUP(Vlookup!$B181,'CDCM Volume Forecasts'!$A$27:$AG$123,C$137,FALSE) -> 0 | D216: =VLOOKUP(Vlookup!$B181,'CDCM Volume Forecasts'!$A$27:$AG$123,D$137,FALSE) -> 0 | E216: =VLOOKUP(Vlookup!$B181,'CDCM Volume Forecasts'!$A$27:$AG$123,E$137,FALSE) -> 0 | F216: =VLOOKUP(Vlookup!$B181,'CDCM Volume Forecasts'!$A$27:$AG$123,F$137,FALSE) -> 0 | G216: =VLOOKUP(Vlookup!$B181,'CDCM Volume Forecasts'!$A$27:$AG$123,G$137,FALSE) -> 0
A217: LV Sub Generation NHH | B217: =VLOOKUP(Vlookup!$B182,'CDCM Volume Forecasts'!$A$27:$AG$123,B$137,FALSE) -> 0 | C217: =VLOOKUP(Vlookup!$B182,'CDCM Volume Forecasts'!$A$27:$AG$123,C$137,FALSE) -> 0 | D217: =VLOOKUP(Vlookup!$B182,'CDCM Volume Forecasts'!$A$27:$AG$123,D$137,FALSE) -> 0 | E217: =VLOOKUP(Vlookup!$B182,'CDCM Volume Forecasts'!$A$27:$AG$123,E$137,FALSE) -> 0 | F217: =VLOOKUP(Vlookup!$B182,'CDCM Volume Forecasts'!$A$27:$AG$123,F$137,FALSE) -> 0 | G217: =VLOOKUP(Vlookup!$B182,'CDCM Volume Forecasts'!$A$27:$AG$123,G$137,FALSE) -> 0
A218: LDNO HV: LV Sub Generation NHH | B218: =VLOOKUP(Vlookup!$B183,'CDCM Volume Forecasts'!$A$27:$AG$123,B$137,FALSE) -> 0 | C218: =VLOOKUP(Vlookup!$B183,'CDCM Volume Forecasts'!$A$27:$AG$123,C$137,FALSE) -> 0 | D218: =VLOOKUP(Vlookup!$B183,'CDCM Volume Forecasts'!$A$27:$AG$123,D$137,FALSE) -> 0 | E218: =VLOOKUP(Vlookup!$B183,'CDCM Volume Forecasts'!$A$27:$AG$123,E$137,FALSE) -> 0 | F218: =VLOOKUP(Vlookup!$B183,'CDCM Volume Forecasts'!$A$27:$AG$123,F$137,FALSE) -> 0 | G218: =VLOOKUP(Vlookup!$B183,'CDCM Volume Forecasts'!$A$27:$AG$123,G$137,FALSE) -> 0
A219: > LV Generation Intermittent | B219: =VLOOKUP(Vlookup!$B184,'CDCM Volume Forecasts'!$A$27:$AG$123,B$137,FALSE) -> 0 | C219: =VLOOKUP(Vlookup!$B184,'CDCM Volume Forecasts'!$A$27:$AG$123,C$137,FALSE) -> 0 | D219: =VLOOKUP(Vlookup!$B184,'CDCM Volume Forecasts'!$A$27:$AG$123,D$137,FALSE) -> 0 | E219: =VLOOKUP(Vlookup!$B184,'CDCM Volume Forecasts'!$A$27:$AG$123,E$137,FALSE) -> 0 | F219: =VLOOKUP(Vlookup!$B184,'CDCM Volume Forecasts'!$A$27:$AG$123,F$137,FALSE) -> 0 | G219: =VLOOKUP(Vlookup!$B184,'CDCM Volume Forecasts'!$A$27:$AG$123,G$137,FALSE) -> 0
A220: LV Generation Intermittent | B220: =VLOOKUP(Vlookup!$B185,'CDCM Volume Forecasts'!$A$27:$AG$123,B$137,FALSE) -> 9529.950474 | C220: =VLOOKUP(Vlookup!$B185,'CDCM Volume Forecasts'!$A$27:$AG$123,C$137,FALSE) -> 0 | D220: =VLOOKUP(Vlookup!$B185,'CDCM Volume Forecasts'!$A$27:$AG$123,D$137,FALSE) -> 0 | E220: =VLOOKUP(Vlookup!$B185,'CDCM Volume Forecasts'!$A$27:$AG$123,E$137,FALSE) -> 146 | F220: =VLOOKUP(Vlookup!$B185,'CDCM Volume Forecasts'!$A$27:$AG$123,F$137,FALSE) -> 0 | G220: =VLOOKUP(Vlookup!$B185,'CDCM Volume Forecasts'!$A$27:$AG$123,G$137,FALSE) -> 338
A221: LDNO LV: LV Generation Intermittent | B221: =VLOOKUP(Vlookup!$B186,'CDCM Volume Forecasts'!$A$27:$AG$123,B$137,FALSE) -> 0 | C221: =VLOOKUP(Vlookup!$B186,'CDCM Volume Forecasts'!$A$27:$AG$123,C$137,FALSE) -> 0 | D221: =VLOOKUP(Vlookup!$B186,'CDCM Volume Forecasts'!$A$27:$AG$123,D$137,FALSE) -> 0 | E221: =VLOOKUP(Vlookup!$B186,'CDCM Volume Forecasts'!$A$27:$AG$123,E$137,FALSE) -> 0 | F221: =VLOOKUP(Vlookup!$B186,'CDCM Volume Forecasts'!$A$27:$AG$123,F$137,FALSE) -> 0 | G221: =VLOOKUP(Vlookup!$B186,'CDCM Volume Forecasts'!$A$27:$AG$123,G$137,FALSE) -> 0
A222: LDNO HV: LV Generation Intermittent | B222: =VLOOKUP(Vlookup!$B187,'CDCM Volume Forecasts'!$A$27:$AG$123,B$137,FALSE) -> 0 | C222: =VLOOKUP(Vlookup!$B187,'CDCM Volume Forecasts'!$A$27:$AG$123,C$137,FALSE) -> 0 | D222: =VLOOKUP(Vlookup!$B187,'CDCM Volume Forecasts'!$A$27:$AG$123,D$137,FALSE) -> 0 | E222: =VLOOKUP(Vlookup!$B187,'CDCM Volume Forecasts'!$A$27:$AG$123,E$137,FALSE) -> 0 | F222: =VLOOKUP(Vlookup!$B187,'CDCM Volume Forecasts'!$A$27:$AG$123,F$137,FALSE) -> 0 | G222: =VLOOKUP(Vlookup!$B187,'CDCM Volume Forecasts'!$A$27:$AG$123,G$137,FALSE) -> 0
A223: > LV Generation Non-Intermittent | B223: =VLOOKUP(Vlookup!$B188,'CDCM Volume Forecasts'!$A$27:$AG$123,B$137,FALSE) -> 0 | C223: =VLOOKUP(Vlookup!$B188,'CDCM Volume Forecasts'!$A$27:$AG$123,C$137,FALSE) -> 0 | D223: =VLOOKUP(Vlookup!$B188,'CDCM Volume Forecasts'!$A$27:$AG$123,D$137,FALSE) -> 0 | E223: =VLOOKUP(Vlookup!$B188,'CDCM Volume Forecasts'!$A$27:$AG$123,E$137,FALSE) -> 0 | F223: =VLOOKUP(Vlookup!$B188,'CDCM Volume Forecasts'!$A$27:$AG$123,F$137,FALSE) -> 0 | G223: =VLOOKUP(Vlookup!$B188,'CDCM Volume Forecasts'!$A$27:$AG$123,G$137,FALSE) -> 0
A224: LV Generation Non-Intermittent | B224: =VLOOKUP(Vlookup!$B189,'CDCM Volume Forecasts'!$A$27:$AG$123,B$137,FALSE) -> 130.2286029 | C224: =VLOOKUP(Vlookup!$B189,'CDCM Volume Forecasts'!$A$27:$AG$123,C$137,FALSE) -> 867.149333 | D224: =VLOOKUP(Vlookup!$B189,'CDCM Volume Forecasts'!$A$27:$AG$123,D$137,FALSE) -> 897.8999599 | E224: =VLOOKUP(Vlookup!$B189,'CDCM Volume Forecasts'!$A$27:$AG$123,E$137,FALSE) -> 11 | F224: =VLOOKUP(Vlookup!$B189,'CDCM Volume Forecasts'!$A$27:$AG$123,F$137,FALSE) -> 0 | G224: =VLOOKUP(Vlookup!$B189,'CDCM Volume Forecasts'!$A$27:$AG$123,G$137,FALSE) -> 31
A225: LDNO LV: LV Generation Non-Intermittent | B225: =VLOOKUP(Vlookup!$B190,'CDCM Volume Forecasts'!$A$27:$AG$123,B$137,FALSE) -> 0 | C225: =VLOOKUP(Vlookup!$B190,'CDCM Volume Forecasts'!$A$27:$AG$123,C$137,FALSE) -> 0 | D225: =VLOOKUP(Vlookup!$B190,'CDCM Volume Forecasts'!$A$27:$AG$123,D$137,FALSE) -> 0 | E225: =VLOOKUP(Vlookup!$B190,'CDCM Volume Forecasts'!$A$27:$AG$123,E$137,FALSE) -> 0 | F225: =VLOOKUP(Vlookup!$B190,'CDCM Volume Forecasts'!$A$27:$AG$123,F$137,FALSE) -> 0 | G225: =VLOOKUP(Vlookup!$B190,'CDCM Volume Forecasts'!$A$27:$AG$123,G$137,FALSE) -> 0
A226: LDNO HV: LV Generation Non-Intermittent | B226: =VLOOKUP(Vlookup!$B191,'CDCM Volume Forecasts'!$A$27:$AG$123,B$137,FALSE) -> 0 | C226: =VLOOKUP(Vlookup!$B191,'CDCM Volume Forecasts'!$A$27:$AG$123,C$137,FALSE) -> 0 | D226: =VLOOKUP(Vlookup!$B191,'CDCM Volume Forecasts'!$A$27:$AG$123,D$137,FALSE) -> 0 | E226: =VLOOKUP(Vlookup!$B191,'CDCM Volume Forecasts'!$A$27:$AG$123,E$137,FALSE) -> 0 | F226: =VLOOKUP(Vlookup!$B191,'CDCM Volume Forecasts'!$A$27:$AG$123,F$137,FALSE) -> 0 | G226: =VLOOKUP(Vlookup!$B191,'CDCM Volume Forecasts'!$A$27:$AG$123,G$137,FALSE) -> 0
A227: > LV Sub Generation Intermittent | B227: =VLOOKUP(Vlookup!$B192,'CDCM Volume Forecasts'!$A$27:$AG$123,B$137,FALSE) -> 0 | C227: =VLOOKUP(Vlookup!$B192,'CDCM Volume Forecasts'!$A$27:$AG$123,C$137,FALSE) -> 0 | D227: =VLOOKUP(Vlookup!$B192,'CDCM Volume Forecasts'!$A$27:$AG$123,D$137,FALSE) -> 0 | E227: =VLOOKUP(Vlookup!$B192,'CDCM Volume Forecasts'!$A$27:$AG$123,E$137,FALSE) -> 0 | F227: =VLOOKUP(Vlookup!$B192,'CDCM Volume Forecasts'!$A$27:$AG$123,F$137,FALSE) -> 0 | G227: =VLOOKUP(Vlookup!$B192,'CDCM Volume Forecasts'!$A$27:$AG$123,G$137,FALSE) -> 0
A228: LV Sub Generation Intermittent | B228: =VLOOKUP(Vlookup!$B193,'CDCM Volume Forecasts'!$A$27:$AG$123,B$137,FALSE) -> 37.671 | C228: =VLOOKUP(Vlookup!$B193,'CDCM Volume Forecasts'!$A$27:$AG$123,C$137,FALSE) -> 0 | D228: =VLOOKUP(Vlookup!$B193,'CDCM Volume Forecasts'!$A$27:$AG$123,D$137,FALSE) -> 0 | E228: =VLOOKUP(Vlookup!$B193,'CDCM Volume Forecasts'!$A$27:$AG$123,E$137,FALSE) -> 1 | F228: =VLOOKUP(Vlookup!$B193,'CDCM Volume Forecasts'!$A$27:$AG$123,F$137,FALSE) -> 0 | G228: =VLOOKUP(Vlookup!$B193,'CDCM Volume Forecasts'!$A$27:$AG$123,G$137,FALSE) -> 0
... 81 more rows

Sheet (Y+2)
A1: Input data (Y+2)
A4: 1000. Company, charging year, data version
B6: Company | C6: Year | D6: Version
A7: Company, charging year, data version | B7: =VLOOKUP(Vlookup!B7,'CDCM Forecast Data'!$A$14:$I$271,7,FALSE) -> 0 | C7: =VLOOKUP(Vlookup!C7,'CDCM Forecast Data'!$A$14:$I$271,7,FALSE) -> 0 | D7: =VLOOKUP(Vlookup!D7,'CDCM Forecast Data'!$A$14:$I$271,7,FALSE) -> 0
A9: 1010. Financial and general assumptions
A11: Sources: financial assumptions; calendar; network model.
A12: These financial assumptions determine the annuity rate applied to convert the asset values of the network model into an annual charge.
B13: Rate of return | C13: Annualisation period (years) | D13: Annuity proportion for customer-contributed assets | E13: Power factor | F13: Days in the charging period
A14: Financial and general assumptions | B14: =VLOOKUP(Vlookup!B14,'CDCM Forecast Data'!$A$14:$I$271,7,FALSE) -> 0.056 | C14: =VLOOKUP(Vlookup!C14,'CDCM Forecast Data'!$A$14:$I$271,7,FALSE) -> 40 | E14: =VLOOKUP(Vlookup!E14,'CDCM Forecast Data'!$A$14:$I$271,7,FALSE) -> 0.95 | F14: =VLOOKUP(Vlookup!F14,'CDCM Forecast Data'!$A$14:$I$271,7,FALSE) -> 365
A16: 1017. Diversity allowance between top and bottom of network level
A18: Source: operational data analysis and/or network model.
A19: The diversity figure against GSP is the diversity between GSP Group (the whole system) and individual GSPs.
A20: The diversity figure against 132kV is the diversity between GSPs (the top of the 132kV network) and 132kV/EHV bulk supply points (the bottom of the 132kV network).
A21: The diversity figure against EHV is the diversity between 132kV/EHV bulk supply points (the top of the EHV network) and EHV/HV primary substations (the bottom of the EHV network).
A22: The diversity figure against HV is the diversity between EHV/HV primary substations (the top of the HV network) and HV/LV substations (the bottom of the HV network).
B23: Diversity allowance between top and bottom of network level
A24: GSPs | B24: =VLOOKUP(Vlookup!B24,'CDCM Forecast Data'!$A$14:$I$271,7,FALSE) -> 0.06382978723
A25: 132kV | B25: =VLOOKUP(Vlookup!B25,'CDCM Forecast Data'!$A$14:$I$271,7,FALSE) -> 0.053
A26: 132kV/EHV
A27: EHV | B27: =VLOOKUP(Vlookup!B27,'CDCM Forecast Data'!$A$14:$I$271,7,FALSE) -> 0.099
A28: EHV/HV
A29: HV | B29: =VLOOKUP(Vlookup!B29,'CDCM Forecast Data'!$A$14:$I$271,7,FALSE) -> 0.37
A30: HV/LV
A31: LV circuits
A33: 1018. Proportion of relevant load going through 132kV/HV direct transformation
B35: 132kV/HV
A36: EHV/HV | B36: =VLOOKUP(Vlookup!B36,'CDCM Forecast Data'!$A$14:$I$271,7,FALSE) -> 0.3
A38: 1019. Network model GSP peak demand (MW)
B40: Network model GSP peak demand (MW)
A41: Network model GSP peak demand (MW) | B41: =VLOOKUP(Vlookup!B41,'CDCM Forecast Data'!$A$14:$I$271,7,FALSE) -> 500
A43: 1020. Gross asset cost by network level (£)
B45: Gross assets £
A46: 132kV | B46: =VLOOKUP(Vlookup!B46,'CDCM Forecast Data'!$A$14:$I$271,7,FALSE) -> 133950669.3
A47: 132kV/EHV | B47: =VLOOKUP(Vlookup!B47,'CDCM Forecast Data'!$A$14:$I$271,7,FALSE) -> 11831281.55
A48: EHV | B48: =VLOOKUP(Vlookup!B48,'CDCM Forecast Data'!$A$14:$I$271,7,FALSE) -> 35107753.97
A49: EHV/HV | B49: =VLOOKUP(Vlookup!B49,'CDCM Forecast Data'!$A$14:$I$271,7,FALSE) -> 30543501.51
A50: 132kV/HV | B50: =VLOOKUP(Vlookup!B50,'CDCM Forecast Data'!$A$14:$I$271,7,FALSE) -> 9835467.018
A51: HV | B51: =VLOOKUP(Vlookup!B51,'CDCM Forecast Data'!$A$14:$I$271,7,FALSE) -> 147333759.2
A52: HV/LV | B52: =VLOOKUP(Vlookup!B52,'CDCM Forecast Data'!$A$14:$I$271,7,FALSE) -> 56919673.68
A53: LV circuits | B53: =VLOOKUP(Vlookup!B53,'CDCM Forecast Data'!$A$14:$I$271,7,FALSE) -> 117228720.5
A55: 1022. LV service model asset cost (£)
B57: LV service model 1 | C57: LV service model 2 | D57: LV service model 3 | E57: LV service model 4 | F57: LV service model 5 | G57: LV service model 6 | H57: LV service model 7 | I57: LV service model 8
A58: LV service model asset cost (£) | B58: =VLOOKUP(Vlookup!B58,'CDCM Forecast Data'!$A$14:$I$271,7,FALSE) -> 5269.712407 | C58: =VLOOKUP(Vlookup!C58,'CDCM Forecast Data'!$A$14:$I$271,7,FALSE) -> 592.7899597 | D58: =VLOOKUP(Vlookup!D58,'CDCM Forecast Data'!$A$14:$I$271,7,FALSE) -> 721.7175527 | E58: =VLOOKUP(Vlookup!E58,'CDCM Forecast Data'!$A$14:$I$271,7,FALSE) -> 535.2401479 | F58: =VLOOKUP(Vlookup!F58,'CDCM Forecast Data'!$A$14:$I$271,7,FALSE) -> 1216.71997 | G58: =VLOOKUP(Vlookup!G58,'CDCM Forecast Data'!$A$14:$I$271,7,FALSE) -> 937.1336471 | H58: =VLOOKUP(Vlookup!H58,'CDCM Forecast Data'!$A$14:$I$271,7,FALSE) -> 0 | I58: =VLOOKUP(Vlookup!I58,'CDCM Forecast Data'!$A$14:$I$271,7,FALSE) -> 490.1263649
A60: 1023. HV service model asset cost (£)
B62: HV service model 1 | C62: HV service model 2 | D62: HV service model 3 | E62: HV service model 4 | F62: HV service model 5
A63: HV service model asset cost (£) | B63: =VLOOKUP(Vlookup!B63,'CDCM Forecast Data'!$A$14:$I$271,7,FALSE) -> 9297.453198 | C63: =VLOOKUP(Vlookup!C63,'CDCM Forecast Data'!$A$14:$I$271,7,FALSE) -> 4482.616265 | D63: =VLOOKUP(Vlookup!D63,'CDCM Forecast Data'!$A$14:$I$271,7,FALSE) -> 0 | E63: =VLOOKUP(Vlookup!E63,'CDCM Forecast Data'!$A$14:$I$271,7,FALSE) -> 0 | F63: =VLOOKUP(Vlookup!F63,'CDCM Forecast Data'!$A$14:$I$271,7,FALSE) -> 0
A65: 1025. Matrix of applicability of LV service models to tariffs with fixed charges
B66: 18 | C66: =B66+1 -> 19 | D66: 20 | E66: 21 | F66: 22 | G66: 23 | H66: 24 | I66: 25
B67: LV service model 1 | C67: LV service model 2 | D67: LV service model 3 | E67: LV service model 4 | F67: LV service model 5 | G67: LV service model 6 | H67: LV service model 7 | I67: LV service model 8
A68: Domestic Unrestricted | B68: =VLOOKUP($A68,'Mat of App'!$B$7:$AP$37,B$66,FALSE) -> 0.05 | C68: =VLOOKUP($A68,'Mat of App'!$B$7:$AP$37,C$66,FALSE) -> 0 | D68: =VLOOKUP($A68,'Mat of App'!$B$7:$AP$37,D$66,FALSE) -> 0 | E68: =VLOOKUP($A68,'Mat of App'!$B$7:$AP$37,E$66,FALSE) -> 0 | F68: =VLOOKUP($A68,'Mat of App'!$B$7:$AP$37,F$66,FALSE) -> 0 | G68: =VLOOKUP($A68,'Mat of App'!$B$7:$AP$37,G$66,FALSE) -> 0 | H68: =VLOOKUP($A68,'Mat of App'!$B$7:$AP$37,H$66,FALSE) -> 0 | I68: =VLOOKUP($A68,'Mat of App'!$B$7:$AP$37,I$66,FALSE) -> 0
A69: Domestic Two Rate | B69: =VLOOKUP($A69,'Mat of App'!$B$7:$AP$37,B$66,FALSE) -> 0.05 | C69: =VLOOKUP($A69,'Mat of App'!$B$7:$AP$37,C$66,FALSE) -> 0 | D69: =VLOOKUP($A69,'Mat of App'!$B$7:$AP$37,D$66,FALSE) -> 0 | E69: =VLOOKUP($A69,'Mat of App'!$B$7:$AP$37,E$66,FALSE) -> 0 | F69: =VLOOKUP($A69,'Mat of App'!$B$7:$AP$37,F$66,FALSE) -> 0 | G69: =VLOOKUP($A69,'Mat of App'!$B$7:$AP$37,G$66,FALSE) -> 0 | H69: =VLOOKUP($A69,'Mat of App'!$B$7:$AP$37,H$66,FALSE) -> 0 | I69: =VLOOKUP($A69,'Mat of App'!$B$7:$AP$37,I$66,FALSE) -> 0
A70: Small Non Domestic Unrestricted | B70: =VLOOKUP($A70,'Mat of App'!$B$7:$AP$37,B$66,FALSE) -> 0 | C70: =VLOOKUP($A70,'Mat of App'!$B$7:$AP$37,C$66,FALSE) -> 1 | D70: =VLOOKUP($A70,'Mat of App'!$B$7:$AP$37,D$66,FALSE) -> 0 | E70: =VLOOKUP($A70,'Mat of App'!$B$7:$AP$37,E$66,FALSE) -> 0 | F70: =VLOOKUP($A70,'Mat of App'!$B$7:$AP$37,F$66,FALSE) -> 0 | G70: =VLOOKUP($A70,'Mat of App'!$B$7:$AP$37,G$66,FALSE) -> 0 | H70: =VLOOKUP($A70,'Mat of App'!$B$7:$AP$37,H$66,FALSE) -> 0 | I70: =VLOOKUP($A70,'Mat of App'!$B$7:$AP$37,I$66,FALSE) -> 0
A71: Small Non Domestic Two Rate | B71: =VLOOKUP($A71,'Mat of App'!$B$7:$AP$37,B$66,FALSE) -> 0 | C71: =VLOOKUP($A71,'Mat of App'!$B$7:$AP$37,C$66,FALSE) -> 1 | D71: =VLOOKUP($A71,'Mat of App'!$B$7:$AP$37,D$66,FALSE) -> 0 | E71: =VLOOKUP($A71,'Mat of App'!$B$7:$AP$37,E$66,FALSE) -> 0 | F71: =VLOOKUP($A71,'Mat of App'!$B$7:$AP$37,F$66,FALSE) -> 0 | G71: =VLOOKUP($A71,'Mat of App'!$B$7:$AP$37,G$66,FALSE) -> 0 | H71: =VLOOKUP($A71,'Mat of App'!$B$7:$AP$37,H$66,FALSE) -> 0 | I71: =VLOOKUP($A71,'Mat of App'!$B$7:$AP$37,I$66,FALSE) -> 0
A72: LV Medium Non-Domestic | B72: =VLOOKUP($A72,'Mat of App'!$B$7:$AP$37,B$66,FALSE) -> 0 | C72: =VLOOKUP($A72,'Mat of App'!$B$7:$AP$37,C$66,FALSE) -> 0 | D72: =VLOOKUP($A72,'Mat of App'!$B$7:$AP$37,D$66,FALSE) -> 1 | E72: =VLOOKUP($A72,'Mat of App'!$B$7:$AP$37,E$66,FALSE) -> 0 | F72: =VLOOKUP($A72,'Mat of App'!$B$7:$AP$37,F$66,FALSE) -> 0 | G72: =VLOOKUP($A72,'Mat of App'!$B$7:$AP$37,G$66,FALSE) -> 0 | H72: =VLOOKUP($A72,'Mat of App'!$B$7:$AP$37,H$66,FALSE) -> 0 | I72: =VLOOKUP($A72,'Mat of App'!$B$7:$AP$37,I$66,FALSE) -> 0
A73: LV Sub Medium Non-Domestic | B73: =VLOOKUP($A73,'Mat of App'!$B$7:$AP$37,B$66,FALSE) -> 0 | C73: =VLOOKUP($A73,'Mat of App'!$B$7:$AP$37,C$66,FALSE) -> 0 | D73: =VLOOKUP($A73,'Mat of App'!$B$7:$AP$37,D$66,FALSE) -> 0 | E73: =VLOOKUP($A73,'Mat of App'!$B$7:$AP$37,E$66,FALSE) -> 1 | F73: =VLOOKUP($A73,'Mat of App'!$B$7:$AP$37,F$66,FALSE) -> 0 | G73: =VLOOKUP($A73,'Mat of App'!$B$7:$AP$37,G$66,FALSE) -> 0 | H73: =VLOOKUP($A73,'Mat of App'!$B$7:$AP$37,H$66,FALSE) -> 0 | I73: =VLOOKUP($A73,'Mat of App'!$B$7:$AP$37,I$66,FALSE) -> 0
A74: LV Network Domestic | B74: =VLOOKUP($A74,'Mat of App'!$B$7:$AP$37,B$66,FALSE) -> 0.05 | C74: =VLOOKUP($A74,'Mat of App'!$B$7:$AP$37,C$66,FALSE) -> 0 | D74: =VLOOKUP($A74,'Mat of App'!$B$7:$AP$37,D$66,FALSE) -> 0 | E74: =VLOOKUP($A74,'Mat of App'!$B$7:$AP$37,E$66,FALSE) -> 0 | F74: =VLOOKUP($A74,'Mat of App'!$B$7:$AP$37,F$66,FALSE) -> 0 | G74: =VLOOKUP($A74,'Mat of App'!$B$7:$AP$37,G$66,FALSE) -> 0 | H74: =VLOOKUP($A74,'Mat of App'!$B$7:$AP$37,H$66,FALSE) -> 0 | I74: =VLOOKUP($A74,'Mat of App'!$B$7:$AP$37,I$66,FALSE) -> 0
A75: LV Network Non-Domestic Non-CT | B75: =VLOOKUP($A75,'Mat of App'!$B$7:$AP$37,B$66,FALSE) -> 0 | C75: =VLOOKUP($A75,'Mat of App'!$B$7:$AP$37,C$66,FALSE) -> 1 | D75: =VLOOKUP($A75,'Mat of App'!$B$7:$AP$37,D$66,FALSE) -> 0 | E75: =VLOOKUP($A75,'Mat of App'!$B$7:$AP$37,E$66,FALSE) -> 0 | F75: =VLOOKUP($A75,'Mat of App'!$B$7:$AP$37,F$66,FALSE) -> 0 | G75: =VLOOKUP($A75,'Mat of App'!$B$7:$AP$37,G$66,FALSE) -> 0 | H75: =VLOOKUP($A75,'Mat of App'!$B$7:$AP$37,H$66,FALSE) -> 0 | I75: =VLOOKUP($A75,'Mat of App'!$B$7:$AP$37,I$66,FALSE) -> 0
A76: LV HH Metered | B76: =VLOOKUP($A76,'Mat of App'!$B$7:$AP$37,B$66,FALSE) -> 0 | C76: =VLOOKUP($A76,'Mat of App'!$B$7:$AP$37,C$66,FALSE) -> 0 | D76: =VLOOKUP($A76,'Mat of App'!$B$7:$AP$37,D$66,FALSE) -> 0 | E76: =VLOOKUP($A76,'Mat of App'!$B$7:$AP$37,E$66,FALSE) -> 0 | F76: =VLOOKUP($A76,'Mat of App'!$B$7:$AP$37,F$66,FALSE) -> 1 | G76: =VLOOKUP($A76,'Mat of App'!$B$7:$AP$37,G$66,FALSE) -> 0 | H76: =VLOOKUP($A76,'Mat of App'!$B$7:$AP$37,H$66,FALSE) -> 0 | I76: =VLOOKUP($A76,'Mat of App'!$B$7:$AP$37,I$66,FALSE) -> 0
A77: LV Sub HH Metered | B77: =VLOOKUP($A77,'Mat of App'!$B$7:$AP$37,B$66,FALSE) -> 0 | C77: =VLOOKUP($A77,'Mat of App'!$B$7:$AP$37,C$66,FALSE) -> 0 | D77: =VLOOKUP($A77,'Mat of App'!$B$7:$AP$37,D$66,FALSE) -> 0 | E77: =VLOOKUP($A77,'Mat of App'!$B$7:$AP$37,E$66,FALSE) -> 0 | F77: =VLOOKUP($A77,'Mat of App'!$B$7:$AP$37,F$66,FALSE) -> 0 | G77: =VLOOKUP($A77,'Mat of App'!$B$7:$AP$37,G$66,FALSE) -> 1 | H77: =VLOOKUP($A77,'Mat of App'!$B$7:$AP$37,H$66,FALSE) -> 0 | I77: =VLOOKUP($A77,'Mat of App'!$B$7:$AP$37,I$66,FALSE) -> 0
A78: LV Generation NHH or Aggregate HH | B78: =VLOOKUP($A78,'Mat of App'!$B$7:$AP$37,B$66,FALSE) -> 0 | C78: =VLOOKUP($A78,'Mat of App'!$B$7:$AP$37,C$66,FALSE) -> 0 | D78: =VLOOKUP($A78,'Mat of App'!$B$7:$AP$37,D$66,FALSE) -> 0 | E78: =VLOOKUP($A78,'Mat of App'!$B$7:$AP$37,E$66,FALSE) -> 0 | F78: =VLOOKUP($A78,'Mat of App'!$B$7:$AP$37,F$66,FALSE) -> 0 | G78: =VLOOKUP($A78,'Mat of App'!$B$7:$AP$37,G$66,FALSE) -> 0 | H78: =VLOOKUP($A78,'Mat of App'!$B$7:$AP$37,H$66,FALSE) -> 1 | I78: =VLOOKUP($A78,'Mat of App'!$B$7:$AP$37,I$66,FALSE) -> 0
A79: LV Sub Generation NHH | B79: =VLOOKUP($A79,'Mat of App'!$B$7:$AP$37,B$66,FALSE) -> 0 | C79: =VLOOKUP($A79,'Mat of App'!$B$7:$AP$37,C$66,FALSE) -> 0 | D79: =VLOOKUP($A79,'Mat of App'!$B$7:$AP$37,D$66,FALSE) -> 0 | E79: =VLOOKUP($A79,'Mat of App'!$B$7:$AP$37,E$66,FALSE) -> 0 | F79: =VLOOKUP($A79,'Mat of App'!$B$7:$AP$37,F$66,FALSE) -> 0 | G79: =VLOOKUP($A79,'Mat of App'!$B$7:$AP$37,G$66,FALSE) -> 0 | H79: =VLOOKUP($A79,'Mat of App'!$B$7:$AP$37,H$66,FALSE) -> 1 | I79: =VLOOKUP($A79,'Mat of App'!$B$7:$AP$37,I$66,FALSE) -> 0
A80: LV Generation Intermittent | B80: =VLOOKUP($A80,'Mat of App'!$B$7:$AP$37,B$66,FALSE) -> 0 | C80: =VLOOKUP($A80,'Mat of App'!$B$7:$AP$37,C$66,FALSE) -> 0 | D80: =VLOOKUP($A80,'Mat of App'!$B$7:$AP$37,D$66,FALSE) -> 0 | E80: =VLOOKUP($A80,'Mat of App'!$B$7:$AP$37,E$66,FALSE) -> 0 | F80: =VLOOKUP($A80,'Mat of App'!$B$7:$AP$37,F$66,FALSE) -> 0 | G80: =VLOOKUP($A80,'Mat of App'!$B$7:$AP$37,G$66,FALSE) -> 0 | H80: =VLOOKUP($A80,'Mat of App'!$B$7:$AP$37,H$66,FALSE) -> 1 | I80: =VLOOKUP($A80,'Mat of App'!$B$7:$AP$37,I$66,FALSE) -> 0
A81: LV Generation Non-Intermittent | B81: =VLOOKUP($A81,'Mat of App'!$B$7:$AP$37,B$66,FALSE) -> 0 | C81: =VLOOKUP($A81,'Mat of App'!$B$7:$AP$37,C$66,FALSE) -> 0 | D81: =VLOOKUP($A81,'Mat of App'!$B$7:$AP$37,D$66,FALSE) -> 0 | E81: =VLOOKUP($A81,'Mat of App'!$B$7:$AP$37,E$66,FALSE) -> 0 | F81: =VLOOKUP($A81,'Mat of App'!$B$7:$AP$37,F$66,FALSE) -> 0 | G81: =VLOOKUP($A81,'Mat of App'!$B$7:$AP$37,G$66,FALSE) -> 0 | H81: =VLOOKUP($A81,'Mat of App'!$B$7:$AP$37,H$66,FALSE) -> 0 | I81: =VLOOKUP($A81,'Mat of App'!$B$7:$AP$37,I$66,FALSE) -> 0
A82: LV Sub Generation Intermittent | B82: =VLOOKUP($A82,'Mat of App'!$B$7:$AP$37,B$66,FALSE) -> 0 | C82: =VLOOKUP($A82,'Mat of App'!$B$7:$AP$37,C$66,FALSE) -> 0 | D82: =VLOOKUP($A82,'Mat of App'!$B$7:$AP$37,D$66,FALSE) -> 0 | E82: =VLOOKUP($A82,'Mat of App'!$B$7:$AP$37,E$66,FALSE) -> 0 | F82: =VLOOKUP($A82,'Mat of App'!$B$7:$AP$37,F$66,FALSE) -> 0 | G82: =VLOOKUP($A82,'Mat of App'!$B$7:$AP$37,G$66,FALSE) -> 0 | H82: =VLOOKUP($A82,'Mat of App'!$B$7:$AP$37,H$66,FALSE) -> 0 | I82: =VLOOKUP($A82,'Mat of App'!$B$7:$AP$37,I$66,FALSE) -> 0
A83: LV Sub Generation Non-Intermittent | B83: =VLOOKUP($A83,'Mat of App'!$B$7:$AP$37,B$66,FALSE) -> 0 | C83: =VLOOKUP($A83,'Mat of App'!$B$7:$AP$37,C$66,FALSE) -> 0 | D83: =VLOOKUP($A83,'Mat of App'!$B$7:$AP$37,D$66,FALSE) -> 0 | E83: =VLOOKUP($A83,'Mat of App'!$B$7:$AP$37,E$66,FALSE) -> 0 | F83: =VLOOKUP($A83,'Mat of App'!$B$7:$AP$37,F$66,FALSE) -> 0 | G83: =VLOOKUP($A83,'Mat of App'!$B$7:$AP$37,G$66,FALSE) -> 0 | H83: =VLOOKUP($A83,'Mat of App'!$B$7:$AP$37,H$66,FALSE) -> 0 | I83: =VLOOKUP($A83,'Mat of App'!$B$7:$AP$37,I$66,FALSE) -> 0
A85: 1026. Matrix of applicability of LV service models to unmetered tariffs
A87: Source: service models
A88: Proportion of service model involved in connecting load of 1 MWh/year
B89: LV service model 1 | C89: LV service model 2 | D89: LV service model 3 | E89: LV service model 4 | F89: LV service model 5 | G89: LV service model 6 | H89: LV service model 7 | I89: LV service model 8
A90: All LV unmetered tariffs | B90: =VLOOKUP($A90,'Mat of App'!$B$7:$AP$37,B$66,FALSE) -> 0 | C90: =VLOOKUP($A90,'Mat of App'!$B$7:$AP$37,C$66,FALSE) -> 0 | D90: =VLOOKUP($A90,'Mat of App'!$B$7:$AP$37,D$66,FALSE) -> 0 | E90: =VLOOKUP($A90,'Mat of App'!$B$7:$AP$37,E$66,FALSE) -> 0 | F90: =VLOOKUP($A90,'Mat of App'!$B$7:$AP$37,F$66,FALSE) -> 0 | G90: =VLOOKUP($A90,'Mat of App'!$B$7:$AP$37,G$66,FALSE) -> 0 | H90: =VLOOKUP($A90,'Mat of App'!$B$7:$AP$37,H$66,FALSE) -> 0 | I90: =VLOOKUP($A90,'Mat of App'!$B$7:$AP$37,I$66,FALSE) -> 0.4876
A92: 1028. Matrix of applicability of HV service models to tariffs with fixed charges
B93: 12 | C93: =B93+1 -> 13 | D93: =C93+1 -> 14 | E93: =D93+1 -> 15 | F93: =E93+1 -> 16
B94: HV service model 1 | C94: HV service model 2 | D94: HV service model 3 | E94: HV service model 4 | F94: HV service model 5
A95: HV Medium Non-Domestic | B95: =VLOOKUP($A95,'Mat of App'!$B$7:$AP$37,B$93,FALSE) -> 1 | C95: =VLOOKUP($A95,'Mat of App'!$B$7:$AP$37,C$93,FALSE) -> 0 | D95: =VLOOKUP($A95,'Mat of App'!$B$7:$AP$37,D$93,FALSE) -> 0 | E95: =VLOOKUP($A95,'Mat of App'!$B$7:$AP$37,E$93,FALSE) -> 0 | F95: =VLOOKUP($A95,'Mat of App'!$B$7:$AP$37,F$93,FALSE) -> 0
A96: HV HH Metered | B96: =VLOOKUP($A96,'Mat of App'!$B$7:$AP$37,B$93,FALSE) -> 1 | C96: =VLOOKUP($A96,'Mat of App'!$B$7:$AP$37,C$93,FALSE) -> 0 | D96: =VLOOKUP($A96,'Mat of App'!$B$7:$AP$37,D$93,FALSE) -> 0 | E96: =VLOOKUP($A96,'Mat of App'!$B$7:$AP$37,E$93,FALSE) -> 0 | F96: =VLOOKUP($A96,'Mat of App'!$B$7:$AP$37,F$93,FALSE) -> 0
A97: HV Generation Intermittent | B97: =VLOOKUP($A97,'Mat of App'!$B$7:$AP$37,B$93,FALSE) -> 0 | C97: =VLOOKUP($A97,'Mat of App'!$B$7:$AP$37,C$93,FALSE) -> 1 | D97: =VLOOKUP($A97,'Mat of App'!$B$7:$AP$37,D$93,FALSE) -> 0 | E97: =VLOOKUP($A97,'Mat of App'!$B$7:$AP$37,E$93,FALSE) -> 0 | F97: =VLOOKUP($A97,'Mat of App'!$B$7:$AP$37,F$93,FALSE) -> 0
A98: HV Generation Non-Intermittent | B98: =VLOOKUP($A98,'Mat of App'!$B$7:$AP$37,B$93,FALSE) -> 0 | C98: =VLOOKUP($A98,'Mat of App'!$B$7:$AP$37,C$93,FALSE) -> 1 | D98: =VLOOKUP($A98,'Mat of App'!$B$7:$AP$37,D$93,FALSE) -> 0 | E98: =VLOOKUP($A98,'Mat of App'!$B$7:$AP$37,E$93,FALSE) -> 0 | F98: =VLOOKUP($A98,'Mat of App'!$B$7:$AP$37,F$93,FALSE) -> 0
A100: 1032. Loss adjustment factors to transmission
A102: Source: losses model or loss adjustment factors at time of system peak.
B103: 132kV | C103: 132kV/EHV | D103: EHV | E103: EHV/HV | F103: HV | G103: HV/LV | H103: LV circuits
A104: Loss adjustment factor | B104: =VLOOKUP(Vlookup!B69,'CDCM Forecast Data'!$A$14:$I$271,7,FALSE) -> 1.0097 | C104: =VLOOKUP(Vlookup!C69,'CDCM Forecast Data'!$A$14:$I$271,7,FALSE) -> 1.0142 | D104: =VLOOKUP(Vlookup!D69,'CDCM Forecast Data'!$A$14:$I$271,7,FALSE) -> 1.027 | E104: =VLOOKUP(Vlookup!E69,'CDCM Forecast Data'!$A$14:$I$271,7,FALSE) -> 1.0349 | F104: =VLOOKUP(Vlookup!F69,'CDCM Forecast Data'!$A$14:$I$271,7,FALSE) -> 1.0439 | G104: =VLOOKUP(Vlookup!G69,'CDCM Forecast Data'!$A$14:$I$271,7,FALSE) -> 1.064 | H104: =VLOOKUP(Vlookup!H69,'CDCM Forecast Data'!$A$14:$I$271,7,FALSE) -> 1.085
A106: 1037. Embedded network (LDNO) discounts
A108: Source: separate price control disaggregation model.
B109: No discount | C109: LDNO LV: LV user | D109: LDNO HV: LV user | E109: LDNO HV: LV sub user | F109: LDNO HV: HV user
A110: LDNO discount | C110: =VLOOKUP(Vlookup!C75,'CDCM Forecast Data'!$A$14:$I$271,7,FALSE) -> 0.3196377719 | D110: =VLOOKUP(Vlookup!D75,'CDCM Forecast Data'!$A$14:$I$271,7,FALSE) -> 0.6384671566 | E110: =VLOOKUP(Vlookup!E75,'CDCM Forecast Data'!$A$14:$I$271,7,FALSE) -> 0.4534915681 | F110: =VLOOKUP(Vlookup!F75,'CDCM Forecast Data'!$A$14:$I$271,7,FALSE) -> 0.3444440504
A112: 1041. Load profile data for demand users
A114: Source: load data analysis.
B115: Coincidence factor | C115: Load factor
A116: Domestic Unrestricted | B116: =VLOOKUP(Vlookup!B81,'CDCM Forecast Data'!$A$14:$I$271,6,FALSE) -> 0.8575951603 | C116: =VLOOKUP(Vlookup!C81,'CDCM Forecast Data'!$A$14:$I$271,6,FALSE) -> 0.4400357438
A117: Domestic Two Rate | B117: =VLOOKUP(Vlookup!B82,'CDCM Forecast Data'!$A$14:$I$271,6,FALSE) -> 0.2886294187 | C117: =VLOOKUP(Vlookup!C82,'CDCM Forecast Data'!$A$14:$I$271,6,FALSE) -> 0.2499789884
A118: Domestic Off Peak (related MPAN) | C118: =VLOOKUP(Vlookup!C83,'CDCM Forecast Data'!$A$14:$I$271,6,FALSE) -> 0.2572184053
A119: Small Non Domestic Unrestricted | B119: =VLOOKUP(Vlookup!B84,'CDCM Forecast Data'!$A$14:$I$271,6,FALSE) -> 0.6306309916 | C119: =VLOOKUP(Vlookup!C84,'CDCM Forecast Data'!$A$14:$I$271,6,FALSE) -> 0.4114192423
A120: Small Non Domestic Two Rate | B120: =VLOOKUP(Vlookup!B85,'CDCM Forecast Data'!$A$14:$I$271,6,FALSE) -> 0.7254970091 | C120: =VLOOKUP(Vlookup!C85,'CDCM Forecast Data'!$A$14:$I$271,6,FALSE) -> 0.5506901419
A121: Small Non Domestic Off Peak (related MPAN) | C121: =VLOOKUP(Vlookup!C86,'CDCM Forecast Data'!$A$14:$I$271,6,FALSE) -> 0.2805628594
A122: LV Medium Non-Domestic | B122: =VLOOKUP(Vlookup!B87,'CDCM Forecast Data'!$A$14:$I$271,6,FALSE) -> 0.7719373971 | C122: =VLOOKUP(Vlookup!C87,'CDCM Forecast Data'!$A$14:$I$271,6,FALSE) -> 0.5420264393
A123: LV Sub Medium Non-Domestic | B123: =VLOOKUP(Vlookup!B88,'CDCM Forecast Data'!$A$14:$I$271,6,FALSE) -> 0.7719373971 | C123: =VLOOKUP(Vlookup!C88,'CDCM Forecast Data'!$A$14:$I$271,6,FALSE) -> 0.5420264393
A124: HV Medium Non-Domestic | B124: =VLOOKUP(Vlookup!B89,'CDCM Forecast Data'!$A$14:$I$271,6,FALSE) -> 0.5147350712 | C124: =VLOOKUP(Vlookup!C89,'CDCM Forecast Data'!$A$14:$I$271,6,FALSE) -> 0.3729769188
A125: LV Network Domestic | B125: =VLOOKUP(Vlookup!B90,'CDCM Forecast Data'!$A$14:$I$271,6,FALSE) -> 0.8253814878 | C125: =VLOOKUP(Vlookup!C90,'CDCM Forecast Data'!$A$14:$I$271,6,FALSE) -> 0.4291058522
A126: LV Network Non-Domestic Non-CT | B126: =VLOOKUP(Vlookup!B91,'CDCM Forecast Data'!$A$14:$I$271,6,FALSE) -> 0.64712655 | C126: =VLOOKUP(Vlookup!C91,'CDCM Forecast Data'!$A$14:$I$271,6,FALSE) -> 0.435056821
A127: LV HH Metered | B127: =VLOOKUP(Vlookup!B92,'CDCM Forecast Data'!$A$14:$I$271,6,FALSE) -> 0.7651358399 | C127: =VLOOKUP(Vlookup!C92,'CDCM Forecast Data'!$A$14:$I$271,6,FALSE) -> 0.587809866
A128: LV Sub HH Metered | B128: =VLOOKUP(Vlookup!B93,'CDCM Forecast Data'!$A$14:$I$271,6,FALSE) -> 0.7651358399 | C128: =VLOOKUP(Vlookup!C93,'CDCM Forecast Data'!$A$14:$I$271,6,FALSE) -> 0.587809866
A129: HV HH Metered | B129: =VLOOKUP(Vlookup!B94,'CDCM Forecast Data'!$A$14:$I$271,6,FALSE) -> 0.8509616909 | C129: =VLOOKUP(Vlookup!C94,'CDCM Forecast Data'!$A$14:$I$271,6,FALSE) -> 0.7376293577
A130: NHH UMS category A | B130: =VLOOKUP(Vlookup!B95,'CDCM Forecast Data'!$A$14:$I$271,6,FALSE) -> 1 | C130: =VLOOKUP(Vlookup!C95,'CDCM Forecast Data'!$A$14:$I$271,6,FALSE) -> 1
A131: NHH UMS category B | B131: =VLOOKUP(Vlookup!B96,'CDCM Forecast Data'!$A$14:$I$271,6,FALSE) -> 0.9938835335 | C131: =VLOOKUP(Vlookup!C96,'CDCM Forecast Data'!$A$14:$I$271,6,FALSE) -> 0.4730995727
A132: NHH UMS category C | B132: =VLOOKUP(Vlookup!B97,'CDCM Forecast Data'!$A$14:$I$271,6,FALSE) -> 0.750501002 | C132: =VLOOKUP(Vlookup!C97,'CDCM Forecast Data'!$A$14:$I$271,6,FALSE) -> 0.245270466
A133: NHH UMS category D | B133: =VLOOKUP(Vlookup!B98,'CDCM Forecast Data'!$A$14:$I$271,6,FALSE) -> 0 | C133: =VLOOKUP(Vlookup!C98,'CDCM Forecast Data'!$A$14:$I$271,6,FALSE) -> 0.5141747171
A134: LV UMS (Pseudo HH Metered) | B134: =VLOOKUP(Vlookup!B99,'CDCM Forecast Data'!$A$14:$I$271,6,FALSE) -> 0.9789817972 | C134: =VLOOKUP(Vlookup!C99,'CDCM Forecast Data'!$A$14:$I$271,6,FALSE) -> 0.4742952931
A136: 1053. Volume forecasts for the charging year
B137: 16 | C137: 17 | D137: 18 | E137: 19 | F137: 20 | G137: 21
A138: Source: forecast.
A139: Please include MPAN counts for tariffs with no fixed charge (e.g. off-peak tariffs),
A140: but exclude MPANs on tariffs with a fixed charge that are not subject to a fixed charge due to a site grouping arrangement.
B141: Rate 1 units (MWh) | C141: Rate 2 units (MWh) | D141: Rate 3 units (MWh) | E141: MPANs | F141: Import capacity (kVA) | G141: Reactive power units (MVArh)
A142: > Domestic Unrestricted | B142: =VLOOKUP(Vlookup!$B107,'CDCM Volume Forecasts'!$A$27:$AG$123,B$137,FALSE) -> 0 | C142: =VLOOKUP(Vlookup!$B107,'CDCM Volume Forecasts'!$A$27:$AG$123,C$137,FALSE) -> 0 | D142: =VLOOKUP(Vlookup!$B107,'CDCM Volume Forecasts'!$A$27:$AG$123,D$137,FALSE) -> 0 | E142: =VLOOKUP(Vlookup!$B107,'CDCM Volume Forecasts'!$A$27:$AG$123,E$137,FALSE) -> 0 | F142: =VLOOKUP(Vlookup!$B107,'CDCM Volume Forecasts'!$A$27:$AG$123,F$137,FALSE) -> 0 | G142: =VLOOKUP(Vlookup!$B107,'CDCM Volume Forecasts'!$A$27:$AG$123,G$137,FALSE) -> 0
A143: Domestic Unrestricted | B143: =VLOOKUP(Vlookup!$B108,'CDCM Volume Forecasts'!$A$27:$AG$123,B$137,FALSE) -> 3242264.656 | C143: =VLOOKUP(Vlookup!$B108,'CDCM Volume Forecasts'!$A$27:$AG$123,C$137,FALSE) -> 0 | D143: =VLOOKUP(Vlookup!$B108,'CDCM Volume Forecasts'!$A$27:$AG$123,D$137,FALSE) -> 0 | E143: =VLOOKUP(Vlookup!$B108,'CDCM Volume Forecasts'!$A$27:$AG$123,E$137,FALSE) -> 964740 | F143: =VLOOKUP(Vlookup!$B108,'CDCM Volume Forecasts'!$A$27:$AG$123,F$137,FALSE) -> 0 | G143: =VLOOKUP(Vlookup!$B108,'CDCM Volume Forecasts'!$A$27:$AG$123,G$137,FALSE) -> 0
A144: LDNO LV: Domestic Unrestricted | B144: =VLOOKUP(Vlookup!$B109,'CDCM Volume Forecasts'!$A$27:$AG$123,B$137,FALSE) -> 2870.334985 | C144: =VLOOKUP(Vlookup!$B109,'CDCM Volume Forecasts'!$A$27:$AG$123,C$137,FALSE) -> 0 | D144: =VLOOKUP(Vlookup!$B109,'CDCM Volume Forecasts'!$A$27:$AG$123,D$137,FALSE) -> 0 | E144: =VLOOKUP(Vlookup!$B109,'CDCM Volume Forecasts'!$A$27:$AG$123,E$137,FALSE) -> 893 | F144: =VLOOKUP(Vlookup!$B109,'CDCM Volume Forecasts'!$A$27:$AG$123,F$137,FALSE) -> 0 | G144: =VLOOKUP(Vlookup!$B109,'CDCM Volume Forecasts'!$A$27:$AG$123,G$137,FALSE) -> 0
A145: LDNO HV: Domestic Unrestricted | B145: =VLOOKUP(Vlookup!$B110,'CDCM Volume Forecasts'!$A$27:$AG$123,B$137,FALSE) -> 11376.82715 | C145: =VLOOKUP(Vlookup!$B110,'CDCM Volume Forecasts'!$A$27:$AG$123,C$137,FALSE) -> 0 | D145: =VLOOKUP(Vlookup!$B110,'CDCM Volume Forecasts'!$A$27:$AG$123,D$137,FALSE) -> 0 | E145: =VLOOKUP(Vlookup!$B110,'CDCM Volume Forecasts'!$A$27:$AG$123,E$137,FALSE) -> 3843 | F145: =VLOOKUP(Vlookup!$B110,'CDCM Volume Forecasts'!$A$27:$AG$123,F$137,FALSE) -> 0 | G145: =VLOOKUP(Vlookup!$B110,'CDCM Volume Forecasts'!$A$27:$AG$123,G$137,FALSE) -> 0
A146: > Domestic Two Rate | B146: =VLOOKUP(Vlookup!$B111,'CDCM Volume Forecasts'!$A$27:$AG$123,B$137,FALSE) -> 0 | C146: =VLOOKUP(Vlookup!$B111,'CDCM Volume Forecasts'!$A$27:$AG$123,C$137,FALSE) -> 0 | D146: =VLOOKUP(Vlookup!$B111,'CDCM Volume Forecasts'!$A$27:$AG$123,D$137,FALSE) -> 0 | E146: =VLOOKUP(Vlookup!$B111,'CDCM Volume Forecasts'!$A$27:$AG$123,E$137,FALSE) -> 0 | F146: =VLOOKUP(Vlookup!$B111,'CDCM Volume Forecasts'!$A$27:$AG$123,F$137,FALSE) -> 0 | G146: =VLOOKUP(Vlookup!$B111,'CDCM Volume Forecasts'!$A$27:$AG$123,G$137,FALSE) -> 0
A147: Domestic Two Rate | B147: =VLOOKUP(Vlookup!$B112,'CDCM Volume Forecasts'!$A$27:$AG$123,B$137,FALSE) -> 174847.8894 | C147: =VLOOKUP(Vlookup!$B112,'CDCM Volume Forecasts'!$A$27:$AG$123,C$137,FALSE) -> 180701.5563 | D147: =VLOOKUP(Vlookup!$B112,'CDCM Volume Forecasts'!$A$27:$AG$123,D$137,FALSE) -> 0 | E147: =VLOOKUP(Vlookup!$B112,'CDCM Volume Forecasts'!$A$27:$AG$123,E$137,FALSE) -> 58083 | F147: =VLOOKUP(Vlookup!$B112,'CDCM Volume Forecasts'!$A$27:$AG$123,F$137,FALSE) -> 0 | G147: =VLOOKUP(Vlookup!$B112,'CDCM Volume Forecasts'!$A$27:$AG$123,G$137,FALSE) -> 0
A148: LDNO LV: Domestic Two Rate | B148: =VLOOKUP(Vlookup!$B113,'CDCM Volume Forecasts'!$A$27:$AG$123,B$137,FALSE) -> 262.9871922 | C148: =VLOOKUP(Vlookup!$B113,'CDCM Volume Forecasts'!$A$27:$AG$123,C$137,FALSE) -> 6585.66953 | D148: =VLOOKUP(Vlookup!$B113,'CDCM Volume Forecasts'!$A$27:$AG$123,D$137,FALSE) -> 0 | E148: =VLOOKUP(Vlookup!$B113,'CDCM Volume Forecasts'!$A$27:$AG$123,E$137,FALSE) -> 21 | F148: =VLOOKUP(Vlookup!$B113,'CDCM Volume Forecasts'!$A$27:$AG$123,F$137,FALSE) -> 0 | G148: =VLOOKUP(Vlookup!$B113,'CDCM Volume Forecasts'!$A$27:$AG$123,G$137,FALSE) -> 0
A149: LDNO HV: Domestic Two Rate | B149: =VLOOKUP(Vlookup!$B114,'CDCM Volume Forecasts'!$A$27:$AG$123,B$137,FALSE) -> 256.3006221 | C149: =VLOOKUP(Vlookup!$B114,'CDCM Volume Forecasts'!$A$27:$AG$123,C$137,FALSE) -> 349.8743055 | D149: =VLOOKUP(Vlookup!$B114,'CDCM Volume Forecasts'!$A$27:$AG$123,D$137,FALSE) -> 0 | E149: =VLOOKUP(Vlookup!$B114,'CDCM Volume Forecasts'!$A$27:$AG$123,E$137,FALSE) -> 80 | F149: =VLOOKUP(Vlookup!$B114,'CDCM Volume Forecasts'!$A$27:$AG$123,F$137,FALSE) -> 0 | G149: =VLOOKUP(Vlookup!$B114,'CDCM Volume Forecasts'!$A$27:$AG$123,G$137,FALSE) -> 0
A150: > Domestic Off Peak (related MPAN) | B150: =VLOOKUP(Vlookup!$B115,'CDCM Volume Forecasts'!$A$27:$AG$123,B$137,FALSE) -> 0 | C150: =VLOOKUP(Vlookup!$B115,'CDCM Volume Forecasts'!$A$27:$AG$123,C$137,FALSE) -> 0 | D150: =VLOOKUP(Vlookup!$B115,'CDCM Volume Forecasts'!$A$27:$AG$123,D$137,FALSE) -> 0 | E150: =VLOOKUP(Vlookup!$B115,'CDCM Volume Forecasts'!$A$27:$AG$123,E$137,FALSE) -> 0 | F150: =VLOOKUP(Vlookup!$B115,'CDCM Volume Forecasts'!$A$27:$AG$123,F$137,FALSE) -> 0 | G150: =VLOOKUP(Vlookup!$B115,'CDCM Volume Forecasts'!$A$27:$AG$123,G$137,FALSE) -> 0
A151: Domestic Off Peak (related MPAN) | B151: =VLOOKUP(Vlookup!$B116,'CDCM Volume Forecasts'!$A$27:$AG$123,B$137,FALSE) -> 3613.144098 | C151: =VLOOKUP(Vlookup!$B116,'CDCM Volume Forecasts'!$A$27:$AG$123,C$137,FALSE) -> 0 | D151: =VLOOKUP(Vlookup!$B116,'CDCM Volume Forecasts'!$A$27:$AG$123,D$137,FALSE) -> 0 | E151: =VLOOKUP(Vlookup!$B116,'CDCM Volume Forecasts'!$A$27:$AG$123,E$137,FALSE) -> 0 | F151: =VLOOKUP(Vlookup!$B116,'CDCM Volume Forecasts'!$A$27:$AG$123,F$137,FALSE) -> 0 | G151: =VLOOKUP(Vlookup!$B116,'CDCM Volume Forecasts'!$A$27:$AG$123,G$137,FALSE) -> 0
A152: LDNO LV: Domestic Off Peak (related MPAN) | B152: =VLOOKUP(Vlookup!$B117,'CDCM Volume Forecasts'!$A$27:$AG$123,B$137,FALSE) -> 0 | C152: =VLOOKUP(Vlookup!$B117,'CDCM Volume Forecasts'!$A$27:$AG$123,C$137,FALSE) -> 0 | D152: =VLOOKUP(Vlookup!$B117,'CDCM Volume Forecasts'!$A$27:$AG$123,D$137,FALSE) -> 0 | E152: =VLOOKUP(Vlookup!$B117,'CDCM Volume Forecasts'!$A$27:$AG$123,E$137,FALSE) -> 0 | F152: =VLOOKUP(Vlookup!$B117,'CDCM Volume Forecasts'!$A$27:$AG$123,F$137,FALSE) -> 0 | G152: =VLOOKUP(Vlookup!$B117,'CDCM Volume Forecasts'!$A$27:$AG$123,G$137,FALSE) -> 0
A153: LDNO HV: Domestic Off Peak (related MPAN) | B153: =VLOOKUP(Vlookup!$B118,'CDCM Volume Forecasts'!$A$27:$AG$123,B$137,FALSE) -> 0 | C153: =VLOOKUP(Vlookup!$B118,'CDCM Volume Forecasts'!$A$27:$AG$123,C$137,FALSE) -> 0 | D153: =VLOOKUP(Vlookup!$B118,'CDCM Volume Forecasts'!$A$27:$AG$123,D$137,FALSE) -> 0 | E153: =VLOOKUP(Vlookup!$B118,'CDCM Volume Forecasts'!$A$27:$AG$123,E$137,FALSE) -> 0 | F153: =VLOOKUP(Vlookup!$B118,'CDCM Volume Forecasts'!$A$27:$AG$123,F$137,FALSE) -> 0 | G153: =VLOOKUP(Vlookup!$B118,'CDCM Volume Forecasts'!$A$27:$AG$123,G$137,FALSE) -> 0
A154: > Small Non Domestic Unrestricted | B154: =VLOOKUP(Vlookup!$B119,'CDCM Volume Forecasts'!$A$27:$AG$123,B$137,FALSE) -> 0 | C154: =VLOOKUP(Vlookup!$B119,'CDCM Volume Forecasts'!$A$27:$AG$123,C$137,FALSE) -> 0 | D154: =VLOOKUP(Vlookup!$B119,'CDCM Volume Forecasts'!$A$27:$AG$123,D$137,FALSE) -> 0 | E154: =VLOOKUP(Vlookup!$B119,'CDCM Volume Forecasts'!$A$27:$AG$123,E$137,FALSE) -> 0 | F154: =VLOOKUP(Vlookup!$B119,'CDCM Volume Forecasts'!$A$27:$AG$123,F$137,FALSE) -> 0 | G154: =VLOOKUP(Vlookup!$B119,'CDCM Volume Forecasts'!$A$27:$AG$123,G$137,FALSE) -> 0
A155: Small Non Domestic Unrestricted | B155: =VLOOKUP(Vlookup!$B120,'CDCM Volume Forecasts'!$A$27:$AG$123,B$137,FALSE) -> 823197.9586 | C155: =VLOOKUP(Vlookup!$B120,'CDCM Volume Forecasts'!$A$27:$AG$123,C$137,FALSE) -> 0 | D155: =VLOOKUP(Vlookup!$B120,'CDCM Volume Forecasts'!$A$27:$AG$123,D$137,FALSE) -> 0 | E155: =VLOOKUP(Vlookup!$B120,'CDCM Volume Forecasts'!$A$27:$AG$123,E$137,FALSE) -> 63787 | F155: =VLOOKUP(Vlookup!$B120,'CDCM Volume Forecasts'!$A$27:$AG$123,F$137,FALSE) -> 0 | G155: =VLOOKUP(Vlookup!$B120,'CDCM Volume Forecasts'!$A$27:$AG$123,G$137,FALSE) -> 0
